Workbook

Sheet Introduction (hidden)

Sheet Start
D8: 4.1 | E8: =IF(OR(F16="",F17=""), "'Completed by' and 'Date of metric completion' fields must be filled in ▲","") -> 
D9: Project details
D11: Planning authority: | F11: Barnsley
D12: Project name: | F12: Rockley Dene
D13: Applicant: | F13: Edge AB Ltd
D14: Application type: | F14: Full
D15: Planning application reference: | F15: -
D16: Completed by: | F16: Esther Hyde
D17: Date of metric completion: | F17: 29th August 2024
D18: Reviewer: | F18: Christopher Braine
D19: Calculation iteration: | F19: 1
D20: Planning authority reviewer:
D21: Date of planning authority review:
D22: Target % net gain: | F22: 0.1 | I22: =IF(OR(F22>=10%,F22=""),"","Target set below 10% ▲") -> 
D23: Irreplaceable habitat present at baseline: | F23: =IF(AND('Irreplaceable Habitats'!K32=0,'Irreplaceable Habitats'!K65=0,'Irreplaceable Habitats'!AP65=0,'Irreplaceable Habitats'!AP32=0),"No ✓","Yes ⚠") -> No ✓
D24: Total site area - including irreplaceable habitat area (hectares): | F24: ='A-1 On-Site Habitat Baseline'!H260 -> 0.4297 | I24: Irreplaceable habitat site area (hectares): | J24: ='Irreplaceable Habitats'!K33 -> 0
D25: Total off-site area - including irreplaceable habitat area (hectares): | F25: =IF('D-1 Off-Site Habitat Baseline'!H261=0, "N/A", 'D-1 Off-Site Habitat Baseline'!H261) -> N/A | I25: Irreplaceable habitat area off-site (hectares): | J25: =IF('Irreplaceable Habitats'!K66=0, "N/A", 'Irreplaceable Habitats'!K66) -> N/A
D27: Contains deviations from the statutory metric - this must be agreed with consenting body | I27: =IF(F27="Yes", "Only acceptable in exceptionally rare circumstances, ensure any deviations have been agreed with the consenting body ⚠", "") -> 
D29: Cell style conventions
D30: ⚠ | F30: Attention required
D31: ▲ | F31: Input error/rules and principles not met
F32: Use of this cell is not appropriate
F33: Enter data
F34: Automatic lookup
F35: Result
D55: On-site baseline map reference number | I55: On-site post-intervention map reference number
D66: Off-site baseline map reference number | I66: Off-site post-intervention reference number

Sheet Main Menu
Q3: Tree helper
Q4: Tree size | R4: Number of trees and area (ha) for each condition state
R5: Poor | S5: Area | T5: Moderate | U5: Area | V5: Good | W5: Area
Q6: Small | S6: =R6*'G-3 Multipliers'!$Z$4 -> 0 | U6: =T6*'G-3 Multipliers'!$Z$4 -> 0 | W6: =V6*'G-3 Multipliers'!$Z$4 -> 0
Q7: Medium | S7: =R7*'G-3 Multipliers'!$Z$5 -> 0 | U7: =T7*'G-3 Multipliers'!$Z$5 -> 0 | W7: =V7*'G-3 Multipliers'!$Z$5 -> 0
Q8: Large | S8: =R8*'G-3 Multipliers'!$Z6 -> 0 | U8: =T8*'G-3 Multipliers'!$Z6 -> 0 | W8: =V8*'G-3 Multipliers'!$Z6 -> 0
Q9: Very large | S9: =R9*'G-3 Multipliers'!$Z7 -> 0 | U9: =T9*'G-3 Multipliers'!$Z7 -> 0 | W9: =V9*'G-3 Multipliers'!$Z7 -> 0
Q10: Total | R10: =SUM(R6:R9) -> 0 | S10: 0 | T10: 0 | U10: 0 | V10: 0 | W10: 0

Sheet Unit shortfall calculations (hidden)
D2: Target | E2: Baseline Units | F2: Required Units | G2: Unit Deficit
B3: Area habitats | D3: =Start!F22 -> 0.1 | E3: ='Headline Results'!$E$61 -> 3.443 | F3: ='Headline Results'!$F61 -> 3.7873 | G3: ='Headline Results'!$H61 -> 0.5968187548 | H3: =IF(G3=0,"",IF(G3>0,"▲","✓")) -> ▲
B4: Hedgerows | D4: =Start!F22 -> 0.1 | E4: ='Headline Results'!H9 -> 0 | F4: ='Headline Results'!$F62 -> 0 | G4: ='Headline Results'!$H62 -> 0
B5: Watercourses | D5: =Start!F22 -> 0.1 | E5: ='Headline Results'!H10 -> 0 | F5: ='Headline Results'!$F63 -> 0 | G5: ='Headline Results'!$H63 -> 0 | H5: =IF(G5=0,"",IF(G5>0,"▲","✓")) -> 
E8: Tier | F8: Unit Shortfall by Tier | G8: Unit Shortfall by Tier (SRM Included)
E9: A1 | F9: =IFERROR(IF(OR('Trading Summary Area Habitats'!$K$13<0,'Trading Summary WaterC''s'!$I$13<0),"ERROR", IF((F13+F12+F11+F10+((H65+M122+G138)*-1))>=G3, ((H65+M122+G138)*-1), IF((F13+F12+F11+F10+((H65+M122+G138)*-1))>=(G3-(F3-E3)), (((H65+M122+G138)*-1)+(G3-(F13+F12+F11+F10+((H65+M122+G138)*-1)))), IF(G3<=0,((H65+M122+G138)*-1), IF((F13+F12+F11+F10+((H65+M122+G138)*-1))<G3,(G3-(F10+F11+F12+F13)), IF(G3>=F3-E3, ((H65+M122+G138)*-1)+(F3-E3), ((H65+M122+G138)*-1)+G3)))))),"Error") -> 0.5968187548 | G9: =IF(F9="ERROR", "ERROR", F9*2) -> 1.19363751 | H9: =IF(G9=0,"",IF(G9>0,"▲","✓")) -> ▲
E10: A2 | F10: =IFERROR(IF(OR('Trading Summary Area Habitats'!$K$13<0,'Trading Summary WaterC''s'!$I$13<0),"ERROR",(H57+M127)*-1),"Error") -> 0 | G10: 0
E11: A3 | F11: =IFERROR(IF(OR('Trading Summary Area Habitats'!$K$13<0,'Trading Summary WaterC''s'!$I$13<0),"ERROR",H45*-1),"Error") -> 0 | G11: 0
E12: A4 | F12: =IFERROR(IF(OR('Trading Summary Area Habitats'!$K$13<0,'Trading Summary WaterC''s'!$I$13<0),"ERROR",(H27+M129)*-1),"Error") -> 0 | G12: 0
E13: A5 | F13: =IFERROR(IF(OR('Trading Summary Area Habitats'!$K$13<0,'Trading Summary WaterC''s'!$I$13<0),"ERROR",(H21*-1)),"Error") -> 0 | G13: 0
E14: H | F14: =IFERROR(IF(OR('Trading Summary Area Habitats'!$K$13<0,'Trading Summary WaterC''s'!$I$13<0),"ERROR",IF((G147*-1)<G4, G4, IF(G4<=0, (G147*-1), IF(G4>=F4-E4, (G147*-1), (G147*-1)+G4)))),"Error") -> 0 | G14: =IFERROR(IF(F14="ERROR", "ERROR", F14*2),"Error") -> 0
E15: W | F15: =IF(OR('Trading Summary Area Habitats'!$K$13<0,'Trading Summary WaterC''s'!$I$13<0),"ERROR",IF((G157*-1)<G5, G5, IF(G5<=0,(G157*-1),IF(G5>=F5-E5,(G157*-1),(G157*-1)+G5)))) -> 0 | G15: =IFERROR(IF(F15="ERROR", "ERROR", F15*2),"Error") -> 0 | H15: =IF(G15=0,"",IF(G15>0,"▲","✓")) -> 
E16: =IF(OR('Trading Summary Area Habitats'!$K$13<0,'Trading Summary WaterC''s'!$I$13<0), "ERROR - This metric still includes losses of very high distinctiveness habitat. Losses of very high distinctiveness units must be compensated for through this metric or through bespoke compensation ▲", " ") -> 
B17: VH | D17: Tier | E17: Habitat | F17: Habitat Group | G17: Net Gains | H17: Net Losses
D18: A5 | E18: All Very High Distinctiveness Habitats | F18: Various | G18: ='Trading Summary Area Habitats'!K12 -> 0 | H18: ='Trading Summary Area Habitats'!K13 -> 0
D20: Tier | E20: Habitat | F20: Habitat Group | G20: Unit Change | H20: Losses in Tier
B21: HIGH | D21: A5 | E21: Lakes - High alkalinity lakes | F21: Lakes | G21: ='G-2 Habitat groups'!$BE$39 -> 0 | H21: =SUMIF(G21:G25, "<0") -> 0
E22: Lakes - Low alkalinity lakes | F22: Lakes | G22: ='G-2 Habitat groups'!$BE$40 -> 0
E23: Lakes - Marl lakes | F23: Lakes | G23: ='G-2 Habitat groups'!$BE$41 -> 0
E24: Lakes - Moderate alkalinity lakes | F24: Lakes | G24: ='G-2 Habitat groups'!$BE$42 -> 0
E25: Lakes - Peat lakes | F25: Lakes | G25: ='G-2 Habitat groups'!$BE$43 -> 0
D27: A4 | E27: Grassland - Floodplain wetland mosaic and CFGM | F27: Grassland | G27: ='G-2 Habitat groups'!BE31 -> 0 | H27: =SUMIF(G27:G43, "<0") -> 0
E28: Lakes - Ponds (priority habitat) | F28: Lakes | G28: ='G-2 Habitat groups'!$BE$44 -> 0
E29: Lakes - Temporary lakes ponds and pools (H3170) | F29: Lakes | G29: ='G-2 Habitat groups'!$BE$45 -> 0
E30: Sparsely vegetated land - Coastal sand dunes | F30: Sparsely vegetated land | G30: ='G-2 Habitat groups'!$BE$46 -> 0
E31: Sparsely vegetated land - Coastal vegetated shingle | F31: Sparsely vegetated land | G31: ='G-2 Habitat groups'!$BE$47 -> 0
E32: Sparsely vegetated land - Inland rock outcrop and scree habitats | F32: Sparsely vegetated land | G32: ='G-2 Habitat groups'!$BE$48 -> 0
E33: Sparsely vegetated land - Maritime cliff and slopes | F33: Sparsely vegetated land | G33: ='G-2 Habitat groups'!$BE$49 -> 0
E34: Woodland and forest - Lowland mixed deciduous woodland | F34: Woodland and forest | G34: ='G-2 Habitat groups'!$BE$54 -> 0
E35: Woodland and forest - Native pine woodlands | F35: Woodland and forest | G35: ='G-2 Habitat groups'!$BE$56 -> 0
E36: Woodland and forest - Upland mixed ashwoods | F36: Woodland and forest | G36: ='G-2 Habitat groups'!$BE$58 -> 0
E37: Woodland and forest - Upland oakwood | F37: Woodland and forest | G37: ='G-2 Habitat groups'!$BE$59 -> 0
E38: Coastal lagoons - Coastal lagoons | F38: Coastal lagoons | G38: ='G-2 Habitat groups'!$BE$61 -> 0
E39: Rocky shore - High energy littoral rock | F39: Rocky shore | G39: ='G-2 Habitat groups'!$BE$62 -> 0
E40: Rocky shore - Moderate energy littoral rock | F40: Rocky shore | G40: ='G-2 Habitat groups'!$BE$63 -> 0
E41: Rocky shore - Low energy littoral rock | F41: Rocky shore | G41: ='G-2 Habitat groups'!$BE$64 -> 0
E42: Rocky shore - Features of littoral rock | F42: Rocky shore | G42: ='G-2 Habitat groups'!$BE$65 -> 0
E43: Coastal saltmarsh - Saltmarshes and saline reedbeds | F43: Coastal saltmarsh | G43: ='G-2 Habitat groups'!$BE$68 -> 0
D45: A3 | E45: Woodland and forest - Felled./Replacement for felled woodland | F45: Woodland and forest | G45: ='G-2 Habitat groups'!$BE$52 -> 0 | H45: =SUMIF(G45:G55, "<0") -> 0
E46: Woodland and forest - Lowland beech and yew woodland | F46: Woodland and forest | G46: ='G-2 Habitat groups'!$BE$53 -> 0
E47: Woodland and forest - Upland birchwoods | F47: Woodland and forest | G47: ='G-2 Habitat groups'!$BE$57 -> 0
E48: Woodland and forest - Wet woodland | F48: Woodland and forest | G48: ='G-2 Habitat groups'!$BE$60 -> 0
E49: Intertidal sediment - Littoral mud | F49: Intertidal sediment | G49: ='G-2 Habitat groups'!$BE$66 -> 0
E50: Intertidal sediment - Littoral mixed sediments | F50: Intertidal sediment | G50: ='G-2 Habitat groups'!$BE$67 -> 0
E51: Intertidal sediment - Littoral biogenic reefs - Mussels | F51: Intertidal sediment | G51: ='G-2 Habitat groups'!$BE$69 -> 0
E52: Intertidal sediment - Littoral biogenic reefs - Sabellaria | F52: Intertidal sediment | G52: ='G-2 Habitat groups'!$BE$70 -> 0
E53: Intertidal sediment - Features of littoral sediment | F53: Intertidal sediment | G53: ='G-2 Habitat groups'!$BE$71 -> 0
E54: Intertidal sediment - Littoral muddy sand | F54: Intertidal sediment | G54: ='G-2 Habitat groups'!$BE$72 -> 0
E55: Intertidal sediment - Littoral seagrass | F55: Intertidal sediment | G55: ='G-2 Habitat groups'!$BE$73 -> 0
D57: A2 | E57: Grassland - Lowland calcareous grassland | F57: Grassland | G57: ='G-2 Habitat groups'!$BE$32 -> 0 | H57: =SUMIF(G57:G63, "<0") -> 0
E58: Grassland - Tall herb communities (H6430) | F58: Grassland | G58: ='G-2 Habitat groups'!$BE$33 -> 0
E59: Grassland - Upland calcareous grassland | F59: Grassland | G59: ='G-2 Habitat groups'!$BE$34 -> 0
E60: Heathland and shrub - Lowland Heathland | F60: Heathland and shrub | G60: ='G-2 Habitat groups'!$BE$35 -> 0
E61: Heathland and shrub - Dunes with sea buckthorn (H2160) | F61: Heathland and shrub | G61: ='G-2 Habitat groups'!$BE$36 -> 0
E62: Heathland and shrub - Upland heathland | F62: Heathland and shrub | G62: ='G-2 Habitat groups'!$BE$37 -> 0
E63: Urban - Open mosaic habitats on previously developed land | F63: Urban | G63: ='G-2 Habitat groups'!$BE$50 -> 0
D65: A1 | E65: Grassland - Traditional orchards | F65: Grassland | G65: ='G-2 Habitat groups'!$BE$30 -> 0 | H65: =SUMIF(G65:G66, "<0") -> 0
E66: Wetland - Reedbeds | F66: Wetland | G66: ='G-2 Habitat groups'!$BE$51 -> 0
J68: Rule 1 | K68: Higher surplus is used to offset loss of medium distinctiveness of the same broad habitat category.
J69: Rule 2 | K69: Remaining higher surplus is used to offset the loss of the most expensive medium credit tier of A4
J70: Rule 3 | K70: Remaining higher surplus is used to offset the loss of the second most expensive medium credit tier of A2
J71: Rule 4 | K71: Remaining higher surplus is used to offset the loss of the third most expensive medium credit tier A1
J72: Rule 5 | K72: Remaining higher surplus is used to offset losses from low distinctiveness habitats
E74: High Distinctiveness
C75: Tier | E75: Habitat | F75: Habitat Group | G75: Net Change Units
C76: A1 | E76: ='G-2 Habitat groups'!AU30 -> Grassland - Traditional orchards | F76: ='G-2 Habitat groups'!AV30 -> Grassland | G76: ='G-2 Habitat groups'!$BE$30 -> 0
C77: A4 | E77: ='G-2 Habitat groups'!AU31 -> Grassland - Floodplain wetland mosaic and CFGM | F77: ='G-2 Habitat groups'!AV31 -> Grassland | G77: ='G-2 Habitat groups'!$BE$31 -> 0
C78: A2 | E78: ='G-2 Habitat groups'!AU32 -> Grassland - Lowland calcareous grassland | F78: ='G-2 Habitat groups'!AV32 -> Grassland | G78: ='G-2 Habitat groups'!$BE$32 -> 0
C79: A2 | E79: ='G-2 Habitat groups'!AU33 -> Grassland - Tall herb communities (H6430) | F79: ='G-2 Habitat groups'!AV33 -> Grassland | G79: ='G-2 Habitat groups'!$BE$33 -> 0
C80: A2 | E80: ='G-2 Habitat groups'!AU34 -> Grassland - Upland calcareous grassland | F80: ='G-2 Habitat groups'!AV34 -> Grassland | G80: ='G-2 Habitat groups'!$BE$34 -> 0
C81: A2 | E81: ='G-2 Habitat groups'!AU35 -> Heathland and shrub - Lowland Heathland | F81: ='G-2 Habitat groups'!AV35 -> Heathland and shrub | G81: ='G-2 Habitat groups'!$BE$35 -> 0
C82: A2 | E82: ='G-2 Habitat groups'!AU36 -> Heathland and shrub - Dunes with sea buckthorn (H2160) | F82: ='G-2 Habitat groups'!AV36 -> Heathland and shrub | G82: ='G-2 Habitat groups'!$BE$36 -> 0
C83: A2 | E83: ='G-2 Habitat groups'!AU37 -> Heathland and shrub - Upland heathland | F83: ='G-2 Habitat groups'!AV37 -> Heathland and shrub | G83: ='G-2 Habitat groups'!$BE$37 -> 0
C84: A5 | E84: ='G-2 Habitat groups'!AU39 -> Lakes - High alkalinity lakes | F84: ='G-2 Habitat groups'!AV39 -> Lakes | G84: ='G-2 Habitat groups'!$BE$39 -> 0
C85: A5 | E85: ='G-2 Habitat groups'!AU40 -> Lakes - Low alkalinity lakes | F85: ='G-2 Habitat groups'!AV40 -> Lakes | G85: ='G-2 Habitat groups'!$BE$40 -> 0
C86: A5 | E86: ='G-2 Habitat groups'!AU41 -> Lakes - Marl lakes | F86: ='G-2 Habitat groups'!AV41 -> Lakes | G86: ='G-2 Habitat groups'!$BE$41 -> 0
C87: A5 | E87: ='G-2 Habitat groups'!AU42 -> Lakes - Moderate alkalinity lakes | F87: ='G-2 Habitat groups'!AV42 -> Lakes | G87: ='G-2 Habitat groups'!$BE$42 -> 0
C88: A5 | E88: ='G-2 Habitat groups'!AU43 -> Lakes - Peat lakes | F88: ='G-2 Habitat groups'!AV43 -> Lakes | G88: ='G-2 Habitat groups'!$BE$43 -> 0
C89: A4 | E89: ='G-2 Habitat groups'!AU44 -> Lakes - Ponds (priority habitat) | F89: ='G-2 Habitat groups'!AV44 -> Lakes | G89: ='G-2 Habitat groups'!$BE$44 -> 0
C90: A4 | E90: ='G-2 Habitat groups'!AU45 -> Lakes - Temporary lakes ponds and pools (H3170) | F90: ='G-2 Habitat groups'!AV45 -> Lakes | G90: ='G-2 Habitat groups'!$BE$45 -> 0
C91: A4 | E91: ='G-2 Habitat groups'!AU46 -> Sparsely vegetated land - Coastal sand dunes | F91: ='G-2 Habitat groups'!AV46 -> Sparsely vegetated land | G91: ='G-2 Habitat groups'!$BE$46 -> 0
C92: A4 | E92: ='G-2 Habitat groups'!AU47 -> Sparsely vegetated land - Coastal vegetated shingle | F92: ='G-2 Habitat groups'!AV47 -> Sparsely vegetated land | G92: ='G-2 Habitat groups'!$BE$47 -> 0
C93: A4 | E93: ='G-2 Habitat groups'!AU48 -> Sparsely vegetated land - Inland rock outcrop and scree habitats | F93: ='G-2 Habitat groups'!AV48 -> Sparsely vegetated land | G93: ='G-2 Habitat groups'!$BE$48 -> 0
C94: A4 | E94: ='G-2 Habitat groups'!AU49 -> Sparsely vegetated land - Maritime cliff and slopes | F94: ='G-2 Habitat groups'!AV49 -> Sparsely vegetated land | G94: ='G-2 Habitat groups'!$BE$49 -> 0
C95: A2 | E95: ='G-2 Habitat groups'!AU50 -> Urban - Open mosaic habitats on previously developed land | F95: ='G-2 Habitat groups'!AV50 -> Urban | G95: ='G-2 Habitat groups'!$BE$50 -> 0
C96: A1 | E96: ='G-2 Habitat groups'!AU51 -> Wetland - Reedbeds | F96: ='G-2 Habitat groups'!AV51 -> Wetland | G96: ='G-2 Habitat groups'!$BE$51 -> 0
C97: A3 | E97: Woodland and forest - Felled./Replacement for felled woodland | F97: ='G-2 Habitat groups'!AV52 -> Woodland and forest | G97: ='G-2 Habitat groups'!$BE$52 -> 0
C98: A3 | E98: ='G-2 Habitat groups'!AU53 -> Woodland and forest - Lowland beech and yew woodland | F98: ='G-2 Habitat groups'!AV53 -> Woodland and forest | G98: ='G-2 Habitat groups'!$BE$53 -> 0
C99: A4 | E99: ='G-2 Habitat groups'!AU54 -> Woodland and forest - Lowland mixed deciduous woodland | F99: ='G-2 Habitat groups'!AV54 -> Woodland and forest | G99: ='G-2 Habitat groups'!$BE$54 -> 0
C100: A4 | E100: ='G-2 Habitat groups'!AU56 -> Woodland and forest - Native pine woodlands | F100: ='G-2 Habitat groups'!AV56 -> Woodland and forest | G100: ='G-2 Habitat groups'!$BE$56 -> 0
C101: A3 | E101: ='G-2 Habitat groups'!AU57 -> Woodland and forest - Upland birchwoods | F101: ='G-2 Habitat groups'!AV57 -> Woodland and forest | G101: ='G-2 Habitat groups'!$BE$57 -> 0
C102: A4 | E102: ='G-2 Habitat groups'!AU58 -> Woodland and forest - Upland mixed ashwoods | F102: ='G-2 Habitat groups'!AV58 -> Woodland and forest | G102: ='G-2 Habitat groups'!$BE$58 -> 0
C103: A4 | E103: ='G-2 Habitat groups'!AU59 -> Woodland and forest - Upland oakwood | F103: ='G-2 Habitat groups'!AV59 -> Woodland and forest | G103: ='G-2 Habitat groups'!$BE$59 -> 0
C104: A3 | E104: ='G-2 Habitat groups'!AU60 -> Woodland and forest - Wet woodland | F104: ='G-2 Habitat groups'!AV60 -> Woodland and forest | G104: ='G-2 Habitat groups'!$BE$60 -> 0
C105: A4 | E105: ='G-2 Habitat groups'!AU61 -> Coastal lagoons - Coastal lagoons | F105: ='G-2 Habitat groups'!AV61 -> Coastal lagoons | G105: ='G-2 Habitat groups'!$BE$61 -> 0
C106: A4 | E106: ='G-2 Habitat groups'!AU62 -> Rocky shore - High energy littoral rock | F106: ='G-2 Habitat groups'!AV62 -> Rocky shore | G106: ='G-2 Habitat groups'!$BE$62 -> 0
C107: A4 | E107: ='G-2 Habitat groups'!AU63 -> Rocky shore - Moderate energy littoral rock | F107: ='G-2 Habitat groups'!AV63 -> Rocky shore | G107: ='G-2 Habitat groups'!$BE$63 -> 0
C108: A4 | E108: ='G-2 Habitat groups'!AU64 -> Rocky shore - Low energy littoral rock | F108: ='G-2 Habitat groups'!AV64 -> Rocky shore | G108: ='G-2 Habitat groups'!$BE$64 -> 0
C109: A4 | E109: ='G-2 Habitat groups'!AU65 -> Rocky shore - Features of littoral rock | F109: ='G-2 Habitat groups'!AV65 -> Rocky shore | G109: ='G-2 Habitat groups'!$BE$65 -> 0
C110: A3 | E110: ='G-2 Habitat groups'!AU66 -> Intertidal sediment - Littoral mud | F110: ='G-2 Habitat groups'!AV66 -> Intertidal sediment | G110: ='G-2 Habitat groups'!$BE$66 -> 0
C111: A3 | E111: ='G-2 Habitat groups'!AU67 -> Intertidal sediment - Littoral mixed sediments | F111: ='G-2 Habitat groups'!AV67 -> Intertidal sediment | G111: ='G-2 Habitat groups'!$BE$67 -> 0
C112: A4 | E112: ='G-2 Habitat groups'!AU68 -> Coastal saltmarsh - Saltmarshes and saline reedbeds | F112: ='G-2 Habitat groups'!AV68 -> Coastal saltmarsh | G112: ='G-2 Habitat groups'!$BE$68 -> 0
C113: A3 | E113: ='G-2 Habitat groups'!AU69 -> Intertidal sediment - Littoral biogenic reefs - Mussels | F113: ='G-2 Habitat groups'!AV69 -> Intertidal sediment | G113: ='G-2 Habitat groups'!$BE$69 -> 0
C114: A3 | E114: ='G-2 Habitat groups'!AU70 -> Intertidal sediment - Littoral biogenic reefs - Sabellaria | F114: ='G-2 Habitat groups'!AV70 -> Intertidal sediment | G114: ='G-2 Habitat groups'!$BE$70 -> 0
C115: A3 | E115: ='G-2 Habitat groups'!AU71 -> Intertidal sediment - Features of littoral sediment | F115: ='G-2 Habitat groups'!AV71 -> Intertidal sediment | G115: ='G-2 Habitat groups'!$BE$71 -> 0
C116: A3 | E116: ='G-2 Habitat groups'!AU72 -> Intertidal sediment - Littoral muddy sand | F116: ='G-2 Habitat groups'!AV72 -> Intertidal sediment | G116: ='G-2 Habitat groups'!$BE$72 -> 0
C117: A3 | E117: Intertidal sediment - Littoral seagrass | F117: ='G-2 Habitat groups'!AV73 -> Intertidal sediment | G117: ='G-2 Habitat groups'!$BE$73 -> 0
D120: Very High + High Distinctiveness Surplus Availability | F120: Medium Distinctiveness Losses | H120: Rule 1 | I120: Rule 2 | J120: Rule 3 | K120: Rule 4 | M120: Final Losses in Tier
D121: Habitat Group | E121: Unit Gain Available in Broad Habitat Group | F121: Habitat Group | G121: Losses Requiring Offset | H121: Remaining Available After Rule 1 | I121: Remaining Available After Rule 2 | J121: Remaining Available After Rule 3 | K121: Remaining Available After Rule 4
B122: MEDIUM | C122: A1 | D122: Cropland | E122: 0 | F122: Cropland | G122: =IF('Trading Summary Area Habitats'!G89<0, 'Trading Summary Area Habitats'!G89, 0) -> 0 | H122: =E122+G122 -> 0 | I122: =SUMIF(H122:H126, "<0") -> -0.2722786751 | J122: =SUMIF(I122, "<0") -> -0.2722786751 | K122: =J122+J133 -> -0.2722786751 | L122: A1 | M122: =SUMIF(K122, "<0") -> -0.2722786751
D123: Grassland | E123: =SUMIF(G76:G80, ">0")+SUMIF('Trading Summary Area Habitats'!F13:F15, ">0") -> 0 | F123: Grassland | G123: =IF('Trading Summary Area Habitats'!G93<0, 'Trading Summary Area Habitats'!G93, 0) -> 0 | H123: =E123+G123 -> 0
D124: Heathland and shrub | E124: =SUMIF(G81:G83, ">0")+SUMIF('Trading Summary Area Habitats'!F16, ">0") -> 0 | F124: Heathland and shrub | G124: =IF('Trading Summary Area Habitats'!G96<0, 'Trading Summary Area Habitats'!G96, 0) -> 0 | H124: 0
D125: Urban | E125: =SUMIF(G95, ">0") -> 0 | F125: Urban | G125: =IF('Trading Summary Area Habitats'!G106<0, 'Trading Summary Area Habitats'!G106, 0) -> 0 | H125: 0
D126: Individual trees | E126: 0 | F126: Individual trees | G126: =IF('Trading Summary Area Habitats'!G108<0, 'Trading Summary Area Habitats'!G108, 0) -> -0.2722786751 | H126: -0.2722786751
C127: A2 | D127: Woodland and forest | E127: =SUMIF(G97:G104, ">0")+SUMIF('Trading Summary Area Habitats'!F27, ">0") -> 0 | F127: Woodland and forest | G127: =IF('Trading Summary Area Habitats'!G110<0, 'Trading Summary Area Habitats'!G110, 0) -> 0 | H127: 0 | I127: =SUMIF(H127:H128, "<0") -> 0 | J127: =I127+I133 -> 0 | K127: =SUMIF(J127, "<0") -> 0 | L127: A2 | M127: =SUMIF(K127, "<0") -> 0
D128: Intertidal sediment | E128: =SUMIF(G105:G117, ">0")+SUMIF('Trading Summary Area Habitats'!F28:F32, ">0") -> 0 | F128: Intertidal sediment | G128: =IF('Trading Summary Area Habitats'!G113<0, 'Trading Summary Area Habitats'!G113, 0) -> 0 | H128: 0
C129: A4 | D129: Lakes | E129: =SUMIF(G84:G90, ">0")+SUMIF('Trading Summary Area Habitats'!F17, ">0") -> 0 | F129: Lakes | G129: =IF('Trading Summary Area Habitats'!G103<0, 'Trading Summary Area Habitats'!G103, 0) -> 0 | H129: 0 | I129: =(SUMIF(H129:H131, "<0"))+H133 -> 0 | J129: =SUMIF(I129, "<0") -> 0 | K129: =SUMIF(J129, "<0") -> 0 | L129: A4 | M129: =SUMIF(K129, "<0") -> 0
D130: Sparsely vegetated land | E130: =SUMIF(G91:G94, ">0")+SUMIF('Trading Summary Area Habitats'!F18:F19, ">0") -> 0 | F130: Sparsely vegetated land | G130: =IF('Trading Summary Area Habitats'!G105<0, 'Trading Summary Area Habitats'!G105, 0) -> 0 | H130: 0
D131: Wetland | E131: =SUMIF(G96, ">0")+SUMIF('Trading Summary Area Habitats'!F20:F26, ">0") -> 0 | F131: Wetland | G131: 0 | H131: 0
G133: Total Remaining Units Available | H133: =SUMIF(H122:H131, ">0") -> 0 | I133: =SUMIF(I122:I131, ">0") -> 0 | J133: =SUMIF(J122:J131, ">0") -> 0 | K133: =SUMIF(K122:K131, ">0") -> 0
D137: Net Unit Change for Low Distinctiveness Habitats | E137: Total Unit Change for Low Distinctiveness Habitats Following Offset from Higher Distinctiveness Habitats | F137: Units Remaining Available After Rule 5 | G137: Final Losses in Tier
B138: LOW | C138: A1 | D138: ='Trading Summary Area Habitats'!K124 -> -0.038536 | E138: =SUMIF('Trading Summary Area Habitats'!K124, "<0")+'Trading Summary Area Habitats'!K88 -> 0.01975992026 | F138: =E138+K133 -> 0.01975992026 | G138: =SUMIF(F138, "<0") -> 0
D146: Hedgerows | F146: Losses | G146: Final Losses
D147: H | E147: VHD Losses Not Offset | F147: ='Trading Summary Hedgerows'!I14 -> 0 | G147: =SUMIF(F147:F151, "<0") -> 0 | H147: Trading rules applied | I147: Final Losses
E148: HD Losses Not Offset | F148: ='Trading Summary Hedgerows'!I23 -> 0
E149: MD Losses Not Offset | F149: ='Trading Summary Hedgerows'!I33 -> 0
E150: LD Losses Not Offset | F150: ='Trading Summary Hedgerows'!I44 -> 0
E151: VLD Losses Not Offset | F151: ='Trading Summary Hedgerows'!I54 -> 0
D156: Watercourses | F156: Losses | G156: Final Losses
D157: W | E157: VHD Losses Not Offset | F157: ='Trading Summary WaterC''s'!I13 -> 0 | G157: =SUMIF(F157:F160, "<0") -> 0
E158: HD Losses Not Offset | F158: ='Trading Summary WaterC''s'!I22 -> 0
E159: MD Losses Not Offset | F159: ='Trading Summary WaterC''s'!I30 -> 0
E160: LD Losses Not Offset | F160: ='Trading Summary WaterC''s'!I42 -> 0

Sheet Unit shortfall summary (hidden)
C2: Unit Shortfall by Tier/Module
C4: Tier | D4: Unit Shortfall
C5: A1 | D5: =IFERROR(IF(OR('Trading Summary Area Habitats'!$K$13<0,'Trading Summary WaterC''s'!$I$13<0),"ERROR",'Unit shortfall calculations'!G9),"Error") -> 1.19363751 | E5: =IF(D5=0,"",IF(D5>0,"▲","✓")) -> ▲
C6: A2 | D6: =IFERROR(IF(OR('Trading Summary Area Habitats'!$K$13<0,'Trading Summary WaterC''s'!$I$13<0),"ERROR",'Unit shortfall calculations'!G10),"Error") -> 0
C7: A3 | D7: =IFERROR(IF(OR('Trading Summary Area Habitats'!$K$13<0,'Trading Summary WaterC''s'!$I$13<0),"ERROR",'Unit shortfall calculations'!G11),"Error") -> 0
C8: A4 | D8: =IFERROR(IF(OR('Trading Summary Area Habitats'!$K$13<0,'Trading Summary WaterC''s'!$I$13<0),"ERROR",'Unit shortfall calculations'!G12),"Error") -> 0
C9: A5 | D9: =IFERROR(IF(OR('Trading Summary Area Habitats'!$K$13<0,'Trading Summary WaterC''s'!$I$13<0),"ERROR",'Unit shortfall calculations'!G13),"Error") -> 0
C10: H | D10: =IFERROR(IF(OR('Trading Summary Area Habitats'!K13<0,'Trading Summary WaterC''s'!I13<0),"ERROR",'Unit shortfall calculations'!G14),"Error") -> 0
C11: W | D11: =IFERROR(IF(OR('Trading Summary Area Habitats'!K13<0,'Trading Summary WaterC''s'!I13<0),"ERROR",'Unit shortfall calculations'!G15),"Error") -> 0 | E11: =IF(D11=0,"",IF(D11>0,"▲","✓")) -> 
D13: *The spatial risk multiplier has been applied to all unit shortfall values.
C15: =IF(OR('Trading Summary Area Habitats'!$K$13<0,'Trading Summary WaterC''s'!$I$13<0), "ERROR - This metric still includes losses of very high distinctiveness habitat. Losses of very high distinctiveness units must be compensated for through this metric or through bespoke compensation ▲", " ") -> 

Sheet Results

Sheet Headline Results
B2: =IF(Start!$F$12="","",Start!$F$12) -> Rockley Dene | F2: =IF(OR(B56="This metric contains deviations from the statutory metric - these deviations are only acceptable in extremely rare circumstances and must be agreed with the consenting body ⚠",B57="You must specify if irreplaceable habitats are on-site at baseline ▲",B58="Unacceptable loss of irreplaceable habitat recorded - no bespoke compensation for lossess has been agreed ▲",),"Errors flagged below - please investigate further ▲","") -> 
B3: =MID(CELL("filename",A1),FIND("]",CELL("filename",A1))+1,256) -> Headline Results
B5: Scroll down for final results ⚠
B8: On-site baseline | F8: Habitat units | H8: =IFERROR('A-1 On-Site Habitat Baseline'!Q259,"Check Data ⚠") -> 3.443
F9: Hedgerow units | H9: =IFERROR('B-1 On-Site Hedge Baseline'!N258,"Check Data ⚠") -> 0
F10: Watercourse units | H10: ='C-1 On-Site WaterC'' Baseline'!R258 -> 0
B12: On-site post-intervention (Including habitat retention, creation & enhancement) | F12: Habitat units | H12: =IFERROR('A-2 On-Site Habitat Creation'!Y257+'A-3 On-Site Habitat Enhancement'!AN258+'A-1 On-Site Habitat Baseline'!U259+'A-1 On-Site Habitat Baseline'!AT259,"Check Data ⚠") -> 3.190481245
F13: Hedgerow units | H13: =IFERROR('B-2 On-Site Hedge Creation'!W260+'B-3 On-Site Hedge Enhancement'!AH258+'B-1 On-Site Hedge Baseline'!R258,"Check Data⚠") -> 0
F14: Watercourse units | H14: =IFERROR('C-2 On-Site WaterC'' Creation'!Z260 + 'C-3 On-Site WaterC'' Enhancement'!AM258+'C-1 On-Site WaterC'' Baseline'!W258+'C-1 On-Site WaterC'' Baseline'!AT258,"Check Data ⚠") -> 0
B16: On-site net change (units & percentage) | F16: Habitat units | H16: =IFERROR(H12-H8, "Error ▲") -> -0.2525187548 | J16: =IF(AND(H8=0, H12=0),0,IF(AND(H8=0,H12>0),"N/A",IFERROR((H12/H8)-1,"Check Data ⚠"))) -> -0.07334265315 | K16: =IF(J16="N/A","Zero baseline units - % cannot be calculated",IF(OR(AND(H8=0,H12=0),J16>=Start!$F$22)," ","On-site net gain is less than target set ⚠")) -> On-site net gain is less than target set ⚠
F17: Hedgerow units | H17: =IFERROR(H13-H9, "Error ▲") -> 0 | J17: =IF(AND(H9=0, H13=0),0,IF(AND(H9=0,H13>0),"N/A",IFERROR((H13/H9)-1,"Check Data ⚠"))) -> 0 | K17: =IF(J17="N/A","Zero baseline units - % cannot be calculated",IF(OR(AND(H9=0,H13=0),J17>=Start!$F$22)," ","On-site net gain is less than target set ⚠")) -> 
F18: Watercourse units | H18: =IFERROR(H14-H10, "Error ▲") -> 0 | J18: =IF(AND(H10=0, H14=0),0,IF(AND(H10=0,H14>0),"N/A",IFERROR((H14/H10)-1,"Check Data ⚠"))) -> 0 | K18: =IF(J18="N/A","Zero baseline units - % cannot be calculated",IF(OR(AND(H10=0,H14=0),J18>=Start!$F$22)," ","On-site net gain is less than target set ⚠")) -> 
B19: =IF(OR('Off-site gain site summary'!M7:M107="Error - gain sites must be postive ▲",'Off-site gain site summary'!Z7:Z107="Error - gain sites must be positive ▲",'Off-site gain site summary'!AM7:AM107="Error - gain sites must be postive ▲"),"Error - off-site gain sites must be postive ▲","") -> 
B20: Off-site baseline | F20: Habitat units | H20: =IFERROR('D-1 Off-Site Habitat Baseline'!T259,"Check Data ⚠") -> 0 | L20: =IFERROR('D-1 Off-Site Habitat Baseline'!Q259,"Check Data ⚠") -> 0
F21: Hedgerow units | H21: =IFERROR('E-1 Off-Site Hedge Baseline'!Q258,"Check Data ⚠") -> 0 | L21: =IFERROR('E-1 Off-Site Hedge Baseline'!N258,"Check Data ⚠") -> 0
F22: Watercourse units | H22: =IFERROR('F-1 Off-Site WaterC'' Baseline'!U258,"Check Data ⚠") -> 0 | L22: =IFERROR('F-1 Off-Site WaterC'' Baseline'!R258,"Check Data ⚠") -> 0
B24: Off-site post-intervention (Including habitat retention, creation & enhancement) | F24: Habitat units | H24: =IFERROR('D-1 Off-Site Habitat Baseline'!$X$259+'D-2 Off-Site Habitat Creation'!AB257+'D-3 Off-Site Habitat Enhancment'!AQ259+'D-1 Off-Site Habitat Baseline'!AS259,"Check Data ⚠") -> 0 | L24: =IFERROR('D-1 Off-Site Habitat Baseline'!$AY$259+'D-2 Off-Site Habitat Creation'!AA257+'D-3 Off-Site Habitat Enhancment'!AP259,"Check Data ⚠") -> 0
F25: Hedgerow units | H25: =IFERROR('E-1 Off-Site Hedge Baseline'!U258+'E-2 Off-Site Hedge Creation'!Z260+'E-3 Off-Site Hedge Enhancement'!AK258,"Check Data ⚠") -> 0 | L25: =IFERROR('E-1 Off-Site Hedge Baseline'!AY258+'E-2 Off-Site Hedge Creation'!Y260+'E-3 Off-Site Hedge Enhancement'!AJ258,"Check Data ⚠") -> 0
F26: Watercourse units | H26: =IFERROR('F-1 Off-Site WaterC'' Baseline'!Z258+'F-2 Off-Site WaterC'' Creation'!AC260+'F-3 Off-Site WaterC Enhancement'!AP258+'F-1 Off-Site WaterC'' Baseline'!AT258,"Check Data ⚠") -> 0 | L26: =IFERROR('F-1 Off-Site WaterC'' Baseline'!BA258+'F-2 Off-Site WaterC'' Creation'!AB260+'F-3 Off-Site WaterC Enhancement'!AO258,"Check Data ⚠") -> 0
B28: Off-site net change (units & percentage) | F28: Habitat units | H28: =IFERROR(H24-H20, "Error ▲") -> 0 | J28: =IF(AND(H20=0, H24=0), 0,IF(AND(H20=0,H24>0),"N/A",IFERROR((H24/H20)-1,"Check Data ⚠"))) -> 0 | K28: =IF(J28="N/A","Zero baseline units - % cannot be calculated","") -> 
F29: Hedgerow units | H29: =IFERROR(H25-H21, "Error ▲") -> 0 | J29: =IF(AND(H21=0, H25=0), 0,IF(AND(H21=0,H25>0),"N/A",IFERROR((H25/H21)-1,"Check Data ⚠"))) -> 0
F30: Watercourse units | H30: =IFERROR(H26-H22, "Error ▲") -> 0 | J30: =IF(AND(H22=0, H26=0), 0,IF(AND(H22=0,H26>0),"N/A",IFERROR((H26/H22)-1,"Check Data ⚠"))) -> 0 | K30: =IF(J30="N/A","Zero baseline units - % cannot be calculated","") -> 
B32: Off-site unit change (with Spatial Risk Multiplier applied) | F32: Habitat units | H32: =IF((H28<=0),"N/A",(L24-L20)) -> N/A | J32: =IF(H32="N/A", "SRM only applies where unit change is positive (uplift)", " ") -> SRM only applies where unit change is positive (uplift)
F33: Hedgerow units | H33: =IF((H29<=0),"N/A",(L25-L21)) -> N/A | J33: =IF(H33="N/A", "SRM only applies where unit change is positive", " ") -> SRM only applies where unit change is positive
F34: Watercourse units | H34: =IF((H30<=0),"N/A",(L26-L22)) -> N/A | J34: =IF(H34="N/A", "SRM only applies where unit change is positive", " ") -> SRM only applies where unit change is positive
B37: Combined net unit change (Including all on-site & off-site habitat retention, creation & enhancement) | F37: Habitat units | H37: =IFERROR((H16)+(H28),"Check Data ⚠") -> -0.2525187548
F38: Hedgerow units | H38: =IFERROR((H17)+(H29),"Check Data ⚠") -> 0
F39: Watercourse units | H39: =IFERROR((H18)+(H30),"Check Data ⚠") -> 0
B41: Spatial risk multiplier (SRM) deductions | F41: Habitat units | H41: =IFERROR(H28-H32, "0.00") -> 0.00
F42: Hedgerow units | H42: =IFERROR(H29-H33, "0.00") -> 0.00
F43: Watercourse units | H43: =IFERROR(H30-H34, "0.00") -> 0.00
B44: =IF(OR('A-1 On-Site Habitat Baseline'!Y11:Y258="Yes",'D-1 Off-Site Habitat Baseline'!AB14:AB258="Yes", 'C-1 On-Site WaterC'' Baseline'!AA10:AA257="Yes", 'F-1 Off-Site WaterC'' Baseline'!AD10:AD257="Yes"),"Ensure bespoke compensation has been agreed where stated ⚠","") -> 
B45: FINAL RESULTS
B47: Total net unit change (Including all on-site & off-site habitat retention, creation & enhancement) | F47: Habitat units | H47: =IFERROR(IF(H32="N/A",(H12-H8)+(H28),(H12-H8)+(H32)),"Check Data ⚠") -> -0.2525187548
F48: Hedgerow units | H48: =IFERROR(IF(H33="N/A",(H13-H9)+(H29),(H13-H9)+(H33)),"Check Data ⚠") -> 0
F49: Watercourse units | H49: =IFERROR(IF(H34="N/A",(H14-H10)+(H30),(H14-H10)+(H34)),"Check Data ⚠") -> 0
B51: Total net % change (Including all on-site & off-site habitat retention, creation & enhancement) | F51: Habitat units | H51: =IF(H47=0,0,IF(H8=0,"N/A",IFERROR((H47/H8),"Check Data ⚠"))) -> -0.07334265315 | J51: =IF(H51="N/A","0 baseline units - % cannot be calculated",IF(OR(AND(H8=0,H12=0),H51>=Start!$F$22)," ","Total net gain achieved is less than target set ▲")) -> Total net gain achieved is less than target set ▲
F52: Hedgerow units | H52: =IF(AND(H48=0,H9=0),0,IF(H9=0,"N/A",IFERROR((H48/H9),"Check Data ⚠"))) -> 0 | J52: =IF(H52="N/A","0 baseline units - % cannot be calculated",IF(OR(AND(H9=0,H13=0),H52>=Start!$F$22)," ","Total net gain achieved is less than target set ▲")) -> 
F53: Watercourse units | H53: =IF(H49=0,0,IF(H10=0,"N/A",IFERROR((H49/H10),"Check Data ⚠"))) -> 0 | J53: =IF(H53="N/A","0 baseline units - % cannot be calculated",IF(OR(AND(H10=0,H14=0),H53>=Start!$F$22)," ","Total net gain achieved is less than target set ▲")) -> 
B55: Trading rules satisfied? | F55: =IF(OR('Trading Summary Area Habitats'!G5="No ▲",'Trading Summary Area Habitats'!G6="No ▲",'Trading Summary Area Habitats'!G7="No ▲",'Trading Summary Area Habitats'!G8="No ▲",'Trading Summary Hedgerows'!F5="No ▲",'Trading Summary Hedgerows'!F6:H6="No ▲", 'Trading Summary Hedgerows'!F7="No ▲", 'Trading Summary Hedgerows'!F8="No ▲", 'Trading Summary Hedgerows'!F9="No ▲", 'Trading Summary WaterC''s'!G5="No ▲", 'Trading Summary WaterC''s'!G6="No ▲", 'Trading Summary WaterC''s'!G7="No ▲", 'Trading Summary WaterC''s'!G8="No ▲", B58="Unacceptable loss of irreplaceable habitat recorded - no bespoke compensation for lossess has been agreed ▲"),"No - Check Trading Summaries ▲","Yes ✓") -> No - Check Trading Summaries ▲
B56: =IF(Start!F27="Yes", "This metric contains deviations from the statutory metric - these deviations are only acceptable in extremely rare circumstances and must be agreed with the consenting body ⚠", "") -> 
B57: =IF(Start!I23="You must specify if irreplaceable habitats are on-site at baseline ▲", "You must specify if irreplaceable habitats are on-site at baseline ▲", "") -> 
B58: =IF(OR('A-1 On-Site Habitat Baseline'!X11:X258="Any Loss Unacceptable ▲",'D-1 Off-Site Habitat Baseline'!AA11:AA258="Any Loss Unacceptable ▲",'C-1 On-Site WaterC'' Baseline'!Z10:Z257="Any Loss Unacceptable ▲",'F-1 Off-Site WaterC'' Baseline'!AC10:AC256="Any Loss Unacceptable ▲", 'A-1 On-Site Habitat Baseline'!X11:X258="Bespoke compensation must be agreed ▲", 'D-1 Off-Site Habitat Baseline'!AA11:AA258="Bespoke compensation must be agreed ▲"), "Unacceptable loss of irreplaceable habitat recorded - no bespoke compensation for losses has been agreed ▲", "") -> 
B59: =IF(OR('A-2 On-Site Habitat Creation'!K6:L6="Error - Area created does not equal area lost ▲", 'D-2 Off-Site Habitat Creation'!L6="Error - Area created does not equal area lost ▲"), "Area created must match area lost for both onsite and offsite ▲", "") -> 
B60: Unit Type | D60: Target | E60: Baseline Units | F60: Units Required | H60: Unit Deficit
B61: Habitat units | D61: =Start!F22 -> 0.1 | E61: =H8 -> 3.443 | F61: =IFERROR(E61*(1+D61), "Error ▲") -> 3.7873 | H61: =IF(B19="Error - off-site gain sites must be postive ▲","Error ▲",IFERROR(IF(H32="N/A",(IF(F61-(H12+(H28))<0,0,F61-(H12+(H28)))),(IF(F61-(H12+H32)<0,0,F61-(H12+H32)))),"Error ▲")) -> 0.5968187548 | J61: =IF(H61=0, "No additional area habitat units required to meet target ✓", " ") -> 
B62: Hedgerow units | D62: =Start!F22 -> 0.1 | E62: =H9 -> 0 | F62: =IFERROR(E62*(1+D62), "Error ▲") -> 0 | H62: =IF(B19="Error - off-site gain sites must be postive ▲","Error ▲",IFERROR(IF(H33="N/A",(IF(F62-(H13+(H29))<0,0,F62-(H13+(H29)))),(IF(F62-(H13+H33)<0,0,F62-(H13+H33)))),"Error ▲")) -> 0 | J62: =IF(H62=0, "No additional hedgerow units required to meet target ✓", " ") -> No additional hedgerow units required to meet target ✓
B63: Watercourse units | D63: =Start!F22 -> 0.1 | E63: =H10 -> 0 | F63: =IFERROR(E63*(1+D63), "Error ▲") -> 0 | H63: =IF(B19="Error - off-site gain sites must be postive ▲","Error ▲",IFERROR(IF(H34="N/A",(IF(F63-(H14+(H30))<0,0,F63-(H14+(H30)))),(IF(F63-(H14+H34)<0,0,F63-(H14+H34)))),"Error ▲")) -> 0 | J63: =IF(H63=0, "No additional watercourse units required to meet target ✓", " ") -> No additional watercourse units required to meet target ✓
B94: =IF(OR(ISNUMBER(SEARCH("▲",A1:K64))),"Input errors/rule breaks present in metric ▲",IF(OR(ISNUMBER(SEARCH("▲",'A-1 On-Site Habitat Baseline'!D1:AB261))),"Input errors/rule breaks present in metric ▲",IF(OR(ISNUMBER(SEARCH("▲",'A-2 On-Site Habitat Creation'!D1:AB259))),"Input errors/rule breaks present in metric ▲",IF(OR(ISNUMBER(SEARCH("▲",'A-3 On-Site Habitat Enhancement'!E1:AR261))),"Input errors/rule breaks present in metric ▲",IF(OR(ISNUMBER(SEARCH("▲",'D-1 Off-Site Habitat Baseline'!D1:AF264))),"Input errors/rule breaks present in metric ▲",IF(OR(ISNUMBER(SEARCH("▲",'D-2 Off-Site Habitat Creation'!D1:AG262))),"Input errors/rule breaks present in metric ▲",IF(OR(ISNUMBER(SEARCH("▲",'D-3 Off-Site Habitat Enhancment'!E1:AU262))),"Input errors/rule breaks present in metric ▲",IF(OR(ISNUMBER(SEARCH("▲",'B-1 On-Site Hedge Baseline'!A1:X263))),"Input errors/rule breaks present in metric ▲",IF(OR(ISNUMBER(SEARCH("▲",'B-3 On-Site Hedge Enhancement'!A1:AK264))),"Input errors/rule breaks present in metric ▲",IF(OR(ISNUMBER(SEARCH("▲",'B-2 On-Site Hedge Creation'!A1:Z262))),"Input errors/rule breaks present in metric ▲",IF(OR(ISNUMBER(SEARCH("▲",'E-1 Off-Site Hedge Baseline'!A1:XAB261))),"Input errors/rule breaks present in metric ▲",IF(OR(ISNUMBER(SEARCH("▲",'E-2 Off-Site Hedge Creation'!A1:AE262))),"Input errors/rule breaks present in metric ▲",IF(OR(ISNUMBER(SEARCH("▲",'E-3 Off-Site Hedge Enhancement'!A1:AO261))),"Input errors/rule breaks present in metric ▲",IF(OR(ISNUMBER(SEARCH("▲",'C-1 On-Site WaterC'' Baseline'!A1:AD264))),"Input errors/rule breaks present in metric ▲",IF(OR(ISNUMBER(SEARCH("▲",'C-2 On-Site WaterC'' Creation'!A2:AC261))),"Input errors/rule breaks present in metric ▲",IF(OR(ISNUMBER(SEARCH("▲",'C-3 On-Site WaterC'' Enhancement'!A1:AP262))),"Input errors/rule breaks present in metric ▲",IF(OR(ISNUMBER(SEARCH("▲",'F-1 Off-Site WaterC'' Baseline'!A1:AH263))),"Input errors/rule breaks present in metric ▲",IF(OR(ISNUMBER(SEARCH("▲",'F-2 Off-Site WaterC'' Creation'!A1:AH262))),"Input errors/rule breaks present in metric ▲",IF(OR(ISNUMBER(SEARCH("▲",'F-3 Off-Site WaterC Enhancement'!B1:AT260))),"Input errors/rule breaks present in metric ▲",IF(OR(ISNUMBER(SEARCH("▲",Start!A1:R28))),"Input errors/rule breaks present in metric ▲","")))))))))))))))))))) -> Input errors/rule breaks present in metric ▲

Sheet Detailed Results
B2: =IF(Start!$F$12="","",Start!$F$12) -> Rockley Dene
B3: =MID(CELL("filename",A1),FIND("]",CELL("filename",A1))+1,256) -> Detailed Results
B7: Summary Figures
B10: Net project biodiversity units (Including all on-site & off-site habitat retention / creation) | F10: Habitat units | H10: =IFERROR('Headline Results'!$H$47:$I$47,"Check Data ⚠") -> -0.2525187548
F11: Hedgerow units | H11: =IFERROR('Headline Results'!$H$48:$I$48,"Check Data ⚠") -> 0
F12: Watercourse units | H12: =IFERROR('Headline Results'!$H$49:$I$49,"Check Data ⚠") -> 0
B14: Total project biodiversity % change (Including all on-site & off-site habitat creation + retained habitats) | F14: Habitat units | H14: =IFERROR('Headline Results'!$H$51:$I$51,"Check Data ⚠") -> -0.07334265315
F15: Hedgerow units | H15: =IFERROR('Headline Results'!$H$52:$I$52,"Check Data ⚠") -> 0
F16: Watercourse units | H16: =IFERROR('Headline Results'!$H$53:$I$53,"Check Data ⚠") -> 0
B18: Combined habitat retention and enhancement
D20: Habitats | F20: Hedgerows | H20: Watercourses
B21: Total on-site and off-site baseline area / length | D21: =IFERROR('A-1 On-Site Habitat Baseline'!$H259+'D-1 Off-Site Habitat Baseline'!H259,"Error ▲") -> 0.7025 | F21: ='B-1 On-Site Hedge Baseline'!$E$258+'E-1 Off-Site Hedge Baseline'!$E$258 -> 0 | H21: ='C-1 On-Site WaterC'' Baseline'!$E$258+'F-1 Off-Site WaterC'' Baseline'!$E$258 -> 0
B22: Total on-site and off-site baseline units | D22: =IFERROR('A-1 On-Site Habitat Baseline'!$Q259+'D-1 Off-Site Habitat Baseline'!T259,"Error ▲") -> 3.443 | F22: ='B-1 On-Site Hedge Baseline'!$N$258+'E-1 Off-Site Hedge Baseline'!$Q$258 -> 0 | H22: ='C-1 On-Site WaterC'' Baseline'!$R$258+'F-1 Off-Site WaterC'' Baseline'!$U$258 -> 0
B24: Total on-site and off-site baseline area / length retained | D24: =IFERROR('A-1 On-Site Habitat Baseline'!$S259+'D-1 Off-Site Habitat Baseline'!V259,"Error ▲") -> 0.6032 | F24: ='B-1 On-Site Hedge Baseline'!$P$258+'E-1 Off-Site Hedge Baseline'!$S$258 -> 0 | H24: ='C-1 On-Site WaterC'' Baseline'!U258+'F-1 Off-Site WaterC'' Baseline'!X258 -> 0
B25: Total on-site and off-site baseline units retained | D25: =IFERROR('A-1 On-Site Habitat Baseline'!$U259+'D-1 Off-Site Habitat Baseline'!X259,"Error ▲") -> 2.9432 | F25: ='B-1 On-Site Hedge Baseline'!R258+'E-1 Off-Site Hedge Baseline'!U258 -> 0 | H25: ='C-1 On-Site WaterC'' Baseline'!W258+'F-1 Off-Site WaterC'' Baseline'!Z258 -> 0
B27: Total on-site and off-site area / length proposed for enhancement | D27: =IFERROR('A-1 On-Site Habitat Baseline'!$T259+'D-1 Off-Site Habitat Baseline'!W259,"Error ▲") -> 0.0094 | F27: ='B-1 On-Site Hedge Baseline'!$Q$258+'E-1 Off-Site Hedge Baseline'!$T$258 -> 0 | H27: ='C-1 On-Site WaterC'' Baseline'!V258+'F-1 Off-Site WaterC'' Baseline'!Y258 -> 0
B28: Total on-site and off-site baseline units proposed for enhancement | D28: =IFERROR('A-1 On-Site Habitat Baseline'!$V259+'D-1 Off-Site Habitat Baseline'!Y259,"Error ▲") -> 0.0188 | F28: ='B-1 On-Site Hedge Baseline'!$S$258+'E-1 Off-Site Hedge Baseline'!$V$258 -> 0 | H28: ='C-1 On-Site WaterC'' Baseline'!X258+'F-1 Off-Site WaterC'' Baseline'!AA258 -> 0
B30: Total on-site and off-site baseline area / length lost | D30: =IFERROR('A-1 On-Site Habitat Baseline'!$W259+'D-1 Off-Site Habitat Baseline'!Z259,"Error ▲") -> 0.0899 | F30: ='B-1 On-Site Hedge Baseline'!$T$258+'E-1 Off-Site Hedge Baseline'!$W$258 -> 0 | H30: ='C-1 On-Site WaterC'' Baseline'!Y258+'F-1 Off-Site WaterC'' Baseline'!AB258 -> 0
B31: Total on-site and off-site baseline units lost | D31: =IFERROR('A-1 On-Site Habitat Baseline'!$X259+'D-1 Off-Site Habitat Baseline'!AA259,"Error ▲") -> 0.481 | F31: ='B-1 On-Site Hedge Baseline'!$U$258+'E-1 Off-Site Hedge Baseline'!$X$258 -> 0 | H31: ='C-1 On-Site WaterC'' Baseline'!Z258+'F-1 Off-Site WaterC'' Baseline'!AC258 -> 0
A33: Area Habitats Area Habitats Area Habitats
B34: Area habitats
B36: On-site change by broad habitat type | J36: Combined area lost from baseline(s) by distinctiveness band
C37: Baseline | E37: Post-development on-site | G37: On-site change
B38: Habitat group | C38: On-site existing area | D38: On-site existing value | E38: On-site proposed area | F38: On-site proposed value | G38: On-site area change | H38: On-site unit change | J38: Category | K38: Area lost (hectares) | L38: Area lost (%)
B39: Cropland | C39: ='G-2 Habitat groups'!$AK$4 -> 0 | D39: ='G-2 Habitat groups'!$AL$4 -> 0 | E39: ='G-2 Habitat groups'!$AM$4 -> 0 | F39: ='G-2 Habitat groups'!$AN$4 -> 0 | G39: =E39-C39 -> 0 | H39: =F39-D39 -> 0
B40: Grassland | C40: ='G-2 Habitat groups'!$AK$5 -> 0.0642 | D40: ='G-2 Habitat groups'!$AL$5 -> 0.1284 | E40: ='G-2 Habitat groups'!$AM$5 -> 0.0756 | F40: ='G-2 Habitat groups'!$AN$5 -> 0.1898559203 | G40: =E40-C40 -> 0.0114 | H40: =F40-D40 -> 0.06145592026 | J40: ='G-1 All Habitats'!$V$3 -> V.High | K40: =SUMIF('A-1 On-Site Habitat Baseline'!$I$11:$I$258,'Detailed Results'!J40,'A-1 On-Site Habitat Baseline'!$W$11:$W$258)+SUMIF('D-1 Off-Site Habitat Baseline'!$I$11:$I$258,'Detailed Results'!J40,'D-1 Off-Site Habitat Baseline'!$Z$11:$Z$258) -> 0 | L40: =IF(K40=0,"",(K40/(SUM($K$40:$K$49)))*100) -> 
B41: Heathland and shrub | C41: ='G-2 Habitat groups'!$AK$6 -> 0 | D41: ='G-2 Habitat groups'!$AL$6 -> 0 | E41: ='G-2 Habitat groups'!$AM$6 -> 0 | F41: ='G-2 Habitat groups'!$AN$6 -> 0 | G41: 0 | H41: 0
B42: Lakes | C42: ='G-2 Habitat groups'!$AK$7 -> 0.0006 | D42: ='G-2 Habitat groups'!$AL$7 -> 0.0012 | E42: ='G-2 Habitat groups'!$AM$7 -> 0.0006 | F42: ='G-2 Habitat groups'!$AN$7 -> 0.0012 | G42: 0 | H42: 0 | J42: ='G-1 All Habitats'!$V$4 -> High | K42: =SUMIF('A-1 On-Site Habitat Baseline'!$I$11:$I$258,'Detailed Results'!J42,'A-1 On-Site Habitat Baseline'!$W$11:$W$258)+SUMIF('D-1 Off-Site Habitat Baseline'!$I$11:$I$258,'Detailed Results'!J42,'D-1 Off-Site Habitat Baseline'!$Z$11:$Z$258) -> 0 | L42: =IF(K42=0,"",(K42/(SUM($K$40:$K$49)))*100) -> 
B43: Sparsely vegetated land | C43: ='G-2 Habitat groups'!$AK$8 -> 0 | D43: ='G-2 Habitat groups'!$AL$8 -> 0 | E43: ='G-2 Habitat groups'!$AM$8 -> 0 | F43: ='G-2 Habitat groups'!$AN$8 -> 0 | G43: 0 | H43: 0
B44: Urban | C44: ='G-2 Habitat groups'!$AK$9 -> 0.3649 | D44: ='G-2 Habitat groups'!$AL$9 -> 0.105 | E44: ='G-2 Habitat groups'!$AM$9 -> 0.352 | F44: ='G-2 Habitat groups'!$AN$9 -> 0.063304 | G44: -0.0129 | H44: -0.041696 | J44: ='G-1 All Habitats'!$V5 -> Medium | K44: =SUMIF('A-1 On-Site Habitat Baseline'!$I$11:$I$258,'Detailed Results'!J44,'A-1 On-Site Habitat Baseline'!$W$11:$W$258)+SUMIF('D-1 Off-Site Habitat Baseline'!$I$11:$I$258,'Detailed Results'!J44,'D-1 Off-Site Habitat Baseline'!$Z$11:$Z$258) -> 0.0326 | L44: =IF(K44=0,"",(K44/(SUM($K$40:$K$49)))*100) -> 36.2625139
B45: Wetland | C45: ='G-2 Habitat groups'!$AK$10 -> 0 | D45: ='G-2 Habitat groups'!$AL$10 -> 0 | E45: ='G-2 Habitat groups'!$AM$10 -> 0 | F45: ='G-2 Habitat groups'!$AN$10 -> 0 | G45: 0 | H45: 0
B46: Woodland and forest | C46: ='G-2 Habitat groups'!$AK$11 -> 0 | D46: ='G-2 Habitat groups'!$AL$11 -> 0 | E46: ='G-2 Habitat groups'!$AM$11 -> 0 | F46: ='G-2 Habitat groups'!$AN$11 -> 0 | G46: 0 | H46: 0 | J46: ='G-1 All Habitats'!$V$6 -> Low | K46: =SUMIF('A-1 On-Site Habitat Baseline'!$I$11:$I$258,'Detailed Results'!J46,'A-1 On-Site Habitat Baseline'!$W$11:$W$258)+SUMIF('D-1 Off-Site Habitat Baseline'!$I$11:$I$258,'Detailed Results'!J46,'D-1 Off-Site Habitat Baseline'!$Z$11:$Z$258) -> 0.0531 | L46: =IF(K46=0,"",(K46/(SUM($K$40:$K$49)))*100) -> 59.06562848
B47: Intertidal sediment | C47: ='G-2 Habitat groups'!$AK$12 -> 0 | D47: ='G-2 Habitat groups'!$AL$12 -> 0 | E47: ='G-2 Habitat groups'!$AM$12 -> 0 | F47: ='G-2 Habitat groups'!$AN$12 -> 0 | G47: 0 | H47: 0
B48: Coastal saltmarsh | C48: ='G-2 Habitat groups'!$AK$13 -> 0 | D48: ='G-2 Habitat groups'!$AL$13 -> 0 | E48: ='G-2 Habitat groups'!$AM$13 -> 0 | F48: ='G-2 Habitat groups'!$AN$13 -> 0 | G48: 0 | H48: 0 | J48: ='G-1 All Habitats'!$V$7 -> V.Low | K48: =SUMIF('A-1 On-Site Habitat Baseline'!$I$11:$I$258,'Detailed Results'!J48,'A-1 On-Site Habitat Baseline'!$W$11:$W$258)+SUMIF('D-1 Off-Site Habitat Baseline'!$I$11:$I$258,'Detailed Results'!J48,'D-1 Off-Site Habitat Baseline'!$Z$11:$Z$258) -> 0.0042 | L48: =IF(K48=0,"",(K48/(SUM($K$40:$K$49)))*100) -> 4.67185762
B49: Rocky shore | C49: ='G-2 Habitat groups'!$AK$14 -> 0 | D49: ='G-2 Habitat groups'!$AL$14 -> 0 | E49: ='G-2 Habitat groups'!$AM$14 -> 0 | F49: ='G-2 Habitat groups'!$AN$14 -> 0 | G49: 0 | H49: 0
B50: Coastal lagoons | C50: ='G-2 Habitat groups'!$AK$15 -> 0 | D50: ='G-2 Habitat groups'!$AL$15 -> 0 | E50: ='G-2 Habitat groups'!$AM$15 -> 0 | F50: ='G-2 Habitat groups'!$AN$15 -> 0 | G50: 0 | H50: 0
B51: Intertidal hard structures | C51: ='G-2 Habitat groups'!$AK$16 -> 0 | D51: ='G-2 Habitat groups'!$AL$16 -> 0 | E51: ='G-2 Habitat groups'!$AM$16 -> 0 | F51: ='G-2 Habitat groups'!$AN$16 -> 0 | G51: =E51-C51 -> 0 | H51: 0
B52: Watercourse footprint | C52: ='G-2 Habitat groups'!$AK$18 -> 0 | D52: ='G-2 Habitat groups'!$AL$18 -> 0 | E52: ='G-2 Habitat groups'!$AM$18 -> 0 | F52: ='G-2 Habitat groups'!$AN$18 -> 0 | G52: 0 | H52: 0
B53: Individual trees | C53: ='G-2 Habitat groups'!$AK$17 -> 0.2728 | D53: ='G-2 Habitat groups'!$AL$17 -> 3.2084 | E53: ='G-2 Habitat groups'!$AM$17 -> 0.2768 | F53: ='G-2 Habitat groups'!$AN$17 -> 2.936121325 | G53: 0.004 | H53: -0.2722786751
B56: Off-site change by broad habitat type
C57: Baseline | E57: Post-development off-site | G57: Off-site change
B58: Habitat group | C58: Off-site existing area | D58: Off-site existing value | E58: Off-site proposed area | F58: Off-site proposed value | G58: Off-site area change | H58: Off-site unit change
B59: Cropland | C59: ='G-2 Habitat groups'!$AK$21 -> 0 | D59: ='G-2 Habitat groups'!$AL$21 -> 0 | E59: ='G-2 Habitat groups'!$AM$21 -> 0 | F59: ='G-2 Habitat groups'!$AN$21 -> 0 | G59: =E59-C59 -> 0 | H59: =F59-D59 -> 0
B60: Grassland | C60: ='G-2 Habitat groups'!$AK$22 -> 0 | D60: ='G-2 Habitat groups'!$AL$22 -> 0 | E60: ='G-2 Habitat groups'!$AM$22 -> 0 | F60: ='G-2 Habitat groups'!$AN$22 -> 0 | G60: 0 | H60: 0
B61: Heathland and shrub | C61: ='G-2 Habitat groups'!$AK$23 -> 0 | D61: ='G-2 Habitat groups'!$AL$23 -> 0 | E61: ='G-2 Habitat groups'!$AM$23 -> 0 | F61: ='G-2 Habitat groups'!$AN$23 -> 0 | G61: 0 | H61: 0
B62: Lakes | C62: ='G-2 Habitat groups'!$AK$24 -> 0 | D62: ='G-2 Habitat groups'!$AL$24 -> 0 | E62: ='G-2 Habitat groups'!$AM$24 -> 0 | F62: ='G-2 Habitat groups'!$AN$24 -> 0 | G62: 0 | H62: 0
B63: Sparsely vegetated land | C63: ='G-2 Habitat groups'!$AK$25 -> 0 | D63: ='G-2 Habitat groups'!$AL$25 -> 0 | E63: ='G-2 Habitat groups'!$AM$25 -> 0 | F63: ='G-2 Habitat groups'!$AN$25 -> 0 | G63: 0 | H63: 0
B64: Urban | C64: ='G-2 Habitat groups'!$AK$26 -> 0 | D64: ='G-2 Habitat groups'!$AL$26 -> 0 | E64: ='G-2 Habitat groups'!$AM$26 -> 0 | F64: ='G-2 Habitat groups'!$AN$26 -> 0 | G64: 0 | H64: 0
B65: Wetland | C65: ='G-2 Habitat groups'!$AK$27 -> 0 | D65: ='G-2 Habitat groups'!$AL$27 -> 0 | E65: ='G-2 Habitat groups'!$AM$27 -> 0 | F65: ='G-2 Habitat groups'!$AN$27 -> 0 | G65: 0 | H65: 0
B66: Woodland and forest | C66: ='G-2 Habitat groups'!$AK$28 -> 0 | D66: ='G-2 Habitat groups'!$AL$28 -> 0 | E66: ='G-2 Habitat groups'!$AM$28 -> 0 | F66: ='G-2 Habitat groups'!$AN$28 -> 0 | G66: 0 | H66: 0
B67: Intertidal sediment | C67: ='G-2 Habitat groups'!$AK$29 -> 0 | D67: ='G-2 Habitat groups'!$AL$29 -> 0 | E67: ='G-2 Habitat groups'!$AM$29 -> 0 | F67: ='G-2 Habitat groups'!$AN$29 -> 0 | G67: 0 | H67: 0
B68: Coastal saltmarsh | C68: ='G-2 Habitat groups'!$AK$30 -> 0 | D68: ='G-2 Habitat groups'!$AL$30 -> 0 | E68: ='G-2 Habitat groups'!$AM$30 -> 0 | F68: ='G-2 Habitat groups'!$AN$30 -> 0 | G68: 0 | H68: 0
B69: Rocky shore | C69: ='G-2 Habitat groups'!$AK$31 -> 0 | D69: ='G-2 Habitat groups'!$AL$31 -> 0 | E69: ='G-2 Habitat groups'!$AM$31 -> 0 | F69: ='G-2 Habitat groups'!$AN$31 -> 0 | G69: 0 | H69: 0
B70: Coastal lagoons | C70: ='G-2 Habitat groups'!$AK$32 -> 0 | D70: ='G-2 Habitat groups'!$AL$32 -> 0 | E70: ='G-2 Habitat groups'!$AM$32 -> 0 | F70: ='G-2 Habitat groups'!$AN$32 -> 0 | G70: 0 | H70: 0
B71: Intertidal hard structures | C71: ='G-2 Habitat groups'!$AK$33 -> 0 | D71: ='G-2 Habitat groups'!$AL$33 -> 0 | E71: ='G-2 Habitat groups'!$AM$33 -> 0 | F71: ='G-2 Habitat groups'!$AN$33 -> 0 | G71: =E71-C71 -> 0 | H71: 0
B72: Watercourse footprint | C72: ='G-2 Habitat groups'!$AK$35 -> 0 | D72: ='G-2 Habitat groups'!$AL$35 -> 0 | E72: ='G-2 Habitat groups'!$AM$35 -> 0 | F72: ='G-2 Habitat groups'!$AN$35 -> 0 | G72: 0 | H72: 0
B73: Individual trees | C73: ='G-2 Habitat groups'!$AK$34 -> 0 | D73: ='G-2 Habitat groups'!$AL$34 -> 0 | E73: ='G-2 Habitat groups'!$AM$34 -> 0 | F73: ='G-2 Habitat groups'!$AN$34 -> 0 | G73: 0 | H73: 0
B75: Combined on-site and off-site change by broad habitat type
C76: Baseline | E76: On-site and off-site post-development | G76: Combined change
B77: Habitat group | C77: Combined existing area | D77: Combined existing value | E77: Combined proposed area | F77: Combined proposed value | G77: Combined area change | H77: Combined unit change
B78: Cropland | C78: =C39+C59 -> 0 | D78: 0 | E78: 0 | F78: 0 | G78: 0 | H78: 0
B79: Grassland | C79: 0.0642 | D79: 0.1284 | E79: 0.0756 | F79: 0.1898559203 | G79: 0.0114 | H79: 0.06145592026
B80: Heathland and shrub | C80: 0 | D80: 0 | E80: 0 | F80: 0 | G80: 0 | H80: 0
B81: Lakes | C81: 0.0006 | D81: 0.0012 | E81: 0.0006 | F81: 0.0012 | G81: 0 | H81: 0
B82: Sparsely vegetated land | C82: 0 | D82: 0 | E82: 0 | F82: 0 | G82: 0 | H82: 0
B83: Urban | C83: 0.3649 | D83: 0.105 | E83: 0.352 | F83: 0.063304 | G83: -0.0129 | H83: -0.041696
B84: Wetland | C84: 0 | D84: 0 | E84: 0 | F84: 0 | G84: 0 | H84: 0
B85: Woodland and forest | C85: 0 | D85: 0 | E85: 0 | F85: 0 | G85: 0 | H85: 0
B86: Intertidal sediment | C86: 0 | D86: 0 | E86: 0 | F86: 0 | G86: 0 | H86: 0
B87: Coastal saltmarsh | C87: 0 | D87: 0 | E87: 0 | F87: 0 | G87: 0 | H87: 0
B88: Rocky shore | C88: 0 | D88: 0 | E88: 0 | F88: 0 | G88: 0 | H88: 0
B89: Coastal lagoons | C89: 0 | D89: 0 | E89: 0 | F89: 0 | G89: 0 | H89: 0
B90: Intertidal hard structures | C90: 0 | D90: 0 | E90: 0 | F90: 0 | G90: 0 | H90: 0
B91: Watercourse footprint | C91: 0 | D91: 0 | E91: 0 | F91: 0 | G91: 0 | H91: 0
B92: Individual trees | C92: =C53+C73 -> 0.2728 | D92: 3.2084 | E92: 0.2768 | F92: 2.936121325 | G92: 0.004 | H92: -0.2722786751
A93: Hedgerows and Lines of Trees Hedgerows and Lines of Trees Hedgerows and Lines of Trees
B94: Hedgerows and lines of trees
B97: On-site change by hedgerow type | J97: Combined length lost from baseline(s) by distinctiveness band
C98: Baseline | E98: Post-development on-site | G98: On-site change
B99: Hedgerow type | C99: On-site existing length | D99: On-site existing value | E99: On-site proposed length | F99: On-site proposed value | G99: On-site length change | H99: On-site unit change | J99: Category | K99: Length lost (km) | L99: Length lost (%)
B100: Species-rich native hedgerow with trees - associated with bank or ditch | C100: ='G-2 Habitat groups'!E150 -> 0 | D100: ='G-2 Habitat groups'!F150 -> 0 | E100: ='G-2 Habitat groups'!O150 -> 0 | F100: ='G-2 Habitat groups'!P150 -> 0 | G100: =E100-C100 -> 0 | H100: =F100-D100 -> 0
B101: Species-rich native hedgerow with trees | C101: ='G-2 Habitat groups'!E151 -> 0 | D101: ='G-2 Habitat groups'!F151 -> 0 | E101: ='G-2 Habitat groups'!O151 -> 0 | F101: ='G-2 Habitat groups'!P151 -> 0 | G101: =E101-C101 -> 0 | H101: 0 | J101: ='G-1 All Habitats'!$V$3 -> V.High | K101: =SUMIF('B-1 On-Site Hedge Baseline'!$F$10:$F$257,'Detailed Results'!J101,'B-1 On-Site Hedge Baseline'!$T$10:$T$257)+SUMIF('E-1 Off-Site Hedge Baseline'!$F$10:$F$257,'Detailed Results'!J101,'E-1 Off-Site Hedge Baseline'!$W$10:$W$257) -> 0 | L101: =IF(K101=0,"",(K101/(SUM($K$101:$K$110)))*100) -> 
B102: Species-rich native hedgerow - associated with bank or ditch | C102: ='G-2 Habitat groups'!E152 -> 0 | D102: ='G-2 Habitat groups'!F152 -> 0 | E102: ='G-2 Habitat groups'!O152 -> 0 | F102: ='G-2 Habitat groups'!P152 -> 0 | G102: 0 | H102: 0
B103: Native hedgerow with trees - associated with bank or ditch | C103: ='G-2 Habitat groups'!E153 -> 0 | D103: ='G-2 Habitat groups'!F153 -> 0 | E103: ='G-2 Habitat groups'!O153 -> 0 | F103: ='G-2 Habitat groups'!P153 -> 0 | G103: 0 | H103: 0 | J103: ='G-1 All Habitats'!$V$4 -> High | K103: =SUMIF('B-1 On-Site Hedge Baseline'!$F$10:$F$257,'Detailed Results'!J103,'B-1 On-Site Hedge Baseline'!$T$10:$T$257)+SUMIF('E-1 Off-Site Hedge Baseline'!$F$10:$F$257,'Detailed Results'!J103,'E-1 Off-Site Hedge Baseline'!$W$10:$W$257) -> 0 | L103: =IF(K103=0,"",(K103/(SUM($K$101:$K$110)))*100) -> 
B104: Species-rich native hedgerow | C104: ='G-2 Habitat groups'!E154 -> 0 | D104: ='G-2 Habitat groups'!F154 -> 0 | E104: ='G-2 Habitat groups'!O154 -> 0 | F104: ='G-2 Habitat groups'!P154 -> 0 | G104: 0 | H104: 0
B105: Native hedgerow - associated with bank or ditch | C105: ='G-2 Habitat groups'!E155 -> 0 | D105: ='G-2 Habitat groups'!F155 -> 0 | E105: ='G-2 Habitat groups'!O155 -> 0 | F105: ='G-2 Habitat groups'!P155 -> 0 | G105: 0 | H105: 0 | J105: ='G-1 All Habitats'!$V$5 -> Medium | K105: =SUMIF('B-1 On-Site Hedge Baseline'!$F$10:$F$257,'Detailed Results'!J105,'B-1 On-Site Hedge Baseline'!$T$10:$T$257)+SUMIF('E-1 Off-Site Hedge Baseline'!$F$10:$F$257,'Detailed Results'!J105,'E-1 Off-Site Hedge Baseline'!$W$10:$W$257) -> 0 | L105: =IF(K105=0,"",(K105/(SUM($K$101:$K$110)))*100) -> 
B106: Native hedgerow with trees | C106: ='G-2 Habitat groups'!E156 -> 0 | D106: ='G-2 Habitat groups'!F156 -> 0 | E106: ='G-2 Habitat groups'!O156 -> 0 | F106: ='G-2 Habitat groups'!P156 -> 0 | G106: 0 | H106: 0
B107: Ecologically valuable line of trees | C107: ='G-2 Habitat groups'!E157 -> 0 | D107: ='G-2 Habitat groups'!F157 -> 0 | E107: ='G-2 Habitat groups'!O157 -> 0 | F107: ='G-2 Habitat groups'!P157 -> 0 | G107: 0 | H107: 0 | J107: ='G-1 All Habitats'!$V$6 -> Low | K107: =SUMIF('B-1 On-Site Hedge Baseline'!$F$10:$F$257,'Detailed Results'!J107,'B-1 On-Site Hedge Baseline'!$T$10:$T$257)+SUMIF('E-1 Off-Site Hedge Baseline'!$F$10:$F$257,'Detailed Results'!J107,'E-1 Off-Site Hedge Baseline'!$W$10:$W$257) -> 0 | L107: =IF(K107=0,"",(K107/(SUM($K$101:$K$110)))*100) -> 
B108: Ecologically valuable line of trees - associated with bank or ditch | C108: ='G-2 Habitat groups'!E158 -> 0 | D108: ='G-2 Habitat groups'!F158 -> 0 | E108: ='G-2 Habitat groups'!O158 -> 0 | F108: ='G-2 Habitat groups'!P158 -> 0 | G108: 0 | H108: 0
B109: Native hedgerow | C109: ='G-2 Habitat groups'!E159 -> 0 | D109: ='G-2 Habitat groups'!F159 -> 0 | E109: ='G-2 Habitat groups'!O159 -> 0 | F109: ='G-2 Habitat groups'!P159 -> 0 | G109: 0 | H109: 0 | J109: ='G-1 All Habitats'!$V$7 -> V.Low | K109: =SUMIF('B-1 On-Site Hedge Baseline'!$F$10:$F$257,'Detailed Results'!J109,'B-1 On-Site Hedge Baseline'!$T$10:$T$257)+SUMIF('E-1 Off-Site Hedge Baseline'!$F$10:$F$257,'Detailed Results'!J109,'E-1 Off-Site Hedge Baseline'!$W$10:$W$257) -> 0 | L109: =IF(K109=0,"",(K109/(SUM($K$101:$K$110)))*100) -> 
B110: Line of trees | C110: ='G-2 Habitat groups'!E160 -> 0 | D110: ='G-2 Habitat groups'!F160 -> 0 | E110: ='G-2 Habitat groups'!O160 -> 0 | F110: ='G-2 Habitat groups'!P160 -> 0 | G110: 0 | H110: 0
B111: Line of trees - associated with bank or ditch | C111: ='G-2 Habitat groups'!E161 -> 0 | D111: ='G-2 Habitat groups'!F161 -> 0 | E111: ='G-2 Habitat groups'!O161 -> 0 | F111: ='G-2 Habitat groups'!P161 -> 0 | G111: 0 | H111: 0
B112: Non-native and ornamental hedgerow | C112: ='G-2 Habitat groups'!E162 -> 0 | D112: ='G-2 Habitat groups'!F162 -> 0 | E112: ='G-2 Habitat groups'!O162 -> 0 | F112: ='G-2 Habitat groups'!P162 -> 0 | G112: 0 | H112: 0
B117: Off-site change by hedgerow type
C118: Off-site baseline | E118: Post-development off-site | G118: Off-site change
B119: Hedgerow type | C119: Off-site existing length | D119: Off-site existing value | E119: Off-site proposed length | F119: Off-site proposed value | G119: Off-site length change | H119: Off-site unit change
B120: Species-rich native hedgerow with trees - associated with bank or ditch | C120: ='G-2 Habitat groups'!S150 -> 0 | D120: ='G-2 Habitat groups'!T150 -> 0 | E120: ='G-2 Habitat groups'!AA150 -> 0 | F120: ='G-2 Habitat groups'!AB150 -> 0 | G120: =E120-C120 -> 0 | H120: =F120-D120 -> 0
B121: Species-rich native hedgerow with trees | C121: ='G-2 Habitat groups'!S151 -> 0 | D121: ='G-2 Habitat groups'!T151 -> 0 | E121: ='G-2 Habitat groups'!AA151 -> 0 | F121: ='G-2 Habitat groups'!AB151 -> 0 | G121: 0 | H121: 0
B122: Species-rich native hedgerow - associated with bank or ditch | C122: ='G-2 Habitat groups'!S152 -> 0 | D122: ='G-2 Habitat groups'!T152 -> 0 | E122: ='G-2 Habitat groups'!AA152 -> 0 | F122: ='G-2 Habitat groups'!AB152 -> 0 | G122: 0 | H122: 0
B123: Native hedgerow with trees - associated with bank or ditch | C123: ='G-2 Habitat groups'!S153 -> 0 | D123: ='G-2 Habitat groups'!T153 -> 0 | E123: ='G-2 Habitat groups'!AA153 -> 0 | F123: ='G-2 Habitat groups'!AB153 -> 0 | G123: 0 | H123: 0
B124: Species-rich native hedgerow | C124: ='G-2 Habitat groups'!S154 -> 0 | D124: ='G-2 Habitat groups'!T154 -> 0 | E124: ='G-2 Habitat groups'!AA154 -> 0 | F124: ='G-2 Habitat groups'!AB154 -> 0 | G124: 0 | H124: 0
B125: Native hedgerow - associated with bank or ditch | C125: ='G-2 Habitat groups'!S155 -> 0 | D125: ='G-2 Habitat groups'!T155 -> 0 | E125: ='G-2 Habitat groups'!AA155 -> 0 | F125: ='G-2 Habitat groups'!AB155 -> 0 | G125: 0 | H125: 0
B126: Native hedgerow with trees | C126: ='G-2 Habitat groups'!S156 -> 0 | D126: ='G-2 Habitat groups'!T156 -> 0 | E126: ='G-2 Habitat groups'!AA156 -> 0 | F126: ='G-2 Habitat groups'!AB156 -> 0 | G126: 0 | H126: 0
B127: Ecologically valuable line of trees | C127: ='G-2 Habitat groups'!S157 -> 0 | D127: ='G-2 Habitat groups'!T157 -> 0 | E127: ='G-2 Habitat groups'!AA157 -> 0 | F127: ='G-2 Habitat groups'!AB157 -> 0 | G127: 0 | H127: 0
B128: Ecologically valuable line of trees - associated with bank or ditch | C128: ='G-2 Habitat groups'!S158 -> 0 | D128: ='G-2 Habitat groups'!T158 -> 0 | E128: ='G-2 Habitat groups'!AA158 -> 0 | F128: ='G-2 Habitat groups'!AB158 -> 0 | G128: 0 | H128: 0
B129: Native hedgerow | C129: ='G-2 Habitat groups'!S159 -> 0 | D129: ='G-2 Habitat groups'!T159 -> 0 | E129: ='G-2 Habitat groups'!AA159 -> 0 | F129: ='G-2 Habitat groups'!AB159 -> 0 | G129: 0 | H129: 0
B130: Line of trees | C130: ='G-2 Habitat groups'!S160 -> 0 | D130: ='G-2 Habitat groups'!T160 -> 0 | E130: ='G-2 Habitat groups'!AA160 -> 0 | F130: ='G-2 Habitat groups'!AB160 -> 0 | G130: 0 | H130: 0
B131: Line of trees - associated with bank or ditch | C131: ='G-2 Habitat groups'!S161 -> 0 | D131: ='G-2 Habitat groups'!T161 -> 0 | E131: ='G-2 Habitat groups'!AA161 -> 0 | F131: ='G-2 Habitat groups'!AB161 -> 0 | G131: 0 | H131: 0
B132: Non-native and ornamental hedgerow | C132: ='G-2 Habitat groups'!S162 -> 0 | D132: ='G-2 Habitat groups'!T162 -> 0 | E132: ='G-2 Habitat groups'!AA162 -> 0 | F132: ='G-2 Habitat groups'!AB162 -> 0 | G132: 0 | H132: 0
B137: Combined on-site and off-site change by hedgerow type
C138: Baseline | E138: Post-development | G138: Change
B139: Hedgerow type | C139: Combined existing length | D139: Combined existing value | E139: Combined proposed length | F139: Combined proposed value | G139: Combined length change | H139: Combined unit change
B140: Species-rich native hedgerow with trees - associated with bank or ditch | C140: =C100+C120 -> 0 | D140: 0 | E140: 0 | F140: 0 | G140: 0 | H140: 0
B141: Species-rich native hedgerow with trees | C141: =C101+C121 -> 0 | D141: 0 | E141: 0 | F141: 0 | G141: 0 | H141: 0
B142: Species-rich native hedgerow - associated with bank or ditch | C142: =C102+C122 -> 0 | D142: 0 | E142: 0 | F142: 0 | G142: 0 | H142: 0
B143: Native hedgerow with trees - associated with bank or ditch | C143: =C103+C123 -> 0 | D143: 0 | E143: 0 | F143: 0 | G143: 0 | H143: 0
B144: Species-rich native hedgerow | C144: =C104+C124 -> 0 | D144: 0 | E144: 0 | F144: 0 | G144: 0 | H144: 0
B145: Native hedgerow - associated with bank or ditch | C145: =C105+C125 -> 0 | D145: 0 | E145: 0 | F145: 0 | G145: 0 | H145: 0
B146: Native hedgerow with trees | C146: =C106+C126 -> 0 | D146: 0 | E146: 0 | F146: 0 | G146: 0 | H146: 0
B147: Ecologically valuable line of trees | C147: =C107+C127 -> 0 | D147: 0 | E147: 0 | F147: 0 | G147: 0 | H147: 0
B148: Ecologically valuable line of trees - associated with bank or ditch | C148: =C108+C128 -> 0 | D148: 0 | E148: 0 | F148: 0 | G148: 0 | H148: 0
B149: Native hedgerow | C149: =C109+C129 -> 0 | D149: 0 | E149: 0 | F149: 0 | G149: 0 | H149: 0
B150: Line of trees | C150: =C110+C130 -> 0 | D150: 0 | E150: 0 | F150: 0 | G150: 0 | H150: 0
B151: Line of trees - associated with bank or ditch | C151: =C111+C131 -> 0 | D151: 0 | E151: 0 | F151: 0 | G151: 0 | H151: 0
B152: Non-native and ornamental hedgerow | C152: =C112+C132 -> 0 | D152: 0 | E152: 0 | F152: 0 | G152: 0 | H152: 0
A155: Watercourses Watercourses Watercourses
B157: Watercourses
B160: On-site change by watercourse type | J160: Combined length lost from baseline(s) by distinctiveness band
C161: Baseline | E161: Post-development on site | G161: On-site Change
B162: Watercourse type | C162: On-site existing length | D162: On-site existing value | E162: On-site proposed length | F162: On-site proposed value | G162: On-site length change | H162: On-site unit change | J162: Category | K162: Length lost (km) | L162: Length lost (%)
B163: Priority habitat | C163: ='G-2 Habitat groups'!E172 -> 0 | D163: ='G-2 Habitat groups'!F172 -> 0 | E163: ='G-2 Habitat groups'!O172 -> 0 | F163: ='G-2 Habitat groups'!P172 -> 0 | G163: =E163-C163 -> 0 | H163: 0
B164: Other rivers and streams | C164: ='G-2 Habitat groups'!E173 -> 0 | D164: ='G-2 Habitat groups'!F173 -> 0 | E164: ='G-2 Habitat groups'!O173 -> 0 | F164: ='G-2 Habitat groups'!P173 -> 0 | G164: 0 | H164: 0 | J164: ='G-1 All Habitats'!$V$3 -> V.High | K164: =SUMIF('C-1 On-Site WaterC'' Baseline'!$F$10:$F$257,'Detailed Results'!J164,'C-1 On-Site WaterC'' Baseline'!$Y$10:$Y$257)+SUMIF('F-1 Off-Site WaterC'' Baseline'!$F$10:$F$257,'Detailed Results'!J164,'F-1 Off-Site WaterC'' Baseline'!$AB$10:$AB$257) -> 0 | L164: =IF(K164=0,"",(K164/(SUM($K$164:$K$171)))*100) -> 
B165: Ditches | C165: ='G-2 Habitat groups'!E174 -> 0 | D165: ='G-2 Habitat groups'!F174 -> 0 | E165: ='G-2 Habitat groups'!O174 -> 0 | F165: ='G-2 Habitat groups'!P174 -> 0 | G165: 0 | H165: 0
B166: Canals | C166: ='G-2 Habitat groups'!E175 -> 0 | D166: ='G-2 Habitat groups'!F175 -> 0 | E166: ='G-2 Habitat groups'!O175 -> 0 | F166: ='G-2 Habitat groups'!P175 -> 0 | G166: 0 | H166: 0 | J166: ='G-1 All Habitats'!$V$4 -> High | K166: =SUMIF('C-1 On-Site WaterC'' Baseline'!$F$10:$F$257,'Detailed Results'!J166,'C-1 On-Site WaterC'' Baseline'!$Y$10:$Y$257)+SUMIF('F-1 Off-Site WaterC'' Baseline'!$F$10:$F$257,'Detailed Results'!J166,'F-1 Off-Site WaterC'' Baseline'!$AB$10:$AB$257) -> 0 | L166: =IF(K166=0,"",(K166/(SUM($K$164:$K$171)))*100) -> 
B167: Culvert | C167: ='G-2 Habitat groups'!E176 -> 0 | D167: ='G-2 Habitat groups'!F176 -> 0 | E167: ='G-2 Habitat groups'!O176 -> 0 | F167: ='G-2 Habitat groups'!P176 -> 0 | G167: 0 | H167: 0
J168: ='G-1 All Habitats'!$V$5 -> Medium | K168: =SUMIF('C-1 On-Site WaterC'' Baseline'!$F$10:$F$257,'Detailed Results'!J168,'C-1 On-Site WaterC'' Baseline'!$Y$10:$Y$257)+SUMIF('F-1 Off-Site WaterC'' Baseline'!$F$10:$F$257,'Detailed Results'!J168,'F-1 Off-Site WaterC'' Baseline'!$AB$10:$AB$257) -> 0 | L168: =IF(K168=0,"",(K168/(SUM($K$164:$K$171)))*100) -> 
J170: ='G-1 All Habitats'!$V$6 -> Low | K170: =SUMIF('C-1 On-Site WaterC'' Baseline'!$F$10:$F$257,'Detailed Results'!J170,'C-1 On-Site WaterC'' Baseline'!$Y$10:$Y$257)+SUMIF('F-1 Off-Site WaterC'' Baseline'!$F$10:$F$257,'Detailed Results'!J170,'F-1 Off-Site WaterC'' Baseline'!$AB$10:$AB$257) -> 0 | L170: =IF(K170=0,"",(K170/(SUM($K$164:$K$171)))*100) -> 
B180: Off-site change by watercourse type
C181: Baseline | E181: Post development off-site | G181: Off-site Change
B182: Watercourse type | C182: Off-site existing length | D182: Off-site existing value | E182: Off-site proposed length | F182: Off-site proposed value | G182: Off-site length change | H182: Off-site unit change
B183: Priority habitat | C183: ='G-2 Habitat groups'!S172 -> 0 | D183: ='G-2 Habitat groups'!T172 -> 0 | E183: ='G-2 Habitat groups'!AA172 -> 0 | F183: ='G-2 Habitat groups'!AB172 -> 0 | G183: =E183-C183 -> 0 | H183: 0
B184: Other rivers and streams | C184: ='G-2 Habitat groups'!S173 -> 0 | D184: ='G-2 Habitat groups'!T173 -> 0 | E184: ='G-2 Habitat groups'!AA173 -> 0 | F184: ='G-2 Habitat groups'!AB173 -> 0 | G184: 0 | H184: 0
B185: Ditches | C185: ='G-2 Habitat groups'!S174 -> 0 | D185: ='G-2 Habitat groups'!T174 -> 0 | E185: ='G-2 Habitat groups'!AA174 -> 0 | F185: ='G-2 Habitat groups'!AB174 -> 0 | G185: 0 | H185: 0
B186: Canals | C186: ='G-2 Habitat groups'!S175 -> 0 | D186: ='G-2 Habitat groups'!T175 -> 0 | E186: ='G-2 Habitat groups'!AA175 -> 0 | F186: ='G-2 Habitat groups'!AB175 -> 0 | G186: 0 | H186: 0
B187: Culvert | C187: ='G-2 Habitat groups'!S176 -> 0 | D187: ='G-2 Habitat groups'!T176 -> 0 | E187: ='G-2 Habitat groups'!AA176 -> 0 | F187: ='G-2 Habitat groups'!AB176 -> 0 | G187: 0 | H187: 0
B200: Combined on-site and off-site change by watercourse type
C201: Baseline | E201: Post-development on-site | G201: On-site change
B202: Watercourse type | C202: Combined existing length | D202: Combined existing value | E202: Combined proposed length | F202: Combined proposed value | G202: Combined length change | H202: Combined unit change
B203: Priority habitat | C203: =C163+C183 -> 0 | D203: 0 | E203: 0 | F203: 0 | G203: 0 | H203: 0
B204: Other rivers and streams | C204: 0 | D204: 0 | E204: 0 | F204: 0 | G204: 0 | H204: 0
B205: Ditches | C205: =C165+C185 -> 0 | D205: 0 | E205: 0 | F205: 0 | G205: 0 | H205: 0
B206: Canals | C206: =C166+C186 -> 0 | D206: 0 | E206: 0 | F206: 0 | G206: 0 | H206: 0
B207: Culvert | C207: =C167+C187 -> 0 | D207: 0 | E207: 0 | F207: 0 | G207: 0 | H207: 0

Sheet Trading Summary Area Habitats (hidden)
B2: Trading Summary
B3: Distinctiveness Group | C3: Trading Rule | G3: Trading Satisfied?
B5: Very High | C5: Same habitat required – bespoke compensation option ⚠ | G5: =IFERROR(IF(G33<0,"No ▲","Yes ✓"),"") -> Yes ✓
B6: High | C6: Same habitat required = | G6: =IFERROR(IF(K41<0,"No ▲","Yes ✓"),"") -> Yes ✓
B7: Medium | C7: Same broad habitat or a higher distinctiveness habitat required (≥) | G7: =IF(K40+K12+K89<0,"No ▲","Yes ✓") -> No ▲
B8: Low | C8: Same distinctiveness or better habitat required ≥ | G8: =IF(K125<0,"No ▲","Yes ✓") -> No ▲
B11: Very High Distinctiveness | J11: Very High Distinctiveness Summary
B12: Habitat group | C12: Group | D12: On-site unit change | E12: Off-site unit change | F12: Project-wide unit change | G12: Unit losses | J12: Very High Distinctiveness Units available to offset lower distinctiveness deficit | K12: =SUMIF($F$13:$F$32,">0") -> 0 | L12: =IF(K12=0,"",IF(K12<0,"⚠","✓")) -> 
B13: ='G-2 Habitat groups'!AU5 -> Grassland - Lowland dry acid grassland | C13: ='G-2 Habitat groups'!AV5 -> Grassland | D13: ='G-2 Habitat groups'!BB5 -> 0 | E13: ='G-2 Habitat groups'!BD5 -> 0 | F13: ='G-2 Habitat groups'!BE5 -> 0 | G13: ='G-2 Habitat groups'!BF5 ->  | H13: =IF(F13=0,"",IF(F13<0,"▲","✓")) ->  | J13: Remaining losses; Like for like not satisfied | K13: =G33 -> 0 | L13: =IF(K13=0,"",IF(K13<0,"▲","✓")) -> 
B14: ='G-2 Habitat groups'!AU6 -> Grassland - Lowland meadows | C14: ='G-2 Habitat groups'!AV6 -> Grassland | D14: ='G-2 Habitat groups'!BB6 -> 0 | E14: ='G-2 Habitat groups'!BD6 -> 0 | F14: ='G-2 Habitat groups'!BE6 -> 0 | G14: ='G-2 Habitat groups'!BF6 ->  | H14: =IF(F14=0,"",IF(F14<0,"▲","✓")) -> 
B15: ='G-2 Habitat groups'!AU7 -> Grassland - Upland hay meadows | C15: ='G-2 Habitat groups'!AV7 -> Grassland | D15: ='G-2 Habitat groups'!BB7 -> 0 | E15: ='G-2 Habitat groups'!BD7 -> 0 | F15: ='G-2 Habitat groups'!BE7 -> 0 | G15: ='G-2 Habitat groups'!BF7 -> 
B16: ='G-2 Habitat groups'!AU8 -> Heathland and shrub - Mountain heaths and willow scrub | C16: ='G-2 Habitat groups'!AV8 -> Heathland and shrub | D16: ='G-2 Habitat groups'!BB8 -> 0 | E16: ='G-2 Habitat groups'!BD8 -> 0 | F16: ='G-2 Habitat groups'!BE8 -> 0 | G16: ='G-2 Habitat groups'!BF8 -> 
B17: ='G-2 Habitat groups'!AU9 -> Lakes - Aquifer fed naturally fluctuating water bodies | C17: ='G-2 Habitat groups'!AV9 -> Lakes | D17: ='G-2 Habitat groups'!BB9 -> 0 | E17: ='G-2 Habitat groups'!BD9 -> 0 | F17: ='G-2 Habitat groups'!BE9 -> 0 | G17: ='G-2 Habitat groups'!BF9 -> 
B18: ='G-2 Habitat groups'!AU10 -> Sparsely vegetated land - Calaminarian grasslands | C18: ='G-2 Habitat groups'!AV10 -> Sparsely vegetated land | D18: ='G-2 Habitat groups'!BB10 -> 0 | E18: ='G-2 Habitat groups'!BD10 -> 0 | F18: ='G-2 Habitat groups'!BE10 -> 0 | G18: ='G-2 Habitat groups'!BF10 -> 
B19: ='G-2 Habitat groups'!AU11 -> Sparsely vegetated land - Limestone pavement | C19: ='G-2 Habitat groups'!AV11 -> Sparsely vegetated land | D19: ='G-2 Habitat groups'!BB11 -> 0 | E19: ='G-2 Habitat groups'!BD11 -> 0 | F19: ='G-2 Habitat groups'!BE11 -> 0 | G19: ='G-2 Habitat groups'!BF11 -> 
B20: ='G-2 Habitat groups'!AU12 -> Wetland - Blanket bog | C20: ='G-2 Habitat groups'!AV12 -> Wetland | D20: ='G-2 Habitat groups'!BB12 -> 0 | E20: ='G-2 Habitat groups'!BD12 -> 0 | F20: ='G-2 Habitat groups'!BE12 -> 0 | G20: ='G-2 Habitat groups'!BF12 -> 
B21: ='G-2 Habitat groups'!AU13 -> Wetland - Depressions on peat substrates (H7150) | C21: ='G-2 Habitat groups'!AV13 -> Wetland | D21: ='G-2 Habitat groups'!BB13 -> 0 | E21: ='G-2 Habitat groups'!BD13 -> 0 | F21: ='G-2 Habitat groups'!BE13 -> 0 | G21: ='G-2 Habitat groups'!BF13 -> 
B22: ='G-2 Habitat groups'!AU14 -> Wetland - Fens (upland and lowland) | C22: ='G-2 Habitat groups'!AV14 -> Wetland | D22: ='G-2 Habitat groups'!BB14 -> 0 | E22: ='G-2 Habitat groups'!BD14 -> 0 | F22: ='G-2 Habitat groups'!BE14 -> 0 | G22: ='G-2 Habitat groups'!BF14 -> 
B23: ='G-2 Habitat groups'!AU15 -> Wetland - Lowland raised bog | C23: ='G-2 Habitat groups'!AV15 -> Wetland | D23: ='G-2 Habitat groups'!BB15 -> 0 | E23: ='G-2 Habitat groups'!BD15 -> 0 | F23: ='G-2 Habitat groups'!BE15 -> 0 | G23: ='G-2 Habitat groups'!BF15 -> 
B24: ='G-2 Habitat groups'!AU16 -> Wetland - Oceanic valley mire[1] (D2.1) | C24: ='G-2 Habitat groups'!AV16 -> Wetland | D24: ='G-2 Habitat groups'!BB16 -> 0 | E24: ='G-2 Habitat groups'!BD16 -> 0 | F24: ='G-2 Habitat groups'!BE16 -> 0 | G24: ='G-2 Habitat groups'!BF16 -> 
B25: ='G-2 Habitat groups'!AU17 -> Wetland - Purple moor grass and rush pastures | C25: ='G-2 Habitat groups'!AV17 -> Wetland | D25: ='G-2 Habitat groups'!BB17 -> 0 | E25: ='G-2 Habitat groups'!BD17 -> 0 | F25: ='G-2 Habitat groups'!BE17 -> 0 | G25: ='G-2 Habitat groups'!BF17 -> 
B26: ='G-2 Habitat groups'!AU18 -> Wetland - Transition mires and quaking bogs (H7140) | C26: ='G-2 Habitat groups'!AV18 -> Wetland | D26: ='G-2 Habitat groups'!BB18 -> 0 | E26: ='G-2 Habitat groups'!BD18 -> 0 | F26: ='G-2 Habitat groups'!BE18 -> 0 | G26: ='G-2 Habitat groups'!BF18 -> 
B27: ='G-2 Habitat groups'!AU19 -> Woodland and forest - Wood-pasture and parkland | C27: ='G-2 Habitat groups'!AV19 -> Woodland and forest | D27: ='G-2 Habitat groups'!BB19 -> 0 | E27: ='G-2 Habitat groups'!BD19 -> 0 | F27: ='G-2 Habitat groups'!BE19 -> 0 | G27: ='G-2 Habitat groups'!BF19 -> 
B28: ='G-2 Habitat groups'!AU20 -> Rocky shore - High energy littoral rock - on peat, clay or chalk | C28: ='G-2 Habitat groups'!AV20 -> Rocky shore | D28: ='G-2 Habitat groups'!BB20 -> 0 | E28: ='G-2 Habitat groups'!BD20 -> 0 | F28: ='G-2 Habitat groups'!BE20 -> 0 | G28: ='G-2 Habitat groups'!BF20 -> 
B29: ='G-2 Habitat groups'!AU21 -> Rocky shore - Moderate energy littoral rock - on peat, clay or chalk | C29: ='G-2 Habitat groups'!AV21 -> Rocky shore | D29: ='G-2 Habitat groups'!BB21 -> 0 | E29: ='G-2 Habitat groups'!BD21 -> 0 | F29: ='G-2 Habitat groups'!BE21 -> 0 | G29: ='G-2 Habitat groups'!BF21 -> 
B30: ='G-2 Habitat groups'!AU22 -> Rocky shore - Low energy littoral rock - on peat, clay or chalk | C30: ='G-2 Habitat groups'!AV22 -> Rocky shore | D30: ='G-2 Habitat groups'!BB22 -> 0 | E30: ='G-2 Habitat groups'!BD22 -> 0 | F30: ='G-2 Habitat groups'!BE22 -> 0 | G30: ='G-2 Habitat groups'!BF22 -> 
B31: ='G-2 Habitat groups'!AU23 -> Rocky shore - Features of littoral rock - on peat, clay or chalk | C31: ='G-2 Habitat groups'!AV23 -> Rocky shore | D31: ='G-2 Habitat groups'!BB23 -> 0 | E31: ='G-2 Habitat groups'!BD23 -> 0 | F31: ='G-2 Habitat groups'!BE23 -> 0 | G31: ='G-2 Habitat groups'!BF23 -> 
B32: ='G-2 Habitat groups'!AU24 -> Intertidal sediment - Littoral seagrass on peat, clay or chalk | C32: ='G-2 Habitat groups'!AV24 -> Intertidal sediment | D32: ='G-2 Habitat groups'!BB24 -> 0 | E32: ='G-2 Habitat groups'!BD24 -> 0 | F32: ='G-2 Habitat groups'!BE24 -> 0 | G32: ='G-2 Habitat groups'!BF24 -> 
D33: =SUM(D13:D32) -> 0 | E33: =SUM(E13:E32) -> 0 | F33: =SUM(F13:F32) -> 0 | G33: =SUM(G13:G32) -> 0
B39: High Distinctiveness | J39: High Distinctiveness Summary
B40: Habitat group | C40: Group | D40: On-site unit change | E40: Off-site unit change | F40: Project-wide unit change | G40: Losses not yet accounted for | J40: High Distinctiveness Units available to offset lower distinctiveness deficit | K40: =SUMIF($F$41:$F$82,">0") -> 0 | L40: =IF(K40=0,"",IF(K40<0,"⚠","✓")) -> 
B41: ='G-2 Habitat groups'!AU30 -> Grassland - Traditional orchards | C41: ='G-2 Habitat groups'!AV30 -> Grassland | D41: ='G-2 Habitat groups'!BB30 -> 0 | E41: ='G-2 Habitat groups'!BD30 -> 0 | F41: ='G-2 Habitat groups'!BE30 -> 0 | G41: ='G-2 Habitat groups'!BF30 ->  | H41: =IF(F41=0,"",IF(F41<0,"▲","✓")) ->  | J41: Remaining losses; Like for like not satisfied | K41: =G83 -> 0 | L41: =IF(K41=0,"",IF(K41<0,"▲","✓")) -> 
B42: ='G-2 Habitat groups'!AU31 -> Grassland - Floodplain wetland mosaic and CFGM | C42: ='G-2 Habitat groups'!AV31 -> Grassland | D42: ='G-2 Habitat groups'!BB31 -> 0 | E42: ='G-2 Habitat groups'!BD31 -> 0 | F42: ='G-2 Habitat groups'!BE31 -> 0 | G42: ='G-2 Habitat groups'!BF31 ->  | H42: =IF(F42=0,"",IF(F42<0,"▲","✓")) -> 
B43: ='G-2 Habitat groups'!AU32 -> Grassland - Lowland calcareous grassland | C43: ='G-2 Habitat groups'!AV32 -> Grassland | D43: ='G-2 Habitat groups'!BB32 -> 0 | E43: ='G-2 Habitat groups'!BD32 -> 0 | F43: ='G-2 Habitat groups'!BE32 -> 0 | G43: ='G-2 Habitat groups'!BF32 -> 
B44: ='G-2 Habitat groups'!AU33 -> Grassland - Tall herb communities (H6430) | C44: ='G-2 Habitat groups'!AV33 -> Grassland | D44: ='G-2 Habitat groups'!BB33 -> 0 | E44: ='G-2 Habitat groups'!BD33 -> 0 | F44: ='G-2 Habitat groups'!BE33 -> 0 | G44: ='G-2 Habitat groups'!BF33 -> 
B45: ='G-2 Habitat groups'!AU34 -> Grassland - Upland calcareous grassland | C45: ='G-2 Habitat groups'!AV34 -> Grassland | D45: ='G-2 Habitat groups'!BB34 -> 0 | E45: ='G-2 Habitat groups'!BD34 -> 0 | F45: ='G-2 Habitat groups'!BE34 -> 0 | G45: ='G-2 Habitat groups'!BF34 -> 
B46: ='G-2 Habitat groups'!AU35 -> Heathland and shrub - Lowland Heathland | C46: ='G-2 Habitat groups'!AV35 -> Heathland and shrub | D46: ='G-2 Habitat groups'!BB35 -> 0 | E46: ='G-2 Habitat groups'!BD35 -> 0 | F46: ='G-2 Habitat groups'!BE35 -> 0 | G46: ='G-2 Habitat groups'!BF35 -> 
B47: ='G-2 Habitat groups'!AU36 -> Heathland and shrub - Dunes with sea buckthorn (H2160) | C47: ='G-2 Habitat groups'!AV36 -> Heathland and shrub | D47: ='G-2 Habitat groups'!BB36 -> 0 | E47: ='G-2 Habitat groups'!BD36 -> 0 | F47: ='G-2 Habitat groups'!BE36 -> 0 | G47: ='G-2 Habitat groups'!BF36 -> 
B48: ='G-2 Habitat groups'!AU37 -> Heathland and shrub - Upland heathland | C48: ='G-2 Habitat groups'!AV37 -> Heathland and shrub | D48: ='G-2 Habitat groups'!BB37 -> 0 | E48: ='G-2 Habitat groups'!BD37 -> 0 | F48: ='G-2 Habitat groups'!BE37 -> 0 | G48: ='G-2 Habitat groups'!BF37 -> 
B49: ='G-2 Habitat groups'!AU39 -> Lakes - High alkalinity lakes | C49: ='G-2 Habitat groups'!AV39 -> Lakes | D49: ='G-2 Habitat groups'!BB39 -> 0 | E49: ='G-2 Habitat groups'!BD39 -> 0 | F49: ='G-2 Habitat groups'!BE39 -> 0 | G49: ='G-2 Habitat groups'!BF39 -> 
B50: ='G-2 Habitat groups'!AU40 -> Lakes - Low alkalinity lakes | C50: ='G-2 Habitat groups'!AV40 -> Lakes | D50: ='G-2 Habitat groups'!BB40 -> 0 | E50: ='G-2 Habitat groups'!BD40 -> 0 | F50: ='G-2 Habitat groups'!BE40 -> 0 | G50: ='G-2 Habitat groups'!BF40 -> 
B51: ='G-2 Habitat groups'!AU41 -> Lakes - Marl lakes | C51: ='G-2 Habitat groups'!AV41 -> Lakes | D51: ='G-2 Habitat groups'!BB41 -> 0 | E51: ='G-2 Habitat groups'!BD41 -> 0 | F51: ='G-2 Habitat groups'!BE41 -> 0 | G51: ='G-2 Habitat groups'!BF41 -> 
B52: ='G-2 Habitat groups'!AU42 -> Lakes - Moderate alkalinity lakes | C52: ='G-2 Habitat groups'!AV42 -> Lakes | D52: ='G-2 Habitat groups'!BB42 -> 0 | E52: ='G-2 Habitat groups'!BD42 -> 0 | F52: ='G-2 Habitat groups'!BE42 -> 0 | G52: ='G-2 Habitat groups'!BF42 -> 
B53: ='G-2 Habitat groups'!AU43 -> Lakes - Peat lakes | C53: ='G-2 Habitat groups'!AV43 -> Lakes | D53: ='G-2 Habitat groups'!BB43 -> 0 | E53: ='G-2 Habitat groups'!BD43 -> 0 | F53: ='G-2 Habitat groups'!BE43 -> 0 | G53: ='G-2 Habitat groups'!BF43 -> 
B54: ='G-2 Habitat groups'!AU44 -> Lakes - Ponds (priority habitat) | C54: ='G-2 Habitat groups'!AV44 -> Lakes | D54: ='G-2 Habitat groups'!BB44 -> 0 | E54: ='G-2 Habitat groups'!BD44 -> 0 | F54: ='G-2 Habitat groups'!BE44 -> 0 | G54: ='G-2 Habitat groups'!BF44 -> 
B55: ='G-2 Habitat groups'!AU45 -> Lakes - Temporary lakes ponds and pools (H3170) | C55: ='G-2 Habitat groups'!AV45 -> Lakes | D55: ='G-2 Habitat groups'!BB45 -> 0 | E55: ='G-2 Habitat groups'!BD45 -> 0 | F55: ='G-2 Habitat groups'!BE45 -> 0 | G55: ='G-2 Habitat groups'!BF45 -> 
B56: ='G-2 Habitat groups'!AU46 -> Sparsely vegetated land - Coastal sand dunes | C56: ='G-2 Habitat groups'!AV46 -> Sparsely vegetated land | D56: ='G-2 Habitat groups'!BB46 -> 0 | E56: ='G-2 Habitat groups'!BD46 -> 0 | F56: ='G-2 Habitat groups'!BE46 -> 0 | G56: ='G-2 Habitat groups'!BF46 -> 
B57: ='G-2 Habitat groups'!AU47 -> Sparsely vegetated land - Coastal vegetated shingle | C57: ='G-2 Habitat groups'!AV47 -> Sparsely vegetated land | D57: ='G-2 Habitat groups'!BB47 -> 0 | E57: ='G-2 Habitat groups'!BD47 -> 0 | F57: ='G-2 Habitat groups'!BE47 -> 0 | G57: ='G-2 Habitat groups'!BF47 -> 
B58: ='G-2 Habitat groups'!AU48 -> Sparsely vegetated land - Inland rock outcrop and scree habitats | C58: ='G-2 Habitat groups'!AV48 -> Sparsely vegetated land | D58: ='G-2 Habitat groups'!BB48 -> 0 | E58: ='G-2 Habitat groups'!BD48 -> 0 | F58: ='G-2 Habitat groups'!BE48 -> 0 | G58: ='G-2 Habitat groups'!BF48 -> 
B59: ='G-2 Habitat groups'!AU49 -> Sparsely vegetated land - Maritime cliff and slopes | C59: ='G-2 Habitat groups'!AV49 -> Sparsely vegetated land | D59: ='G-2 Habitat groups'!BB49 -> 0 | E59: ='G-2 Habitat groups'!BD49 -> 0 | F59: ='G-2 Habitat groups'!BE49 -> 0 | G59: ='G-2 Habitat groups'!BF49 -> 
B60: ='G-2 Habitat groups'!AU50 -> Urban - Open mosaic habitats on previously developed land | C60: ='G-2 Habitat groups'!AV50 -> Urban | D60: ='G-2 Habitat groups'!BB50 -> 0 | E60: ='G-2 Habitat groups'!BD50 -> 0 | F60: ='G-2 Habitat groups'!BE50 -> 0 | G60: ='G-2 Habitat groups'!BF50 -> 
B61: ='G-2 Habitat groups'!AU51 -> Wetland - Reedbeds | C61: ='G-2 Habitat groups'!AV51 -> Wetland | D61: ='G-2 Habitat groups'!BB51 -> 0 | E61: ='G-2 Habitat groups'!BD51 -> 0 | F61: ='G-2 Habitat groups'!BE51 -> 0 | G61: ='G-2 Habitat groups'!BF51 -> 
B62: Woodland and forest - Felled/Replacement for felled woodland | C62: ='G-2 Habitat groups'!AV52 -> Woodland and forest | D62: ='G-2 Habitat groups'!BB52 -> 0 | E62: ='G-2 Habitat groups'!BD52 -> 0 | F62: ='G-2 Habitat groups'!BE52 -> 0 | G62: ='G-2 Habitat groups'!BF52 -> 
B63: ='G-2 Habitat groups'!AU53 -> Woodland and forest - Lowland beech and yew woodland | C63: ='G-2 Habitat groups'!AV53 -> Woodland and forest | D63: ='G-2 Habitat groups'!BB53 -> 0 | E63: ='G-2 Habitat groups'!BD53 -> 0 | F63: ='G-2 Habitat groups'!BE53 -> 0 | G63: ='G-2 Habitat groups'!BF53 -> 
B64: ='G-2 Habitat groups'!AU54 -> Woodland and forest - Lowland mixed deciduous woodland | C64: ='G-2 Habitat groups'!AV54 -> Woodland and forest | D64: ='G-2 Habitat groups'!BB54 -> 0 | E64: ='G-2 Habitat groups'!BD54 -> 0 | F64: ='G-2 Habitat groups'!BE54 -> 0 | G64: ='G-2 Habitat groups'!BF54 -> 
B65: ='G-2 Habitat groups'!AU56 -> Woodland and forest - Native pine woodlands | C65: ='G-2 Habitat groups'!AV56 -> Woodland and forest | D65: ='G-2 Habitat groups'!BB56 -> 0 | E65: ='G-2 Habitat groups'!BD56 -> 0 | F65: ='G-2 Habitat groups'!BE56 -> 0 | G65: ='G-2 Habitat groups'!BF56 -> 
B66: ='G-2 Habitat groups'!AU57 -> Woodland and forest - Upland birchwoods | C66: ='G-2 Habitat groups'!AV57 -> Woodland and forest | D66: ='G-2 Habitat groups'!BB57 -> 0 | E66: ='G-2 Habitat groups'!BD57 -> 0 | F66: ='G-2 Habitat groups'!BE57 -> 0 | G66: ='G-2 Habitat groups'!BF57 -> 
B67: ='G-2 Habitat groups'!AU58 -> Woodland and forest - Upland mixed ashwoods | C67: ='G-2 Habitat groups'!AV58 -> Woodland and forest | D67: ='G-2 Habitat groups'!BB58 -> 0 | E67: ='G-2 Habitat groups'!BD58 -> 0 | F67: ='G-2 Habitat groups'!BE58 -> 0 | G67: ='G-2 Habitat groups'!BF58 -> 
B68: ='G-2 Habitat groups'!AU59 -> Woodland and forest - Upland oakwood | C68: ='G-2 Habitat groups'!AV59 -> Woodland and forest | D68: ='G-2 Habitat groups'!BB59 -> 0 | E68: ='G-2 Habitat groups'!BD59 -> 0 | F68: ='G-2 Habitat groups'!BE59 -> 0 | G68: ='G-2 Habitat groups'!BF59 -> 
B69: ='G-2 Habitat groups'!AU60 -> Woodland and forest - Wet woodland | C69: ='G-2 Habitat groups'!AV60 -> Woodland and forest | D69: ='G-2 Habitat groups'!BB60 -> 0 | E69: ='G-2 Habitat groups'!BD60 -> 0 | F69: ='G-2 Habitat groups'!BE60 -> 0 | G69: ='G-2 Habitat groups'!BF60 -> 
B70: ='G-2 Habitat groups'!AU61 -> Coastal lagoons - Coastal lagoons | C70: ='G-2 Habitat groups'!AV61 -> Coastal lagoons | D70: ='G-2 Habitat groups'!BB61 -> 0 | E70: ='G-2 Habitat groups'!BD61 -> 0 | F70: ='G-2 Habitat groups'!BE61 -> 0 | G70: ='G-2 Habitat groups'!BF61 -> 
B71: ='G-2 Habitat groups'!AU62 -> Rocky shore - High energy littoral rock | C71: ='G-2 Habitat groups'!AV62 -> Rocky shore | D71: ='G-2 Habitat groups'!BB62 -> 0 | E71: ='G-2 Habitat groups'!BD62 -> 0 | F71: ='G-2 Habitat groups'!BE62 -> 0 | G71: ='G-2 Habitat groups'!BF62 -> 
B72: ='G-2 Habitat groups'!AU63 -> Rocky shore - Moderate energy littoral rock | C72: ='G-2 Habitat groups'!AV63 -> Rocky shore | D72: ='G-2 Habitat groups'!BB63 -> 0 | E72: ='G-2 Habitat groups'!BD63 -> 0 | F72: ='G-2 Habitat groups'!BE63 -> 0 | G72: ='G-2 Habitat groups'!BF63 -> 
B73: ='G-2 Habitat groups'!AU64 -> Rocky shore - Low energy littoral rock | C73: ='G-2 Habitat groups'!AV64 -> Rocky shore | D73: ='G-2 Habitat groups'!BB64 -> 0 | E73: ='G-2 Habitat groups'!BD64 -> 0 | F73: ='G-2 Habitat groups'!BE64 -> 0 | G73: ='G-2 Habitat groups'!BF64 -> 
B74: ='G-2 Habitat groups'!AU65 -> Rocky shore - Features of littoral rock | C74: ='G-2 Habitat groups'!AV65 -> Rocky shore | D74: ='G-2 Habitat groups'!BB65 -> 0 | E74: ='G-2 Habitat groups'!BD65 -> 0 | F74: ='G-2 Habitat groups'!BE65 -> 0 | G74: ='G-2 Habitat groups'!BF65 -> 
B75: ='G-2 Habitat groups'!AU66 -> Intertidal sediment - Littoral mud | C75: ='G-2 Habitat groups'!AV66 -> Intertidal sediment | D75: ='G-2 Habitat groups'!BB66 -> 0 | E75: ='G-2 Habitat groups'!BD66 -> 0 | F75: ='G-2 Habitat groups'!BE66 -> 0 | G75: ='G-2 Habitat groups'!BF66 -> 
B76: ='G-2 Habitat groups'!AU67 -> Intertidal sediment - Littoral mixed sediments | C76: ='G-2 Habitat groups'!AV67 -> Intertidal sediment | D76: ='G-2 Habitat groups'!BB67 -> 0 | E76: ='G-2 Habitat groups'!BD67 -> 0 | F76: ='G-2 Habitat groups'!BE67 -> 0 | G76: ='G-2 Habitat groups'!BF67 -> 
B77: ='G-2 Habitat groups'!AU68 -> Coastal saltmarsh - Saltmarshes and saline reedbeds | C77: ='G-2 Habitat groups'!AV68 -> Coastal saltmarsh | D77: ='G-2 Habitat groups'!BB68 -> 0 | E77: ='G-2 Habitat groups'!BD68 -> 0 | F77: ='G-2 Habitat groups'!BE68 -> 0 | G77: ='G-2 Habitat groups'!BF68 -> 
B78: ='G-2 Habitat groups'!AU69 -> Intertidal sediment - Littoral biogenic reefs - Mussels | C78: ='G-2 Habitat groups'!AV69 -> Intertidal sediment | D78: ='G-2 Habitat groups'!BB69 -> 0 | E78: ='G-2 Habitat groups'!BD69 -> 0 | F78: ='G-2 Habitat groups'!BE69 -> 0 | G78: ='G-2 Habitat groups'!BF69 -> 
B79: ='G-2 Habitat groups'!AU70 -> Intertidal sediment - Littoral biogenic reefs - Sabellaria | C79: ='G-2 Habitat groups'!AV70 -> Intertidal sediment | D79: ='G-2 Habitat groups'!BB70 -> 0 | E79: ='G-2 Habitat groups'!BD70 -> 0 | F79: ='G-2 Habitat groups'!BE70 -> 0 | G79: ='G-2 Habitat groups'!BF70 -> 
B80: ='G-2 Habitat groups'!AU71 -> Intertidal sediment - Features of littoral sediment | C80: ='G-2 Habitat groups'!AV71 -> Intertidal sediment | D80: ='G-2 Habitat groups'!BB71 -> 0 | E80: ='G-2 Habitat groups'!BD71 -> 0 | F80: ='G-2 Habitat groups'!BE71 -> 0 | G80: ='G-2 Habitat groups'!BF71 -> 
B81: ='G-2 Habitat groups'!AU72 -> Intertidal sediment - Littoral muddy sand | C81: ='G-2 Habitat groups'!AV72 -> Intertidal sediment | D81: ='G-2 Habitat groups'!BB72 -> 0 | E81: ='G-2 Habitat groups'!BD72 -> 0 | F81: ='G-2 Habitat groups'!BE72 -> 0 | G81: ='G-2 Habitat groups'!BF72 -> 
B82: Intertidal sediment - Littoral seagrass | C82: ='G-2 Habitat groups'!AV73 -> Intertidal sediment | D82: ='G-2 Habitat groups'!BB73 -> 0 | E82: ='G-2 Habitat groups'!BD73 -> 0 | F82: ='G-2 Habitat groups'!BE73 -> 0 | G82: ='G-2 Habitat groups'!BF73 -> 
D83: =SUM(D41:D82) -> 0 | E83: =SUM(E41:E82) -> 0 | F83: =SUM(F41:F82) -> 0 | G83: =SUM(G41:G82) -> 0
B87: Medium Distinctiveness | J87: Medium Distinctiveness Summary
B88: Habitat group | C88: Group | D88: On-site unit change | E88: Off-site unit change | F88: Project wide unit change | G88: Cumulative broad habitat change | J88: Medium Distinctiveness Units available to offset Lower Distinctiveness Deficit | K88: =SUMIF(G89:G115,">0") -> 0.05829592026 | L88: =IF(K88=0,"",IF(K88<0,"⚠","✓")) -> ✓
B89: ='G-2 Habitat groups'!AU79 -> Cropland - Arable field margins cultivated annually | C89: ='G-2 Habitat groups'!AV79 -> Cropland | D89: ='G-2 Habitat groups'!BB79 -> 0 | E89: ='G-2 Habitat groups'!BD79 -> 0 | F89: ='G-2 Habitat groups'!BE79 -> 0 | G89: =SUM(F89:F92) -> 0 | H89: =IF(G89=0,"",IF(G89<0,"⚠","✓")) ->  | J89: Medium Distinctiveness Broad Habitat losses to be offset by trading up | K89: =SUMIF(G89:G115,"<0") -> -0.2722786751 | L89: =IF(K89=0,"",IF(K89<0,"⚠","✓")) -> ⚠
B90: ='G-2 Habitat groups'!AU81 -> Cropland - Arable field margins game bird mix | C90: ='G-2 Habitat groups'!AV81 -> Cropland | D90: ='G-2 Habitat groups'!BB81 -> 0 | E90: ='G-2 Habitat groups'!BD81 -> 0 | F90: ='G-2 Habitat groups'!BE81 -> 0 | J90: Higher Distinctiveness Surplus Units minus Medium Distinctiveness Broad Habitat Deficit | K90: =K40+K12+K89 -> -0.2722786751 | L90: =IF(K90=0,"",IF(K90<0,"⚠","✓")) -> ⚠
B91: ='G-2 Habitat groups'!AU82 -> Cropland - Arable field margins pollen and nectar | C91: ='G-2 Habitat groups'!AV82 -> Cropland | D91: ='G-2 Habitat groups'!BB82 -> 0 | E91: ='G-2 Habitat groups'!BD82 -> 0 | F91: ='G-2 Habitat groups'!BE82 -> 0 | J91: Cumulative surplus of units | K91: =K90+K88 -> -0.2139827548 | L91: ⚠
B92: ='G-2 Habitat groups'!AU83 -> Cropland - Arable field margins tussocky | C92: ='G-2 Habitat groups'!AV83 -> Cropland | D92: ='G-2 Habitat groups'!BB83 -> 0 | E92: ='G-2 Habitat groups'!BD83 -> 0 | F92: ='G-2 Habitat groups'!BE83 -> 0
B93: ='G-2 Habitat groups'!AU84 -> Grassland - Other lowland acid grassland | C93: ='G-2 Habitat groups'!AV84 -> Grassland | D93: ='G-2 Habitat groups'!BB84 -> 0 | E93: ='G-2 Habitat groups'!BD84 -> 0 | F93: ='G-2 Habitat groups'!BE84 -> 0 | G93: =SUM(F93:F95) -> 0.05829592026 | H93: =IF(G93=0,"",IF(G93<0,"⚠","✓")) -> ✓
B94: ='G-2 Habitat groups'!AU85 -> Grassland - Other neutral grassland | C94: ='G-2 Habitat groups'!AV85 -> Grassland | D94: ='G-2 Habitat groups'!BB85 -> 0.05829592026 | E94: ='G-2 Habitat groups'!BD85 -> 0 | F94: ='G-2 Habitat groups'!BE85 -> 0.05829592026
B95: ='G-2 Habitat groups'!AU86 -> Grassland - Upland acid grassland | C95: ='G-2 Habitat groups'!AV86 -> Grassland | D95: ='G-2 Habitat groups'!BB86 -> 0 | E95: ='G-2 Habitat groups'!BD86 -> 0 | F95: ='G-2 Habitat groups'!BE86 -> 0
B96: ='G-2 Habitat groups'!AU87 -> Heathland and shrub - Blackthorn scrub | C96: ='G-2 Habitat groups'!AV87 -> Heathland and shrub | D96: ='G-2 Habitat groups'!BB87 -> 0 | E96: ='G-2 Habitat groups'!BD87 -> 0 | F96: ='G-2 Habitat groups'!BE87 -> 0 | G96: =SUM(F96:F102) -> 0 | H96: =IF(G96=0,"",IF(G96<0,"⚠","✓")) -> 
B97: ='G-2 Habitat groups'!AU88 -> Heathland and shrub - Bramble scrub | C97: ='G-2 Habitat groups'!AV88 -> Heathland and shrub | D97: ='G-2 Habitat groups'!BB88 -> 0 | E97: ='G-2 Habitat groups'!BD88 -> 0 | F97: ='G-2 Habitat groups'!BE88 -> 0
B98: ='G-2 Habitat groups'!AU89 -> Heathland and shrub - Gorse scrub | C98: ='G-2 Habitat groups'!AV89 -> Heathland and shrub | D98: ='G-2 Habitat groups'!BB89 -> 0 | E98: ='G-2 Habitat groups'!BD89 -> 0 | F98: ='G-2 Habitat groups'!BE89 -> 0
B99: ='G-2 Habitat groups'!AU90 -> Heathland and shrub - Hawthorn scrub | C99: ='G-2 Habitat groups'!AV104 -> Heathland and shrub | D99: ='G-2 Habitat groups'!BB90 -> 0 | E99: ='G-2 Habitat groups'!BD90 -> 0 | F99: ='G-2 Habitat groups'!BE90 -> 0
B100: ='G-2 Habitat groups'!AU104 -> Heathland and shrub - Willow scrub | C100: ='G-2 Habitat groups'!AV91 -> Heathland and shrub | D100: ='G-2 Habitat groups'!BB104 -> 0 | E100: ='G-2 Habitat groups'!BD104 -> 0 | F100: ='G-2 Habitat groups'!BE104 -> 0
B101: ='G-2 Habitat groups'!AU91 -> Heathland and shrub - Hazel scrub | C101: ='G-2 Habitat groups'!AV91 -> Heathland and shrub | D101: ='G-2 Habitat groups'!BB91 -> 0 | E101: ='G-2 Habitat groups'!BD91 -> 0 | F101: ='G-2 Habitat groups'!BE91 -> 0
B102: ='G-2 Habitat groups'!AU92 -> Heathland and shrub - Mixed scrub | C102: ='G-2 Habitat groups'!AV92 -> Heathland and shrub | D102: ='G-2 Habitat groups'!BB92 -> 0 | E102: ='G-2 Habitat groups'!BD92 -> 0 | F102: ='G-2 Habitat groups'!BE92 -> 0
B103: ='G-2 Habitat groups'!AU93 -> Lakes - Ponds (non-priority habitat) | C103: ='G-2 Habitat groups'!AV93 -> Lakes | D103: ='G-2 Habitat groups'!BB93 -> 0 | E103: ='G-2 Habitat groups'!BD93 -> 0 | F103: ='G-2 Habitat groups'!BE93 -> 0 | G103: =SUM(F103:F104) -> 0 | H103: =IF(G103=0,"",IF(G103<0,"⚠","✓")) -> 
B104: ='G-2 Habitat groups'!AU94 -> Lakes - Reservoirs | C104: ='G-2 Habitat groups'!AV94 -> Lakes | D104: ='G-2 Habitat groups'!BB94 -> 0 | E104: ='G-2 Habitat groups'!BD94 -> 0 | F104: ='G-2 Habitat groups'!BE94 -> 0
B105: ='G-2 Habitat groups'!AU95 -> Sparsely vegetated land - Other inland rock and scree | C105: ='G-2 Habitat groups'!AV95 -> Sparsely vegetated land | D105: ='G-2 Habitat groups'!BB95 -> 0 | E105: ='G-2 Habitat groups'!BD95 -> 0 | F105: ='G-2 Habitat groups'!BE95 -> 0 | G105: =F105 -> 0 | H105: =IF(G105=0,"",IF(G105<0,"⚠","✓")) -> 
B106: ='G-2 Habitat groups'!AU96 -> Urban - Cemeteries and churchyards | C106: ='G-2 Habitat groups'!AV96 -> Urban | D106: ='G-2 Habitat groups'!BB96 -> 0 | E106: ='G-2 Habitat groups'!BD96 -> 0 | F106: ='G-2 Habitat groups'!BE96 -> 0 | G106: =SUM(F106:F107) -> 0 | H106: =IF(G106=0,"",IF(G106<0,"⚠","✓")) -> 
B107: ='G-2 Habitat groups'!AU97 -> Urban - Biodiverse green roof | C107: ='G-2 Habitat groups'!AV97 -> Urban | D107: ='G-2 Habitat groups'!BB97 -> 0 | E107: ='G-2 Habitat groups'!BD97 -> 0 | F107: ='G-2 Habitat groups'!BE97 -> 0
B108: ='G-2 Habitat groups'!AU105 -> Individual trees - Urban tree | C108: ='G-2 Habitat groups'!AV105 -> Individual trees | D108: ='G-2 Habitat groups'!BB105 -> -0.2722786751 | E108: ='G-2 Habitat groups'!BD105 -> 0 | F108: ='G-2 Habitat groups'!BE105 -> -0.2722786751 | G108: =SUM(F108:F109) -> -0.2722786751 | H108: =IF(G108=0,"",IF(G108<0,"⚠","✓")) -> ⚠
B109: ='G-2 Habitat groups'!AU80 -> Individual trees - Rural tree | C109: ='G-2 Habitat groups'!AV80 -> Individual trees | D109: ='G-2 Habitat groups'!BB80 -> 0 | E109: ='G-2 Habitat groups'!BD80 -> 0 | F109: ='G-2 Habitat groups'!BE80 -> 0
B110: ='G-2 Habitat groups'!AU98 -> Woodland and forest - Other Scot's pine woodland | C110: ='G-2 Habitat groups'!AV98 -> Woodland and forest | D110: ='G-2 Habitat groups'!BB98 -> 0 | E110: ='G-2 Habitat groups'!BD98 -> 0 | F110: ='G-2 Habitat groups'!BE98 -> 0 | G110: =SUM(F110:F112) -> 0 | H110: =IF(G110=0,"",IF(G110<0,"⚠","✓")) -> 
B111: ='G-2 Habitat groups'!AU99 -> Woodland and forest - Other woodland; broadleaved | C111: ='G-2 Habitat groups'!AV99 -> Woodland and forest | D111: ='G-2 Habitat groups'!BB99 -> 0 | E111: ='G-2 Habitat groups'!BD99 -> 0 | F111: ='G-2 Habitat groups'!BE99 -> 0
B112: ='G-2 Habitat groups'!AU100 -> Woodland and forest - Other woodland; mixed | C112: ='G-2 Habitat groups'!AV100 -> Woodland and forest | D112: ='G-2 Habitat groups'!BB100 -> 0 | E112: ='G-2 Habitat groups'!BD100 -> 0 | F112: ='G-2 Habitat groups'!BE100 -> 0
B113: ='G-2 Habitat groups'!AU101 -> Intertidal sediment - Littoral coarse sediment | C113: ='G-2 Habitat groups'!AV101 -> Intertidal sediment | D113: ='G-2 Habitat groups'!BB101 -> 0 | E113: ='G-2 Habitat groups'!BD101 -> 0 | F113: ='G-2 Habitat groups'!BE101 -> 0 | G113: =SUM(F113:F115) -> 0 | H113: =IF(G113=0,"",IF(G113<0,"⚠","✓")) -> 
B114: ='G-2 Habitat groups'!AU102 -> Intertidal sediment - Littoral sand | C114: ='G-2 Habitat groups'!AV102 -> Intertidal sediment | D114: ='G-2 Habitat groups'!BB102 -> 0 | E114: ='G-2 Habitat groups'!BD102 -> 0 | F114: ='G-2 Habitat groups'!BE102 -> 0
B115: ='G-2 Habitat groups'!AU103 -> Intertidal hard structures - Artificial hard structures with integrated greening of grey infrastructure (IGGI) | C115: ='G-2 Habitat groups'!AV103 -> Intertidal hard structures | D115: ='G-2 Habitat groups'!BB103 -> 0 | E115: ='G-2 Habitat groups'!BD103 -> 0 | F115: ='G-2 Habitat groups'!BE103 -> 0
D116: =SUM(D89:D115) -> -0.2139827548 | E116: =SUM(E89:E115) -> 0 | F116: =SUM(F89:F115) -> -0.2139827548
B123: Low Distinctiveness | J123: Low Distinctiveness Summary
B124: Habitat group | C124: Group | D124: On-site unit change | E124: Off-site unit change | F124: Project wide unit change | J124: Low Distinctiveness net change in units | K124: =F163 -> -0.038536 | L124: =IF(K124=0,"",IF(K124<0,"⚠","✓")) -> ⚠
B125: ='G-2 Habitat groups'!AU113 -> Cropland - Cereal crops | C125: ='G-2 Habitat groups'!AV113 -> Cropland | D125: ='G-2 Habitat groups'!BB113 -> 0 | E125: ='G-2 Habitat groups'!BD113 -> 0 | F125: ='G-2 Habitat groups'!BE113 -> 0 | H125: =IF(F125=0,"",IF(F125<0,"⚠","✓")) ->  | J125: Cumulative surplus of units | K125: =IF(K91>0,K124+K91,K124) -> -0.038536 | L125: =IF(K125=0,"",IF(K125<0,"▲","✓")) -> ▲
B126: ='G-2 Habitat groups'!AU114 -> Cropland - Horticulture | C126: ='G-2 Habitat groups'!AV114 -> Cropland | D126: ='G-2 Habitat groups'!BB114 -> 0 | E126: ='G-2 Habitat groups'!BD114 -> 0 | F126: ='G-2 Habitat groups'!BE114 -> 0 | H126: =IF(F126=0,"",IF(F126<0,"⚠","✓")) -> 
B127: ='G-2 Habitat groups'!AU115 -> Cropland - Intensive orchards | C127: ='G-2 Habitat groups'!AV115 -> Cropland | D127: ='G-2 Habitat groups'!BB115 -> 0 | E127: ='G-2 Habitat groups'!BD115 -> 0 | F127: ='G-2 Habitat groups'!BE115 -> 0
B128: ='G-2 Habitat groups'!AU116 -> Cropland - Non-cereal crops | C128: ='G-2 Habitat groups'!AV116 -> Cropland | D128: ='G-2 Habitat groups'!BB116 -> 0 | E128: ='G-2 Habitat groups'!BD116 -> 0 | F128: ='G-2 Habitat groups'!BE116 -> 0
B129: ='G-2 Habitat groups'!AU117 -> Cropland - Temporary grass and clover leys | C129: ='G-2 Habitat groups'!AV117 -> Cropland | D129: ='G-2 Habitat groups'!BB117 -> 0 | E129: ='G-2 Habitat groups'!BD117 -> 0 | F129: ='G-2 Habitat groups'!BE117 -> 0
B130: ='G-2 Habitat groups'!AU118 -> Cropland - Winter stubble | C130: ='G-2 Habitat groups'!AV118 -> Cropland | D130: ='G-2 Habitat groups'!BB118 -> 0 | E130: ='G-2 Habitat groups'!BD118 -> 0 | F130: ='G-2 Habitat groups'!BE118 -> 0
B131: ='G-2 Habitat groups'!AU119 -> Grassland - Modified grassland | C131: ='G-2 Habitat groups'!AV119 -> Grassland | D131: ='G-2 Habitat groups'!BB119 -> 0.00316 | E131: ='G-2 Habitat groups'!BD119 -> 0 | F131: ='G-2 Habitat groups'!BE119 -> 0.00316 | H131: ✓
B132: ='G-2 Habitat groups'!AU120 -> Grassland - Bracken | C132: ='G-2 Habitat groups'!AV120 -> Grassland | D132: ='G-2 Habitat groups'!BB120 -> 0 | E132: ='G-2 Habitat groups'!BD120 -> 0 | F132: ='G-2 Habitat groups'!BE120 -> 0
B133: ='G-2 Habitat groups'!AU121 -> Heathland and shrub - Rhododendron scrub | C133: ='G-2 Habitat groups'!AV121 -> Heathland and shrub | D133: ='G-2 Habitat groups'!BB121 -> 0 | E133: ='G-2 Habitat groups'!BD121 -> 0 | F133: ='G-2 Habitat groups'!BE121 -> 0
B134: ='G-2 Habitat groups'!AU122 -> Lakes - Ornamental lake or pond | C134: ='G-2 Habitat groups'!AV122 -> Lakes | D134: ='G-2 Habitat groups'!BB122 -> 0 | E134: ='G-2 Habitat groups'!BD122 -> 0 | F134: ='G-2 Habitat groups'!BE122 -> 0
B135: ='G-2 Habitat groups'!AU123 -> Sparsely vegetated land - Ruderal/ephemeral | C135: ='G-2 Habitat groups'!AV123 -> Sparsely vegetated land | D135: ='G-2 Habitat groups'!BB123 -> 0 | E135: ='G-2 Habitat groups'!BD123 -> 0 | F135: ='G-2 Habitat groups'!BE123 -> 0
B136: ='G-2 Habitat groups'!AU151 -> Sparsely vegetated land - Tall forbs | C136: ='G-2 Habitat groups'!AV151 -> Sparsely vegetated land | D136: ='G-2 Habitat groups'!BB151 -> 0 | E136: ='G-2 Habitat groups'!BD151 -> 0 | F136: ='G-2 Habitat groups'!BE151 -> 0
B137: ='G-2 Habitat groups'!AU124 -> Urban - Bioswale | C137: ='G-2 Habitat groups'!AV124 -> Urban | D137: ='G-2 Habitat groups'!BB124 -> 0 | E137: ='G-2 Habitat groups'!BD124 -> 0 | F137: ='G-2 Habitat groups'!BE124 -> 0
B138: ='G-2 Habitat groups'!AU134 -> Urban - Bare ground | C138: ='G-2 Habitat groups'!AV134 -> Urban | D138: ='G-2 Habitat groups'!BB134 -> 0 | E138: ='G-2 Habitat groups'!BD134 -> 0 | F138: ='G-2 Habitat groups'!BE134 -> 0
B139: ='G-2 Habitat groups'!AU125 -> Urban - Allotments | C139: ='G-2 Habitat groups'!AV125 -> Urban | D139: ='G-2 Habitat groups'!BB125 -> 0 | E139: ='G-2 Habitat groups'!BD125 -> 0 | F139: ='G-2 Habitat groups'!BE125 -> 0
B140: ='G-2 Habitat groups'!AU126 -> Urban - Facade-bound green wall | C140: ='G-2 Habitat groups'!AV126 -> Urban | D140: ='G-2 Habitat groups'!BB126 -> 0 | E140: ='G-2 Habitat groups'!BD126 -> 0 | F140: ='G-2 Habitat groups'!BE126 -> 0
B141: ='G-2 Habitat groups'!AU127 -> Urban - Ground based green wall | C141: ='G-2 Habitat groups'!AV127 -> Urban | D141: ='G-2 Habitat groups'!BB127 -> 0 | E141: ='G-2 Habitat groups'!BD127 -> 0 | F141: ='G-2 Habitat groups'!BE127 -> 0
B142: ='G-2 Habitat groups'!AU128 -> Urban - Ground level planters | C142: ='G-2 Habitat groups'!AV128 -> Urban | D142: ='G-2 Habitat groups'!BB128 -> 0 | E142: ='G-2 Habitat groups'!BD128 -> 0 | F142: ='G-2 Habitat groups'!BE128 -> 0
B143: ='G-2 Habitat groups'!AU129 -> Urban - Other green roof | C143: ='G-2 Habitat groups'!AV129 -> Urban | D143: ='G-2 Habitat groups'!BB129 -> 0 | E143: ='G-2 Habitat groups'!BD129 -> 0 | F143: ='G-2 Habitat groups'!BE129 -> 0
B144: ='G-2 Habitat groups'!AU150 -> Urban - Intensive green roof | C144: ='G-2 Habitat groups'!AV150 -> Urban | D144: ='G-2 Habitat groups'!BB150 -> 0 | E144: ='G-2 Habitat groups'!BD150 -> 0 | F144: ='G-2 Habitat groups'!BE150 -> 0
B145: ='G-2 Habitat groups'!AU130 -> Urban - Introduced shrub | C145: ='G-2 Habitat groups'!AV130 -> Urban | D145: ='G-2 Habitat groups'!BB130 -> 0 | E145: ='G-2 Habitat groups'!BD130 -> 0 | F145: ='G-2 Habitat groups'!BE130 -> 0
B146: ='G-2 Habitat groups'!AU131 -> Urban - Rain garden | C146: ='G-2 Habitat groups'!AV131 -> Urban | D146: ='G-2 Habitat groups'!BB131 -> 0 | E146: ='G-2 Habitat groups'!BD131 -> 0 | F146: ='G-2 Habitat groups'!BE131 -> 0
B147: ='G-2 Habitat groups'!AU132 -> Urban - Actively worked sand pit quarry or open cast mine | C147: ='G-2 Habitat groups'!AV132 -> Urban | D147: ='G-2 Habitat groups'!BB132 -> 0 | E147: ='G-2 Habitat groups'!BD132 -> 0 | F147: ='G-2 Habitat groups'!BE132 -> 0
B148: ='G-2 Habitat groups'!AU135 -> Urban - Sustainable drainage system | C148: ='G-2 Habitat groups'!AV135 -> Urban | D148: ='G-2 Habitat groups'!BB135 -> 0 | E148: ='G-2 Habitat groups'!BD135 -> 0 | F148: ='G-2 Habitat groups'!BE135 -> 0
B149: ='G-2 Habitat groups'!AU136 -> Urban - Vacant or derelict land | C149: ='G-2 Habitat groups'!AV136 -> Urban | D149: ='G-2 Habitat groups'!BB136 -> 0 | E149: ='G-2 Habitat groups'!BD136 -> 0 | F149: ='G-2 Habitat groups'!BE136 -> 0
B150: ='G-2 Habitat groups'!AU137 -> Urban - Vegetated garden | C150: ='G-2 Habitat groups'!AV137 -> Urban | D150: ='G-2 Habitat groups'!BB137 -> -0.041696 | E150: ='G-2 Habitat groups'!BD137 -> 0 | F150: ='G-2 Habitat groups'!BE137 -> -0.041696 | H150: ⚠
B151: ='G-2 Habitat groups'!AU138 -> Woodland and forest - Other coniferous woodland | C151: ='G-2 Habitat groups'!AV138 -> Woodland and forest | D151: ='G-2 Habitat groups'!BB138 -> 0 | E151: ='G-2 Habitat groups'!BD138 -> 0 | F151: ='G-2 Habitat groups'!BE138 -> 0
B152: ='G-2 Habitat groups'!AU139 -> Coastal saltmarsh - Artificial saltmarshes and saline reedbeds | C152: ='G-2 Habitat groups'!AV139 -> Coastal saltmarsh | D152: ='G-2 Habitat groups'!BB139 -> 0 | E152: ='G-2 Habitat groups'!BD139 -> 0 | F152: ='G-2 Habitat groups'!BE139 -> 0
B153: ='G-2 Habitat groups'!AU140 -> Intertidal sediment - Artificial littoral coarse sediment | C153: ='G-2 Habitat groups'!AV140 -> Intertidal sediment | D153: ='G-2 Habitat groups'!BB140 -> 0 | E153: ='G-2 Habitat groups'!BD140 -> 0 | F153: ='G-2 Habitat groups'!BE140 -> 0
B154: ='G-2 Habitat groups'!AU141 -> Intertidal sediment - Artificial littoral mud | C154: ='G-2 Habitat groups'!AV141 -> Intertidal sediment | D154: ='G-2 Habitat groups'!BB141 -> 0 | E154: ='G-2 Habitat groups'!BD141 -> 0 | F154: ='G-2 Habitat groups'!BE141 -> 0
B155: ='G-2 Habitat groups'!AU142 -> Intertidal sediment - Artificial littoral sand | C155: ='G-2 Habitat groups'!AV142 -> Intertidal sediment | D155: ='G-2 Habitat groups'!BB142 -> 0 | E155: ='G-2 Habitat groups'!BD142 -> 0 | F155: ='G-2 Habitat groups'!BE142 -> 0
B156: ='G-2 Habitat groups'!AU143 -> Intertidal sediment - Artificial littoral muddy sand | C156: ='G-2 Habitat groups'!AV143 -> Intertidal sediment | D156: ='G-2 Habitat groups'!BB143 -> 0 | E156: ='G-2 Habitat groups'!BD143 -> 0 | F156: ='G-2 Habitat groups'!BE143 -> 0
B157: ='G-2 Habitat groups'!AU144 -> Intertidal sediment - Artificial littoral mixed sediments | C157: ='G-2 Habitat groups'!AV144 -> Intertidal sediment | D157: ='G-2 Habitat groups'!BB144 -> 0 | E157: ='G-2 Habitat groups'!BD144 -> 0 | F157: ='G-2 Habitat groups'!BE144 -> 0
B158: ='G-2 Habitat groups'!AU145 -> Intertidal sediment - Artificial littoral seagrass | C158: ='G-2 Habitat groups'!AV145 -> Intertidal sediment | D158: ='G-2 Habitat groups'!BB145 -> 0 | E158: ='G-2 Habitat groups'!BD145 -> 0 | F158: ='G-2 Habitat groups'!BE145 -> 0
B159: ='G-2 Habitat groups'!AU146 -> Intertidal sediment - Artificial littoral biogenic reefs | C159: ='G-2 Habitat groups'!AV146 -> Intertidal sediment | D159: ='G-2 Habitat groups'!BB146 -> 0 | E159: ='G-2 Habitat groups'!BD146 -> 0 | F159: ='G-2 Habitat groups'!BE146 -> 0
B160: ='G-2 Habitat groups'!AU147 -> Intertidal hard structures - Artificial hard structures | C160: ='G-2 Habitat groups'!AV147 -> Intertidal hard structures | D160: ='G-2 Habitat groups'!BB147 -> 0 | E160: ='G-2 Habitat groups'!BD147 -> 0 | F160: ='G-2 Habitat groups'!BE147 -> 0
B161: ='G-2 Habitat groups'!AU148 -> Intertidal hard structures - Artificial features of hard structures | C161: ='G-2 Habitat groups'!AV148 -> Intertidal hard structures | D161: ='G-2 Habitat groups'!BB148 -> 0 | E161: ='G-2 Habitat groups'!BD148 -> 0 | F161: ='G-2 Habitat groups'!BE148 -> 0
B162: ='G-2 Habitat groups'!AU149 -> Heathland and shrub - Other sea buckthorn scrub | C162: ='G-2 Habitat groups'!AV149 -> Heathland and shrub | D162: ='G-2 Habitat groups'!BB149 -> 0 | E162: ='G-2 Habitat groups'!BD149 -> 0 | F162: ='G-2 Habitat groups'!BE149 -> 0 | H162: =IF(F162=0,"",IF(F162<0,"⚠","✓")) -> 
D163: =SUM(D125:D162) -> -0.038536 | E163: =SUM(E125:E162) -> 0 | F163: =SUM(F125:F162) -> -0.038536

Sheet Trading Summary Hedgerows (hidden)
B2: Trading Summary
B3: Distinctiveness Group | C3: Trading Rule | F3: Trading Satisfied?
B5: Very High | C5: Same habitat required = | F5: =IFERROR(IF(I14<0,"No ▲","Yes ✓"),"") -> Yes ✓
B6: High | C6: Like for like or better | F6: =IF(I22+I13<0, "No ▲","Yes ✓") -> Yes ✓
B7: Medium | C7: Same distinctiveness or better habitat required | F7: =IF(I33<0, "No ▲","Yes ✓") -> Yes ✓
B8: Low | C8: Same distinctiveness or better habitat required | F8: =IF(I44<0,"No ▲","Yes ✓") -> Yes ✓
B9: Very Low | C9: Same distinctiveness or better habitat required | F9: =IF(I54<0,"No ▲","Yes ✓") -> Yes ✓
B12: Very High Distinctiveness | H12: Very High Distinctiveness Summary
B13: Habitat group | C13: On-site unit change | D13: Off-site unit change | E13: Project-wide unit change | H13: Very High Distinctiveness Units available to offset lower distinctiveness deficit | I13: =SUMIF($E$14:$E$14,">0") -> 0 | J13: =IF(I13=0,"",IF(I13<0,"⚠","✓")) -> 
B14: ='G-2 Habitat groups'!A150 -> Species-rich native hedgerow with trees - associated with bank or ditch | C14: ='G-2 Habitat groups'!R150 -> 0 | D14: ='G-2 Habitat groups'!AD150 -> 0 | E14: ='G-2 Habitat groups'!AF150 -> 0 | F14: =IF(E14=0,"",IF(E14<0,"▲","✓")) ->  | H14: Remaining losses; Like for like not satisfied | I14: =SUMIF(E14, "<0", E14) -> 0 | J14: =IF(I14=0,"",IF(I14<0,"▲","✓")) -> 
C15: =SUM(C14:C14) -> 0 | D15: =SUM(D14:D14) -> 0 | E15: =SUM(E14:E14) -> 0
B20: High Distinctiveness | H20: High Distinctiveness Summary
B21: Habitat group | C21: On-site unit change | D21: Off-site unit change | E21: Project wide unit change | H21: High Distinctiveness Units available to offset lower distinctiveness deficit | I21: =SUMIF(E22:E24,">0") -> 0 | J21: =IF(I21=0,"",IF(I21<0,"⚠","✓")) -> 
B22: ='G-2 Habitat groups'!A151 -> Species-rich native hedgerow with trees | C22: ='G-2 Habitat groups'!R151 -> 0 | D22: ='G-2 Habitat groups'!AD151 -> 0 | E22: ='G-2 Habitat groups'!AF151 -> 0 | F22: =IF(E22=0,"",IF(E22<0,"⚠","✓")) ->  | H22: High Distinctiveness losses to be offset by trading up | I22: =SUMIF(E22:E24, "<0") -> 0 | J22: =IF(I22=0,"",IF(I22<0,"⚠","✓")) -> 
B23: ='G-2 Habitat groups'!A152 -> Species-rich native hedgerow - associated with bank or ditch | C23: ='G-2 Habitat groups'!R152 -> 0 | D23: ='G-2 Habitat groups'!AD152 -> 0 | E23: ='G-2 Habitat groups'!AF152 -> 0 | F23: =IF(E23=0,"",IF(E23<0,"⚠","✓")) ->  | H23: Higher Distinctiveness surplus units minus any high distinctiveness deficit | I23: =I13+I22 -> 0 | J23: =IF(I23=0,"",IF(I23<0,"⚠","✓")) -> 
B24: ='G-2 Habitat groups'!A153 -> Native hedgerow with trees - associated with bank or ditch | C24: ='G-2 Habitat groups'!R153 -> 0 | D24: ='G-2 Habitat groups'!AD153 -> 0 | E24: ='G-2 Habitat groups'!AF153 -> 0 | F24: =IF(E24=0,"",IF(E24<0,"⚠","✓")) -> 
C26: =SUM(C22:C24) -> 0 | D26: =SUM(D22:D24) -> 0 | E26: =SUM(E22:E24) -> 0
B30: Medium Distinctiveness | H30: Medium Distinctiveness Summary
B31: Habitat group | C31: On-site unit change | D31: Off-site unit change | E31: Project wide unit change | H31: Units available from higher distinctiveness habitats | I31: =IF(I23>0, I23, 0)+I21 -> 0 | J31: =IF(I31=0,"",IF(I31<0,"⚠","✓")) -> 
B32: ='G-2 Habitat groups'!A154 -> Species-rich native hedgerow | C32: ='G-2 Habitat groups'!R154 -> 0 | D32: ='G-2 Habitat groups'!AD154 -> 0 | E32: ='G-2 Habitat groups'!AF154 -> 0 | F32: =IF(E32=0,"",IF(E32<0,"⚠","✓")) ->  | H32: Medium Distinctiveness net change in units | I32: =E38 -> 0 | J32: =IF(I32=0,"",IF(I32<0,"⚠","✓")) -> 
B33: ='G-2 Habitat groups'!A155 -> Native hedgerow - associated with bank or ditch | C33: ='G-2 Habitat groups'!R155 -> 0 | D33: ='G-2 Habitat groups'!AD155 -> 0 | E33: ='G-2 Habitat groups'!AF155 -> 0 | F33: =IF(E33=0,"",IF(E33<0,"⚠","✓")) ->  | H33: Cumulative availability of units | I33: =I32+I31 -> 0 | J33: =IF(I33=0,"",IF(I33<0,"⚠","✓")) -> 
B34: ='G-2 Habitat groups'!A156 -> Native hedgerow with trees | C34: ='G-2 Habitat groups'!R156 -> 0 | D34: ='G-2 Habitat groups'!AD156 -> 0 | E34: ='G-2 Habitat groups'!AF156 -> 0
B35: ='G-2 Habitat groups'!A157 -> Ecologically valuable line of trees | C35: ='G-2 Habitat groups'!R157 -> 0 | D35: ='G-2 Habitat groups'!AD157 -> 0 | E35: ='G-2 Habitat groups'!AF157 -> 0
B36: ='G-2 Habitat groups'!A158 -> Ecologically valuable line of trees - associated with bank or ditch | C36: ='G-2 Habitat groups'!R158 -> 0 | D36: ='G-2 Habitat groups'!AD158 -> 0 | E36: ='G-2 Habitat groups'!AF158 -> 0 | F36: =IF(E36=0,"",IF(E36<0,"⚠","✓")) -> 
C38: =SUM(C32:C36) -> 0 | D38: =SUM(D32:D36) -> 0 | E38: =SUM(E32:E36) -> 0
B42: Low Distinctiveness | H42: Low Distinctiveness Summary
B43: Habitat group | C43: On-site unit change | D43: Off-site unit change | E43: Project wide unit change | H43: Low Distinctiveness net change in units | I43: =E47 -> 0 | J43: =IF(I43=0,"",IF(I43<0,"⚠","✓")) -> 
B44: ='G-2 Habitat groups'!A159 -> Native hedgerow | C44: ='G-2 Habitat groups'!R159 -> 0 | D44: ='G-2 Habitat groups'!AD159 -> 0 | E44: ='G-2 Habitat groups'!AF159 -> 0 | F44: =IF(E44=0,"",IF(E44<0,"⚠","✓")) ->  | H44: Cumulative availability of units | I44: =IF(I33>0,I43+I33,I43) -> 0 | J44: =IF(I44=0,"",IF(I44<0,"⚠","✓")) -> 
B45: ='G-2 Habitat groups'!A160 -> Line of trees | C45: ='G-2 Habitat groups'!R160 -> 0 | D45: ='G-2 Habitat groups'!AD160 -> 0 | E45: ='G-2 Habitat groups'!AF160 -> 0 | F45: =IF(E45=0,"",IF(E45<0,"⚠","✓")) -> 
B46: ='G-2 Habitat groups'!A161 -> Line of trees - associated with bank or ditch | C46: ='G-2 Habitat groups'!R161 -> 0 | D46: ='G-2 Habitat groups'!AD161 -> 0 | E46: ='G-2 Habitat groups'!AF161 -> 0
C47: =SUM(C44:C46) -> 0 | D47: =SUM(D44:D46) -> 0 | E47: =SUM(E44:E46) -> 0
B52: Very Low Distinctiveness | H52: Very Low Distinctiveness Summary
B53: Habitat group | C53: On-site unit change | D53: Off-site unit change | E53: Project wide unit change | H53: Very Low Distinctiveness net change in units | I53: =E55 -> 0 | J53: =IF(I53=0,"",IF(I53<0,"⚠","✓")) -> 
B54: Non-native and ornamental hedgerow | C54: ='G-2 Habitat groups'!R162 -> 0 | D54: ='G-2 Habitat groups'!AD162 -> 0 | E54: ='G-2 Habitat groups'!AF162 -> 0 | F54: =IF(E54=0,"",IF(E54<0,"⚠","✓")) ->  | H54: Cumulative availability of units | I54: =IF(I44>0,I53+I44,I53) -> 0 | J54: =IF(I54=0,"",IF(I54<0,"▲","✓")) -> 
C55: =SUM(C54) -> 0 | D55: =SUM(D54) -> 0 | E55: =SUM(E54) -> 0

Sheet Trading Summary WaterC's (hidden)
B2: Trading Summary
B3: Distinctiveness Group | C3: Trading Rule | G3: Trading Satisfied?
B5: Very High | C5: Same habitat required – bespoke compensation option ⚠ | G5: =IF(E14<0, "No ▲","Yes ✓") -> Yes ✓
B6: High | C6: Same habitat required = | G6: =IF(I22<0, "No ▲","Yes ✓") -> Yes ✓
B7: Medium | C7: Same habitat required = | G7: =IF(I30<0, "No ▲","Yes ✓") -> Yes ✓
B8: Low | C8: Better distinctiveness habitat required | G8: =IF(I42<0,"No ▲","Yes ✓") -> Yes ✓
B11: Very High Distinctiveness | H11: Very High Distinctiveness Summary
B12: Habitat group | C12: On-site unit change | D12: Off-site unit change | E12: Project-wide unit change | H12: Very High Distinctiveness Units available to offset lower distinctiveness deficit | I12: =SUMIF($E$13:$E$13,">0") -> 0 | J12: =IF(I12=0,"",IF(I12<0,"⚠","✓")) -> 
B13: ='G-2 Habitat groups'!A172 -> Priority habitat | C13: ='G-2 Habitat groups'!R172 -> 0 | D13: ='G-2 Habitat groups'!AD172 -> 0 | E13: ='G-2 Habitat groups'!AF172 -> 0 | F13: =IF(E13=0,"",IF(E13<0,"▲","✓")) ->  | H13: Remaining losses; Like for like not satisfied | I13: =IF(E14<0, E14, 0) -> 0 | J13: =IF(I13=0,"",IF(I13<0,"▲","✓")) -> 
C14: =SUM(C13:C13) -> 0 | D14: =SUM(D13:D13) -> 0 | E14: =SUM(E13:E13) -> 0
B20: High Distinctiveness | H20: High Distinctiveness Summary
B21: Habitat group | C21: On-site unit change | D21: Off-site unit change | E21: Project-wide unit change | H21: High Distinctiveness Units available to offset lower distinctiveness deficit | I21: =IF(E23>0, E23, 0) -> 0 | J21: =IF(I21=0,"",IF(I21<0,"⚠","✓")) -> 
B22: ='G-2 Habitat groups'!A173 -> Other rivers and streams | C22: ='G-2 Habitat groups'!R173 -> 0 | D22: ='G-2 Habitat groups'!AD173 -> 0 | E22: ='G-2 Habitat groups'!AF173 -> 0 | F22: =IF(E22=0,"",IF(E22<0,"▲","✓")) ->  | H22: Remaining losses; Like for like not satisfied | I22: =IF(E23<0, E23, 0) -> 0 | J22: =IF(I22=0,"",IF(I22<0,"▲","✓")) -> 
C23: =SUM(C22:C22) -> 0 | D23: =SUM(D22:D22) -> 0 | E23: =SUM(E22:E22) -> 0
B28: Medium Distinctiveness | H28: Medium Distinctiveness Summary
B29: Habitat group | C29: On-site unit change | D29: Off-site unit change | E29: Project wide unit change | H29: Medium Distinctiveness Units available to offset Lower Distinctiveness Deficit | I29: =SUMIF(E30:E31, ">0") -> 0 | J29: =IF(I29=0,"",IF(I29<0,"⚠","✓")) -> 
B30: ='G-2 Habitat groups'!A174 -> Ditches | C30: ='G-2 Habitat groups'!R174 -> 0 | D30: ='G-2 Habitat groups'!AD174 -> 0 | E30: ='G-2 Habitat groups'!AF174 -> 0 | F30: =IF(E30=0,"",IF(E30<0,"▲","✓")) ->  | H30: Remaining losses; Like for like not satisfied | I30: =SUMIF(E30:E31, "<0", E30:E31) -> 0 | J30: =IF(I30=0,"",IF(I30<0,"▲","✓")) -> 
B31: ='G-2 Habitat groups'!A175 -> Canals | C31: ='G-2 Habitat groups'!R175 -> 0 | D31: ='G-2 Habitat groups'!AD175 -> 0 | E31: ='G-2 Habitat groups'!AF175 -> 0 | F31: =IF(E31=0,"",IF(E31<0,"▲","✓")) -> 
C32: =SUM(C30:C31) -> 0 | D32: =SUM(D30:D31) -> 0 | E32: =SUM(E30:E31) -> 0
B40: Low Distinctiveness | H40: Low Distinctiveness Summary
B41: Habitat group | C41: On-site unit change | D41: Off-site unit change | E41: Project wide unit change | H41: Low Distinctiveness net change in units | I41: =E43 -> 0 | J41: =IF(I41=0,"",IF(I41<0,"⚠","✓")) -> 
B42: ='G-2 Habitat groups'!A176 -> Culvert | C42: ='G-2 Habitat groups'!R176 -> 0 | D42: ='G-2 Habitat groups'!AD176 -> 0 | E42: ='G-2 Habitat groups'!AF176 -> 0 | F42: =IF(E42=0,"",IF(E42<0,"⚠","✓")) ->  | H42: Cumulative availability of units | I42: =I41+(I29+I21+I12) -> 0 | J42: =IF(I42=0,"",IF(I42<0,"▲","✓")) -> 
C43: =SUM(C42:C42) -> 0 | D43: =D42 -> 0 | E43: =SUM(E42:E42) -> 0

Sheet Off-site gain site summary (hidden)
B3: Summary of sites providing area habitat unit gains | O3: Summary of sites providing hedgerow unit gains | AB3: Summary of sites providing watercourse unit gains
B5: Gain site reference | C5: Off-site units baseline | D5: SRM Off-site units baseline | E5: Off-site units retained | F5: SRM Off-site units retained | G5: Off-site units enhanced | H5: SRM Off-site units enhanced | I5: Off-site units created | J5: SRM Off-site units created | K5: Off-site unit change per gain site (pre-SRM) | L5: SRM | M5: Off-site unit change per gain site (post-SRM) | O5: Gain site reference | P5: Off-site units baseline | Q5: SRM Off-site units baseline | R5: Off-site units retained | S5: SRM Off-site units retained | T5: Off-site units enhanced | U5: SRM Off-site units enhanced | V5: Off-site units created | W5: SRM Off-site units created | X5: Off-site unit change per gain site (pre-SRM) | Y5: SRM | Z5: Off-site unit change per gain site (post-SRM) | AB5: Gain site reference | AC5: Off-site units baseline | AD5: SRM Off-site units baseline | AE5: Off-site units retained | AF5: SRM Off-site units retained | AG5: Off-site units enhanced | AH5: SRM Off-site units enhanced | AI5: Off-site units created | AJ5: SRM Off-site units created | AK5: Off-site unit change per gain site (pre-SRM) | AL5: SRM | AM5: Off-site unit change per gain site (post-SRM)
A7: ='D-1 Off-Site Habitat Baseline'!AF11 -> 0 | B7: =IFERROR(_xlfn.UNIQUE(_xlfn._xlws.FILTER(A7:A747,A7:A747<>0)),"") ->  | C7: =IF(B7="","",SUMIF('D-1 Off-Site Habitat Baseline'!AF11:AF258,B7,'D-1 Off-Site Habitat Baseline'!T11:T258)) ->  | D7: =IF(B7="","",SUMIF('D-1 Off-Site Habitat Baseline'!$AF$11:$AF$258,B7,'D-1 Off-Site Habitat Baseline'!$Q$11:$Q$258)) ->  | E7: =IF(B7="","", SUMIF('D-1 Off-Site Habitat Baseline'!$AF$11:$AF$258,'Off-site gain site summary'!$B7,'D-1 Off-Site Habitat Baseline'!$X$11:$X$258)) ->  | F7: =IF(B7="","", SUMIF('D-1 Off-Site Habitat Baseline'!$AF$11:$AF$258,'Off-site gain site summary'!$B7,'D-1 Off-Site Habitat Baseline'!$AY$11:$AY$258)) ->  | G7: =IF(B7="","",SUMIF('D-3 Off-Site Habitat Enhancment'!$AU$12:$AU$258,'Off-site gain site summary'!B7,'D-3 Off-Site Habitat Enhancment'!$AQ$12:$AQ$258)) ->  | H7: =IF(B7="","",SUMIF('D-3 Off-Site Habitat Enhancment'!$AU$12:$AU$258,'Off-site gain site summary'!B7,'D-3 Off-Site Habitat Enhancment'!$AP$12:$AP$258)) ->  | I7: =IF(B7="","",SUMIF('D-2 Off-Site Habitat Creation'!$AF$11:$AF$256,'Off-site gain site summary'!B7,'D-2 Off-Site Habitat Creation'!$AB$11:$AB$256)) ->  | J7: =IF(B7="","",SUMIF('D-2 Off-Site Habitat Creation'!$AF$11:$AF$256,'Off-site gain site summary'!B7,'D-2 Off-Site Habitat Creation'!$AA$11:$AA$256)) ->  | K7: =IF(B7="","",(I7+G7+E7)-(C7)) ->  | L7: =IF(ISBLANK(B7),"",IFERROR(_xlfn.XLOOKUP(B7,'D-2 Off-Site Habitat Creation'!$AF$11:$AF$256,'D-2 Off-Site Habitat Creation'!$Z$11:$Z$256),IFERROR(_xlfn.XLOOKUP(B7,'D-1 Off-Site Habitat Baseline'!AF$11:AF$258,'D-1 Off-Site Habitat Baseline'!S$11:S$258)," "))) ->  | M7: =IF(B7="","", IF(K7<0,"Error - gain sites must be postive ▲", (J7+H7+F7)-(D7))) ->  | N7: ='E-1 Off-Site Hedge Baseline'!AB10 -> 0 | O7: =IFERROR(_xlfn.UNIQUE(_xlfn._xlws.FILTER(N7:N745,N7:N745<>0)),"") ->  | P7: =IF(O7="","",SUMIF('E-1 Off-Site Hedge Baseline'!AB$10:AB$257,'Off-site gain site summary'!O7,'E-1 Off-Site Hedge Baseline'!Q$10:Q$257)) ->  | Q7: =IF(O7="","",SUMIF('E-1 Off-Site Hedge Baseline'!AB$10:AB$257,O7,'E-1 Off-Site Hedge Baseline'!N$10:N$257)) ->  | R7: =IF(O7="","",SUMIF('E-1 Off-Site Hedge Baseline'!$AB$10:$AB$257,'Off-site gain site summary'!$O7,'E-1 Off-Site Hedge Baseline'!$U$10:$U$257)) ->  | S7: =IF(O7="","",SUMIF('E-1 Off-Site Hedge Baseline'!$AB$10:$AB$257,'Off-site gain site summary'!$O7,'E-1 Off-Site Hedge Baseline'!$AY$10:$AY$257)) ->  | T7: =IF(O7="","",SUMIF('E-3 Off-Site Hedge Enhancement'!$AO$12:$AO$257,'Off-site gain site summary'!$O7,'E-3 Off-Site Hedge Enhancement'!$AK$12:$AK$257)) ->  | U7: =IF(O7="","",SUMIF('E-3 Off-Site Hedge Enhancement'!$AO$12:$AO$257,'Off-site gain site summary'!$O7,'E-3 Off-Site Hedge Enhancement'!$AJ$12:$AJ$257)) ->  | V7: =IF(O7="","",SUMIF('E-2 Off-Site Hedge Creation'!$AD$12:$AD$259,'Off-site gain site summary'!$O7,'E-2 Off-Site Hedge Creation'!$Z$12:$Z$259)) ->  | W7: =IF(O7="","",SUMIF('E-2 Off-Site Hedge Creation'!$AD$12:$AD$259,'Off-site gain site summary'!$O7,'E-2 Off-Site Hedge Creation'!$Y$12:$Y$259)) ->  | X7: =IF(O7="","",(V7+T7+R7)-P7) ->  | Y7: =IF(ISBLANK(O7),"", IFERROR(_xlfn.XLOOKUP(O7,'E-2 Off-Site Hedge Creation'!$AD$12:$AD$259,'E-2 Off-Site Hedge Creation'!$N$12:$N$259), IFERROR(_xlfn.XLOOKUP(O7,'E-1 Off-Site Hedge Baseline'!$AB$10:$AB$257,'E-1 Off-Site Hedge Baseline'!$P$10:$P$257), " "))) ->  | Z7: =IF(O7="","", IF(X7<0,"Error - gain sites must be postive ▲", (W7+U7+S7)-Q7)) ->  | AA7: ='F-1 Off-Site WaterC'' Baseline'!AH10 -> 0 | AB7: =IFERROR(_xlfn.UNIQUE(_xlfn._xlws.FILTER(AA7:AA748, AA7:AA748<>0)),"") ->  | AC7: =IF(AB7="","",SUMIF('F-1 Off-Site WaterC'' Baseline'!$AH$10:$AH$257,'Off-site gain site summary'!$AB7,'F-1 Off-Site WaterC'' Baseline'!$U$10:$U$257)) ->  | AD7: =IF(AB7="","",SUMIF('F-1 Off-Site WaterC'' Baseline'!$AH$10:$AH$257,'Off-site gain site summary'!$AB7,'F-1 Off-Site WaterC'' Baseline'!$R$10:$R$257)) ->  | AE7: =IF(AB7="","",SUMIF('F-1 Off-Site WaterC'' Baseline'!$AH$10:$AH$257,'Off-site gain site summary'!$AB7,'F-1 Off-Site WaterC'' Baseline'!$Z$10:$Z$257)) ->  | AF7: =IF(AB7="","",SUMIF('F-1 Off-Site WaterC'' Baseline'!$AH$10:$AH$257,'Off-site gain site summary'!$AB7,'F-1 Off-Site WaterC'' Baseline'!$BA$10:$BA$257)) ->  | AG7: =IF(AB7="","",SUMIF('F-3 Off-Site WaterC Enhancement'!$AT$12:$AT$257,'Off-site gain site summary'!$AB7,'F-3 Off-Site WaterC Enhancement'!$AP$12:$AP$257)) ->  | AH7: =IF(AB7="","",SUMIF('F-3 Off-Site WaterC Enhancement'!$AT$12:$AT$257,'Off-site gain site summary'!$AB7,'F-3 Off-Site WaterC Enhancement'!$AO$12:$AO$257)) ->  | AI7: =IF(AB7="","",SUMIF('F-2 Off-Site WaterC'' Creation'!$AG$12:$AG$259,'Off-site gain site summary'!$AB7,'F-2 Off-Site WaterC'' Creation'!$AC$12:$AC$259)) ->  | AJ7: =IF(AB7="","",SUMIF('F-2 Off-Site WaterC'' Creation'!$AG$12:$AG$259,'Off-site gain site summary'!$AB7,'F-2 Off-Site WaterC'' Creation'!$AB$12:$AB$259)) ->  | AK7: =IF(AB7="","",(AG7+AI7+AE7)-AC7) ->  | AL7: =IF(ISBLANK(AB7),"", IFERROR(_xlfn.XLOOKUP(AB7,'F-2 Off-Site WaterC'' Creation'!$AG$12:$AG$258,'F-2 Off-Site WaterC'' Creation'!$AA$12:$AA$258), IFERROR(_xlfn.XLOOKUP(AB7,'F-1 Off-Site WaterC'' Baseline'!$AH$10:$AH$257,'F-1 Off-Site WaterC'' Baseline'!$T$10:$T$257)," "))) ->  | AM7: =IF(AB7="","", IF(AK7<0,"Error - gain sites must be postive ▲", (AH7+AJ7+AF7)-AD7)) -> 
A8: ='D-1 Off-Site Habitat Baseline'!AF12 -> 0 | C8: =IF(B8="","",SUMIF('D-1 Off-Site Habitat Baseline'!AF12:AF259,B8,'D-1 Off-Site Habitat Baseline'!T12:T259)) ->  | D8: =IF(B8="","",SUMIF('D-1 Off-Site Habitat Baseline'!$AF$11:$AF$258,B8,'D-1 Off-Site Habitat Baseline'!$Q$11:$Q$258)) ->  | E8: =IF(B8="","", SUMIF('D-1 Off-Site Habitat Baseline'!$AF$11:$AF$258,'Off-site gain site summary'!$B8,'D-1 Off-Site Habitat Baseline'!$X$11:$X$258)) ->  | F8: =IF(B8="","", SUMIF('D-1 Off-Site Habitat Baseline'!$AF$11:$AF$258,'Off-site gain site summary'!$B8,'D-1 Off-Site Habitat Baseline'!$AY$11:$AY$258)) ->  | G8: =IF(B8="","",SUMIF('D-3 Off-Site Habitat Enhancment'!$AU$12:$AU$258,'Off-site gain site summary'!B8,'D-3 Off-Site Habitat Enhancment'!$AQ$12:$AQ$258)) ->  | H8: =IF(B8="","",SUMIF('D-3 Off-Site Habitat Enhancment'!$AU$12:$AU$258,'Off-site gain site summary'!B8,'D-3 Off-Site Habitat Enhancment'!$AP$12:$AP$258)) ->  | I8: =IF(B8="","",SUMIF('D-2 Off-Site Habitat Creation'!$AF$11:$AF$256,'Off-site gain site summary'!B8,'D-2 Off-Site Habitat Creation'!$AB$11:$AB$256)) ->  | J8: =IF(B8="","",SUMIF('D-2 Off-Site Habitat Creation'!$AF$11:$AF$256,'Off-site gain site summary'!B8,'D-2 Off-Site Habitat Creation'!$AA$11:$AA$256)) ->  | K8: =IF(B8="","",(I8+G8+E8)-(C8)) ->  | L8: =IF(ISBLANK(B8),"",IFERROR(_xlfn.XLOOKUP(B8,'D-2 Off-Site Habitat Creation'!$AF$11:$AF$256,'D-2 Off-Site Habitat Creation'!$Z$11:$Z$256),IFERROR(_xlfn.XLOOKUP(B8,'D-1 Off-Site Habitat Baseline'!AF$11:AF$258,'D-1 Off-Site Habitat Baseline'!S$11:S$258)," "))) ->  | M8: =IF(B8="","", IF(K8<0,"Error - gain sites must be postive ▲", (J8+H8+F8)-(D8))) ->  | N8: ='E-1 Off-Site Hedge Baseline'!AB11 -> 0 | P8: =IF(O8="","",SUMIF('E-1 Off-Site Hedge Baseline'!AB$10:AB$257,'Off-site gain site summary'!O8,'E-1 Off-Site Hedge Baseline'!Q$10:Q$257)) ->  | Q8: =IF(O8="","",SUMIF('E-1 Off-Site Hedge Baseline'!AB$10:AB$257,O8,'E-1 Off-Site Hedge Baseline'!N$10:N$257)) ->  | R8: =IF(O8="","",SUMIF('E-1 Off-Site Hedge Baseline'!$AB$10:$AB$257,'Off-site gain site summary'!$O8,'E-1 Off-Site Hedge Baseline'!$U$10:$U$257)) ->  | S8: =IF(O8="","",SUMIF('E-1 Off-Site Hedge Baseline'!$AB$10:$AB$257,'Off-site gain site summary'!$O8,'E-1 Off-Site Hedge Baseline'!$AY$10:$AY$257)) ->  | T8: =IF(O8="","",SUMIF('E-3 Off-Site Hedge Enhancement'!$AO$12:$AO$257,'Off-site gain site summary'!$O8,'E-3 Off-Site Hedge Enhancement'!$AK$12:$AK$257)) ->  | U8: =IF(O8="","",SUMIF('E-3 Off-Site Hedge Enhancement'!$AO$12:$AO$257,'Off-site gain site summary'!$O8,'E-3 Off-Site Hedge Enhancement'!$AJ$12:$AJ$257)) ->  | V8: =IF(O8="","",SUMIF('E-2 Off-Site Hedge Creation'!$AD$12:$AD$259,'Off-site gain site summary'!$O8,'E-2 Off-Site Hedge Creation'!$Z$12:$Z$259)) ->  | W8: =IF(O8="","",SUMIF('E-2 Off-Site Hedge Creation'!$AD$12:$AD$259,'Off-site gain site summary'!$O8,'E-2 Off-Site Hedge Creation'!$Y$12:$Y$259)) ->  | X8: =IF(O8="","",(V8+T8+R8)-P8) ->  | Y8: =IF(ISBLANK(O8),"", IFERROR(_xlfn.XLOOKUP(O8,'E-2 Off-Site Hedge Creation'!$AD$12:$AD$259,'E-2 Off-Site Hedge Creation'!$N$12:$N$259), IFERROR(_xlfn.XLOOKUP(O8,'E-1 Off-Site Hedge Baseline'!$AB$10:$AB$257,'E-1 Off-Site Hedge Baseline'!$P$10:$P$257), " "))) ->  | Z8: =IF(O8="","", IF(X8<0,"Error - gain sites must be postive ▲", (W8+U8+S8)-Q8)) ->  | AA8: ='F-1 Off-Site WaterC'' Baseline'!AH11 -> 0 | AC8: =IF(AB8="","",SUMIF('F-1 Off-Site WaterC'' Baseline'!$AH$10:$AH$257,'Off-site gain site summary'!$AB8,'F-1 Off-Site WaterC'' Baseline'!$U$10:$U$257)) ->  | AD8: =IF(AB8="","",SUMIF('F-1 Off-Site WaterC'' Baseline'!$AH$10:$AH$257,'Off-site gain site summary'!$AB8,'F-1 Off-Site WaterC'' Baseline'!$R$10:$R$257)) ->  | AE8: =IF(AB8="","",SUMIF('F-1 Off-Site WaterC'' Baseline'!$AH$10:$AH$257,'Off-site gain site summary'!$AB8,'F-1 Off-Site WaterC'' Baseline'!$Z$10:$Z$257)) ->  | AF8: =IF(AB8="","",SUMIF('F-1 Off-Site WaterC'' Baseline'!$AH$10:$AH$257,'Off-site gain site summary'!$AB8,'F-1 Off-Site WaterC'' Baseline'!$BA$10:$BA$257)) ->  | AG8: =IF(AB8="","",SUMIF('F-3 Off-Site WaterC Enhancement'!$AT$12:$AT$257,'Off-site gain site summary'!$AB8,'F-3 Off-Site WaterC Enhancement'!$AP$12:$AP$257)) ->  | AH8: =IF(AB8="","",SUMIF('F-3 Off-Site WaterC Enhancement'!$AT$12:$AT$257,'Off-site gain site summary'!$AB8,'F-3 Off-Site WaterC Enhancement'!$AO$12:$AO$257)) ->  | AI8: =IF(AB8="","",SUMIF('F-2 Off-Site WaterC'' Creation'!$AG$12:$AG$259,'Off-site gain site summary'!$AB8,'F-2 Off-Site WaterC'' Creation'!$AC$12:$AC$259)) ->  | AJ8: =IF(AB8="","",SUMIF('F-2 Off-Site WaterC'' Creation'!$AG$12:$AG$259,'Off-site gain site summary'!$AB8,'F-2 Off-Site WaterC'' Creation'!$AB$12:$AB$259)) ->  | AK8: =IF(AB8="","",(AG8+AI8+AE8)-AC8) ->  | AL8: =IF(ISBLANK(AB8),"", IFERROR(_xlfn.XLOOKUP(AB8,'F-2 Off-Site WaterC'' Creation'!$AG$12:$AG$258,'F-2 Off-Site WaterC'' Creation'!$AA$12:$AA$258), IFERROR(_xlfn.XLOOKUP(AB8,'F-1 Off-Site WaterC'' Baseline'!$AH$10:$AH$257,'F-1 Off-Site WaterC'' Baseline'!$T$10:$T$257)," "))) ->  | AM8: =IF(AB8="","", IF(AK8<0,"Error - gain sites must be postive ▲", (AH8+AJ8+AF8)-AD8)) -> 
A9: ='D-1 Off-Site Habitat Baseline'!AF13 -> 0 | C9: =IF(B9="","",SUMIF('D-1 Off-Site Habitat Baseline'!AF13:AF260,B9,'D-1 Off-Site Habitat Baseline'!T13:T260)) ->  | D9: =IF(B9="","",SUMIF('D-1 Off-Site Habitat Baseline'!$AF$11:$AF$258,B9,'D-1 Off-Site Habitat Baseline'!$Q$11:$Q$258)) ->  | E9: =IF(B9="","", SUMIF('D-1 Off-Site Habitat Baseline'!$AF$11:$AF$258,'Off-site gain site summary'!$B9,'D-1 Off-Site Habitat Baseline'!$X$11:$X$258)) ->  | F9: =IF(B9="","", SUMIF('D-1 Off-Site Habitat Baseline'!$AF$11:$AF$258,'Off-site gain site summary'!$B9,'D-1 Off-Site Habitat Baseline'!$AY$11:$AY$258)) ->  | G9: =IF(B9="","",SUMIF('D-3 Off-Site Habitat Enhancment'!$AU$12:$AU$258,'Off-site gain site summary'!B9,'D-3 Off-Site Habitat Enhancment'!$AQ$12:$AQ$258)) ->  | H9: =IF(B9="","",SUMIF('D-3 Off-Site Habitat Enhancment'!$AU$12:$AU$258,'Off-site gain site summary'!B9,'D-3 Off-Site Habitat Enhancment'!$AP$12:$AP$258)) ->  | I9: =IF(B9="","",SUMIF('D-2 Off-Site Habitat Creation'!$AF$11:$AF$256,'Off-site gain site summary'!B9,'D-2 Off-Site Habitat Creation'!$AB$11:$AB$256)) ->  | J9: =IF(B9="","",SUMIF('D-2 Off-Site Habitat Creation'!$AF$11:$AF$256,'Off-site gain site summary'!B9,'D-2 Off-Site Habitat Creation'!$AA$11:$AA$256)) ->  | L9: =IF(ISBLANK(B9),"",IFERROR(_xlfn.XLOOKUP(B9,'D-2 Off-Site Habitat Creation'!$AF$11:$AF$256,'D-2 Off-Site Habitat Creation'!$Z$11:$Z$256),IFERROR(_xlfn.XLOOKUP(B9,'D-1 Off-Site Habitat Baseline'!AF$11:AF$258,'D-1 Off-Site Habitat Baseline'!S$11:S$258)," "))) ->  | N9: ='E-1 Off-Site Hedge Baseline'!AB12 -> 0 | P9: =IF(O9="","",SUMIF('E-1 Off-Site Hedge Baseline'!AB$10:AB$257,'Off-site gain site summary'!O9,'E-1 Off-Site Hedge Baseline'!Q$10:Q$257)) ->  | Q9: =IF(O9="","",SUMIF('E-1 Off-Site Hedge Baseline'!AB$10:AB$257,O9,'E-1 Off-Site Hedge Baseline'!N$10:N$257)) ->  | R9: =IF(O9="","",SUMIF('E-1 Off-Site Hedge Baseline'!$AB$10:$AB$257,'Off-site gain site summary'!$O9,'E-1 Off-Site Hedge Baseline'!$U$10:$U$257)) ->  | S9: =IF(O9="","",SUMIF('E-1 Off-Site Hedge Baseline'!$AB$10:$AB$257,'Off-site gain site summary'!$O9,'E-1 Off-Site Hedge Baseline'!$AY$10:$AY$257)) ->  | T9: =IF(O9="","",SUMIF('E-3 Off-Site Hedge Enhancement'!$AO$12:$AO$257,'Off-site gain site summary'!$O9,'E-3 Off-Site Hedge Enhancement'!$AK$12:$AK$257)) ->  | U9: =IF(O9="","",SUMIF('E-3 Off-Site Hedge Enhancement'!$AO$12:$AO$257,'Off-site gain site summary'!$O9,'E-3 Off-Site Hedge Enhancement'!$AJ$12:$AJ$257)) ->  | V9: =IF(O9="","",SUMIF('E-2 Off-Site Hedge Creation'!$AD$12:$AD$259,'Off-site gain site summary'!$O9,'E-2 Off-Site Hedge Creation'!$Z$12:$Z$259)) ->  | W9: =IF(O9="","",SUMIF('E-2 Off-Site Hedge Creation'!$AD$12:$AD$259,'Off-site gain site summary'!$O9,'E-2 Off-Site Hedge Creation'!$Y$12:$Y$259)) ->  | Y9: =IF(ISBLANK(O9),"", IFERROR(_xlfn.XLOOKUP(O9,'E-2 Off-Site Hedge Creation'!$AD$12:$AD$259,'E-2 Off-Site Hedge Creation'!$N$12:$N$259), IFERROR(_xlfn.XLOOKUP(O9,'E-1 Off-Site Hedge Baseline'!$AB$10:$AB$257,'E-1 Off-Site Hedge Baseline'!$P$10:$P$257), " "))) ->  | AA9: ='F-1 Off-Site WaterC'' Baseline'!AH12 -> 0 | AC9: =IF(AB9="","",SUMIF('F-1 Off-Site WaterC'' Baseline'!$AH$10:$AH$257,'Off-site gain site summary'!$AB9,'F-1 Off-Site WaterC'' Baseline'!$U$10:$U$257)) ->  | AD9: =IF(AB9="","",SUMIF('F-1 Off-Site WaterC'' Baseline'!$AH$10:$AH$257,'Off-site gain site summary'!$AB9,'F-1 Off-Site WaterC'' Baseline'!$R$10:$R$257)) ->  | AE9: =IF(AB9="","",SUMIF('F-1 Off-Site WaterC'' Baseline'!$AH$10:$AH$257,'Off-site gain site summary'!$AB9,'F-1 Off-Site WaterC'' Baseline'!$Z$10:$Z$257)) ->  | AF9: =IF(AB9="","",SUMIF('F-1 Off-Site WaterC'' Baseline'!$AH$10:$AH$257,'Off-site gain site summary'!$AB9,'F-1 Off-Site WaterC'' Baseline'!$BA$10:$BA$257)) ->  | AG9: =IF(AB9="","",SUMIF('F-3 Off-Site WaterC Enhancement'!$AT$12:$AT$257,'Off-site gain site summary'!$AB9,'F-3 Off-Site WaterC Enhancement'!$AP$12:$AP$257)) ->  | AH9: =IF(AB9="","",SUMIF('F-3 Off-Site WaterC Enhancement'!$AT$12:$AT$257,'Off-site gain site summary'!$AB9,'F-3 Off-Site WaterC Enhancement'!$AO$12:$AO$257)) ->  | AI9: =IF(AB9="","",SUMIF('F-2 Off-Site WaterC'' Creation'!$AG$12:$AG$259,'Off-site gain site summary'!$AB9,'F-2 Off-Site WaterC'' Creation'!$AC$12:$AC$259)) ->  | AJ9: =IF(AB9="","",SUMIF('F-2 Off-Site WaterC'' Creation'!$AG$12:$AG$259,'Off-site gain site summary'!$AB9,'F-2 Off-Site WaterC'' Creation'!$AB$12:$AB$259)) ->  | AL9: =IF(ISBLANK(AB9),"", IFERROR(_xlfn.XLOOKUP(AB9,'F-2 Off-Site WaterC'' Creation'!$AG$12:$AG$258,'F-2 Off-Site WaterC'' Creation'!$AA$12:$AA$258), IFERROR(_xlfn.XLOOKUP(AB9,'F-1 Off-Site WaterC'' Baseline'!$AH$10:$AH$257,'F-1 Off-Site WaterC'' Baseline'!$T$10:$T$257)," "))) -> 
A10: ='D-1 Off-Site Habitat Baseline'!AF14 -> 0 | C10: =IF(B10="","",SUMIF('D-1 Off-Site Habitat Baseline'!AF14:AF261,B10,'D-1 Off-Site Habitat Baseline'!T14:T261)) ->  | D10: =IF(B10="","",SUMIF('D-1 Off-Site Habitat Baseline'!$AF$11:$AF$258,B10,'D-1 Off-Site Habitat Baseline'!$Q$11:$Q$258)) ->  | E10: =IF(B10="","", SUMIF('D-1 Off-Site Habitat Baseline'!$AF$11:$AF$258,'Off-site gain site summary'!$B10,'D-1 Off-Site Habitat Baseline'!$X$11:$X$258)) ->  | F10: =IF(B10="","", SUMIF('D-1 Off-Site Habitat Baseline'!$AF$11:$AF$258,'Off-site gain site summary'!$B10,'D-1 Off-Site Habitat Baseline'!$AY$11:$AY$258)) ->  | G10: =IF(B10="","",SUMIF('D-3 Off-Site Habitat Enhancment'!$AU$12:$AU$258,'Off-site gain site summary'!B10,'D-3 Off-Site Habitat Enhancment'!$AQ$12:$AQ$258)) ->  | H10: =IF(B10="","",SUMIF('D-3 Off-Site Habitat Enhancment'!$AU$12:$AU$258,'Off-site gain site summary'!B10,'D-3 Off-Site Habitat Enhancment'!$AP$12:$AP$258)) ->  | I10: =IF(B10="","",SUMIF('D-2 Off-Site Habitat Creation'!$AF$11:$AF$256,'Off-site gain site summary'!B10,'D-2 Off-Site Habitat Creation'!$AB$11:$AB$256)) ->  | J10: =IF(B10="","",SUMIF('D-2 Off-Site Habitat Creation'!$AF$11:$AF$256,'Off-site gain site summary'!B10,'D-2 Off-Site Habitat Creation'!$AA$11:$AA$256)) ->  | L10: =IF(ISBLANK(B10),"",IFERROR(_xlfn.XLOOKUP(B10,'D-2 Off-Site Habitat Creation'!$AF$11:$AF$256,'D-2 Off-Site Habitat Creation'!$Z$11:$Z$256),IFERROR(_xlfn.XLOOKUP(B10,'D-1 Off-Site Habitat Baseline'!AF$11:AF$258,'D-1 Off-Site Habitat Baseline'!S$11:S$258)," "))) ->  | N10: ='E-1 Off-Site Hedge Baseline'!AB13 -> 0 | P10: =IF(O10="","",SUMIF('E-1 Off-Site Hedge Baseline'!AB$10:AB$257,'Off-site gain site summary'!O10,'E-1 Off-Site Hedge Baseline'!Q$10:Q$257)) ->  | Q10: =IF(O10="","",SUMIF('E-1 Off-Site Hedge Baseline'!AB$10:AB$257,O10,'E-1 Off-Site Hedge Baseline'!N$10:N$257)) ->  | R10: =IF(O10="","",SUMIF('E-1 Off-Site Hedge Baseline'!$AB$10:$AB$257,'Off-site gain site summary'!$O10,'E-1 Off-Site Hedge Baseline'!$U$10:$U$257)) ->  | S10: =IF(O10="","",SUMIF('E-1 Off-Site Hedge Baseline'!$AB$10:$AB$257,'Off-site gain site summary'!$O10,'E-1 Off-Site Hedge Baseline'!$AY$10:$AY$257)) ->  | T10: =IF(O10="","",SUMIF('E-3 Off-Site Hedge Enhancement'!$AO$12:$AO$257,'Off-site gain site summary'!$O10,'E-3 Off-Site Hedge Enhancement'!$AK$12:$AK$257)) ->  | U10: =IF(O10="","",SUMIF('E-3 Off-Site Hedge Enhancement'!$AO$12:$AO$257,'Off-site gain site summary'!$O10,'E-3 Off-Site Hedge Enhancement'!$AJ$12:$AJ$257)) ->  | V10: =IF(O10="","",SUMIF('E-2 Off-Site Hedge Creation'!$AD$12:$AD$259,'Off-site gain site summary'!$O10,'E-2 Off-Site Hedge Creation'!$Z$12:$Z$259)) ->  | W10: =IF(O10="","",SUMIF('E-2 Off-Site Hedge Creation'!$AD$12:$AD$259,'Off-site gain site summary'!$O10,'E-2 Off-Site Hedge Creation'!$Y$12:$Y$259)) ->  | Y10: =IF(ISBLANK(O10),"", IFERROR(_xlfn.XLOOKUP(O10,'E-2 Off-Site Hedge Creation'!$AD$12:$AD$259,'E-2 Off-Site Hedge Creation'!$N$12:$N$259), IFERROR(_xlfn.XLOOKUP(O10,'E-1 Off-Site Hedge Baseline'!$AB$10:$AB$257,'E-1 Off-Site Hedge Baseline'!$P$10:$P$257), " "))) ->  | AA10: ='F-1 Off-Site WaterC'' Baseline'!AH13 -> 0 | AC10: =IF(AB10="","",SUMIF('F-1 Off-Site WaterC'' Baseline'!$AH$10:$AH$257,'Off-site gain site summary'!$AB10,'F-1 Off-Site WaterC'' Baseline'!$U$10:$U$257)) ->  | AD10: =IF(AB10="","",SUMIF('F-1 Off-Site WaterC'' Baseline'!$AH$10:$AH$257,'Off-site gain site summary'!$AB10,'F-1 Off-Site WaterC'' Baseline'!$R$10:$R$257)) ->  | AE10: =IF(AB10="","",SUMIF('F-1 Off-Site WaterC'' Baseline'!$AH$10:$AH$257,'Off-site gain site summary'!$AB10,'F-1 Off-Site WaterC'' Baseline'!$Z$10:$Z$257)) ->  | AF10: =IF(AB10="","",SUMIF('F-1 Off-Site WaterC'' Baseline'!$AH$10:$AH$257,'Off-site gain site summary'!$AB10,'F-1 Off-Site WaterC'' Baseline'!$BA$10:$BA$257)) ->  | AG10: =IF(AB10="","",SUMIF('F-3 Off-Site WaterC Enhancement'!$AT$12:$AT$257,'Off-site gain site summary'!$AB10,'F-3 Off-Site WaterC Enhancement'!$AP$12:$AP$257)) ->  | AH10: =IF(AB10="","",SUMIF('F-3 Off-Site WaterC Enhancement'!$AT$12:$AT$257,'Off-site gain site summary'!$AB10,'F-3 Off-Site WaterC Enhancement'!$AO$12:$AO$257)) ->  | AI10: =IF(AB10="","",SUMIF('F-2 Off-Site WaterC'' Creation'!$AG$12:$AG$259,'Off-site gain site summary'!$AB10,'F-2 Off-Site WaterC'' Creation'!$AC$12:$AC$259)) ->  | AJ10: =IF(AB10="","",SUMIF('F-2 Off-Site WaterC'' Creation'!$AG$12:$AG$259,'Off-site gain site summary'!$AB10,'F-2 Off-Site WaterC'' Creation'!$AB$12:$AB$259)) ->  | AL10: =IF(ISBLANK(AB10),"", IFERROR(_xlfn.XLOOKUP(AB10,'F-2 Off-Site WaterC'' Creation'!$AG$12:$AG$258,'F-2 Off-Site WaterC'' Creation'!$AA$12:$AA$258), IFERROR(_xlfn.XLOOKUP(AB10,'F-1 Off-Site WaterC'' Baseline'!$AH$10:$AH$257,'F-1 Off-Site WaterC'' Baseline'!$T$10:$T$257)," "))) -> 
A11: ='D-1 Off-Site Habitat Baseline'!AF15 -> 0 | C11: =IF(B11="","",SUMIF('D-1 Off-Site Habitat Baseline'!AF15:AF262,B11,'D-1 Off-Site Habitat Baseline'!T15:T262)) ->  | D11: =IF(B11="","",SUMIF('D-1 Off-Site Habitat Baseline'!$AF$11:$AF$258,B11,'D-1 Off-Site Habitat Baseline'!$Q$11:$Q$258)) ->  | E11: =IF(B11="","", SUMIF('D-1 Off-Site Habitat Baseline'!$AF$11:$AF$258,'Off-site gain site summary'!$B11,'D-1 Off-Site Habitat Baseline'!$X$11:$X$258)) ->  | F11: =IF(B11="","", SUMIF('D-1 Off-Site Habitat Baseline'!$AF$11:$AF$258,'Off-site gain site summary'!$B11,'D-1 Off-Site Habitat Baseline'!$AY$11:$AY$258)) ->  | G11: =IF(B11="","",SUMIF('D-3 Off-Site Habitat Enhancment'!$AU$12:$AU$258,'Off-site gain site summary'!B11,'D-3 Off-Site Habitat Enhancment'!$AQ$12:$AQ$258)) ->  | H11: =IF(B11="","",SUMIF('D-3 Off-Site Habitat Enhancment'!$AU$12:$AU$258,'Off-site gain site summary'!B11,'D-3 Off-Site Habitat Enhancment'!$AP$12:$AP$258)) ->  | I11: =IF(B11="","",SUMIF('D-2 Off-Site Habitat Creation'!$AF$11:$AF$256,'Off-site gain site summary'!B11,'D-2 Off-Site Habitat Creation'!$AB$11:$AB$256)) ->  | J11: =IF(B11="","",SUMIF('D-2 Off-Site Habitat Creation'!$AF$11:$AF$256,'Off-site gain site summary'!B11,'D-2 Off-Site Habitat Creation'!$AA$11:$AA$256)) ->  | L11: =IF(ISBLANK(B11),"",IFERROR(_xlfn.XLOOKUP(B11,'D-2 Off-Site Habitat Creation'!$AF$11:$AF$256,'D-2 Off-Site Habitat Creation'!$Z$11:$Z$256),IFERROR(_xlfn.XLOOKUP(B11,'D-1 Off-Site Habitat Baseline'!AF$11:AF$258,'D-1 Off-Site Habitat Baseline'!S$11:S$258)," "))) ->  | N11: ='E-1 Off-Site Hedge Baseline'!AB14 -> 0 | P11: =IF(O11="","",SUMIF('E-1 Off-Site Hedge Baseline'!AB$10:AB$257,'Off-site gain site summary'!O11,'E-1 Off-Site Hedge Baseline'!Q$10:Q$257)) ->  | Q11: =IF(O11="","",SUMIF('E-1 Off-Site Hedge Baseline'!AB$10:AB$257,O11,'E-1 Off-Site Hedge Baseline'!N$10:N$257)) ->  | R11: =IF(O11="","",SUMIF('E-1 Off-Site Hedge Baseline'!$AB$10:$AB$257,'Off-site gain site summary'!$O11,'E-1 Off-Site Hedge Baseline'!$U$10:$U$257)) ->  | S11: =IF(O11="","",SUMIF('E-1 Off-Site Hedge Baseline'!$AB$10:$AB$257,'Off-site gain site summary'!$O11,'E-1 Off-Site Hedge Baseline'!$AY$10:$AY$257)) ->  | T11: =IF(O11="","",SUMIF('E-3 Off-Site Hedge Enhancement'!$AO$12:$AO$257,'Off-site gain site summary'!$O11,'E-3 Off-Site Hedge Enhancement'!$AK$12:$AK$257)) ->  | U11: =IF(O11="","",SUMIF('E-3 Off-Site Hedge Enhancement'!$AO$12:$AO$257,'Off-site gain site summary'!$O11,'E-3 Off-Site Hedge Enhancement'!$AJ$12:$AJ$257)) ->  | V11: =IF(O11="","",SUMIF('E-2 Off-Site Hedge Creation'!$AD$12:$AD$259,'Off-site gain site summary'!$O11,'E-2 Off-Site Hedge Creation'!$Z$12:$Z$259)) ->  | W11: =IF(O11="","",SUMIF('E-2 Off-Site Hedge Creation'!$AD$12:$AD$259,'Off-site gain site summary'!$O11,'E-2 Off-Site Hedge Creation'!$Y$12:$Y$259)) ->  | Y11: =IF(ISBLANK(O11),"", IFERROR(_xlfn.XLOOKUP(O11,'E-2 Off-Site Hedge Creation'!$AD$12:$AD$259,'E-2 Off-Site Hedge Creation'!$N$12:$N$259), IFERROR(_xlfn.XLOOKUP(O11,'E-1 Off-Site Hedge Baseline'!$AB$10:$AB$257,'E-1 Off-Site Hedge Baseline'!$P$10:$P$257), " "))) ->  | AA11: ='F-1 Off-Site WaterC'' Baseline'!AH14 -> 0 | AC11: =IF(AB11="","",SUMIF('F-1 Off-Site WaterC'' Baseline'!$AH$10:$AH$257,'Off-site gain site summary'!$AB11,'F-1 Off-Site WaterC'' Baseline'!$U$10:$U$257)) ->  | AD11: =IF(AB11="","",SUMIF('F-1 Off-Site WaterC'' Baseline'!$AH$10:$AH$257,'Off-site gain site summary'!$AB11,'F-1 Off-Site WaterC'' Baseline'!$R$10:$R$257)) ->  | AE11: =IF(AB11="","",SUMIF('F-1 Off-Site WaterC'' Baseline'!$AH$10:$AH$257,'Off-site gain site summary'!$AB11,'F-1 Off-Site WaterC'' Baseline'!$Z$10:$Z$257)) ->  | AF11: =IF(AB11="","",SUMIF('F-1 Off-Site WaterC'' Baseline'!$AH$10:$AH$257,'Off-site gain site summary'!$AB11,'F-1 Off-Site WaterC'' Baseline'!$BA$10:$BA$257)) ->  | AG11: =IF(AB11="","",SUMIF('F-3 Off-Site WaterC Enhancement'!$AT$12:$AT$257,'Off-site gain site summary'!$AB11,'F-3 Off-Site WaterC Enhancement'!$AP$12:$AP$257)) ->  | AH11: =IF(AB11="","",SUMIF('F-3 Off-Site WaterC Enhancement'!$AT$12:$AT$257,'Off-site gain site summary'!$AB11,'F-3 Off-Site WaterC Enhancement'!$AO$12:$AO$257)) ->  | AI11: =IF(AB11="","",SUMIF('F-2 Off-Site WaterC'' Creation'!$AG$12:$AG$259,'Off-site gain site summary'!$AB11,'F-2 Off-Site WaterC'' Creation'!$AC$12:$AC$259)) ->  | AJ11: =IF(AB11="","",SUMIF('F-2 Off-Site WaterC'' Creation'!$AG$12:$AG$259,'Off-site gain site summary'!$AB11,'F-2 Off-Site WaterC'' Creation'!$AB$12:$AB$259)) ->  | AL11: =IF(ISBLANK(AB11),"", IFERROR(_xlfn.XLOOKUP(AB11,'F-2 Off-Site WaterC'' Creation'!$AG$12:$AG$258,'F-2 Off-Site WaterC'' Creation'!$AA$12:$AA$258), IFERROR(_xlfn.XLOOKUP(AB11,'F-1 Off-Site WaterC'' Baseline'!$AH$10:$AH$257,'F-1 Off-Site WaterC'' Baseline'!$T$10:$T$257)," "))) -> 
A12: ='D-1 Off-Site Habitat Baseline'!AF16 -> 0 | C12: =IF(B12="","",SUMIF('D-1 Off-Site Habitat Baseline'!AF16:AF263,B12,'D-1 Off-Site Habitat Baseline'!T16:T263)) ->  | D12: =IF(B12="","",SUMIF('D-1 Off-Site Habitat Baseline'!$AF$11:$AF$258,B12,'D-1 Off-Site Habitat Baseline'!$Q$11:$Q$258)) ->  | E12: =IF(B12="","", SUMIF('D-1 Off-Site Habitat Baseline'!$AF$11:$AF$258,'Off-site gain site summary'!$B12,'D-1 Off-Site Habitat Baseline'!$X$11:$X$258)) ->  | F12: =IF(B12="","", SUMIF('D-1 Off-Site Habitat Baseline'!$AF$11:$AF$258,'Off-site gain site summary'!$B12,'D-1 Off-Site Habitat Baseline'!$AY$11:$AY$258)) ->  | G12: =IF(B12="","",SUMIF('D-3 Off-Site Habitat Enhancment'!$AU$12:$AU$258,'Off-site gain site summary'!B12,'D-3 Off-Site Habitat Enhancment'!$AQ$12:$AQ$258)) ->  | H12: =IF(B12="","",SUMIF('D-3 Off-Site Habitat Enhancment'!$AU$12:$AU$258,'Off-site gain site summary'!B12,'D-3 Off-Site Habitat Enhancment'!$AP$12:$AP$258)) ->  | I12: =IF(B12="","",SUMIF('D-2 Off-Site Habitat Creation'!$AF$11:$AF$256,'Off-site gain site summary'!B12,'D-2 Off-Site Habitat Creation'!$AB$11:$AB$256)) ->  | J12: =IF(B12="","",SUMIF('D-2 Off-Site Habitat Creation'!$AF$11:$AF$256,'Off-site gain site summary'!B12,'D-2 Off-Site Habitat Creation'!$AA$11:$AA$256)) ->  | L12: =IF(ISBLANK(B12),"",IFERROR(_xlfn.XLOOKUP(B12,'D-2 Off-Site Habitat Creation'!$AF$11:$AF$256,'D-2 Off-Site Habitat Creation'!$Z$11:$Z$256),IFERROR(_xlfn.XLOOKUP(B12,'D-1 Off-Site Habitat Baseline'!AF$11:AF$258,'D-1 Off-Site Habitat Baseline'!S$11:S$258)," "))) ->  | N12: ='E-1 Off-Site Hedge Baseline'!AB15 -> 0 | P12: =IF(O12="","",SUMIF('E-1 Off-Site Hedge Baseline'!AB$10:AB$257,'Off-site gain site summary'!O12,'E-1 Off-Site Hedge Baseline'!Q$10:Q$257)) ->  | Q12: =IF(O12="","",SUMIF('E-1 Off-Site Hedge Baseline'!AB$10:AB$257,O12,'E-1 Off-Site Hedge Baseline'!N$10:N$257)) ->  | R12: =IF(O12="","",SUMIF('E-1 Off-Site Hedge Baseline'!$AB$10:$AB$257,'Off-site gain site summary'!$O12,'E-1 Off-Site Hedge Baseline'!$U$10:$U$257)) ->  | S12: =IF(O12="","",SUMIF('E-1 Off-Site Hedge Baseline'!$AB$10:$AB$257,'Off-site gain site summary'!$O12,'E-1 Off-Site Hedge Baseline'!$AY$10:$AY$257)) ->  | T12: =IF(O12="","",SUMIF('E-3 Off-Site Hedge Enhancement'!$AO$12:$AO$257,'Off-site gain site summary'!$O12,'E-3 Off-Site Hedge Enhancement'!$AK$12:$AK$257)) ->  | U12: =IF(O12="","",SUMIF('E-3 Off-Site Hedge Enhancement'!$AO$12:$AO$257,'Off-site gain site summary'!$O12,'E-3 Off-Site Hedge Enhancement'!$AJ$12:$AJ$257)) ->  | V12: =IF(O12="","",SUMIF('E-2 Off-Site Hedge Creation'!$AD$12:$AD$259,'Off-site gain site summary'!$O12,'E-2 Off-Site Hedge Creation'!$Z$12:$Z$259)) ->  | W12: =IF(O12="","",SUMIF('E-2 Off-Site Hedge Creation'!$AD$12:$AD$259,'Off-site gain site summary'!$O12,'E-2 Off-Site Hedge Creation'!$Y$12:$Y$259)) ->  | Y12: =IF(ISBLANK(O12),"", IFERROR(_xlfn.XLOOKUP(O12,'E-2 Off-Site Hedge Creation'!$AD$12:$AD$259,'E-2 Off-Site Hedge Creation'!$N$12:$N$259), IFERROR(_xlfn.XLOOKUP(O12,'E-1 Off-Site Hedge Baseline'!$AB$10:$AB$257,'E-1 Off-Site Hedge Baseline'!$P$10:$P$257), " "))) ->  | AA12: ='F-1 Off-Site WaterC'' Baseline'!AH15 -> 0 | AC12: =IF(AB12="","",SUMIF('F-1 Off-Site WaterC'' Baseline'!$AH$10:$AH$257,'Off-site gain site summary'!$AB12,'F-1 Off-Site WaterC'' Baseline'!$U$10:$U$257)) ->  | AD12: =IF(AB12="","",SUMIF('F-1 Off-Site WaterC'' Baseline'!$AH$10:$AH$257,'Off-site gain site summary'!$AB12,'F-1 Off-Site WaterC'' Baseline'!$R$10:$R$257)) ->  | AE12: =IF(AB12="","",SUMIF('F-1 Off-Site WaterC'' Baseline'!$AH$10:$AH$257,'Off-site gain site summary'!$AB12,'F-1 Off-Site WaterC'' Baseline'!$Z$10:$Z$257)) ->  | AF12: =IF(AB12="","",SUMIF('F-1 Off-Site WaterC'' Baseline'!$AH$10:$AH$257,'Off-site gain site summary'!$AB12,'F-1 Off-Site WaterC'' Baseline'!$BA$10:$BA$257)) ->  | AG12: =IF(AB12="","",SUMIF('F-3 Off-Site WaterC Enhancement'!$AT$12:$AT$257,'Off-site gain site summary'!$AB12,'F-3 Off-Site WaterC Enhancement'!$AP$12:$AP$257)) ->  | AH12: =IF(AB12="","",SUMIF('F-3 Off-Site WaterC Enhancement'!$AT$12:$AT$257,'Off-site gain site summary'!$AB12,'F-3 Off-Site WaterC Enhancement'!$AO$12:$AO$257)) ->  | AI12: =IF(AB12="","",SUMIF('F-2 Off-Site WaterC'' Creation'!$AG$12:$AG$259,'Off-site gain site summary'!$AB12,'F-2 Off-Site WaterC'' Creation'!$AC$12:$AC$259)) ->  | AJ12: =IF(AB12="","",SUMIF('F-2 Off-Site WaterC'' Creation'!$AG$12:$AG$259,'Off-site gain site summary'!$AB12,'F-2 Off-Site WaterC'' Creation'!$AB$12:$AB$259)) ->  | AL12: =IF(ISBLANK(AB12),"", IFERROR(_xlfn.XLOOKUP(AB12,'F-2 Off-Site WaterC'' Creation'!$AG$12:$AG$258,'F-2 Off-Site WaterC'' Creation'!$AA$12:$AA$258), IFERROR(_xlfn.XLOOKUP(AB12,'F-1 Off-Site WaterC'' Baseline'!$AH$10:$AH$257,'F-1 Off-Site WaterC'' Baseline'!$T$10:$T$257)," "))) -> 
A13: ='D-1 Off-Site Habitat Baseline'!AF17 -> 0 | C13: =IF(B13="","",SUMIF('D-1 Off-Site Habitat Baseline'!AF17:AF264,B13,'D-1 Off-Site Habitat Baseline'!T17:T264)) ->  | D13: =IF(B13="","",SUMIF('D-1 Off-Site Habitat Baseline'!$AF$11:$AF$258,B13,'D-1 Off-Site Habitat Baseline'!$Q$11:$Q$258)) ->  | E13: =IF(B13="","", SUMIF('D-1 Off-Site Habitat Baseline'!$AF$11:$AF$258,'Off-site gain site summary'!$B13,'D-1 Off-Site Habitat Baseline'!$X$11:$X$258)) ->  | F13: =IF(B13="","", SUMIF('D-1 Off-Site Habitat Baseline'!$AF$11:$AF$258,'Off-site gain site summary'!$B13,'D-1 Off-Site Habitat Baseline'!$AY$11:$AY$258)) ->  | G13: =IF(B13="","",SUMIF('D-3 Off-Site Habitat Enhancment'!$AU$12:$AU$258,'Off-site gain site summary'!B13,'D-3 Off-Site Habitat Enhancment'!$AQ$12:$AQ$258)) ->  | H13: =IF(B13="","",SUMIF('D-3 Off-Site Habitat Enhancment'!$AU$12:$AU$258,'Off-site gain site summary'!B13,'D-3 Off-Site Habitat Enhancment'!$AP$12:$AP$258)) ->  | I13: =IF(B13="","",SUMIF('D-2 Off-Site Habitat Creation'!$AF$11:$AF$256,'Off-site gain site summary'!B13,'D-2 Off-Site Habitat Creation'!$AB$11:$AB$256)) ->  | J13: =IF(B13="","",SUMIF('D-2 Off-Site Habitat Creation'!$AF$11:$AF$256,'Off-site gain site summary'!B13,'D-2 Off-Site Habitat Creation'!$AA$11:$AA$256)) ->  | L13: =IF(ISBLANK(B13),"",IFERROR(_xlfn.XLOOKUP(B13,'D-2 Off-Site Habitat Creation'!$AF$11:$AF$256,'D-2 Off-Site Habitat Creation'!$Z$11:$Z$256),IFERROR(_xlfn.XLOOKUP(B13,'D-1 Off-Site Habitat Baseline'!AF$11:AF$258,'D-1 Off-Site Habitat Baseline'!S$11:S$258)," "))) ->  | N13: ='E-1 Off-Site Hedge Baseline'!AB16 -> 0 | P13: =IF(O13="","",SUMIF('E-1 Off-Site Hedge Baseline'!AB$10:AB$257,'Off-site gain site summary'!O13,'E-1 Off-Site Hedge Baseline'!Q$10:Q$257)) ->  | Q13: =IF(O13="","",SUMIF('E-1 Off-Site Hedge Baseline'!AB$10:AB$257,O13,'E-1 Off-Site Hedge Baseline'!N$10:N$257)) ->  | R13: =IF(O13="","",SUMIF('E-1 Off-Site Hedge Baseline'!$AB$10:$AB$257,'Off-site gain site summary'!$O13,'E-1 Off-Site Hedge Baseline'!$U$10:$U$257)) ->  | S13: =IF(O13="","",SUMIF('E-1 Off-Site Hedge Baseline'!$AB$10:$AB$257,'Off-site gain site summary'!$O13,'E-1 Off-Site Hedge Baseline'!$AY$10:$AY$257)) ->  | T13: =IF(O13="","",SUMIF('E-3 Off-Site Hedge Enhancement'!$AO$12:$AO$257,'Off-site gain site summary'!$O13,'E-3 Off-Site Hedge Enhancement'!$AK$12:$AK$257)) ->  | U13: =IF(O13="","",SUMIF('E-3 Off-Site Hedge Enhancement'!$AO$12:$AO$257,'Off-site gain site summary'!$O13,'E-3 Off-Site Hedge Enhancement'!$AJ$12:$AJ$257)) ->  | V13: =IF(O13="","",SUMIF('E-2 Off-Site Hedge Creation'!$AD$12:$AD$259,'Off-site gain site summary'!$O13,'E-2 Off-Site Hedge Creation'!$Z$12:$Z$259)) ->  | W13: =IF(O13="","",SUMIF('E-2 Off-Site Hedge Creation'!$AD$12:$AD$259,'Off-site gain site summary'!$O13,'E-2 Off-Site Hedge Creation'!$Y$12:$Y$259)) ->  | Y13: =IF(ISBLANK(O13),"", IFERROR(_xlfn.XLOOKUP(O13,'E-2 Off-Site Hedge Creation'!$AD$12:$AD$259,'E-2 Off-Site Hedge Creation'!$N$12:$N$259), IFERROR(_xlfn.XLOOKUP(O13,'E-1 Off-Site Hedge Baseline'!$AB$10:$AB$257,'E-1 Off-Site Hedge Baseline'!$P$10:$P$257), " "))) ->  | AA13: ='F-1 Off-Site WaterC'' Baseline'!AH16 -> 0 | AC13: =IF(AB13="","",SUMIF('F-1 Off-Site WaterC'' Baseline'!$AH$10:$AH$257,'Off-site gain site summary'!$AB13,'F-1 Off-Site WaterC'' Baseline'!$U$10:$U$257)) ->  | AD13: =IF(AB13="","",SUMIF('F-1 Off-Site WaterC'' Baseline'!$AH$10:$AH$257,'Off-site gain site summary'!$AB13,'F-1 Off-Site WaterC'' Baseline'!$R$10:$R$257)) ->  | AE13: =IF(AB13="","",SUMIF('F-1 Off-Site WaterC'' Baseline'!$AH$10:$AH$257,'Off-site gain site summary'!$AB13,'F-1 Off-Site WaterC'' Baseline'!$Z$10:$Z$257)) ->  | AF13: =IF(AB13="","",SUMIF('F-1 Off-Site WaterC'' Baseline'!$AH$10:$AH$257,'Off-site gain site summary'!$AB13,'F-1 Off-Site WaterC'' Baseline'!$BA$10:$BA$257)) ->  | AG13: =IF(AB13="","",SUMIF('F-3 Off-Site WaterC Enhancement'!$AT$12:$AT$257,'Off-site gain site summary'!$AB13,'F-3 Off-Site WaterC Enhancement'!$AP$12:$AP$257)) ->  | AH13: =IF(AB13="","",SUMIF('F-3 Off-Site WaterC Enhancement'!$AT$12:$AT$257,'Off-site gain site summary'!$AB13,'F-3 Off-Site WaterC Enhancement'!$AO$12:$AO$257)) ->  | AI13: =IF(AB13="","",SUMIF('F-2 Off-Site WaterC'' Creation'!$AG$12:$AG$259,'Off-site gain site summary'!$AB13,'F-2 Off-Site WaterC'' Creation'!$AC$12:$AC$259)) ->  | AJ13: =IF(AB13="","",SUMIF('F-2 Off-Site WaterC'' Creation'!$AG$12:$AG$259,'Off-site gain site summary'!$AB13,'F-2 Off-Site WaterC'' Creation'!$AB$12:$AB$259)) ->  | AL13: =IF(ISBLANK(AB13),"", IFERROR(_xlfn.XLOOKUP(AB13,'F-2 Off-Site WaterC'' Creation'!$AG$12:$AG$258,'F-2 Off-Site WaterC'' Creation'!$AA$12:$AA$258), IFERROR(_xlfn.XLOOKUP(AB13,'F-1 Off-Site WaterC'' Baseline'!$AH$10:$AH$257,'F-1 Off-Site WaterC'' Baseline'!$T$10:$T$257)," "))) -> 
A14: ='D-1 Off-Site Habitat Baseline'!AF18 -> 0 | C14: =IF(B14="","",SUMIF('D-1 Off-Site Habitat Baseline'!AF18:AF265,B14,'D-1 Off-Site Habitat Baseline'!T18:T265)) ->  | D14: =IF(B14="","",SUMIF('D-1 Off-Site Habitat Baseline'!$AF$11:$AF$258,B14,'D-1 Off-Site Habitat Baseline'!$Q$11:$Q$258)) ->  | E14: =IF(B14="","", SUMIF('D-1 Off-Site Habitat Baseline'!$AF$11:$AF$258,'Off-site gain site summary'!$B14,'D-1 Off-Site Habitat Baseline'!$X$11:$X$258)) ->  | F14: =IF(B14="","", SUMIF('D-1 Off-Site Habitat Baseline'!$AF$11:$AF$258,'Off-site gain site summary'!$B14,'D-1 Off-Site Habitat Baseline'!$AY$11:$AY$258)) ->  | G14: =IF(B14="","",SUMIF('D-3 Off-Site Habitat Enhancment'!$AU$12:$AU$258,'Off-site gain site summary'!B14,'D-3 Off-Site Habitat Enhancment'!$AQ$12:$AQ$258)) ->  | H14: =IF(B14="","",SUMIF('D-3 Off-Site Habitat Enhancment'!$AU$12:$AU$258,'Off-site gain site summary'!B14,'D-3 Off-Site Habitat Enhancment'!$AP$12:$AP$258)) ->  | I14: =IF(B14="","",SUMIF('D-2 Off-Site Habitat Creation'!$AF$11:$AF$256,'Off-site gain site summary'!B14,'D-2 Off-Site Habitat Creation'!$AB$11:$AB$256)) ->  | J14: =IF(B14="","",SUMIF('D-2 Off-Site Habitat Creation'!$AF$11:$AF$256,'Off-site gain site summary'!B14,'D-2 Off-Site Habitat Creation'!$AA$11:$AA$256)) ->  | L14: =IF(ISBLANK(B14),"",IFERROR(_xlfn.XLOOKUP(B14,'D-2 Off-Site Habitat Creation'!$AF$11:$AF$256,'D-2 Off-Site Habitat Creation'!$Z$11:$Z$256),IFERROR(_xlfn.XLOOKUP(B14,'D-1 Off-Site Habitat Baseline'!AF$11:AF$258,'D-1 Off-Site Habitat Baseline'!S$11:S$258)," "))) ->  | N14: ='E-1 Off-Site Hedge Baseline'!AB17 -> 0 | P14: =IF(O14="","",SUMIF('E-1 Off-Site Hedge Baseline'!AB$10:AB$257,'Off-site gain site summary'!O14,'E-1 Off-Site Hedge Baseline'!Q$10:Q$257)) ->  | Q14: =IF(O14="","",SUMIF('E-1 Off-Site Hedge Baseline'!AB$10:AB$257,O14,'E-1 Off-Site Hedge Baseline'!N$10:N$257)) ->  | R14: =IF(O14="","",SUMIF('E-1 Off-Site Hedge Baseline'!$AB$10:$AB$257,'Off-site gain site summary'!$O14,'E-1 Off-Site Hedge Baseline'!$U$10:$U$257)) ->  | S14: =IF(O14="","",SUMIF('E-1 Off-Site Hedge Baseline'!$AB$10:$AB$257,'Off-site gain site summary'!$O14,'E-1 Off-Site Hedge Baseline'!$AY$10:$AY$257)) ->  | T14: =IF(O14="","",SUMIF('E-3 Off-Site Hedge Enhancement'!$AO$12:$AO$257,'Off-site gain site summary'!$O14,'E-3 Off-Site Hedge Enhancement'!$AK$12:$AK$257)) ->  | U14: =IF(O14="","",SUMIF('E-3 Off-Site Hedge Enhancement'!$AO$12:$AO$257,'Off-site gain site summary'!$O14,'E-3 Off-Site Hedge Enhancement'!$AJ$12:$AJ$257)) ->  | V14: =IF(O14="","",SUMIF('E-2 Off-Site Hedge Creation'!$AD$12:$AD$259,'Off-site gain site summary'!$O14,'E-2 Off-Site Hedge Creation'!$Z$12:$Z$259)) ->  | W14: =IF(O14="","",SUMIF('E-2 Off-Site Hedge Creation'!$AD$12:$AD$259,'Off-site gain site summary'!$O14,'E-2 Off-Site Hedge Creation'!$Y$12:$Y$259)) ->  | Y14: =IF(ISBLANK(O14),"", IFERROR(_xlfn.XLOOKUP(O14,'E-2 Off-Site Hedge Creation'!$AD$12:$AD$259,'E-2 Off-Site Hedge Creation'!$N$12:$N$259), IFERROR(_xlfn.XLOOKUP(O14,'E-1 Off-Site Hedge Baseline'!$AB$10:$AB$257,'E-1 Off-Site Hedge Baseline'!$P$10:$P$257), " "))) ->  | AA14: ='F-1 Off-Site WaterC'' Baseline'!AH17 -> 0 | AC14: =IF(AB14="","",SUMIF('F-1 Off-Site WaterC'' Baseline'!$AH$10:$AH$257,'Off-site gain site summary'!$AB14,'F-1 Off-Site WaterC'' Baseline'!$U$10:$U$257)) ->  | AD14: =IF(AB14="","",SUMIF('F-1 Off-Site WaterC'' Baseline'!$AH$10:$AH$257,'Off-site gain site summary'!$AB14,'F-1 Off-Site WaterC'' Baseline'!$R$10:$R$257)) ->  | AE14: =IF(AB14="","",SUMIF('F-1 Off-Site WaterC'' Baseline'!$AH$10:$AH$257,'Off-site gain site summary'!$AB14,'F-1 Off-Site WaterC'' Baseline'!$Z$10:$Z$257)) ->  | AF14: =IF(AB14="","",SUMIF('F-1 Off-Site WaterC'' Baseline'!$AH$10:$AH$257,'Off-site gain site summary'!$AB14,'F-1 Off-Site WaterC'' Baseline'!$BA$10:$BA$257)) ->  | AG14: =IF(AB14="","",SUMIF('F-3 Off-Site WaterC Enhancement'!$AT$12:$AT$257,'Off-site gain site summary'!$AB14,'F-3 Off-Site WaterC Enhancement'!$AP$12:$AP$257)) ->  | AH14: =IF(AB14="","",SUMIF('F-3 Off-Site WaterC Enhancement'!$AT$12:$AT$257,'Off-site gain site summary'!$AB14,'F-3 Off-Site WaterC Enhancement'!$AO$12:$AO$257)) ->  | AI14: =IF(AB14="","",SUMIF('F-2 Off-Site WaterC'' Creation'!$AG$12:$AG$259,'Off-site gain site summary'!$AB14,'F-2 Off-Site WaterC'' Creation'!$AC$12:$AC$259)) ->  | AJ14: =IF(AB14="","",SUMIF('F-2 Off-Site WaterC'' Creation'!$AG$12:$AG$259,'Off-site gain site summary'!$AB14,'F-2 Off-Site WaterC'' Creation'!$AB$12:$AB$259)) ->  | AL14: =IF(ISBLANK(AB14),"", IFERROR(_xlfn.XLOOKUP(AB14,'F-2 Off-Site WaterC'' Creation'!$AG$12:$AG$258,'F-2 Off-Site WaterC'' Creation'!$AA$12:$AA$258), IFERROR(_xlfn.XLOOKUP(AB14,'F-1 Off-Site WaterC'' Baseline'!$AH$10:$AH$257,'F-1 Off-Site WaterC'' Baseline'!$T$10:$T$257)," "))) -> 
A15: ='D-1 Off-Site Habitat Baseline'!AF19 -> 0 | C15: =IF(B15="","",SUMIF('D-1 Off-Site Habitat Baseline'!AF19:AF266,B15,'D-1 Off-Site Habitat Baseline'!T19:T266)) ->  | D15: =IF(B15="","",SUMIF('D-1 Off-Site Habitat Baseline'!$AF$11:$AF$258,B15,'D-1 Off-Site Habitat Baseline'!$Q$11:$Q$258)) ->  | E15: =IF(B15="","", SUMIF('D-1 Off-Site Habitat Baseline'!$AF$11:$AF$258,'Off-site gain site summary'!$B15,'D-1 Off-Site Habitat Baseline'!$X$11:$X$258)) ->  | F15: =IF(B15="","", SUMIF('D-1 Off-Site Habitat Baseline'!$AF$11:$AF$258,'Off-site gain site summary'!$B15,'D-1 Off-Site Habitat Baseline'!$AY$11:$AY$258)) ->  | G15: =IF(B15="","",SUMIF('D-3 Off-Site Habitat Enhancment'!$AU$12:$AU$258,'Off-site gain site summary'!B15,'D-3 Off-Site Habitat Enhancment'!$AQ$12:$AQ$258)) ->  | H15: =IF(B15="","",SUMIF('D-3 Off-Site Habitat Enhancment'!$AU$12:$AU$258,'Off-site gain site summary'!B15,'D-3 Off-Site Habitat Enhancment'!$AP$12:$AP$258)) ->  | I15: =IF(B15="","",SUMIF('D-2 Off-Site Habitat Creation'!$AF$11:$AF$256,'Off-site gain site summary'!B15,'D-2 Off-Site Habitat Creation'!$AB$11:$AB$256)) ->  | J15: =IF(B15="","",SUMIF('D-2 Off-Site Habitat Creation'!$AF$11:$AF$256,'Off-site gain site summary'!B15,'D-2 Off-Site Habitat Creation'!$AA$11:$AA$256)) ->  | L15: =IF(ISBLANK(B15),"",IFERROR(_xlfn.XLOOKUP(B15,'D-2 Off-Site Habitat Creation'!$AF$11:$AF$256,'D-2 Off-Site Habitat Creation'!$Z$11:$Z$256),IFERROR(_xlfn.XLOOKUP(B15,'D-1 Off-Site Habitat Baseline'!AF$11:AF$258,'D-1 Off-Site Habitat Baseline'!S$11:S$258)," "))) ->  | N15: ='E-1 Off-Site Hedge Baseline'!AB18 -> 0 | P15: =IF(O15="","",SUMIF('E-1 Off-Site Hedge Baseline'!AB$10:AB$257,'Off-site gain site summary'!O15,'E-1 Off-Site Hedge Baseline'!Q$10:Q$257)) ->  | Q15: =IF(O15="","",SUMIF('E-1 Off-Site Hedge Baseline'!AB$10:AB$257,O15,'E-1 Off-Site Hedge Baseline'!N$10:N$257)) ->  | R15: =IF(O15="","",SUMIF('E-1 Off-Site Hedge Baseline'!$AB$10:$AB$257,'Off-site gain site summary'!$O15,'E-1 Off-Site Hedge Baseline'!$U$10:$U$257)) ->  | S15: =IF(O15="","",SUMIF('E-1 Off-Site Hedge Baseline'!$AB$10:$AB$257,'Off-site gain site summary'!$O15,'E-1 Off-Site Hedge Baseline'!$AY$10:$AY$257)) ->  | T15: =IF(O15="","",SUMIF('E-3 Off-Site Hedge Enhancement'!$AO$12:$AO$257,'Off-site gain site summary'!$O15,'E-3 Off-Site Hedge Enhancement'!$AK$12:$AK$257)) ->  | U15: =IF(O15="","",SUMIF('E-3 Off-Site Hedge Enhancement'!$AO$12:$AO$257,'Off-site gain site summary'!$O15,'E-3 Off-Site Hedge Enhancement'!$AJ$12:$AJ$257)) ->  | V15: =IF(O15="","",SUMIF('E-2 Off-Site Hedge Creation'!$AD$12:$AD$259,'Off-site gain site summary'!$O15,'E-2 Off-Site Hedge Creation'!$Z$12:$Z$259)) ->  | W15: =IF(O15="","",SUMIF('E-2 Off-Site Hedge Creation'!$AD$12:$AD$259,'Off-site gain site summary'!$O15,'E-2 Off-Site Hedge Creation'!$Y$12:$Y$259)) ->  | Y15: =IF(ISBLANK(O15),"", IFERROR(_xlfn.XLOOKUP(O15,'E-2 Off-Site Hedge Creation'!$AD$12:$AD$259,'E-2 Off-Site Hedge Creation'!$N$12:$N$259), IFERROR(_xlfn.XLOOKUP(O15,'E-1 Off-Site Hedge Baseline'!$AB$10:$AB$257,'E-1 Off-Site Hedge Baseline'!$P$10:$P$257), " "))) ->  | AA15: ='F-1 Off-Site WaterC'' Baseline'!AH18 -> 0 | AC15: =IF(AB15="","",SUMIF('F-1 Off-Site WaterC'' Baseline'!$AH$10:$AH$257,'Off-site gain site summary'!$AB15,'F-1 Off-Site WaterC'' Baseline'!$U$10:$U$257)) ->  | AD15: =IF(AB15="","",SUMIF('F-1 Off-Site WaterC'' Baseline'!$AH$10:$AH$257,'Off-site gain site summary'!$AB15,'F-1 Off-Site WaterC'' Baseline'!$R$10:$R$257)) ->  | AE15: =IF(AB15="","",SUMIF('F-1 Off-Site WaterC'' Baseline'!$AH$10:$AH$257,'Off-site gain site summary'!$AB15,'F-1 Off-Site WaterC'' Baseline'!$Z$10:$Z$257)) ->  | AF15: =IF(AB15="","",SUMIF('F-1 Off-Site WaterC'' Baseline'!$AH$10:$AH$257,'Off-site gain site summary'!$AB15,'F-1 Off-Site WaterC'' Baseline'!$BA$10:$BA$257)) ->  | AG15: =IF(AB15="","",SUMIF('F-3 Off-Site WaterC Enhancement'!$AT$12:$AT$257,'Off-site gain site summary'!$AB15,'F-3 Off-Site WaterC Enhancement'!$AP$12:$AP$257)) ->  | AH15: =IF(AB15="","",SUMIF('F-3 Off-Site WaterC Enhancement'!$AT$12:$AT$257,'Off-site gain site summary'!$AB15,'F-3 Off-Site WaterC Enhancement'!$AO$12:$AO$257)) ->  | AI15: =IF(AB15="","",SUMIF('F-2 Off-Site WaterC'' Creation'!$AG$12:$AG$259,'Off-site gain site summary'!$AB15,'F-2 Off-Site WaterC'' Creation'!$AC$12:$AC$259)) ->  | AJ15: =IF(AB15="","",SUMIF('F-2 Off-Site WaterC'' Creation'!$AG$12:$AG$259,'Off-site gain site summary'!$AB15,'F-2 Off-Site WaterC'' Creation'!$AB$12:$AB$259)) ->  | AL15: =IF(ISBLANK(AB15),"", IFERROR(_xlfn.XLOOKUP(AB15,'F-2 Off-Site WaterC'' Creation'!$AG$12:$AG$258,'F-2 Off-Site WaterC'' Creation'!$AA$12:$AA$258), IFERROR(_xlfn.XLOOKUP(AB15,'F-1 Off-Site WaterC'' Baseline'!$AH$10:$AH$257,'F-1 Off-Site WaterC'' Baseline'!$T$10:$T$257)," "))) -> 
A16: ='D-1 Off-Site Habitat Baseline'!AF20 -> 0 | C16: =IF(B16="","",SUMIF('D-1 Off-Site Habitat Baseline'!AF20:AF267,B16,'D-1 Off-Site Habitat Baseline'!T20:T267)) ->  | D16: =IF(B16="","",SUMIF('D-1 Off-Site Habitat Baseline'!$AF$11:$AF$258,B16,'D-1 Off-Site Habitat Baseline'!$Q$11:$Q$258)) ->  | E16: =IF(B16="","", SUMIF('D-1 Off-Site Habitat Baseline'!$AF$11:$AF$258,'Off-site gain site summary'!$B16,'D-1 Off-Site Habitat Baseline'!$X$11:$X$258)) ->  | F16: =IF(B16="","", SUMIF('D-1 Off-Site Habitat Baseline'!$AF$11:$AF$258,'Off-site gain site summary'!$B16,'D-1 Off-Site Habitat Baseline'!$AY$11:$AY$258)) ->  | G16: =IF(B16="","",SUMIF('D-3 Off-Site Habitat Enhancment'!$AU$12:$AU$258,'Off-site gain site summary'!B16,'D-3 Off-Site Habitat Enhancment'!$AQ$12:$AQ$258)) ->  | H16: =IF(B16="","",SUMIF('D-3 Off-Site Habitat Enhancment'!$AU$12:$AU$258,'Off-site gain site summary'!B16,'D-3 Off-Site Habitat Enhancment'!$AP$12:$AP$258)) ->  | I16: =IF(B16="","",SUMIF('D-2 Off-Site Habitat Creation'!$AF$11:$AF$256,'Off-site gain site summary'!B16,'D-2 Off-Site Habitat Creation'!$AB$11:$AB$256)) ->  | J16: =IF(B16="","",SUMIF('D-2 Off-Site Habitat Creation'!$AF$11:$AF$256,'Off-site gain site summary'!B16,'D-2 Off-Site Habitat Creation'!$AA$11:$AA$256)) ->  | L16: =IF(ISBLANK(B16),"",IFERROR(_xlfn.XLOOKUP(B16,'D-2 Off-Site Habitat Creation'!$AF$11:$AF$256,'D-2 Off-Site Habitat Creation'!$Z$11:$Z$256),IFERROR(_xlfn.XLOOKUP(B16,'D-1 Off-Site Habitat Baseline'!AF$11:AF$258,'D-1 Off-Site Habitat Baseline'!S$11:S$258)," "))) ->  | N16: ='E-1 Off-Site Hedge Baseline'!AB19 -> 0 | P16: =IF(O16="","",SUMIF('E-1 Off-Site Hedge Baseline'!AB$10:AB$257,'Off-site gain site summary'!O16,'E-1 Off-Site Hedge Baseline'!Q$10:Q$257)) ->  | Q16: =IF(O16="","",SUMIF('E-1 Off-Site Hedge Baseline'!AB$10:AB$257,O16,'E-1 Off-Site Hedge Baseline'!N$10:N$257)) ->  | R16: =IF(O16="","",SUMIF('E-1 Off-Site Hedge Baseline'!$AB$10:$AB$257,'Off-site gain site summary'!$O16,'E-1 Off-Site Hedge Baseline'!$U$10:$U$257)) ->  | S16: =IF(O16="","",SUMIF('E-1 Off-Site Hedge Baseline'!$AB$10:$AB$257,'Off-site gain site summary'!$O16,'E-1 Off-Site Hedge Baseline'!$AY$10:$AY$257)) ->  | T16: =IF(O16="","",SUMIF('E-3 Off-Site Hedge Enhancement'!$AO$12:$AO$257,'Off-site gain site summary'!$O16,'E-3 Off-Site Hedge Enhancement'!$AK$12:$AK$257)) ->  | U16: =IF(O16="","",SUMIF('E-3 Off-Site Hedge Enhancement'!$AO$12:$AO$257,'Off-site gain site summary'!$O16,'E-3 Off-Site Hedge Enhancement'!$AJ$12:$AJ$257)) ->  | V16: =IF(O16="","",SUMIF('E-2 Off-Site Hedge Creation'!$AD$12:$AD$259,'Off-site gain site summary'!$O16,'E-2 Off-Site Hedge Creation'!$Z$12:$Z$259)) ->  | W16: =IF(O16="","",SUMIF('E-2 Off-Site Hedge Creation'!$AD$12:$AD$259,'Off-site gain site summary'!$O16,'E-2 Off-Site Hedge Creation'!$Y$12:$Y$259)) ->  | Y16: =IF(ISBLANK(O16),"", IFERROR(_xlfn.XLOOKUP(O16,'E-2 Off-Site Hedge Creation'!$AD$12:$AD$259,'E-2 Off-Site Hedge Creation'!$N$12:$N$259), IFERROR(_xlfn.XLOOKUP(O16,'E-1 Off-Site Hedge Baseline'!$AB$10:$AB$257,'E-1 Off-Site Hedge Baseline'!$P$10:$P$257), " "))) ->  | AA16: ='F-1 Off-Site WaterC'' Baseline'!AH19 -> 0 | AC16: =IF(AB16="","",SUMIF('F-1 Off-Site WaterC'' Baseline'!$AH$10:$AH$257,'Off-site gain site summary'!$AB16,'F-1 Off-Site WaterC'' Baseline'!$U$10:$U$257)) ->  | AD16: =IF(AB16="","",SUMIF('F-1 Off-Site WaterC'' Baseline'!$AH$10:$AH$257,'Off-site gain site summary'!$AB16,'F-1 Off-Site WaterC'' Baseline'!$R$10:$R$257)) ->  | AE16: =IF(AB16="","",SUMIF('F-1 Off-Site WaterC'' Baseline'!$AH$10:$AH$257,'Off-site gain site summary'!$AB16,'F-1 Off-Site WaterC'' Baseline'!$Z$10:$Z$257)) ->  | AF16: =IF(AB16="","",SUMIF('F-1 Off-Site WaterC'' Baseline'!$AH$10:$AH$257,'Off-site gain site summary'!$AB16,'F-1 Off-Site WaterC'' Baseline'!$BA$10:$BA$257)) ->  | AG16: =IF(AB16="","",SUMIF('F-3 Off-Site WaterC Enhancement'!$AT$12:$AT$257,'Off-site gain site summary'!$AB16,'F-3 Off-Site WaterC Enhancement'!$AP$12:$AP$257)) ->  | AH16: =IF(AB16="","",SUMIF('F-3 Off-Site WaterC Enhancement'!$AT$12:$AT$257,'Off-site gain site summary'!$AB16,'F-3 Off-Site WaterC Enhancement'!$AO$12:$AO$257)) ->  | AI16: =IF(AB16="","",SUMIF('F-2 Off-Site WaterC'' Creation'!$AG$12:$AG$259,'Off-site gain site summary'!$AB16,'F-2 Off-Site WaterC'' Creation'!$AC$12:$AC$259)) ->  | AJ16: =IF(AB16="","",SUMIF('F-2 Off-Site WaterC'' Creation'!$AG$12:$AG$259,'Off-site gain site summary'!$AB16,'F-2 Off-Site WaterC'' Creation'!$AB$12:$AB$259)) ->  | AL16: =IF(ISBLANK(AB16),"", IFERROR(_xlfn.XLOOKUP(AB16,'F-2 Off-Site WaterC'' Creation'!$AG$12:$AG$258,'F-2 Off-Site WaterC'' Creation'!$AA$12:$AA$258), IFERROR(_xlfn.XLOOKUP(AB16,'F-1 Off-Site WaterC'' Baseline'!$AH$10:$AH$257,'F-1 Off-Site WaterC'' Baseline'!$T$10:$T$257)," "))) -> 
A17: ='D-1 Off-Site Habitat Baseline'!AF21 -> 0 | C17: =IF(B17="","",SUMIF('D-1 Off-Site Habitat Baseline'!AF21:AF268,B17,'D-1 Off-Site Habitat Baseline'!T21:T268)) ->  | D17: =IF(B17="","",SUMIF('D-1 Off-Site Habitat Baseline'!$AF$11:$AF$258,B17,'D-1 Off-Site Habitat Baseline'!$Q$11:$Q$258)) ->  | E17: =IF(B17="","", SUMIF('D-1 Off-Site Habitat Baseline'!$AF$11:$AF$258,'Off-site gain site summary'!$B17,'D-1 Off-Site Habitat Baseline'!$X$11:$X$258)) ->  | F17: =IF(B17="","", SUMIF('D-1 Off-Site Habitat Baseline'!$AF$11:$AF$258,'Off-site gain site summary'!$B17,'D-1 Off-Site Habitat Baseline'!$AY$11:$AY$258)) ->  | G17: =IF(B17="","",SUMIF('D-3 Off-Site Habitat Enhancment'!$AU$12:$AU$258,'Off-site gain site summary'!B17,'D-3 Off-Site Habitat Enhancment'!$AQ$12:$AQ$258)) ->  | H17: =IF(B17="","",SUMIF('D-3 Off-Site Habitat Enhancment'!$AU$12:$AU$258,'Off-site gain site summary'!B17,'D-3 Off-Site Habitat Enhancment'!$AP$12:$AP$258)) ->  | I17: =IF(B17="","",SUMIF('D-2 Off-Site Habitat Creation'!$AF$11:$AF$256,'Off-site gain site summary'!B17,'D-2 Off-Site Habitat Creation'!$AB$11:$AB$256)) ->  | J17: =IF(B17="","",SUMIF('D-2 Off-Site Habitat Creation'!$AF$11:$AF$256,'Off-site gain site summary'!B17,'D-2 Off-Site Habitat Creation'!$AA$11:$AA$256)) ->  | L17: =IF(ISBLANK(B17),"",IFERROR(_xlfn.XLOOKUP(B17,'D-2 Off-Site Habitat Creation'!$AF$11:$AF$256,'D-2 Off-Site Habitat Creation'!$Z$11:$Z$256),IFERROR(_xlfn.XLOOKUP(B17,'D-1 Off-Site Habitat Baseline'!AF$11:AF$258,'D-1 Off-Site Habitat Baseline'!S$11:S$258)," "))) ->  | N17: ='E-1 Off-Site Hedge Baseline'!AB20 -> 0 | P17: =IF(O17="","",SUMIF('E-1 Off-Site Hedge Baseline'!AB$10:AB$257,'Off-site gain site summary'!O17,'E-1 Off-Site Hedge Baseline'!Q$10:Q$257)) ->  | Q17: =IF(O17="","",SUMIF('E-1 Off-Site Hedge Baseline'!AB$10:AB$257,O17,'E-1 Off-Site Hedge Baseline'!N$10:N$257)) ->  | R17: =IF(O17="","",SUMIF('E-1 Off-Site Hedge Baseline'!$AB$10:$AB$257,'Off-site gain site summary'!$O17,'E-1 Off-Site Hedge Baseline'!$U$10:$U$257)) ->  | S17: =IF(O17="","",SUMIF('E-1 Off-Site Hedge Baseline'!$AB$10:$AB$257,'Off-site gain site summary'!$O17,'E-1 Off-Site Hedge Baseline'!$AY$10:$AY$257)) ->  | T17: =IF(O17="","",SUMIF('E-3 Off-Site Hedge Enhancement'!$AO$12:$AO$257,'Off-site gain site summary'!$O17,'E-3 Off-Site Hedge Enhancement'!$AK$12:$AK$257)) ->  | U17: =IF(O17="","",SUMIF('E-3 Off-Site Hedge Enhancement'!$AO$12:$AO$257,'Off-site gain site summary'!$O17,'E-3 Off-Site Hedge Enhancement'!$AJ$12:$AJ$257)) ->  | V17: =IF(O17="","",SUMIF('E-2 Off-Site Hedge Creation'!$AD$12:$AD$259,'Off-site gain site summary'!$O17,'E-2 Off-Site Hedge Creation'!$Z$12:$Z$259)) ->  | W17: =IF(O17="","",SUMIF('E-2 Off-Site Hedge Creation'!$AD$12:$AD$259,'Off-site gain site summary'!$O17,'E-2 Off-Site Hedge Creation'!$Y$12:$Y$259)) ->  | Y17: =IF(ISBLANK(O17),"", IFERROR(_xlfn.XLOOKUP(O17,'E-2 Off-Site Hedge Creation'!$AD$12:$AD$259,'E-2 Off-Site Hedge Creation'!$N$12:$N$259), IFERROR(_xlfn.XLOOKUP(O17,'E-1 Off-Site Hedge Baseline'!$AB$10:$AB$257,'E-1 Off-Site Hedge Baseline'!$P$10:$P$257), " "))) ->  | AA17: ='F-1 Off-Site WaterC'' Baseline'!AH20 -> 0 | AC17: =IF(AB17="","",SUMIF('F-1 Off-Site WaterC'' Baseline'!$AH$10:$AH$257,'Off-site gain site summary'!$AB17,'F-1 Off-Site WaterC'' Baseline'!$U$10:$U$257)) ->  | AD17: =IF(AB17="","",SUMIF('F-1 Off-Site WaterC'' Baseline'!$AH$10:$AH$257,'Off-site gain site summary'!$AB17,'F-1 Off-Site WaterC'' Baseline'!$R$10:$R$257)) ->  | AE17: =IF(AB17="","",SUMIF('F-1 Off-Site WaterC'' Baseline'!$AH$10:$AH$257,'Off-site gain site summary'!$AB17,'F-1 Off-Site WaterC'' Baseline'!$Z$10:$Z$257)) ->  | AF17: =IF(AB17="","",SUMIF('F-1 Off-Site WaterC'' Baseline'!$AH$10:$AH$257,'Off-site gain site summary'!$AB17,'F-1 Off-Site WaterC'' Baseline'!$BA$10:$BA$257)) ->  | AG17: =IF(AB17="","",SUMIF('F-3 Off-Site WaterC Enhancement'!$AT$12:$AT$257,'Off-site gain site summary'!$AB17,'F-3 Off-Site WaterC Enhancement'!$AP$12:$AP$257)) ->  | AH17: =IF(AB17="","",SUMIF('F-3 Off-Site WaterC Enhancement'!$AT$12:$AT$257,'Off-site gain site summary'!$AB17,'F-3 Off-Site WaterC Enhancement'!$AO$12:$AO$257)) ->  | AI17: =IF(AB17="","",SUMIF('F-2 Off-Site WaterC'' Creation'!$AG$12:$AG$259,'Off-site gain site summary'!$AB17,'F-2 Off-Site WaterC'' Creation'!$AC$12:$AC$259)) ->  | AJ17: =IF(AB17="","",SUMIF('F-2 Off-Site WaterC'' Creation'!$AG$12:$AG$259,'Off-site gain site summary'!$AB17,'F-2 Off-Site WaterC'' Creation'!$AB$12:$AB$259)) ->  | AL17: =IF(ISBLANK(AB17),"", IFERROR(_xlfn.XLOOKUP(AB17,'F-2 Off-Site WaterC'' Creation'!$AG$12:$AG$258,'F-2 Off-Site WaterC'' Creation'!$AA$12:$AA$258), IFERROR(_xlfn.XLOOKUP(AB17,'F-1 Off-Site WaterC'' Baseline'!$AH$10:$AH$257,'F-1 Off-Site WaterC'' Baseline'!$T$10:$T$257)," "))) -> 
A18: ='D-1 Off-Site Habitat Baseline'!AF22 -> 0 | C18: =IF(B18="","",SUMIF('D-1 Off-Site Habitat Baseline'!AF22:AF269,B18,'D-1 Off-Site Habitat Baseline'!T22:T269)) ->  | D18: =IF(B18="","",SUMIF('D-1 Off-Site Habitat Baseline'!$AF$11:$AF$258,B18,'D-1 Off-Site Habitat Baseline'!$Q$11:$Q$258)) ->  | E18: =IF(B18="","", SUMIF('D-1 Off-Site Habitat Baseline'!$AF$11:$AF$258,'Off-site gain site summary'!$B18,'D-1 Off-Site Habitat Baseline'!$X$11:$X$258)) ->  | F18: =IF(B18="","", SUMIF('D-1 Off-Site Habitat Baseline'!$AF$11:$AF$258,'Off-site gain site summary'!$B18,'D-1 Off-Site Habitat Baseline'!$AY$11:$AY$258)) ->  | G18: =IF(B18="","",SUMIF('D-3 Off-Site Habitat Enhancment'!$AU$12:$AU$258,'Off-site gain site summary'!B18,'D-3 Off-Site Habitat Enhancment'!$AQ$12:$AQ$258)) ->  | H18: =IF(B18="","",SUMIF('D-3 Off-Site Habitat Enhancment'!$AU$12:$AU$258,'Off-site gain site summary'!B18,'D-3 Off-Site Habitat Enhancment'!$AP$12:$AP$258)) ->  | I18: =IF(B18="","",SUMIF('D-2 Off-Site Habitat Creation'!$AF$11:$AF$256,'Off-site gain site summary'!B18,'D-2 Off-Site Habitat Creation'!$AB$11:$AB$256)) ->  | J18: =IF(B18="","",SUMIF('D-2 Off-Site Habitat Creation'!$AF$11:$AF$256,'Off-site gain site summary'!B18,'D-2 Off-Site Habitat Creation'!$AA$11:$AA$256)) ->  | L18: =IF(ISBLANK(B18),"",IFERROR(_xlfn.XLOOKUP(B18,'D-2 Off-Site Habitat Creation'!$AF$11:$AF$256,'D-2 Off-Site Habitat Creation'!$Z$11:$Z$256),IFERROR(_xlfn.XLOOKUP(B18,'D-1 Off-Site Habitat Baseline'!AF$11:AF$258,'D-1 Off-Site Habitat Baseline'!S$11:S$258)," "))) ->  | N18: ='E-1 Off-Site Hedge Baseline'!AB21 -> 0 | P18: =IF(O18="","",SUMIF('E-1 Off-Site Hedge Baseline'!AB$10:AB$257,'Off-site gain site summary'!O18,'E-1 Off-Site Hedge Baseline'!Q$10:Q$257)) ->  | Q18: =IF(O18="","",SUMIF('E-1 Off-Site Hedge Baseline'!AB$10:AB$257,O18,'E-1 Off-Site Hedge Baseline'!N$10:N$257)) ->  | R18: =IF(O18="","",SUMIF('E-1 Off-Site Hedge Baseline'!$AB$10:$AB$257,'Off-site gain site summary'!$O18,'E-1 Off-Site Hedge Baseline'!$U$10:$U$257)) ->  | S18: =IF(O18="","",SUMIF('E-1 Off-Site Hedge Baseline'!$AB$10:$AB$257,'Off-site gain site summary'!$O18,'E-1 Off-Site Hedge Baseline'!$AY$10:$AY$257)) ->  | T18: =IF(O18="","",SUMIF('E-3 Off-Site Hedge Enhancement'!$AO$12:$AO$257,'Off-site gain site summary'!$O18,'E-3 Off-Site Hedge Enhancement'!$AK$12:$AK$257)) ->  | U18: =IF(O18="","",SUMIF('E-3 Off-Site Hedge Enhancement'!$AO$12:$AO$257,'Off-site gain site summary'!$O18,'E-3 Off-Site Hedge Enhancement'!$AJ$12:$AJ$257)) ->  | V18: =IF(O18="","",SUMIF('E-2 Off-Site Hedge Creation'!$AD$12:$AD$259,'Off-site gain site summary'!$O18,'E-2 Off-Site Hedge Creation'!$Z$12:$Z$259)) ->  | W18: =IF(O18="","",SUMIF('E-2 Off-Site Hedge Creation'!$AD$12:$AD$259,'Off-site gain site summary'!$O18,'E-2 Off-Site Hedge Creation'!$Y$12:$Y$259)) ->  | Y18: =IF(ISBLANK(O18),"", IFERROR(_xlfn.XLOOKUP(O18,'E-2 Off-Site Hedge Creation'!$AD$12:$AD$259,'E-2 Off-Site Hedge Creation'!$N$12:$N$259), IFERROR(_xlfn.XLOOKUP(O18,'E-1 Off-Site Hedge Baseline'!$AB$10:$AB$257,'E-1 Off-Site Hedge Baseline'!$P$10:$P$257), " "))) ->  | AA18: ='F-1 Off-Site WaterC'' Baseline'!AH21 -> 0 | AC18: =IF(AB18="","",SUMIF('F-1 Off-Site WaterC'' Baseline'!$AH$10:$AH$257,'Off-site gain site summary'!$AB18,'F-1 Off-Site WaterC'' Baseline'!$U$10:$U$257)) ->  | AD18: =IF(AB18="","",SUMIF('F-1 Off-Site WaterC'' Baseline'!$AH$10:$AH$257,'Off-site gain site summary'!$AB18,'F-1 Off-Site WaterC'' Baseline'!$R$10:$R$257)) ->  | AE18: =IF(AB18="","",SUMIF('F-1 Off-Site WaterC'' Baseline'!$AH$10:$AH$257,'Off-site gain site summary'!$AB18,'F-1 Off-Site WaterC'' Baseline'!$Z$10:$Z$257)) ->  | AF18: =IF(AB18="","",SUMIF('F-1 Off-Site WaterC'' Baseline'!$AH$10:$AH$257,'Off-site gain site summary'!$AB18,'F-1 Off-Site WaterC'' Baseline'!$BA$10:$BA$257)) ->  | AG18: =IF(AB18="","",SUMIF('F-3 Off-Site WaterC Enhancement'!$AT$12:$AT$257,'Off-site gain site summary'!$AB18,'F-3 Off-Site WaterC Enhancement'!$AP$12:$AP$257)) ->  | AH18: =IF(AB18="","",SUMIF('F-3 Off-Site WaterC Enhancement'!$AT$12:$AT$257,'Off-site gain site summary'!$AB18,'F-3 Off-Site WaterC Enhancement'!$AO$12:$AO$257)) ->  | AI18: =IF(AB18="","",SUMIF('F-2 Off-Site WaterC'' Creation'!$AG$12:$AG$259,'Off-site gain site summary'!$AB18,'F-2 Off-Site WaterC'' Creation'!$AC$12:$AC$259)) ->  | AJ18: =IF(AB18="","",SUMIF('F-2 Off-Site WaterC'' Creation'!$AG$12:$AG$259,'Off-site gain site summary'!$AB18,'F-2 Off-Site WaterC'' Creation'!$AB$12:$AB$259)) ->  | AL18: =IF(ISBLANK(AB18),"", IFERROR(_xlfn.XLOOKUP(AB18,'F-2 Off-Site WaterC'' Creation'!$AG$12:$AG$258,'F-2 Off-Site WaterC'' Creation'!$AA$12:$AA$258), IFERROR(_xlfn.XLOOKUP(AB18,'F-1 Off-Site WaterC'' Baseline'!$AH$10:$AH$257,'F-1 Off-Site WaterC'' Baseline'!$T$10:$T$257)," "))) -> 
A19: ='D-1 Off-Site Habitat Baseline'!AF23 -> 0 | C19: =IF(B19="","",SUMIF('D-1 Off-Site Habitat Baseline'!AF23:AF270,B19,'D-1 Off-Site Habitat Baseline'!T23:T270)) ->  | D19: =IF(B19="","",SUMIF('D-1 Off-Site Habitat Baseline'!$AF$11:$AF$258,B19,'D-1 Off-Site Habitat Baseline'!$Q$11:$Q$258)) ->  | E19: =IF(B19="","", SUMIF('D-1 Off-Site Habitat Baseline'!$AF$11:$AF$258,'Off-site gain site summary'!$B19,'D-1 Off-Site Habitat Baseline'!$X$11:$X$258)) ->  | F19: =IF(B19="","", SUMIF('D-1 Off-Site Habitat Baseline'!$AF$11:$AF$258,'Off-site gain site summary'!$B19,'D-1 Off-Site Habitat Baseline'!$AY$11:$AY$258)) ->  | G19: =IF(B19="","",SUMIF('D-3 Off-Site Habitat Enhancment'!$AU$12:$AU$258,'Off-site gain site summary'!B19,'D-3 Off-Site Habitat Enhancment'!$AQ$12:$AQ$258)) ->  | H19: =IF(B19="","",SUMIF('D-3 Off-Site Habitat Enhancment'!$AU$12:$AU$258,'Off-site gain site summary'!B19,'D-3 Off-Site Habitat Enhancment'!$AP$12:$AP$258)) ->  | I19: =IF(B19="","",SUMIF('D-2 Off-Site Habitat Creation'!$AF$11:$AF$256,'Off-site gain site summary'!B19,'D-2 Off-Site Habitat Creation'!$AB$11:$AB$256)) ->  | J19: =IF(B19="","",SUMIF('D-2 Off-Site Habitat Creation'!$AF$11:$AF$256,'Off-site gain site summary'!B19,'D-2 Off-Site Habitat Creation'!$AA$11:$AA$256)) ->  | L19: =IF(ISBLANK(B19),"",IFERROR(_xlfn.XLOOKUP(B19,'D-2 Off-Site Habitat Creation'!$AF$11:$AF$256,'D-2 Off-Site Habitat Creation'!$Z$11:$Z$256),IFERROR(_xlfn.XLOOKUP(B19,'D-1 Off-Site Habitat Baseline'!AF$11:AF$258,'D-1 Off-Site Habitat Baseline'!S$11:S$258)," "))) ->  | N19: ='E-1 Off-Site Hedge Baseline'!AB22 -> 0 | P19: =IF(O19="","",SUMIF('E-1 Off-Site Hedge Baseline'!AB$10:AB$257,'Off-site gain site summary'!O19,'E-1 Off-Site Hedge Baseline'!Q$10:Q$257)) ->  | Q19: =IF(O19="","",SUMIF('E-1 Off-Site Hedge Baseline'!AB$10:AB$257,O19,'E-1 Off-Site Hedge Baseline'!N$10:N$257)) ->  | R19: =IF(O19="","",SUMIF('E-1 Off-Site Hedge Baseline'!$AB$10:$AB$257,'Off-site gain site summary'!$O19,'E-1 Off-Site Hedge Baseline'!$U$10:$U$257)) ->  | S19: =IF(O19="","",SUMIF('E-1 Off-Site Hedge Baseline'!$AB$10:$AB$257,'Off-site gain site summary'!$O19,'E-1 Off-Site Hedge Baseline'!$AY$10:$AY$257)) ->  | T19: =IF(O19="","",SUMIF('E-3 Off-Site Hedge Enhancement'!$AO$12:$AO$257,'Off-site gain site summary'!$O19,'E-3 Off-Site Hedge Enhancement'!$AK$12:$AK$257)) ->  | U19: =IF(O19="","",SUMIF('E-3 Off-Site Hedge Enhancement'!$AO$12:$AO$257,'Off-site gain site summary'!$O19,'E-3 Off-Site Hedge Enhancement'!$AJ$12:$AJ$257)) ->  | V19: =IF(O19="","",SUMIF('E-2 Off-Site Hedge Creation'!$AD$12:$AD$259,'Off-site gain site summary'!$O19,'E-2 Off-Site Hedge Creation'!$Z$12:$Z$259)) ->  | W19: =IF(O19="","",SUMIF('E-2 Off-Site Hedge Creation'!$AD$12:$AD$259,'Off-site gain site summary'!$O19,'E-2 Off-Site Hedge Creation'!$Y$12:$Y$259)) ->  | Y19: =IF(ISBLANK(O19),"", IFERROR(_xlfn.XLOOKUP(O19,'E-2 Off-Site Hedge Creation'!$AD$12:$AD$259,'E-2 Off-Site Hedge Creation'!$N$12:$N$259), IFERROR(_xlfn.XLOOKUP(O19,'E-1 Off-Site Hedge Baseline'!$AB$10:$AB$257,'E-1 Off-Site Hedge Baseline'!$P$10:$P$257), " "))) ->  | AA19: ='F-1 Off-Site WaterC'' Baseline'!AH22 -> 0 | AC19: =IF(AB19="","",SUMIF('F-1 Off-Site WaterC'' Baseline'!$AH$10:$AH$257,'Off-site gain site summary'!$AB19,'F-1 Off-Site WaterC'' Baseline'!$U$10:$U$257)) ->  | AD19: =IF(AB19="","",SUMIF('F-1 Off-Site WaterC'' Baseline'!$AH$10:$AH$257,'Off-site gain site summary'!$AB19,'F-1 Off-Site WaterC'' Baseline'!$R$10:$R$257)) ->  | AE19: =IF(AB19="","",SUMIF('F-1 Off-Site WaterC'' Baseline'!$AH$10:$AH$257,'Off-site gain site summary'!$AB19,'F-1 Off-Site WaterC'' Baseline'!$Z$10:$Z$257)) ->  | AF19: =IF(AB19="","",SUMIF('F-1 Off-Site WaterC'' Baseline'!$AH$10:$AH$257,'Off-site gain site summary'!$AB19,'F-1 Off-Site WaterC'' Baseline'!$BA$10:$BA$257)) ->  | AG19: =IF(AB19="","",SUMIF('F-3 Off-Site WaterC Enhancement'!$AT$12:$AT$257,'Off-site gain site summary'!$AB19,'F-3 Off-Site WaterC Enhancement'!$AP$12:$AP$257)) ->  | AH19: =IF(AB19="","",SUMIF('F-3 Off-Site WaterC Enhancement'!$AT$12:$AT$257,'Off-site gain site summary'!$AB19,'F-3 Off-Site WaterC Enhancement'!$AO$12:$AO$257)) ->  | AI19: =IF(AB19="","",SUMIF('F-2 Off-Site WaterC'' Creation'!$AG$12:$AG$259,'Off-site gain site summary'!$AB19,'F-2 Off-Site WaterC'' Creation'!$AC$12:$AC$259)) ->  | AJ19: =IF(AB19="","",SUMIF('F-2 Off-Site WaterC'' Creation'!$AG$12:$AG$259,'Off-site gain site summary'!$AB19,'F-2 Off-Site WaterC'' Creation'!$AB$12:$AB$259)) ->  | AL19: =IF(ISBLANK(AB19),"", IFERROR(_xlfn.XLOOKUP(AB19,'F-2 Off-Site WaterC'' Creation'!$AG$12:$AG$258,'F-2 Off-Site WaterC'' Creation'!$AA$12:$AA$258), IFERROR(_xlfn.XLOOKUP(AB19,'F-1 Off-Site WaterC'' Baseline'!$AH$10:$AH$257,'F-1 Off-Site WaterC'' Baseline'!$T$10:$T$257)," "))) -> 
A20: ='D-1 Off-Site Habitat Baseline'!AF24 -> 0 | C20: =IF(B20="","",SUMIF('D-1 Off-Site Habitat Baseline'!AF24:AF271,B20,'D-1 Off-Site Habitat Baseline'!T24:T271)) ->  | D20: =IF(B20="","",SUMIF('D-1 Off-Site Habitat Baseline'!$AF$11:$AF$258,B20,'D-1 Off-Site Habitat Baseline'!$Q$11:$Q$258)) ->  | E20: =IF(B20="","", SUMIF('D-1 Off-Site Habitat Baseline'!$AF$11:$AF$258,'Off-site gain site summary'!$B20,'D-1 Off-Site Habitat Baseline'!$X$11:$X$258)) ->  | F20: =IF(B20="","", SUMIF('D-1 Off-Site Habitat Baseline'!$AF$11:$AF$258,'Off-site gain site summary'!$B20,'D-1 Off-Site Habitat Baseline'!$AY$11:$AY$258)) ->  | G20: =IF(B20="","",SUMIF('D-3 Off-Site Habitat Enhancment'!$AU$12:$AU$258,'Off-site gain site summary'!B20,'D-3 Off-Site Habitat Enhancment'!$AQ$12:$AQ$258)) ->  | H20: =IF(B20="","",SUMIF('D-3 Off-Site Habitat Enhancment'!$AU$12:$AU$258,'Off-site gain site summary'!B20,'D-3 Off-Site Habitat Enhancment'!$AP$12:$AP$258)) ->  | I20: =IF(B20="","",SUMIF('D-2 Off-Site Habitat Creation'!$AF$11:$AF$256,'Off-site gain site summary'!B20,'D-2 Off-Site Habitat Creation'!$AB$11:$AB$256)) ->  | J20: =IF(B20="","",SUMIF('D-2 Off-Site Habitat Creation'!$AF$11:$AF$256,'Off-site gain site summary'!B20,'D-2 Off-Site Habitat Creation'!$AA$11:$AA$256)) ->  | L20: =IF(ISBLANK(B20),"",IFERROR(_xlfn.XLOOKUP(B20,'D-2 Off-Site Habitat Creation'!$AF$11:$AF$256,'D-2 Off-Site Habitat Creation'!$Z$11:$Z$256),IFERROR(_xlfn.XLOOKUP(B20,'D-1 Off-Site Habitat Baseline'!AF$11:AF$258,'D-1 Off-Site Habitat Baseline'!S$11:S$258)," "))) ->  | N20: ='E-1 Off-Site Hedge Baseline'!AB23 -> 0 | P20: =IF(O20="","",SUMIF('E-1 Off-Site Hedge Baseline'!AB$10:AB$257,'Off-site gain site summary'!O20,'E-1 Off-Site Hedge Baseline'!Q$10:Q$257)) ->  | Q20: =IF(O20="","",SUMIF('E-1 Off-Site Hedge Baseline'!AB$10:AB$257,O20,'E-1 Off-Site Hedge Baseline'!N$10:N$257)) ->  | R20: =IF(O20="","",SUMIF('E-1 Off-Site Hedge Baseline'!$AB$10:$AB$257,'Off-site gain site summary'!$O20,'E-1 Off-Site Hedge Baseline'!$U$10:$U$257)) ->  | S20: =IF(O20="","",SUMIF('E-1 Off-Site Hedge Baseline'!$AB$10:$AB$257,'Off-site gain site summary'!$O20,'E-1 Off-Site Hedge Baseline'!$AY$10:$AY$257)) ->  | T20: =IF(O20="","",SUMIF('E-3 Off-Site Hedge Enhancement'!$AO$12:$AO$257,'Off-site gain site summary'!$O20,'E-3 Off-Site Hedge Enhancement'!$AK$12:$AK$257)) ->  | U20: =IF(O20="","",SUMIF('E-3 Off-Site Hedge Enhancement'!$AO$12:$AO$257,'Off-site gain site summary'!$O20,'E-3 Off-Site Hedge Enhancement'!$AJ$12:$AJ$257)) ->  | V20: =IF(O20="","",SUMIF('E-2 Off-Site Hedge Creation'!$AD$12:$AD$259,'Off-site gain site summary'!$O20,'E-2 Off-Site Hedge Creation'!$Z$12:$Z$259)) ->  | W20: =IF(O20="","",SUMIF('E-2 Off-Site Hedge Creation'!$AD$12:$AD$259,'Off-site gain site summary'!$O20,'E-2 Off-Site Hedge Creation'!$Y$12:$Y$259)) ->  | Y20: =IF(ISBLANK(O20),"", IFERROR(_xlfn.XLOOKUP(O20,'E-2 Off-Site Hedge Creation'!$AD$12:$AD$259,'E-2 Off-Site Hedge Creation'!$N$12:$N$259), IFERROR(_xlfn.XLOOKUP(O20,'E-1 Off-Site Hedge Baseline'!$AB$10:$AB$257,'E-1 Off-Site Hedge Baseline'!$P$10:$P$257), " "))) ->  | AA20: ='F-1 Off-Site WaterC'' Baseline'!AH23 -> 0 | AC20: =IF(AB20="","",SUMIF('F-1 Off-Site WaterC'' Baseline'!$AH$10:$AH$257,'Off-site gain site summary'!$AB20,'F-1 Off-Site WaterC'' Baseline'!$U$10:$U$257)) ->  | AD20: =IF(AB20="","",SUMIF('F-1 Off-Site WaterC'' Baseline'!$AH$10:$AH$257,'Off-site gain site summary'!$AB20,'F-1 Off-Site WaterC'' Baseline'!$R$10:$R$257)) ->  | AE20: =IF(AB20="","",SUMIF('F-1 Off-Site WaterC'' Baseline'!$AH$10:$AH$257,'Off-site gain site summary'!$AB20,'F-1 Off-Site WaterC'' Baseline'!$Z$10:$Z$257)) ->  | AF20: =IF(AB20="","",SUMIF('F-1 Off-Site WaterC'' Baseline'!$AH$10:$AH$257,'Off-site gain site summary'!$AB20,'F-1 Off-Site WaterC'' Baseline'!$BA$10:$BA$257)) ->  | AG20: =IF(AB20="","",SUMIF('F-3 Off-Site WaterC Enhancement'!$AT$12:$AT$257,'Off-site gain site summary'!$AB20,'F-3 Off-Site WaterC Enhancement'!$AP$12:$AP$257)) ->  | AH20: =IF(AB20="","",SUMIF('F-3 Off-Site WaterC Enhancement'!$AT$12:$AT$257,'Off-site gain site summary'!$AB20,'F-3 Off-Site WaterC Enhancement'!$AO$12:$AO$257)) ->  | AI20: =IF(AB20="","",SUMIF('F-2 Off-Site WaterC'' Creation'!$AG$12:$AG$259,'Off-site gain site summary'!$AB20,'F-2 Off-Site WaterC'' Creation'!$AC$12:$AC$259)) ->  | AJ20: =IF(AB20="","",SUMIF('F-2 Off-Site WaterC'' Creation'!$AG$12:$AG$259,'Off-site gain site summary'!$AB20,'F-2 Off-Site WaterC'' Creation'!$AB$12:$AB$259)) ->  | AL20: =IF(ISBLANK(AB20),"", IFERROR(_xlfn.XLOOKUP(AB20,'F-2 Off-Site WaterC'' Creation'!$AG$12:$AG$258,'F-2 Off-Site WaterC'' Creation'!$AA$12:$AA$258), IFERROR(_xlfn.XLOOKUP(AB20,'F-1 Off-Site WaterC'' Baseline'!$AH$10:$AH$257,'F-1 Off-Site WaterC'' Baseline'!$T$10:$T$257)," "))) -> 
A21: ='D-1 Off-Site Habitat Baseline'!AF25 -> 0 | C21: =IF(B21="","",SUMIF('D-1 Off-Site Habitat Baseline'!AF25:AF272,B21,'D-1 Off-Site Habitat Baseline'!T25:T272)) ->  | D21: =IF(B21="","",SUMIF('D-1 Off-Site Habitat Baseline'!$AF$11:$AF$258,B21,'D-1 Off-Site Habitat Baseline'!$Q$11:$Q$258)) ->  | E21: =IF(B21="","", SUMIF('D-1 Off-Site Habitat Baseline'!$AF$11:$AF$258,'Off-site gain site summary'!$B21,'D-1 Off-Site Habitat Baseline'!$X$11:$X$258)) ->  | F21: =IF(B21="","", SUMIF('D-1 Off-Site Habitat Baseline'!$AF$11:$AF$258,'Off-site gain site summary'!$B21,'D-1 Off-Site Habitat Baseline'!$AY$11:$AY$258)) ->  | G21: =IF(B21="","",SUMIF('D-3 Off-Site Habitat Enhancment'!$AU$12:$AU$258,'Off-site gain site summary'!B21,'D-3 Off-Site Habitat Enhancment'!$AQ$12:$AQ$258)) ->  | H21: =IF(B21="","",SUMIF('D-3 Off-Site Habitat Enhancment'!$AU$12:$AU$258,'Off-site gain site summary'!B21,'D-3 Off-Site Habitat Enhancment'!$AP$12:$AP$258)) ->  | I21: =IF(B21="","",SUMIF('D-2 Off-Site Habitat Creation'!$AF$11:$AF$256,'Off-site gain site summary'!B21,'D-2 Off-Site Habitat Creation'!$AB$11:$AB$256)) ->  | J21: =IF(B21="","",SUMIF('D-2 Off-Site Habitat Creation'!$AF$11:$AF$256,'Off-site gain site summary'!B21,'D-2 Off-Site Habitat Creation'!$AA$11:$AA$256)) ->  | L21: =IF(ISBLANK(B21),"",IFERROR(_xlfn.XLOOKUP(B21,'D-2 Off-Site Habitat Creation'!$AF$11:$AF$256,'D-2 Off-Site Habitat Creation'!$Z$11:$Z$256),IFERROR(_xlfn.XLOOKUP(B21,'D-1 Off-Site Habitat Baseline'!AF$11:AF$258,'D-1 Off-Site Habitat Baseline'!S$11:S$258)," "))) ->  | N21: ='E-1 Off-Site Hedge Baseline'!AB24 -> 0 | P21: =IF(O21="","",SUMIF('E-1 Off-Site Hedge Baseline'!AB$10:AB$257,'Off-site gain site summary'!O21,'E-1 Off-Site Hedge Baseline'!Q$10:Q$257)) ->  | Q21: =IF(O21="","",SUMIF('E-1 Off-Site Hedge Baseline'!AB$10:AB$257,O21,'E-1 Off-Site Hedge Baseline'!N$10:N$257)) ->  | R21: =IF(O21="","",SUMIF('E-1 Off-Site Hedge Baseline'!$AB$10:$AB$257,'Off-site gain site summary'!$O21,'E-1 Off-Site Hedge Baseline'!$U$10:$U$257)) ->  | S21: =IF(O21="","",SUMIF('E-1 Off-Site Hedge Baseline'!$AB$10:$AB$257,'Off-site gain site summary'!$O21,'E-1 Off-Site Hedge Baseline'!$AY$10:$AY$257)) ->  | T21: =IF(O21="","",SUMIF('E-3 Off-Site Hedge Enhancement'!$AO$12:$AO$257,'Off-site gain site summary'!$O21,'E-3 Off-Site Hedge Enhancement'!$AK$12:$AK$257)) ->  | U21: =IF(O21="","",SUMIF('E-3 Off-Site Hedge Enhancement'!$AO$12:$AO$257,'Off-site gain site summary'!$O21,'E-3 Off-Site Hedge Enhancement'!$AJ$12:$AJ$257)) ->  | V21: =IF(O21="","",SUMIF('E-2 Off-Site Hedge Creation'!$AD$12:$AD$259,'Off-site gain site summary'!$O21,'E-2 Off-Site Hedge Creation'!$Z$12:$Z$259)) ->  | W21: =IF(O21="","",SUMIF('E-2 Off-Site Hedge Creation'!$AD$12:$AD$259,'Off-site gain site summary'!$O21,'E-2 Off-Site Hedge Creation'!$Y$12:$Y$259)) ->  | Y21: =IF(ISBLANK(O21),"", IFERROR(_xlfn.XLOOKUP(O21,'E-2 Off-Site Hedge Creation'!$AD$12:$AD$259,'E-2 Off-Site Hedge Creation'!$N$12:$N$259), IFERROR(_xlfn.XLOOKUP(O21,'E-1 Off-Site Hedge Baseline'!$AB$10:$AB$257,'E-1 Off-Site Hedge Baseline'!$P$10:$P$257), " "))) ->  | AA21: ='F-1 Off-Site WaterC'' Baseline'!AH24 -> 0 | AC21: =IF(AB21="","",SUMIF('F-1 Off-Site WaterC'' Baseline'!$AH$10:$AH$257,'Off-site gain site summary'!$AB21,'F-1 Off-Site WaterC'' Baseline'!$U$10:$U$257)) ->  | AD21: =IF(AB21="","",SUMIF('F-1 Off-Site WaterC'' Baseline'!$AH$10:$AH$257,'Off-site gain site summary'!$AB21,'F-1 Off-Site WaterC'' Baseline'!$R$10:$R$257)) ->  | AE21: =IF(AB21="","",SUMIF('F-1 Off-Site WaterC'' Baseline'!$AH$10:$AH$257,'Off-site gain site summary'!$AB21,'F-1 Off-Site WaterC'' Baseline'!$Z$10:$Z$257)) ->  | AF21: =IF(AB21="","",SUMIF('F-1 Off-Site WaterC'' Baseline'!$AH$10:$AH$257,'Off-site gain site summary'!$AB21,'F-1 Off-Site WaterC'' Baseline'!$BA$10:$BA$257)) ->  | AG21: =IF(AB21="","",SUMIF('F-3 Off-Site WaterC Enhancement'!$AT$12:$AT$257,'Off-site gain site summary'!$AB21,'F-3 Off-Site WaterC Enhancement'!$AP$12:$AP$257)) ->  | AH21: =IF(AB21="","",SUMIF('F-3 Off-Site WaterC Enhancement'!$AT$12:$AT$257,'Off-site gain site summary'!$AB21,'F-3 Off-Site WaterC Enhancement'!$AO$12:$AO$257)) ->  | AI21: =IF(AB21="","",SUMIF('F-2 Off-Site WaterC'' Creation'!$AG$12:$AG$259,'Off-site gain site summary'!$AB21,'F-2 Off-Site WaterC'' Creation'!$AC$12:$AC$259)) ->  | AJ21: =IF(AB21="","",SUMIF('F-2 Off-Site WaterC'' Creation'!$AG$12:$AG$259,'Off-site gain site summary'!$AB21,'F-2 Off-Site WaterC'' Creation'!$AB$12:$AB$259)) ->  | AL21: =IF(ISBLANK(AB21),"", IFERROR(_xlfn.XLOOKUP(AB21,'F-2 Off-Site WaterC'' Creation'!$AG$12:$AG$258,'F-2 Off-Site WaterC'' Creation'!$AA$12:$AA$258), IFERROR(_xlfn.XLOOKUP(AB21,'F-1 Off-Site WaterC'' Baseline'!$AH$10:$AH$257,'F-1 Off-Site WaterC'' Baseline'!$T$10:$T$257)," "))) -> 
A22: ='D-1 Off-Site Habitat Baseline'!AF26 -> 0 | C22: =IF(B22="","",SUMIF('D-1 Off-Site Habitat Baseline'!AF26:AF273,B22,'D-1 Off-Site Habitat Baseline'!T26:T273)) ->  | D22: =IF(B22="","",SUMIF('D-1 Off-Site Habitat Baseline'!$AF$11:$AF$258,B22,'D-1 Off-Site Habitat Baseline'!$Q$11:$Q$258)) ->  | E22: =IF(B22="","", SUMIF('D-1 Off-Site Habitat Baseline'!$AF$11:$AF$258,'Off-site gain site summary'!$B22,'D-1 Off-Site Habitat Baseline'!$X$11:$X$258)) ->  | F22: =IF(B22="","", SUMIF('D-1 Off-Site Habitat Baseline'!$AF$11:$AF$258,'Off-site gain site summary'!$B22,'D-1 Off-Site Habitat Baseline'!$AY$11:$AY$258)) ->  | G22: =IF(B22="","",SUMIF('D-3 Off-Site Habitat Enhancment'!$AU$12:$AU$258,'Off-site gain site summary'!B22,'D-3 Off-Site Habitat Enhancment'!$AQ$12:$AQ$258)) ->  | H22: =IF(B22="","",SUMIF('D-3 Off-Site Habitat Enhancment'!$AU$12:$AU$258,'Off-site gain site summary'!B22,'D-3 Off-Site Habitat Enhancment'!$AP$12:$AP$258)) ->  | I22: =IF(B22="","",SUMIF('D-2 Off-Site Habitat Creation'!$AF$11:$AF$256,'Off-site gain site summary'!B22,'D-2 Off-Site Habitat Creation'!$AB$11:$AB$256)) ->  | J22: =IF(B22="","",SUMIF('D-2 Off-Site Habitat Creation'!$AF$11:$AF$256,'Off-site gain site summary'!B22,'D-2 Off-Site Habitat Creation'!$AA$11:$AA$256)) ->  | L22: =IF(ISBLANK(B22),"",IFERROR(_xlfn.XLOOKUP(B22,'D-2 Off-Site Habitat Creation'!$AF$11:$AF$256,'D-2 Off-Site Habitat Creation'!$Z$11:$Z$256),IFERROR(_xlfn.XLOOKUP(B22,'D-1 Off-Site Habitat Baseline'!AF$11:AF$258,'D-1 Off-Site Habitat Baseline'!S$11:S$258)," "))) ->  | N22: ='E-1 Off-Site Hedge Baseline'!AB25 -> 0 | P22: =IF(O22="","",SUMIF('E-1 Off-Site Hedge Baseline'!AB$10:AB$257,'Off-site gain site summary'!O22,'E-1 Off-Site Hedge Baseline'!Q$10:Q$257)) ->  | Q22: =IF(O22="","",SUMIF('E-1 Off-Site Hedge Baseline'!AB$10:AB$257,O22,'E-1 Off-Site Hedge Baseline'!N$10:N$257)) ->  | R22: =IF(O22="","",SUMIF('E-1 Off-Site Hedge Baseline'!$AB$10:$AB$257,'Off-site gain site summary'!$O22,'E-1 Off-Site Hedge Baseline'!$U$10:$U$257)) ->  | S22: =IF(O22="","",SUMIF('E-1 Off-Site Hedge Baseline'!$AB$10:$AB$257,'Off-site gain site summary'!$O22,'E-1 Off-Site Hedge Baseline'!$AY$10:$AY$257)) ->  | T22: =IF(O22="","",SUMIF('E-3 Off-Site Hedge Enhancement'!$AO$12:$AO$257,'Off-site gain site summary'!$O22,'E-3 Off-Site Hedge Enhancement'!$AK$12:$AK$257)) ->  | U22: =IF(O22="","",SUMIF('E-3 Off-Site Hedge Enhancement'!$AO$12:$AO$257,'Off-site gain site summary'!$O22,'E-3 Off-Site Hedge Enhancement'!$AJ$12:$AJ$257)) ->  | V22: =IF(O22="","",SUMIF('E-2 Off-Site Hedge Creation'!$AD$12:$AD$259,'Off-site gain site summary'!$O22,'E-2 Off-Site Hedge Creation'!$Z$12:$Z$259)) ->  | W22: =IF(O22="","",SUMIF('E-2 Off-Site Hedge Creation'!$AD$12:$AD$259,'Off-site gain site summary'!$O22,'E-2 Off-Site Hedge Creation'!$Y$12:$Y$259)) ->  | Y22: =IF(ISBLANK(O22),"", IFERROR(_xlfn.XLOOKUP(O22,'E-2 Off-Site Hedge Creation'!$AD$12:$AD$259,'E-2 Off-Site Hedge Creation'!$N$12:$N$259), IFERROR(_xlfn.XLOOKUP(O22,'E-1 Off-Site Hedge Baseline'!$AB$10:$AB$257,'E-1 Off-Site Hedge Baseline'!$P$10:$P$257), " "))) ->  | AA22: ='F-1 Off-Site WaterC'' Baseline'!AH25 -> 0 | AC22: =IF(AB22="","",SUMIF('F-1 Off-Site WaterC'' Baseline'!$AH$10:$AH$257,'Off-site gain site summary'!$AB22,'F-1 Off-Site WaterC'' Baseline'!$U$10:$U$257)) ->  | AD22: =IF(AB22="","",SUMIF('F-1 Off-Site WaterC'' Baseline'!$AH$10:$AH$257,'Off-site gain site summary'!$AB22,'F-1 Off-Site WaterC'' Baseline'!$R$10:$R$257)) ->  | AE22: =IF(AB22="","",SUMIF('F-1 Off-Site WaterC'' Baseline'!$AH$10:$AH$257,'Off-site gain site summary'!$AB22,'F-1 Off-Site WaterC'' Baseline'!$Z$10:$Z$257)) ->  | AF22: =IF(AB22="","",SUMIF('F-1 Off-Site WaterC'' Baseline'!$AH$10:$AH$257,'Off-site gain site summary'!$AB22,'F-1 Off-Site WaterC'' Baseline'!$BA$10:$BA$257)) ->  | AG22: =IF(AB22="","",SUMIF('F-3 Off-Site WaterC Enhancement'!$AT$12:$AT$257,'Off-site gain site summary'!$AB22,'F-3 Off-Site WaterC Enhancement'!$AP$12:$AP$257)) ->  | AH22: =IF(AB22="","",SUMIF('F-3 Off-Site WaterC Enhancement'!$AT$12:$AT$257,'Off-site gain site summary'!$AB22,'F-3 Off-Site WaterC Enhancement'!$AO$12:$AO$257)) ->  | AI22: =IF(AB22="","",SUMIF('F-2 Off-Site WaterC'' Creation'!$AG$12:$AG$259,'Off-site gain site summary'!$AB22,'F-2 Off-Site WaterC'' Creation'!$AC$12:$AC$259)) ->  | AJ22: =IF(AB22="","",SUMIF('F-2 Off-Site WaterC'' Creation'!$AG$12:$AG$259,'Off-site gain site summary'!$AB22,'F-2 Off-Site WaterC'' Creation'!$AB$12:$AB$259)) ->  | AL22: =IF(ISBLANK(AB22),"", IFERROR(_xlfn.XLOOKUP(AB22,'F-2 Off-Site WaterC'' Creation'!$AG$12:$AG$258,'F-2 Off-Site WaterC'' Creation'!$AA$12:$AA$258), IFERROR(_xlfn.XLOOKUP(AB22,'F-1 Off-Site WaterC'' Baseline'!$AH$10:$AH$257,'F-1 Off-Site WaterC'' Baseline'!$T$10:$T$257)," "))) -> 
A23: ='D-1 Off-Site Habitat Baseline'!AF27 -> 0 | C23: =IF(B23="","",SUMIF('D-1 Off-Site Habitat Baseline'!AF27:AF274,B23,'D-1 Off-Site Habitat Baseline'!T27:T274)) ->  | D23: =IF(B23="","",SUMIF('D-1 Off-Site Habitat Baseline'!$AF$11:$AF$258,B23,'D-1 Off-Site Habitat Baseline'!$Q$11:$Q$258)) ->  | E23: =IF(B23="","", SUMIF('D-1 Off-Site Habitat Baseline'!$AF$11:$AF$258,'Off-site gain site summary'!$B23,'D-1 Off-Site Habitat Baseline'!$X$11:$X$258)) ->  | F23: =IF(B23="","", SUMIF('D-1 Off-Site Habitat Baseline'!$AF$11:$AF$258,'Off-site gain site summary'!$B23,'D-1 Off-Site Habitat Baseline'!$AY$11:$AY$258)) ->  | G23: =IF(B23="","",SUMIF('D-3 Off-Site Habitat Enhancment'!$AU$12:$AU$258,'Off-site gain site summary'!B23,'D-3 Off-Site Habitat Enhancment'!$AQ$12:$AQ$258)) ->  | H23: =IF(B23="","",SUMIF('D-3 Off-Site Habitat Enhancment'!$AU$12:$AU$258,'Off-site gain site summary'!B23,'D-3 Off-Site Habitat Enhancment'!$AP$12:$AP$258)) ->  | I23: =IF(B23="","",SUMIF('D-2 Off-Site Habitat Creation'!$AF$11:$AF$256,'Off-site gain site summary'!B23,'D-2 Off-Site Habitat Creation'!$AB$11:$AB$256)) ->  | J23: =IF(B23="","",SUMIF('D-2 Off-Site Habitat Creation'!$AF$11:$AF$256,'Off-site gain site summary'!B23,'D-2 Off-Site Habitat Creation'!$AA$11:$AA$256)) ->  | L23: =IF(ISBLANK(B23),"",IFERROR(_xlfn.XLOOKUP(B23,'D-2 Off-Site Habitat Creation'!$AF$11:$AF$256,'D-2 Off-Site Habitat Creation'!$Z$11:$Z$256),IFERROR(_xlfn.XLOOKUP(B23,'D-1 Off-Site Habitat Baseline'!AF$11:AF$258,'D-1 Off-Site Habitat Baseline'!S$11:S$258)," "))) ->  | N23: ='E-1 Off-Site Hedge Baseline'!AB26 -> 0 | P23: =IF(O23="","",SUMIF('E-1 Off-Site Hedge Baseline'!AB$10:AB$257,'Off-site gain site summary'!O23,'E-1 Off-Site Hedge Baseline'!Q$10:Q$257)) ->  | Q23: =IF(O23="","",SUMIF('E-1 Off-Site Hedge Baseline'!AB$10:AB$257,O23,'E-1 Off-Site Hedge Baseline'!N$10:N$257)) ->  | R23: =IF(O23="","",SUMIF('E-1 Off-Site Hedge Baseline'!$AB$10:$AB$257,'Off-site gain site summary'!$O23,'E-1 Off-Site Hedge Baseline'!$U$10:$U$257)) ->  | S23: =IF(O23="","",SUMIF('E-1 Off-Site Hedge Baseline'!$AB$10:$AB$257,'Off-site gain site summary'!$O23,'E-1 Off-Site Hedge Baseline'!$AY$10:$AY$257)) ->  | T23: =IF(O23="","",SUMIF('E-3 Off-Site Hedge Enhancement'!$AO$12:$AO$257,'Off-site gain site summary'!$O23,'E-3 Off-Site Hedge Enhancement'!$AK$12:$AK$257)) ->  | U23: =IF(O23="","",SUMIF('E-3 Off-Site Hedge Enhancement'!$AO$12:$AO$257,'Off-site gain site summary'!$O23,'E-3 Off-Site Hedge Enhancement'!$AJ$12:$AJ$257)) ->  | V23: =IF(O23="","",SUMIF('E-2 Off-Site Hedge Creation'!$AD$12:$AD$259,'Off-site gain site summary'!$O23,'E-2 Off-Site Hedge Creation'!$Z$12:$Z$259)) ->  | W23: =IF(O23="","",SUMIF('E-2 Off-Site Hedge Creation'!$AD$12:$AD$259,'Off-site gain site summary'!$O23,'E-2 Off-Site Hedge Creation'!$Y$12:$Y$259)) ->  | Y23: =IF(ISBLANK(O23),"", IFERROR(_xlfn.XLOOKUP(O23,'E-2 Off-Site Hedge Creation'!$AD$12:$AD$259,'E-2 Off-Site Hedge Creation'!$N$12:$N$259), IFERROR(_xlfn.XLOOKUP(O23,'E-1 Off-Site Hedge Baseline'!$AB$10:$AB$257,'E-1 Off-Site Hedge Baseline'!$P$10:$P$257), " "))) ->  | AA23: ='F-1 Off-Site WaterC'' Baseline'!AH26 -> 0 | AC23: =IF(AB23="","",SUMIF('F-1 Off-Site WaterC'' Baseline'!$AH$10:$AH$257,'Off-site gain site summary'!$AB23,'F-1 Off-Site WaterC'' Baseline'!$U$10:$U$257)) ->  | AD23: =IF(AB23="","",SUMIF('F-1 Off-Site WaterC'' Baseline'!$AH$10:$AH$257,'Off-site gain site summary'!$AB23,'F-1 Off-Site WaterC'' Baseline'!$R$10:$R$257)) ->  | AE23: =IF(AB23="","",SUMIF('F-1 Off-Site WaterC'' Baseline'!$AH$10:$AH$257,'Off-site gain site summary'!$AB23,'F-1 Off-Site WaterC'' Baseline'!$Z$10:$Z$257)) ->  | AF23: =IF(AB23="","",SUMIF('F-1 Off-Site WaterC'' Baseline'!$AH$10:$AH$257,'Off-site gain site summary'!$AB23,'F-1 Off-Site WaterC'' Baseline'!$BA$10:$BA$257)) ->  | AG23: =IF(AB23="","",SUMIF('F-3 Off-Site WaterC Enhancement'!$AT$12:$AT$257,'Off-site gain site summary'!$AB23,'F-3 Off-Site WaterC Enhancement'!$AP$12:$AP$257)) ->  | AH23: =IF(AB23="","",SUMIF('F-3 Off-Site WaterC Enhancement'!$AT$12:$AT$257,'Off-site gain site summary'!$AB23,'F-3 Off-Site WaterC Enhancement'!$AO$12:$AO$257)) ->  | AI23: =IF(AB23="","",SUMIF('F-2 Off-Site WaterC'' Creation'!$AG$12:$AG$259,'Off-site gain site summary'!$AB23,'F-2 Off-Site WaterC'' Creation'!$AC$12:$AC$259)) ->  | AJ23: =IF(AB23="","",SUMIF('F-2 Off-Site WaterC'' Creation'!$AG$12:$AG$259,'Off-site gain site summary'!$AB23,'F-2 Off-Site WaterC'' Creation'!$AB$12:$AB$259)) ->  | AL23: =IF(ISBLANK(AB23),"", IFERROR(_xlfn.XLOOKUP(AB23,'F-2 Off-Site WaterC'' Creation'!$AG$12:$AG$258,'F-2 Off-Site WaterC'' Creation'!$AA$12:$AA$258), IFERROR(_xlfn.XLOOKUP(AB23,'F-1 Off-Site WaterC'' Baseline'!$AH$10:$AH$257,'F-1 Off-Site WaterC'' Baseline'!$T$10:$T$257)," "))) -> 
A24: ='D-1 Off-Site Habitat Baseline'!AF28 -> 0 | C24: =IF(B24="","",SUMIF('D-1 Off-Site Habitat Baseline'!AF28:AF275,B24,'D-1 Off-Site Habitat Baseline'!T28:T275)) ->  | D24: =IF(B24="","",SUMIF('D-1 Off-Site Habitat Baseline'!$AF$11:$AF$258,B24,'D-1 Off-Site Habitat Baseline'!$Q$11:$Q$258)) ->  | E24: =IF(B24="","", SUMIF('D-1 Off-Site Habitat Baseline'!$AF$11:$AF$258,'Off-site gain site summary'!$B24,'D-1 Off-Site Habitat Baseline'!$X$11:$X$258)) ->  | F24: =IF(B24="","", SUMIF('D-1 Off-Site Habitat Baseline'!$AF$11:$AF$258,'Off-site gain site summary'!$B24,'D-1 Off-Site Habitat Baseline'!$AY$11:$AY$258)) ->  | G24: =IF(B24="","",SUMIF('D-3 Off-Site Habitat Enhancment'!$AU$12:$AU$258,'Off-site gain site summary'!B24,'D-3 Off-Site Habitat Enhancment'!$AQ$12:$AQ$258)) ->  | H24: =IF(B24="","",SUMIF('D-3 Off-Site Habitat Enhancment'!$AU$12:$AU$258,'Off-site gain site summary'!B24,'D-3 Off-Site Habitat Enhancment'!$AP$12:$AP$258)) ->  | I24: =IF(B24="","",SUMIF('D-2 Off-Site Habitat Creation'!$AF$11:$AF$256,'Off-site gain site summary'!B24,'D-2 Off-Site Habitat Creation'!$AB$11:$AB$256)) ->  | J24: =IF(B24="","",SUMIF('D-2 Off-Site Habitat Creation'!$AF$11:$AF$256,'Off-site gain site summary'!B24,'D-2 Off-Site Habitat Creation'!$AA$11:$AA$256)) ->  | L24: =IF(ISBLANK(B24),"",IFERROR(_xlfn.XLOOKUP(B24,'D-2 Off-Site Habitat Creation'!$AF$11:$AF$256,'D-2 Off-Site Habitat Creation'!$Z$11:$Z$256),IFERROR(_xlfn.XLOOKUP(B24,'D-1 Off-Site Habitat Baseline'!AF$11:AF$258,'D-1 Off-Site Habitat Baseline'!S$11:S$258)," "))) ->  | N24: ='E-1 Off-Site Hedge Baseline'!AB27 -> 0 | P24: =IF(O24="","",SUMIF('E-1 Off-Site Hedge Baseline'!AB$10:AB$257,'Off-site gain site summary'!O24,'E-1 Off-Site Hedge Baseline'!Q$10:Q$257)) ->  | Q24: =IF(O24="","",SUMIF('E-1 Off-Site Hedge Baseline'!AB$10:AB$257,O24,'E-1 Off-Site Hedge Baseline'!N$10:N$257)) ->  | R24: =IF(O24="","",SUMIF('E-1 Off-Site Hedge Baseline'!$AB$10:$AB$257,'Off-site gain site summary'!$O24,'E-1 Off-Site Hedge Baseline'!$U$10:$U$257)) ->  | S24: =IF(O24="","",SUMIF('E-1 Off-Site Hedge Baseline'!$AB$10:$AB$257,'Off-site gain site summary'!$O24,'E-1 Off-Site Hedge Baseline'!$AY$10:$AY$257)) ->  | T24: =IF(O24="","",SUMIF('E-3 Off-Site Hedge Enhancement'!$AO$12:$AO$257,'Off-site gain site summary'!$O24,'E-3 Off-Site Hedge Enhancement'!$AK$12:$AK$257)) ->  | U24: =IF(O24="","",SUMIF('E-3 Off-Site Hedge Enhancement'!$AO$12:$AO$257,'Off-site gain site summary'!$O24,'E-3 Off-Site Hedge Enhancement'!$AJ$12:$AJ$257)) ->  | V24: =IF(O24="","",SUMIF('E-2 Off-Site Hedge Creation'!$AD$12:$AD$259,'Off-site gain site summary'!$O24,'E-2 Off-Site Hedge Creation'!$Z$12:$Z$259)) ->  | W24: =IF(O24="","",SUMIF('E-2 Off-Site Hedge Creation'!$AD$12:$AD$259,'Off-site gain site summary'!$O24,'E-2 Off-Site Hedge Creation'!$Y$12:$Y$259)) ->  | Y24: =IF(ISBLANK(O24),"", IFERROR(_xlfn.XLOOKUP(O24,'E-2 Off-Site Hedge Creation'!$AD$12:$AD$259,'E-2 Off-Site Hedge Creation'!$N$12:$N$259), IFERROR(_xlfn.XLOOKUP(O24,'E-1 Off-Site Hedge Baseline'!$AB$10:$AB$257,'E-1 Off-Site Hedge Baseline'!$P$10:$P$257), " "))) ->  | AA24: ='F-1 Off-Site WaterC'' Baseline'!AH27 -> 0 | AC24: =IF(AB24="","",SUMIF('F-1 Off-Site WaterC'' Baseline'!$AH$10:$AH$257,'Off-site gain site summary'!$AB24,'F-1 Off-Site WaterC'' Baseline'!$U$10:$U$257)) ->  | AD24: =IF(AB24="","",SUMIF('F-1 Off-Site WaterC'' Baseline'!$AH$10:$AH$257,'Off-site gain site summary'!$AB24,'F-1 Off-Site WaterC'' Baseline'!$R$10:$R$257)) ->  | AE24: =IF(AB24="","",SUMIF('F-1 Off-Site WaterC'' Baseline'!$AH$10:$AH$257,'Off-site gain site summary'!$AB24,'F-1 Off-Site WaterC'' Baseline'!$Z$10:$Z$257)) ->  | AF24: =IF(AB24="","",SUMIF('F-1 Off-Site WaterC'' Baseline'!$AH$10:$AH$257,'Off-site gain site summary'!$AB24,'F-1 Off-Site WaterC'' Baseline'!$BA$10:$BA$257)) ->  | AG24: =IF(AB24="","",SUMIF('F-3 Off-Site WaterC Enhancement'!$AT$12:$AT$257,'Off-site gain site summary'!$AB24,'F-3 Off-Site WaterC Enhancement'!$AP$12:$AP$257)) ->  | AH24: =IF(AB24="","",SUMIF('F-3 Off-Site WaterC Enhancement'!$AT$12:$AT$257,'Off-site gain site summary'!$AB24,'F-3 Off-Site WaterC Enhancement'!$AO$12:$AO$257)) ->  | AI24: =IF(AB24="","",SUMIF('F-2 Off-Site WaterC'' Creation'!$AG$12:$AG$259,'Off-site gain site summary'!$AB24,'F-2 Off-Site WaterC'' Creation'!$AC$12:$AC$259)) ->  | AJ24: =IF(AB24="","",SUMIF('F-2 Off-Site WaterC'' Creation'!$AG$12:$AG$259,'Off-site gain site summary'!$AB24,'F-2 Off-Site WaterC'' Creation'!$AB$12:$AB$259)) ->  | AL24: =IF(ISBLANK(AB24),"", IFERROR(_xlfn.XLOOKUP(AB24,'F-2 Off-Site WaterC'' Creation'!$AG$12:$AG$258,'F-2 Off-Site WaterC'' Creation'!$AA$12:$AA$258), IFERROR(_xlfn.XLOOKUP(AB24,'F-1 Off-Site WaterC'' Baseline'!$AH$10:$AH$257,'F-1 Off-Site WaterC'' Baseline'!$T$10:$T$257)," "))) -> 
A25: ='D-1 Off-Site Habitat Baseline'!AF29 -> 0 | C25: =IF(B25="","",SUMIF('D-1 Off-Site Habitat Baseline'!AF29:AF276,B25,'D-1 Off-Site Habitat Baseline'!T29:T276)) ->  | D25: =IF(B25="","",SUMIF('D-1 Off-Site Habitat Baseline'!$AF$11:$AF$258,B25,'D-1 Off-Site Habitat Baseline'!$Q$11:$Q$258)) ->  | E25: =IF(B25="","", SUMIF('D-1 Off-Site Habitat Baseline'!$AF$11:$AF$258,'Off-site gain site summary'!$B25,'D-1 Off-Site Habitat Baseline'!$X$11:$X$258)) ->  | F25: =IF(B25="","", SUMIF('D-1 Off-Site Habitat Baseline'!$AF$11:$AF$258,'Off-site gain site summary'!$B25,'D-1 Off-Site Habitat Baseline'!$AY$11:$AY$258)) ->  | G25: =IF(B25="","",SUMIF('D-3 Off-Site Habitat Enhancment'!$AU$12:$AU$258,'Off-site gain site summary'!B25,'D-3 Off-Site Habitat Enhancment'!$AQ$12:$AQ$258)) ->  | H25: =IF(B25="","",SUMIF('D-3 Off-Site Habitat Enhancment'!$AU$12:$AU$258,'Off-site gain site summary'!B25,'D-3 Off-Site Habitat Enhancment'!$AP$12:$AP$258)) ->  | I25: =IF(B25="","",SUMIF('D-2 Off-Site Habitat Creation'!$AF$11:$AF$256,'Off-site gain site summary'!B25,'D-2 Off-Site Habitat Creation'!$AB$11:$AB$256)) ->  | J25: =IF(B25="","",SUMIF('D-2 Off-Site Habitat Creation'!$AF$11:$AF$256,'Off-site gain site summary'!B25,'D-2 Off-Site Habitat Creation'!$AA$11:$AA$256)) ->  | L25: =IF(ISBLANK(B25),"",IFERROR(_xlfn.XLOOKUP(B25,'D-2 Off-Site Habitat Creation'!$AF$11:$AF$256,'D-2 Off-Site Habitat Creation'!$Z$11:$Z$256),IFERROR(_xlfn.XLOOKUP(B25,'D-1 Off-Site Habitat Baseline'!AF$11:AF$258,'D-1 Off-Site Habitat Baseline'!S$11:S$258)," "))) ->  | N25: ='E-1 Off-Site Hedge Baseline'!AB28 -> 0 | P25: =IF(O25="","",SUMIF('E-1 Off-Site Hedge Baseline'!AB$10:AB$257,'Off-site gain site summary'!O25,'E-1 Off-Site Hedge Baseline'!Q$10:Q$257)) ->  | Q25: =IF(O25="","",SUMIF('E-1 Off-Site Hedge Baseline'!AB$10:AB$257,O25,'E-1 Off-Site Hedge Baseline'!N$10:N$257)) ->  | R25: =IF(O25="","",SUMIF('E-1 Off-Site Hedge Baseline'!$AB$10:$AB$257,'Off-site gain site summary'!$O25,'E-1 Off-Site Hedge Baseline'!$U$10:$U$257)) ->  | S25: =IF(O25="","",SUMIF('E-1 Off-Site Hedge Baseline'!$AB$10:$AB$257,'Off-site gain site summary'!$O25,'E-1 Off-Site Hedge Baseline'!$AY$10:$AY$257)) ->  | T25: =IF(O25="","",SUMIF('E-3 Off-Site Hedge Enhancement'!$AO$12:$AO$257,'Off-site gain site summary'!$O25,'E-3 Off-Site Hedge Enhancement'!$AK$12:$AK$257)) ->  | U25: =IF(O25="","",SUMIF('E-3 Off-Site Hedge Enhancement'!$AO$12:$AO$257,'Off-site gain site summary'!$O25,'E-3 Off-Site Hedge Enhancement'!$AJ$12:$AJ$257)) ->  | V25: =IF(O25="","",SUMIF('E-2 Off-Site Hedge Creation'!$AD$12:$AD$259,'Off-site gain site summary'!$O25,'E-2 Off-Site Hedge Creation'!$Z$12:$Z$259)) ->  | W25: =IF(O25="","",SUMIF('E-2 Off-Site Hedge Creation'!$AD$12:$AD$259,'Off-site gain site summary'!$O25,'E-2 Off-Site Hedge Creation'!$Y$12:$Y$259)) ->  | Y25: =IF(ISBLANK(O25),"", IFERROR(_xlfn.XLOOKUP(O25,'E-2 Off-Site Hedge Creation'!$AD$12:$AD$259,'E-2 Off-Site Hedge Creation'!$N$12:$N$259), IFERROR(_xlfn.XLOOKUP(O25,'E-1 Off-Site Hedge Baseline'!$AB$10:$AB$257,'E-1 Off-Site Hedge Baseline'!$P$10:$P$257), " "))) ->  | AA25: ='F-1 Off-Site WaterC'' Baseline'!AH28 -> 0 | AC25: =IF(AB25="","",SUMIF('F-1 Off-Site WaterC'' Baseline'!$AH$10:$AH$257,'Off-site gain site summary'!$AB25,'F-1 Off-Site WaterC'' Baseline'!$U$10:$U$257)) ->  | AD25: =IF(AB25="","",SUMIF('F-1 Off-Site WaterC'' Baseline'!$AH$10:$AH$257,'Off-site gain site summary'!$AB25,'F-1 Off-Site WaterC'' Baseline'!$R$10:$R$257)) ->  | AE25: =IF(AB25="","",SUMIF('F-1 Off-Site WaterC'' Baseline'!$AH$10:$AH$257,'Off-site gain site summary'!$AB25,'F-1 Off-Site WaterC'' Baseline'!$Z$10:$Z$257)) ->  | AF25: =IF(AB25="","",SUMIF('F-1 Off-Site WaterC'' Baseline'!$AH$10:$AH$257,'Off-site gain site summary'!$AB25,'F-1 Off-Site WaterC'' Baseline'!$BA$10:$BA$257)) ->  | AG25: =IF(AB25="","",SUMIF('F-3 Off-Site WaterC Enhancement'!$AT$12:$AT$257,'Off-site gain site summary'!$AB25,'F-3 Off-Site WaterC Enhancement'!$AP$12:$AP$257)) ->  | AH25: =IF(AB25="","",SUMIF('F-3 Off-Site WaterC Enhancement'!$AT$12:$AT$257,'Off-site gain site summary'!$AB25,'F-3 Off-Site WaterC Enhancement'!$AO$12:$AO$257)) ->  | AI25: =IF(AB25="","",SUMIF('F-2 Off-Site WaterC'' Creation'!$AG$12:$AG$259,'Off-site gain site summary'!$AB25,'F-2 Off-Site WaterC'' Creation'!$AC$12:$AC$259)) ->  | AJ25: =IF(AB25="","",SUMIF('F-2 Off-Site WaterC'' Creation'!$AG$12:$AG$259,'Off-site gain site summary'!$AB25,'F-2 Off-Site WaterC'' Creation'!$AB$12:$AB$259)) ->  | AL25: =IF(ISBLANK(AB25),"", IFERROR(_xlfn.XLOOKUP(AB25,'F-2 Off-Site WaterC'' Creation'!$AG$12:$AG$258,'F-2 Off-Site WaterC'' Creation'!$AA$12:$AA$258), IFERROR(_xlfn.XLOOKUP(AB25,'F-1 Off-Site WaterC'' Baseline'!$AH$10:$AH$257,'F-1 Off-Site WaterC'' Baseline'!$T$10:$T$257)," "))) -> 
A26: ='D-1 Off-Site Habitat Baseline'!AF30 -> 0 | C26: =IF(B26="","",SUMIF('D-1 Off-Site Habitat Baseline'!AF30:AF277,B26,'D-1 Off-Site Habitat Baseline'!T30:T277)) ->  | D26: =IF(B26="","",SUMIF('D-1 Off-Site Habitat Baseline'!$AF$11:$AF$258,B26,'D-1 Off-Site Habitat Baseline'!$Q$11:$Q$258)) ->  | E26: =IF(B26="","", SUMIF('D-1 Off-Site Habitat Baseline'!$AF$11:$AF$258,'Off-site gain site summary'!$B26,'D-1 Off-Site Habitat Baseline'!$X$11:$X$258)) ->  | F26: =IF(B26="","", SUMIF('D-1 Off-Site Habitat Baseline'!$AF$11:$AF$258,'Off-site gain site summary'!$B26,'D-1 Off-Site Habitat Baseline'!$AY$11:$AY$258)) ->  | G26: =IF(B26="","",SUMIF('D-3 Off-Site Habitat Enhancment'!$AU$12:$AU$258,'Off-site gain site summary'!B26,'D-3 Off-Site Habitat Enhancment'!$AQ$12:$AQ$258)) ->  | H26: =IF(B26="","",SUMIF('D-3 Off-Site Habitat Enhancment'!$AU$12:$AU$258,'Off-site gain site summary'!B26,'D-3 Off-Site Habitat Enhancment'!$AP$12:$AP$258)) ->  | I26: =IF(B26="","",SUMIF('D-2 Off-Site Habitat Creation'!$AF$11:$AF$256,'Off-site gain site summary'!B26,'D-2 Off-Site Habitat Creation'!$AB$11:$AB$256)) ->  | J26: =IF(B26="","",SUMIF('D-2 Off-Site Habitat Creation'!$AF$11:$AF$256,'Off-site gain site summary'!B26,'D-2 Off-Site Habitat Creation'!$AA$11:$AA$256)) ->  | L26: =IF(ISBLANK(B26),"",IFERROR(_xlfn.XLOOKUP(B26,'D-2 Off-Site Habitat Creation'!$AF$11:$AF$256,'D-2 Off-Site Habitat Creation'!$Z$11:$Z$256),IFERROR(_xlfn.XLOOKUP(B26,'D-1 Off-Site Habitat Baseline'!AF$11:AF$258,'D-1 Off-Site Habitat Baseline'!S$11:S$258)," "))) ->  | N26: ='E-1 Off-Site Hedge Baseline'!AB29 -> 0 | P26: =IF(O26="","",SUMIF('E-1 Off-Site Hedge Baseline'!AB$10:AB$257,'Off-site gain site summary'!O26,'E-1 Off-Site Hedge Baseline'!Q$10:Q$257)) ->  | Q26: =IF(O26="","",SUMIF('E-1 Off-Site Hedge Baseline'!AB$10:AB$257,O26,'E-1 Off-Site Hedge Baseline'!N$10:N$257)) ->  | R26: =IF(O26="","",SUMIF('E-1 Off-Site Hedge Baseline'!$AB$10:$AB$257,'Off-site gain site summary'!$O26,'E-1 Off-Site Hedge Baseline'!$U$10:$U$257)) ->  | S26: =IF(O26="","",SUMIF('E-1 Off-Site Hedge Baseline'!$AB$10:$AB$257,'Off-site gain site summary'!$O26,'E-1 Off-Site Hedge Baseline'!$AY$10:$AY$257)) ->  | T26: =IF(O26="","",SUMIF('E-3 Off-Site Hedge Enhancement'!$AO$12:$AO$257,'Off-site gain site summary'!$O26,'E-3 Off-Site Hedge Enhancement'!$AK$12:$AK$257)) ->  | U26: =IF(O26="","",SUMIF('E-3 Off-Site Hedge Enhancement'!$AO$12:$AO$257,'Off-site gain site summary'!$O26,'E-3 Off-Site Hedge Enhancement'!$AJ$12:$AJ$257)) ->  | V26: =IF(O26="","",SUMIF('E-2 Off-Site Hedge Creation'!$AD$12:$AD$259,'Off-site gain site summary'!$O26,'E-2 Off-Site Hedge Creation'!$Z$12:$Z$259)) ->  | W26: =IF(O26="","",SUMIF('E-2 Off-Site Hedge Creation'!$AD$12:$AD$259,'Off-site gain site summary'!$O26,'E-2 Off-Site Hedge Creation'!$Y$12:$Y$259)) ->  | Y26: =IF(ISBLANK(O26),"", IFERROR(_xlfn.XLOOKUP(O26,'E-2 Off-Site Hedge Creation'!$AD$12:$AD$259,'E-2 Off-Site Hedge Creation'!$N$12:$N$259), IFERROR(_xlfn.XLOOKUP(O26,'E-1 Off-Site Hedge Baseline'!$AB$10:$AB$257,'E-1 Off-Site Hedge Baseline'!$P$10:$P$257), " "))) ->  | AA26: ='F-1 Off-Site WaterC'' Baseline'!AH29 -> 0 | AC26: =IF(AB26="","",SUMIF('F-1 Off-Site WaterC'' Baseline'!$AH$10:$AH$257,'Off-site gain site summary'!$AB26,'F-1 Off-Site WaterC'' Baseline'!$U$10:$U$257)) ->  | AD26: =IF(AB26="","",SUMIF('F-1 Off-Site WaterC'' Baseline'!$AH$10:$AH$257,'Off-site gain site summary'!$AB26,'F-1 Off-Site WaterC'' Baseline'!$R$10:$R$257)) ->  | AE26: =IF(AB26="","",SUMIF('F-1 Off-Site WaterC'' Baseline'!$AH$10:$AH$257,'Off-site gain site summary'!$AB26,'F-1 Off-Site WaterC'' Baseline'!$Z$10:$Z$257)) ->  | AF26: =IF(AB26="","",SUMIF('F-1 Off-Site WaterC'' Baseline'!$AH$10:$AH$257,'Off-site gain site summary'!$AB26,'F-1 Off-Site WaterC'' Baseline'!$BA$10:$BA$257)) ->  | AG26: =IF(AB26="","",SUMIF('F-3 Off-Site WaterC Enhancement'!$AT$12:$AT$257,'Off-site gain site summary'!$AB26,'F-3 Off-Site WaterC Enhancement'!$AP$12:$AP$257)) ->  | AH26: =IF(AB26="","",SUMIF('F-3 Off-Site WaterC Enhancement'!$AT$12:$AT$257,'Off-site gain site summary'!$AB26,'F-3 Off-Site WaterC Enhancement'!$AO$12:$AO$257)) ->  | AI26: =IF(AB26="","",SUMIF('F-2 Off-Site WaterC'' Creation'!$AG$12:$AG$259,'Off-site gain site summary'!$AB26,'F-2 Off-Site WaterC'' Creation'!$AC$12:$AC$259)) ->  | AJ26: =IF(AB26="","",SUMIF('F-2 Off-Site WaterC'' Creation'!$AG$12:$AG$259,'Off-site gain site summary'!$AB26,'F-2 Off-Site WaterC'' Creation'!$AB$12:$AB$259)) ->  | AL26: =IF(ISBLANK(AB26),"", IFERROR(_xlfn.XLOOKUP(AB26,'F-2 Off-Site WaterC'' Creation'!$AG$12:$AG$258,'F-2 Off-Site WaterC'' Creation'!$AA$12:$AA$258), IFERROR(_xlfn.XLOOKUP(AB26,'F-1 Off-Site WaterC'' Baseline'!$AH$10:$AH$257,'F-1 Off-Site WaterC'' Baseline'!$T$10:$T$257)," "))) -> 
A27: ='D-1 Off-Site Habitat Baseline'!AF31 -> 0 | C27: =IF(B27="","",SUMIF('D-1 Off-Site Habitat Baseline'!AF31:AF278,B27,'D-1 Off-Site Habitat Baseline'!T31:T278)) ->  | D27: =IF(B27="","",SUMIF('D-1 Off-Site Habitat Baseline'!$AF$11:$AF$258,B27,'D-1 Off-Site Habitat Baseline'!$Q$11:$Q$258)) ->  | E27: =IF(B27="","", SUMIF('D-1 Off-Site Habitat Baseline'!$AF$11:$AF$258,'Off-site gain site summary'!$B27,'D-1 Off-Site Habitat Baseline'!$X$11:$X$258)) ->  | F27: =IF(B27="","", SUMIF('D-1 Off-Site Habitat Baseline'!$AF$11:$AF$258,'Off-site gain site summary'!$B27,'D-1 Off-Site Habitat Baseline'!$AY$11:$AY$258)) ->  | G27: =IF(B27="","",SUMIF('D-3 Off-Site Habitat Enhancment'!$AU$12:$AU$258,'Off-site gain site summary'!B27,'D-3 Off-Site Habitat Enhancment'!$AQ$12:$AQ$258)) ->  | H27: =IF(B27="","",SUMIF('D-3 Off-Site Habitat Enhancment'!$AU$12:$AU$258,'Off-site gain site summary'!B27,'D-3 Off-Site Habitat Enhancment'!$AP$12:$AP$258)) ->  | I27: =IF(B27="","",SUMIF('D-2 Off-Site Habitat Creation'!$AF$11:$AF$256,'Off-site gain site summary'!B27,'D-2 Off-Site Habitat Creation'!$AB$11:$AB$256)) ->  | J27: =IF(B27="","",SUMIF('D-2 Off-Site Habitat Creation'!$AF$11:$AF$256,'Off-site gain site summary'!B27,'D-2 Off-Site Habitat Creation'!$AA$11:$AA$256)) ->  | L27: =IF(ISBLANK(B27),"",IFERROR(_xlfn.XLOOKUP(B27,'D-2 Off-Site Habitat Creation'!$AF$11:$AF$256,'D-2 Off-Site Habitat Creation'!$Z$11:$Z$256),IFERROR(_xlfn.XLOOKUP(B27,'D-1 Off-Site Habitat Baseline'!AF$11:AF$258,'D-1 Off-Site Habitat Baseline'!S$11:S$258)," "))) ->  | N27: ='E-1 Off-Site Hedge Baseline'!AB30 -> 0 | P27: =IF(O27="","",SUMIF('E-1 Off-Site Hedge Baseline'!AB$10:AB$257,'Off-site gain site summary'!O27,'E-1 Off-Site Hedge Baseline'!Q$10:Q$257)) ->  | Q27: =IF(O27="","",SUMIF('E-1 Off-Site Hedge Baseline'!AB$10:AB$257,O27,'E-1 Off-Site Hedge Baseline'!N$10:N$257)) ->  | R27: =IF(O27="","",SUMIF('E-1 Off-Site Hedge Baseline'!$AB$10:$AB$257,'Off-site gain site summary'!$O27,'E-1 Off-Site Hedge Baseline'!$U$10:$U$257)) ->  | S27: =IF(O27="","",SUMIF('E-1 Off-Site Hedge Baseline'!$AB$10:$AB$257,'Off-site gain site summary'!$O27,'E-1 Off-Site Hedge Baseline'!$AY$10:$AY$257)) ->  | T27: =IF(O27="","",SUMIF('E-3 Off-Site Hedge Enhancement'!$AO$12:$AO$257,'Off-site gain site summary'!$O27,'E-3 Off-Site Hedge Enhancement'!$AK$12:$AK$257)) ->  | U27: =IF(O27="","",SUMIF('E-3 Off-Site Hedge Enhancement'!$AO$12:$AO$257,'Off-site gain site summary'!$O27,'E-3 Off-Site Hedge Enhancement'!$AJ$12:$AJ$257)) ->  | V27: =IF(O27="","",SUMIF('E-2 Off-Site Hedge Creation'!$AD$12:$AD$259,'Off-site gain site summary'!$O27,'E-2 Off-Site Hedge Creation'!$Z$12:$Z$259)) ->  | W27: =IF(O27="","",SUMIF('E-2 Off-Site Hedge Creation'!$AD$12:$AD$259,'Off-site gain site summary'!$O27,'E-2 Off-Site Hedge Creation'!$Y$12:$Y$259)) ->  | Y27: =IF(ISBLANK(O27),"", IFERROR(_xlfn.XLOOKUP(O27,'E-2 Off-Site Hedge Creation'!$AD$12:$AD$259,'E-2 Off-Site Hedge Creation'!$N$12:$N$259), IFERROR(_xlfn.XLOOKUP(O27,'E-1 Off-Site Hedge Baseline'!$AB$10:$AB$257,'E-1 Off-Site Hedge Baseline'!$P$10:$P$257), " "))) ->  | AA27: ='F-1 Off-Site WaterC'' Baseline'!AH30 -> 0 | AC27: =IF(AB27="","",SUMIF('F-1 Off-Site WaterC'' Baseline'!$AH$10:$AH$257,'Off-site gain site summary'!$AB27,'F-1 Off-Site WaterC'' Baseline'!$U$10:$U$257)) ->  | AD27: =IF(AB27="","",SUMIF('F-1 Off-Site WaterC'' Baseline'!$AH$10:$AH$257,'Off-site gain site summary'!$AB27,'F-1 Off-Site WaterC'' Baseline'!$R$10:$R$257)) ->  | AE27: =IF(AB27="","",SUMIF('F-1 Off-Site WaterC'' Baseline'!$AH$10:$AH$257,'Off-site gain site summary'!$AB27,'F-1 Off-Site WaterC'' Baseline'!$Z$10:$Z$257)) ->  | AF27: =IF(AB27="","",SUMIF('F-1 Off-Site WaterC'' Baseline'!$AH$10:$AH$257,'Off-site gain site summary'!$AB27,'F-1 Off-Site WaterC'' Baseline'!$BA$10:$BA$257)) ->  | AG27: =IF(AB27="","",SUMIF('F-3 Off-Site WaterC Enhancement'!$AT$12:$AT$257,'Off-site gain site summary'!$AB27,'F-3 Off-Site WaterC Enhancement'!$AP$12:$AP$257)) ->  | AH27: =IF(AB27="","",SUMIF('F-3 Off-Site WaterC Enhancement'!$AT$12:$AT$257,'Off-site gain site summary'!$AB27,'F-3 Off-Site WaterC Enhancement'!$AO$12:$AO$257)) ->  | AI27: =IF(AB27="","",SUMIF('F-2 Off-Site WaterC'' Creation'!$AG$12:$AG$259,'Off-site gain site summary'!$AB27,'F-2 Off-Site WaterC'' Creation'!$AC$12:$AC$259)) ->  | AJ27: =IF(AB27="","",SUMIF('F-2 Off-Site WaterC'' Creation'!$AG$12:$AG$259,'Off-site gain site summary'!$AB27,'F-2 Off-Site WaterC'' Creation'!$AB$12:$AB$259)) ->  | AL27: =IF(ISBLANK(AB27),"", IFERROR(_xlfn.XLOOKUP(AB27,'F-2 Off-Site WaterC'' Creation'!$AG$12:$AG$258,'F-2 Off-Site WaterC'' Creation'!$AA$12:$AA$258), IFERROR(_xlfn.XLOOKUP(AB27,'F-1 Off-Site WaterC'' Baseline'!$AH$10:$AH$257,'F-1 Off-Site WaterC'' Baseline'!$T$10:$T$257)," "))) -> 
A28: ='D-1 Off-Site Habitat Baseline'!AF32 -> 0 | C28: =IF(B28="","",SUMIF('D-1 Off-Site Habitat Baseline'!AF32:AF279,B28,'D-1 Off-Site Habitat Baseline'!T32:T279)) ->  | D28: =IF(B28="","",SUMIF('D-1 Off-Site Habitat Baseline'!$AF$11:$AF$258,B28,'D-1 Off-Site Habitat Baseline'!$Q$11:$Q$258)) ->  | E28: =IF(B28="","", SUMIF('D-1 Off-Site Habitat Baseline'!$AF$11:$AF$258,'Off-site gain site summary'!$B28,'D-1 Off-Site Habitat Baseline'!$X$11:$X$258)) ->  | F28: =IF(B28="","", SUMIF('D-1 Off-Site Habitat Baseline'!$AF$11:$AF$258,'Off-site gain site summary'!$B28,'D-1 Off-Site Habitat Baseline'!$AY$11:$AY$258)) ->  | G28: =IF(B28="","",SUMIF('D-3 Off-Site Habitat Enhancment'!$AU$12:$AU$258,'Off-site gain site summary'!B28,'D-3 Off-Site Habitat Enhancment'!$AQ$12:$AQ$258)) ->  | H28: =IF(B28="","",SUMIF('D-3 Off-Site Habitat Enhancment'!$AU$12:$AU$258,'Off-site gain site summary'!B28,'D-3 Off-Site Habitat Enhancment'!$AP$12:$AP$258)) ->  | I28: =IF(B28="","",SUMIF('D-2 Off-Site Habitat Creation'!$AF$11:$AF$256,'Off-site gain site summary'!B28,'D-2 Off-Site Habitat Creation'!$AB$11:$AB$256)) ->  | J28: =IF(B28="","",SUMIF('D-2 Off-Site Habitat Creation'!$AF$11:$AF$256,'Off-site gain site summary'!B28,'D-2 Off-Site Habitat Creation'!$AA$11:$AA$256)) ->  | L28: =IF(ISBLANK(B28),"",IFERROR(_xlfn.XLOOKUP(B28,'D-2 Off-Site Habitat Creation'!$AF$11:$AF$256,'D-2 Off-Site Habitat Creation'!$Z$11:$Z$256),IFERROR(_xlfn.XLOOKUP(B28,'D-1 Off-Site Habitat Baseline'!AF$11:AF$258,'D-1 Off-Site Habitat Baseline'!S$11:S$258)," "))) ->  | N28: ='E-1 Off-Site Hedge Baseline'!AB31 -> 0 | P28: =IF(O28="","",SUMIF('E-1 Off-Site Hedge Baseline'!AB$10:AB$257,'Off-site gain site summary'!O28,'E-1 Off-Site Hedge Baseline'!Q$10:Q$257)) ->  | Q28: =IF(O28="","",SUMIF('E-1 Off-Site Hedge Baseline'!AB$10:AB$257,O28,'E-1 Off-Site Hedge Baseline'!N$10:N$257)) ->  | R28: =IF(O28="","",SUMIF('E-1 Off-Site Hedge Baseline'!$AB$10:$AB$257,'Off-site gain site summary'!$O28,'E-1 Off-Site Hedge Baseline'!$U$10:$U$257)) ->  | S28: =IF(O28="","",SUMIF('E-1 Off-Site Hedge Baseline'!$AB$10:$AB$257,'Off-site gain site summary'!$O28,'E-1 Off-Site Hedge Baseline'!$AY$10:$AY$257)) ->  | T28: =IF(O28="","",SUMIF('E-3 Off-Site Hedge Enhancement'!$AO$12:$AO$257,'Off-site gain site summary'!$O28,'E-3 Off-Site Hedge Enhancement'!$AK$12:$AK$257)) ->  | U28: =IF(O28="","",SUMIF('E-3 Off-Site Hedge Enhancement'!$AO$12:$AO$257,'Off-site gain site summary'!$O28,'E-3 Off-Site Hedge Enhancement'!$AJ$12:$AJ$257)) ->  | V28: =IF(O28="","",SUMIF('E-2 Off-Site Hedge Creation'!$AD$12:$AD$259,'Off-site gain site summary'!$O28,'E-2 Off-Site Hedge Creation'!$Z$12:$Z$259)) ->  | W28: =IF(O28="","",SUMIF('E-2 Off-Site Hedge Creation'!$AD$12:$AD$259,'Off-site gain site summary'!$O28,'E-2 Off-Site Hedge Creation'!$Y$12:$Y$259)) ->  | Y28: =IF(ISBLANK(O28),"", IFERROR(_xlfn.XLOOKUP(O28,'E-2 Off-Site Hedge Creation'!$AD$12:$AD$259,'E-2 Off-Site Hedge Creation'!$N$12:$N$259), IFERROR(_xlfn.XLOOKUP(O28,'E-1 Off-Site Hedge Baseline'!$AB$10:$AB$257,'E-1 Off-Site Hedge Baseline'!$P$10:$P$257), " "))) ->  | AA28: ='F-1 Off-Site WaterC'' Baseline'!AH31 -> 0 | AC28: =IF(AB28="","",SUMIF('F-1 Off-Site WaterC'' Baseline'!$AH$10:$AH$257,'Off-site gain site summary'!$AB28,'F-1 Off-Site WaterC'' Baseline'!$U$10:$U$257)) ->  | AD28: =IF(AB28="","",SUMIF('F-1 Off-Site WaterC'' Baseline'!$AH$10:$AH$257,'Off-site gain site summary'!$AB28,'F-1 Off-Site WaterC'' Baseline'!$R$10:$R$257)) ->  | AE28: =IF(AB28="","",SUMIF('F-1 Off-Site WaterC'' Baseline'!$AH$10:$AH$257,'Off-site gain site summary'!$AB28,'F-1 Off-Site WaterC'' Baseline'!$Z$10:$Z$257)) ->  | AF28: =IF(AB28="","",SUMIF('F-1 Off-Site WaterC'' Baseline'!$AH$10:$AH$257,'Off-site gain site summary'!$AB28,'F-1 Off-Site WaterC'' Baseline'!$BA$10:$BA$257)) ->  | AG28: =IF(AB28="","",SUMIF('F-3 Off-Site WaterC Enhancement'!$AT$12:$AT$257,'Off-site gain site summary'!$AB28,'F-3 Off-Site WaterC Enhancement'!$AP$12:$AP$257)) ->  | AH28: =IF(AB28="","",SUMIF('F-3 Off-Site WaterC Enhancement'!$AT$12:$AT$257,'Off-site gain site summary'!$AB28,'F-3 Off-Site WaterC Enhancement'!$AO$12:$AO$257)) ->  | AI28: =IF(AB28="","",SUMIF('F-2 Off-Site WaterC'' Creation'!$AG$12:$AG$259,'Off-site gain site summary'!$AB28,'F-2 Off-Site WaterC'' Creation'!$AC$12:$AC$259)) ->  | AJ28: =IF(AB28="","",SUMIF('F-2 Off-Site WaterC'' Creation'!$AG$12:$AG$259,'Off-site gain site summary'!$AB28,'F-2 Off-Site WaterC'' Creation'!$AB$12:$AB$259)) ->  | AL28: =IF(ISBLANK(AB28),"", IFERROR(_xlfn.XLOOKUP(AB28,'F-2 Off-Site WaterC'' Creation'!$AG$12:$AG$258,'F-2 Off-Site WaterC'' Creation'!$AA$12:$AA$258), IFERROR(_xlfn.XLOOKUP(AB28,'F-1 Off-Site WaterC'' Baseline'!$AH$10:$AH$257,'F-1 Off-Site WaterC'' Baseline'!$T$10:$T$257)," "))) -> 
A29: ='D-1 Off-Site Habitat Baseline'!AF33 -> 0 | C29: =IF(B29="","",SUMIF('D-1 Off-Site Habitat Baseline'!AF33:AF280,B29,'D-1 Off-Site Habitat Baseline'!T33:T280)) ->  | D29: =IF(B29="","",SUMIF('D-1 Off-Site Habitat Baseline'!$AF$11:$AF$258,B29,'D-1 Off-Site Habitat Baseline'!$Q$11:$Q$258)) ->  | E29: =IF(B29="","", SUMIF('D-1 Off-Site Habitat Baseline'!$AF$11:$AF$258,'Off-site gain site summary'!$B29,'D-1 Off-Site Habitat Baseline'!$X$11:$X$258)) ->  | F29: =IF(B29="","", SUMIF('D-1 Off-Site Habitat Baseline'!$AF$11:$AF$258,'Off-site gain site summary'!$B29,'D-1 Off-Site Habitat Baseline'!$AY$11:$AY$258)) ->  | G29: =IF(B29="","",SUMIF('D-3 Off-Site Habitat Enhancment'!$AU$12:$AU$258,'Off-site gain site summary'!B29,'D-3 Off-Site Habitat Enhancment'!$AQ$12:$AQ$258)) ->  | H29: =IF(B29="","",SUMIF('D-3 Off-Site Habitat Enhancment'!$AU$12:$AU$258,'Off-site gain site summary'!B29,'D-3 Off-Site Habitat Enhancment'!$AP$12:$AP$258)) ->  | I29: =IF(B29="","",SUMIF('D-2 Off-Site Habitat Creation'!$AF$11:$AF$256,'Off-site gain site summary'!B29,'D-2 Off-Site Habitat Creation'!$AB$11:$AB$256)) ->  | J29: =IF(B29="","",SUMIF('D-2 Off-Site Habitat Creation'!$AF$11:$AF$256,'Off-site gain site summary'!B29,'D-2 Off-Site Habitat Creation'!$AA$11:$AA$256)) ->  | L29: =IF(ISBLANK(B29),"",IFERROR(_xlfn.XLOOKUP(B29,'D-2 Off-Site Habitat Creation'!$AF$11:$AF$256,'D-2 Off-Site Habitat Creation'!$Z$11:$Z$256),IFERROR(_xlfn.XLOOKUP(B29,'D-1 Off-Site Habitat Baseline'!AF$11:AF$258,'D-1 Off-Site Habitat Baseline'!S$11:S$258)," "))) ->  | N29: ='E-1 Off-Site Hedge Baseline'!AB32 -> 0 | P29: =IF(O29="","",SUMIF('E-1 Off-Site Hedge Baseline'!AB$10:AB$257,'Off-site gain site summary'!O29,'E-1 Off-Site Hedge Baseline'!Q$10:Q$257)) ->  | Q29: =IF(O29="","",SUMIF('E-1 Off-Site Hedge Baseline'!AB$10:AB$257,O29,'E-1 Off-Site Hedge Baseline'!N$10:N$257)) ->  | R29: =IF(O29="","",SUMIF('E-1 Off-Site Hedge Baseline'!$AB$10:$AB$257,'Off-site gain site summary'!$O29,'E-1 Off-Site Hedge Baseline'!$U$10:$U$257)) ->  | S29: =IF(O29="","",SUMIF('E-1 Off-Site Hedge Baseline'!$AB$10:$AB$257,'Off-site gain site summary'!$O29,'E-1 Off-Site Hedge Baseline'!$AY$10:$AY$257)) ->  | T29: =IF(O29="","",SUMIF('E-3 Off-Site Hedge Enhancement'!$AO$12:$AO$257,'Off-site gain site summary'!$O29,'E-3 Off-Site Hedge Enhancement'!$AK$12:$AK$257)) ->  | U29: =IF(O29="","",SUMIF('E-3 Off-Site Hedge Enhancement'!$AO$12:$AO$257,'Off-site gain site summary'!$O29,'E-3 Off-Site Hedge Enhancement'!$AJ$12:$AJ$257)) ->  | V29: =IF(O29="","",SUMIF('E-2 Off-Site Hedge Creation'!$AD$12:$AD$259,'Off-site gain site summary'!$O29,'E-2 Off-Site Hedge Creation'!$Z$12:$Z$259)) ->  | W29: =IF(O29="","",SUMIF('E-2 Off-Site Hedge Creation'!$AD$12:$AD$259,'Off-site gain site summary'!$O29,'E-2 Off-Site Hedge Creation'!$Y$12:$Y$259)) ->  | Y29: =IF(ISBLANK(O29),"", IFERROR(_xlfn.XLOOKUP(O29,'E-2 Off-Site Hedge Creation'!$AD$12:$AD$259,'E-2 Off-Site Hedge Creation'!$N$12:$N$259), IFERROR(_xlfn.XLOOKUP(O29,'E-1 Off-Site Hedge Baseline'!$AB$10:$AB$257,'E-1 Off-Site Hedge Baseline'!$P$10:$P$257), " "))) ->  | AA29: ='F-1 Off-Site WaterC'' Baseline'!AH32 -> 0 | AC29: =IF(AB29="","",SUMIF('F-1 Off-Site WaterC'' Baseline'!$AH$10:$AH$257,'Off-site gain site summary'!$AB29,'F-1 Off-Site WaterC'' Baseline'!$U$10:$U$257)) ->  | AD29: =IF(AB29="","",SUMIF('F-1 Off-Site WaterC'' Baseline'!$AH$10:$AH$257,'Off-site gain site summary'!$AB29,'F-1 Off-Site WaterC'' Baseline'!$R$10:$R$257)) ->  | AE29: =IF(AB29="","",SUMIF('F-1 Off-Site WaterC'' Baseline'!$AH$10:$AH$257,'Off-site gain site summary'!$AB29,'F-1 Off-Site WaterC'' Baseline'!$Z$10:$Z$257)) ->  | AF29: =IF(AB29="","",SUMIF('F-1 Off-Site WaterC'' Baseline'!$AH$10:$AH$257,'Off-site gain site summary'!$AB29,'F-1 Off-Site WaterC'' Baseline'!$BA$10:$BA$257)) ->  | AG29: =IF(AB29="","",SUMIF('F-3 Off-Site WaterC Enhancement'!$AT$12:$AT$257,'Off-site gain site summary'!$AB29,'F-3 Off-Site WaterC Enhancement'!$AP$12:$AP$257)) ->  | AH29: =IF(AB29="","",SUMIF('F-3 Off-Site WaterC Enhancement'!$AT$12:$AT$257,'Off-site gain site summary'!$AB29,'F-3 Off-Site WaterC Enhancement'!$AO$12:$AO$257)) ->  | AI29: =IF(AB29="","",SUMIF('F-2 Off-Site WaterC'' Creation'!$AG$12:$AG$259,'Off-site gain site summary'!$AB29,'F-2 Off-Site WaterC'' Creation'!$AC$12:$AC$259)) ->  | AJ29: =IF(AB29="","",SUMIF('F-2 Off-Site WaterC'' Creation'!$AG$12:$AG$259,'Off-site gain site summary'!$AB29,'F-2 Off-Site WaterC'' Creation'!$AB$12:$AB$259)) ->  | AL29: =IF(ISBLANK(AB29),"", IFERROR(_xlfn.XLOOKUP(AB29,'F-2 Off-Site WaterC'' Creation'!$AG$12:$AG$258,'F-2 Off-Site WaterC'' Creation'!$AA$12:$AA$258), IFERROR(_xlfn.XLOOKUP(AB29,'F-1 Off-Site WaterC'' Baseline'!$AH$10:$AH$257,'F-1 Off-Site WaterC'' Baseline'!$T$10:$T$257)," "))) -> 
A30: ='D-1 Off-Site Habitat Baseline'!AF34 -> 0 | C30: =IF(B30="","",SUMIF('D-1 Off-Site Habitat Baseline'!AF34:AF281,B30,'D-1 Off-Site Habitat Baseline'!T34:T281)) ->  | D30: =IF(B30="","",SUMIF('D-1 Off-Site Habitat Baseline'!$AF$11:$AF$258,B30,'D-1 Off-Site Habitat Baseline'!$Q$11:$Q$258)) ->  | E30: =IF(B30="","", SUMIF('D-1 Off-Site Habitat Baseline'!$AF$11:$AF$258,'Off-site gain site summary'!$B30,'D-1 Off-Site Habitat Baseline'!$X$11:$X$258)) ->  | F30: =IF(B30="","", SUMIF('D-1 Off-Site Habitat Baseline'!$AF$11:$AF$258,'Off-site gain site summary'!$B30,'D-1 Off-Site Habitat Baseline'!$AY$11:$AY$258)) ->  | G30: =IF(B30="","",SUMIF('D-3 Off-Site Habitat Enhancment'!$AU$12:$AU$258,'Off-site gain site summary'!B30,'D-3 Off-Site Habitat Enhancment'!$AQ$12:$AQ$258)) ->  | H30: =IF(B30="","",SUMIF('D-3 Off-Site Habitat Enhancment'!$AU$12:$AU$258,'Off-site gain site summary'!B30,'D-3 Off-Site Habitat Enhancment'!$AP$12:$AP$258)) ->  | I30: =IF(B30="","",SUMIF('D-2 Off-Site Habitat Creation'!$AF$11:$AF$256,'Off-site gain site summary'!B30,'D-2 Off-Site Habitat Creation'!$AB$11:$AB$256)) ->  | J30: =IF(B30="","",SUMIF('D-2 Off-Site Habitat Creation'!$AF$11:$AF$256,'Off-site gain site summary'!B30,'D-2 Off-Site Habitat Creation'!$AA$11:$AA$256)) ->  | L30: =IF(ISBLANK(B30),"",IFERROR(_xlfn.XLOOKUP(B30,'D-2 Off-Site Habitat Creation'!$AF$11:$AF$256,'D-2 Off-Site Habitat Creation'!$Z$11:$Z$256),IFERROR(_xlfn.XLOOKUP(B30,'D-1 Off-Site Habitat Baseline'!AF$11:AF$258,'D-1 Off-Site Habitat Baseline'!S$11:S$258)," "))) ->  | N30: ='E-1 Off-Site Hedge Baseline'!AB33 -> 0 | P30: =IF(O30="","",SUMIF('E-1 Off-Site Hedge Baseline'!AB$10:AB$257,'Off-site gain site summary'!O30,'E-1 Off-Site Hedge Baseline'!Q$10:Q$257)) ->  | Q30: =IF(O30="","",SUMIF('E-1 Off-Site Hedge Baseline'!AB$10:AB$257,O30,'E-1 Off-Site Hedge Baseline'!N$10:N$257)) ->  | R30: =IF(O30="","",SUMIF('E-1 Off-Site Hedge Baseline'!$AB$10:$AB$257,'Off-site gain site summary'!$O30,'E-1 Off-Site Hedge Baseline'!$U$10:$U$257)) ->  | S30: =IF(O30="","",SUMIF('E-1 Off-Site Hedge Baseline'!$AB$10:$AB$257,'Off-site gain site summary'!$O30,'E-1 Off-Site Hedge Baseline'!$AY$10:$AY$257)) ->  | T30: =IF(O30="","",SUMIF('E-3 Off-Site Hedge Enhancement'!$AO$12:$AO$257,'Off-site gain site summary'!$O30,'E-3 Off-Site Hedge Enhancement'!$AK$12:$AK$257)) ->  | U30: =IF(O30="","",SUMIF('E-3 Off-Site Hedge Enhancement'!$AO$12:$AO$257,'Off-site gain site summary'!$O30,'E-3 Off-Site Hedge Enhancement'!$AJ$12:$AJ$257)) ->  | V30: =IF(O30="","",SUMIF('E-2 Off-Site Hedge Creation'!$AD$12:$AD$259,'Off-site gain site summary'!$O30,'E-2 Off-Site Hedge Creation'!$Z$12:$Z$259)) ->  | W30: =IF(O30="","",SUMIF('E-2 Off-Site Hedge Creation'!$AD$12:$AD$259,'Off-site gain site summary'!$O30,'E-2 Off-Site Hedge Creation'!$Y$12:$Y$259)) ->  | Y30: =IF(ISBLANK(O30),"", IFERROR(_xlfn.XLOOKUP(O30,'E-2 Off-Site Hedge Creation'!$AD$12:$AD$259,'E-2 Off-Site Hedge Creation'!$N$12:$N$259), IFERROR(_xlfn.XLOOKUP(O30,'E-1 Off-Site Hedge Baseline'!$AB$10:$AB$257,'E-1 Off-Site Hedge Baseline'!$P$10:$P$257), " "))) ->  | AA30: ='F-1 Off-Site WaterC'' Baseline'!AH33 -> 0 | AC30: =IF(AB30="","",SUMIF('F-1 Off-Site WaterC'' Baseline'!$AH$10:$AH$257,'Off-site gain site summary'!$AB30,'F-1 Off-Site WaterC'' Baseline'!$U$10:$U$257)) ->  | AD30: =IF(AB30="","",SUMIF('F-1 Off-Site WaterC'' Baseline'!$AH$10:$AH$257,'Off-site gain site summary'!$AB30,'F-1 Off-Site WaterC'' Baseline'!$R$10:$R$257)) ->  | AE30: =IF(AB30="","",SUMIF('F-1 Off-Site WaterC'' Baseline'!$AH$10:$AH$257,'Off-site gain site summary'!$AB30,'F-1 Off-Site WaterC'' Baseline'!$Z$10:$Z$257)) ->  | AF30: =IF(AB30="","",SUMIF('F-1 Off-Site WaterC'' Baseline'!$AH$10:$AH$257,'Off-site gain site summary'!$AB30,'F-1 Off-Site WaterC'' Baseline'!$BA$10:$BA$257)) ->  | AG30: =IF(AB30="","",SUMIF('F-3 Off-Site WaterC Enhancement'!$AT$12:$AT$257,'Off-site gain site summary'!$AB30,'F-3 Off-Site WaterC Enhancement'!$AP$12:$AP$257)) ->  | AH30: =IF(AB30="","",SUMIF('F-3 Off-Site WaterC Enhancement'!$AT$12:$AT$257,'Off-site gain site summary'!$AB30,'F-3 Off-Site WaterC Enhancement'!$AO$12:$AO$257)) ->  | AI30: =IF(AB30="","",SUMIF('F-2 Off-Site WaterC'' Creation'!$AG$12:$AG$259,'Off-site gain site summary'!$AB30,'F-2 Off-Site WaterC'' Creation'!$AC$12:$AC$259)) ->  | AJ30: =IF(AB30="","",SUMIF('F-2 Off-Site WaterC'' Creation'!$AG$12:$AG$259,'Off-site gain site summary'!$AB30,'F-2 Off-Site WaterC'' Creation'!$AB$12:$AB$259)) ->  | AL30: =IF(ISBLANK(AB30),"", IFERROR(_xlfn.XLOOKUP(AB30,'F-2 Off-Site WaterC'' Creation'!$AG$12:$AG$258,'F-2 Off-Site WaterC'' Creation'!$AA$12:$AA$258), IFERROR(_xlfn.XLOOKUP(AB30,'F-1 Off-Site WaterC'' Baseline'!$AH$10:$AH$257,'F-1 Off-Site WaterC'' Baseline'!$T$10:$T$257)," "))) -> 
A31: ='D-1 Off-Site Habitat Baseline'!AF35 -> 0 | C31: =IF(B31="","",SUMIF('D-1 Off-Site Habitat Baseline'!AF35:AF282,B31,'D-1 Off-Site Habitat Baseline'!T35:T282)) ->  | D31: =IF(B31="","",SUMIF('D-1 Off-Site Habitat Baseline'!$AF$11:$AF$258,B31,'D-1 Off-Site Habitat Baseline'!$Q$11:$Q$258)) ->  | E31: =IF(B31="","", SUMIF('D-1 Off-Site Habitat Baseline'!$AF$11:$AF$258,'Off-site gain site summary'!$B31,'D-1 Off-Site Habitat Baseline'!$X$11:$X$258)) ->  | F31: =IF(B31="","", SUMIF('D-1 Off-Site Habitat Baseline'!$AF$11:$AF$258,'Off-site gain site summary'!$B31,'D-1 Off-Site Habitat Baseline'!$AY$11:$AY$258)) ->  | G31: =IF(B31="","",SUMIF('D-3 Off-Site Habitat Enhancment'!$AU$12:$AU$258,'Off-site gain site summary'!B31,'D-3 Off-Site Habitat Enhancment'!$AQ$12:$AQ$258)) ->  | H31: =IF(B31="","",SUMIF('D-3 Off-Site Habitat Enhancment'!$AU$12:$AU$258,'Off-site gain site summary'!B31,'D-3 Off-Site Habitat Enhancment'!$AP$12:$AP$258)) ->  | I31: =IF(B31="","",SUMIF('D-2 Off-Site Habitat Creation'!$AF$11:$AF$256,'Off-site gain site summary'!B31,'D-2 Off-Site Habitat Creation'!$AB$11:$AB$256)) ->  | J31: =IF(B31="","",SUMIF('D-2 Off-Site Habitat Creation'!$AF$11:$AF$256,'Off-site gain site summary'!B31,'D-2 Off-Site Habitat Creation'!$AA$11:$AA$256)) ->  | L31: =IF(ISBLANK(B31),"",IFERROR(_xlfn.XLOOKUP(B31,'D-2 Off-Site Habitat Creation'!$AF$11:$AF$256,'D-2 Off-Site Habitat Creation'!$Z$11:$Z$256),IFERROR(_xlfn.XLOOKUP(B31,'D-1 Off-Site Habitat Baseline'!AF$11:AF$258,'D-1 Off-Site Habitat Baseline'!S$11:S$258)," "))) ->  | N31: ='E-1 Off-Site Hedge Baseline'!AB34 -> 0 | P31: =IF(O31="","",SUMIF('E-1 Off-Site Hedge Baseline'!AB$10:AB$257,'Off-site gain site summary'!O31,'E-1 Off-Site Hedge Baseline'!Q$10:Q$257)) ->  | Q31: =IF(O31="","",SUMIF('E-1 Off-Site Hedge Baseline'!AB$10:AB$257,O31,'E-1 Off-Site Hedge Baseline'!N$10:N$257)) ->  | R31: =IF(O31="","",SUMIF('E-1 Off-Site Hedge Baseline'!$AB$10:$AB$257,'Off-site gain site summary'!$O31,'E-1 Off-Site Hedge Baseline'!$U$10:$U$257)) ->  | S31: =IF(O31="","",SUMIF('E-1 Off-Site Hedge Baseline'!$AB$10:$AB$257,'Off-site gain site summary'!$O31,'E-1 Off-Site Hedge Baseline'!$AY$10:$AY$257)) ->  | T31: =IF(O31="","",SUMIF('E-3 Off-Site Hedge Enhancement'!$AO$12:$AO$257,'Off-site gain site summary'!$O31,'E-3 Off-Site Hedge Enhancement'!$AK$12:$AK$257)) ->  | U31: =IF(O31="","",SUMIF('E-3 Off-Site Hedge Enhancement'!$AO$12:$AO$257,'Off-site gain site summary'!$O31,'E-3 Off-Site Hedge Enhancement'!$AJ$12:$AJ$257)) ->  | V31: =IF(O31="","",SUMIF('E-2 Off-Site Hedge Creation'!$AD$12:$AD$259,'Off-site gain site summary'!$O31,'E-2 Off-Site Hedge Creation'!$Z$12:$Z$259)) ->  | W31: =IF(O31="","",SUMIF('E-2 Off-Site Hedge Creation'!$AD$12:$AD$259,'Off-site gain site summary'!$O31,'E-2 Off-Site Hedge Creation'!$Y$12:$Y$259)) ->  | Y31: =IF(ISBLANK(O31),"", IFERROR(_xlfn.XLOOKUP(O31,'E-2 Off-Site Hedge Creation'!$AD$12:$AD$259,'E-2 Off-Site Hedge Creation'!$N$12:$N$259), IFERROR(_xlfn.XLOOKUP(O31,'E-1 Off-Site Hedge Baseline'!$AB$10:$AB$257,'E-1 Off-Site Hedge Baseline'!$P$10:$P$257), " "))) ->  | AA31: ='F-1 Off-Site WaterC'' Baseline'!AH34 -> 0 | AC31: =IF(AB31="","",SUMIF('F-1 Off-Site WaterC'' Baseline'!$AH$10:$AH$257,'Off-site gain site summary'!$AB31,'F-1 Off-Site WaterC'' Baseline'!$U$10:$U$257)) ->  | AD31: =IF(AB31="","",SUMIF('F-1 Off-Site WaterC'' Baseline'!$AH$10:$AH$257,'Off-site gain site summary'!$AB31,'F-1 Off-Site WaterC'' Baseline'!$R$10:$R$257)) ->  | AE31: =IF(AB31="","",SUMIF('F-1 Off-Site WaterC'' Baseline'!$AH$10:$AH$257,'Off-site gain site summary'!$AB31,'F-1 Off-Site WaterC'' Baseline'!$Z$10:$Z$257)) ->  | AF31: =IF(AB31="","",SUMIF('F-1 Off-Site WaterC'' Baseline'!$AH$10:$AH$257,'Off-site gain site summary'!$AB31,'F-1 Off-Site WaterC'' Baseline'!$BA$10:$BA$257)) ->  | AG31: =IF(AB31="","",SUMIF('F-3 Off-Site WaterC Enhancement'!$AT$12:$AT$257,'Off-site gain site summary'!$AB31,'F-3 Off-Site WaterC Enhancement'!$AP$12:$AP$257)) ->  | AH31: =IF(AB31="","",SUMIF('F-3 Off-Site WaterC Enhancement'!$AT$12:$AT$257,'Off-site gain site summary'!$AB31,'F-3 Off-Site WaterC Enhancement'!$AO$12:$AO$257)) ->  | AI31: =IF(AB31="","",SUMIF('F-2 Off-Site WaterC'' Creation'!$AG$12:$AG$259,'Off-site gain site summary'!$AB31,'F-2 Off-Site WaterC'' Creation'!$AC$12:$AC$259)) ->  | AJ31: =IF(AB31="","",SUMIF('F-2 Off-Site WaterC'' Creation'!$AG$12:$AG$259,'Off-site gain site summary'!$AB31,'F-2 Off-Site WaterC'' Creation'!$AB$12:$AB$259)) ->  | AL31: =IF(ISBLANK(AB31),"", IFERROR(_xlfn.XLOOKUP(AB31,'F-2 Off-Site WaterC'' Creation'!$AG$12:$AG$258,'F-2 Off-Site WaterC'' Creation'!$AA$12:$AA$258), IFERROR(_xlfn.XLOOKUP(AB31,'F-1 Off-Site WaterC'' Baseline'!$AH$10:$AH$257,'F-1 Off-Site WaterC'' Baseline'!$T$10:$T$257)," "))) -> 
A32: ='D-1 Off-Site Habitat Baseline'!AF36 -> 0 | C32: =IF(B32="","",SUMIF('D-1 Off-Site Habitat Baseline'!AF36:AF283,B32,'D-1 Off-Site Habitat Baseline'!T36:T283)) ->  | D32: =IF(B32="","",SUMIF('D-1 Off-Site Habitat Baseline'!$AF$11:$AF$258,B32,'D-1 Off-Site Habitat Baseline'!$Q$11:$Q$258)) ->  | E32: =IF(B32="","", SUMIF('D-1 Off-Site Habitat Baseline'!$AF$11:$AF$258,'Off-site gain site summary'!$B32,'D-1 Off-Site Habitat Baseline'!$X$11:$X$258)) ->  | F32: =IF(B32="","", SUMIF('D-1 Off-Site Habitat Baseline'!$AF$11:$AF$258,'Off-site gain site summary'!$B32,'D-1 Off-Site Habitat Baseline'!$AY$11:$AY$258)) ->  | G32: =IF(B32="","",SUMIF('D-3 Off-Site Habitat Enhancment'!$AU$12:$AU$258,'Off-site gain site summary'!B32,'D-3 Off-Site Habitat Enhancment'!$AQ$12:$AQ$258)) ->  | H32: =IF(B32="","",SUMIF('D-3 Off-Site Habitat Enhancment'!$AU$12:$AU$258,'Off-site gain site summary'!B32,'D-3 Off-Site Habitat Enhancment'!$AP$12:$AP$258)) ->  | I32: =IF(B32="","",SUMIF('D-2 Off-Site Habitat Creation'!$AF$11:$AF$256,'Off-site gain site summary'!B32,'D-2 Off-Site Habitat Creation'!$AB$11:$AB$256)) ->  | J32: =IF(B32="","",SUMIF('D-2 Off-Site Habitat Creation'!$AF$11:$AF$256,'Off-site gain site summary'!B32,'D-2 Off-Site Habitat Creation'!$AA$11:$AA$256)) ->  | L32: =IF(ISBLANK(B32),"",IFERROR(_xlfn.XLOOKUP(B32,'D-2 Off-Site Habitat Creation'!$AF$11:$AF$256,'D-2 Off-Site Habitat Creation'!$Z$11:$Z$256),IFERROR(_xlfn.XLOOKUP(B32,'D-1 Off-Site Habitat Baseline'!AF$11:AF$258,'D-1 Off-Site Habitat Baseline'!S$11:S$258)," "))) ->  | N32: ='E-1 Off-Site Hedge Baseline'!AB35 -> 0 | P32: =IF(O32="","",SUMIF('E-1 Off-Site Hedge Baseline'!AB$10:AB$257,'Off-site gain site summary'!O32,'E-1 Off-Site Hedge Baseline'!Q$10:Q$257)) ->  | Q32: =IF(O32="","",SUMIF('E-1 Off-Site Hedge Baseline'!AB$10:AB$257,O32,'E-1 Off-Site Hedge Baseline'!N$10:N$257)) ->  | R32: =IF(O32="","",SUMIF('E-1 Off-Site Hedge Baseline'!$AB$10:$AB$257,'Off-site gain site summary'!$O32,'E-1 Off-Site Hedge Baseline'!$U$10:$U$257)) ->  | S32: =IF(O32="","",SUMIF('E-1 Off-Site Hedge Baseline'!$AB$10:$AB$257,'Off-site gain site summary'!$O32,'E-1 Off-Site Hedge Baseline'!$AY$10:$AY$257)) ->  | T32: =IF(O32="","",SUMIF('E-3 Off-Site Hedge Enhancement'!$AO$12:$AO$257,'Off-site gain site summary'!$O32,'E-3 Off-Site Hedge Enhancement'!$AK$12:$AK$257)) ->  | U32: =IF(O32="","",SUMIF('E-3 Off-Site Hedge Enhancement'!$AO$12:$AO$257,'Off-site gain site summary'!$O32,'E-3 Off-Site Hedge Enhancement'!$AJ$12:$AJ$257)) ->  | V32: =IF(O32="","",SUMIF('E-2 Off-Site Hedge Creation'!$AD$12:$AD$259,'Off-site gain site summary'!$O32,'E-2 Off-Site Hedge Creation'!$Z$12:$Z$259)) ->  | W32: =IF(O32="","",SUMIF('E-2 Off-Site Hedge Creation'!$AD$12:$AD$259,'Off-site gain site summary'!$O32,'E-2 Off-Site Hedge Creation'!$Y$12:$Y$259)) ->  | Y32: =IF(ISBLANK(O32),"", IFERROR(_xlfn.XLOOKUP(O32,'E-2 Off-Site Hedge Creation'!$AD$12:$AD$259,'E-2 Off-Site Hedge Creation'!$N$12:$N$259), IFERROR(_xlfn.XLOOKUP(O32,'E-1 Off-Site Hedge Baseline'!$AB$10:$AB$257,'E-1 Off-Site Hedge Baseline'!$P$10:$P$257), " "))) ->  | AA32: ='F-1 Off-Site WaterC'' Baseline'!AH35 -> 0 | AC32: =IF(AB32="","",SUMIF('F-1 Off-Site WaterC'' Baseline'!$AH$10:$AH$257,'Off-site gain site summary'!$AB32,'F-1 Off-Site WaterC'' Baseline'!$U$10:$U$257)) ->  | AD32: =IF(AB32="","",SUMIF('F-1 Off-Site WaterC'' Baseline'!$AH$10:$AH$257,'Off-site gain site summary'!$AB32,'F-1 Off-Site WaterC'' Baseline'!$R$10:$R$257)) ->  | AE32: =IF(AB32="","",SUMIF('F-1 Off-Site WaterC'' Baseline'!$AH$10:$AH$257,'Off-site gain site summary'!$AB32,'F-1 Off-Site WaterC'' Baseline'!$Z$10:$Z$257)) ->  | AF32: =IF(AB32="","",SUMIF('F-1 Off-Site WaterC'' Baseline'!$AH$10:$AH$257,'Off-site gain site summary'!$AB32,'F-1 Off-Site WaterC'' Baseline'!$BA$10:$BA$257)) ->  | AG32: =IF(AB32="","",SUMIF('F-3 Off-Site WaterC Enhancement'!$AT$12:$AT$257,'Off-site gain site summary'!$AB32,'F-3 Off-Site WaterC Enhancement'!$AP$12:$AP$257)) ->  | AH32: =IF(AB32="","",SUMIF('F-3 Off-Site WaterC Enhancement'!$AT$12:$AT$257,'Off-site gain site summary'!$AB32,'F-3 Off-Site WaterC Enhancement'!$AO$12:$AO$257)) ->  | AI32: =IF(AB32="","",SUMIF('F-2 Off-Site WaterC'' Creation'!$AG$12:$AG$259,'Off-site gain site summary'!$AB32,'F-2 Off-Site WaterC'' Creation'!$AC$12:$AC$259)) ->  | AJ32: =IF(AB32="","",SUMIF('F-2 Off-Site WaterC'' Creation'!$AG$12:$AG$259,'Off-site gain site summary'!$AB32,'F-2 Off-Site WaterC'' Creation'!$AB$12:$AB$259)) ->  | AL32: =IF(ISBLANK(AB32),"", IFERROR(_xlfn.XLOOKUP(AB32,'F-2 Off-Site WaterC'' Creation'!$AG$12:$AG$258,'F-2 Off-Site WaterC'' Creation'!$AA$12:$AA$258), IFERROR(_xlfn.XLOOKUP(AB32,'F-1 Off-Site WaterC'' Baseline'!$AH$10:$AH$257,'F-1 Off-Site WaterC'' Baseline'!$T$10:$T$257)," "))) -> 
A33: ='D-1 Off-Site Habitat Baseline'!AF37 -> 0 | C33: =IF(B33="","",SUMIF('D-1 Off-Site Habitat Baseline'!AF37:AF284,B33,'D-1 Off-Site Habitat Baseline'!T37:T284)) ->  | D33: =IF(B33="","",SUMIF('D-1 Off-Site Habitat Baseline'!$AF$11:$AF$258,B33,'D-1 Off-Site Habitat Baseline'!$Q$11:$Q$258)) ->  | E33: =IF(B33="","", SUMIF('D-1 Off-Site Habitat Baseline'!$AF$11:$AF$258,'Off-site gain site summary'!$B33,'D-1 Off-Site Habitat Baseline'!$X$11:$X$258)) ->  | F33: =IF(B33="","", SUMIF('D-1 Off-Site Habitat Baseline'!$AF$11:$AF$258,'Off-site gain site summary'!$B33,'D-1 Off-Site Habitat Baseline'!$AY$11:$AY$258)) ->  | G33: =IF(B33="","",SUMIF('D-3 Off-Site Habitat Enhancment'!$AU$12:$AU$258,'Off-site gain site summary'!B33,'D-3 Off-Site Habitat Enhancment'!$AQ$12:$AQ$258)) ->  | H33: =IF(B33="","",SUMIF('D-3 Off-Site Habitat Enhancment'!$AU$12:$AU$258,'Off-site gain site summary'!B33,'D-3 Off-Site Habitat Enhancment'!$AP$12:$AP$258)) ->  | I33: =IF(B33="","",SUMIF('D-2 Off-Site Habitat Creation'!$AF$11:$AF$256,'Off-site gain site summary'!B33,'D-2 Off-Site Habitat Creation'!$AB$11:$AB$256)) ->  | J33: =IF(B33="","",SUMIF('D-2 Off-Site Habitat Creation'!$AF$11:$AF$256,'Off-site gain site summary'!B33,'D-2 Off-Site Habitat Creation'!$AA$11:$AA$256)) ->  | L33: =IF(ISBLANK(B33),"",IFERROR(_xlfn.XLOOKUP(B33,'D-2 Off-Site Habitat Creation'!$AF$11:$AF$256,'D-2 Off-Site Habitat Creation'!$Z$11:$Z$256),IFERROR(_xlfn.XLOOKUP(B33,'D-1 Off-Site Habitat Baseline'!AF$11:AF$258,'D-1 Off-Site Habitat Baseline'!S$11:S$258)," "))) ->  | N33: ='E-1 Off-Site Hedge Baseline'!AB36 -> 0 | P33: =IF(O33="","",SUMIF('E-1 Off-Site Hedge Baseline'!AB$10:AB$257,'Off-site gain site summary'!O33,'E-1 Off-Site Hedge Baseline'!Q$10:Q$257)) ->  | Q33: =IF(O33="","",SUMIF('E-1 Off-Site Hedge Baseline'!AB$10:AB$257,O33,'E-1 Off-Site Hedge Baseline'!N$10:N$257)) ->  | R33: =IF(O33="","",SUMIF('E-1 Off-Site Hedge Baseline'!$AB$10:$AB$257,'Off-site gain site summary'!$O33,'E-1 Off-Site Hedge Baseline'!$U$10:$U$257)) ->  | S33: =IF(O33="","",SUMIF('E-1 Off-Site Hedge Baseline'!$AB$10:$AB$257,'Off-site gain site summary'!$O33,'E-1 Off-Site Hedge Baseline'!$AY$10:$AY$257)) ->  | T33: =IF(O33="","",SUMIF('E-3 Off-Site Hedge Enhancement'!$AO$12:$AO$257,'Off-site gain site summary'!$O33,'E-3 Off-Site Hedge Enhancement'!$AK$12:$AK$257)) ->  | U33: =IF(O33="","",SUMIF('E-3 Off-Site Hedge Enhancement'!$AO$12:$AO$257,'Off-site gain site summary'!$O33,'E-3 Off-Site Hedge Enhancement'!$AJ$12:$AJ$257)) ->  | V33: =IF(O33="","",SUMIF('E-2 Off-Site Hedge Creation'!$AD$12:$AD$259,'Off-site gain site summary'!$O33,'E-2 Off-Site Hedge Creation'!$Z$12:$Z$259)) ->  | W33: =IF(O33="","",SUMIF('E-2 Off-Site Hedge Creation'!$AD$12:$AD$259,'Off-site gain site summary'!$O33,'E-2 Off-Site Hedge Creation'!$Y$12:$Y$259)) ->  | Y33: =IF(ISBLANK(O33),"", IFERROR(_xlfn.XLOOKUP(O33,'E-2 Off-Site Hedge Creation'!$AD$12:$AD$259,'E-2 Off-Site Hedge Creation'!$N$12:$N$259), IFERROR(_xlfn.XLOOKUP(O33,'E-1 Off-Site Hedge Baseline'!$AB$10:$AB$257,'E-1 Off-Site Hedge Baseline'!$P$10:$P$257), " "))) ->  | AA33: ='F-1 Off-Site WaterC'' Baseline'!AH36 -> 0 | AC33: =IF(AB33="","",SUMIF('F-1 Off-Site WaterC'' Baseline'!$AH$10:$AH$257,'Off-site gain site summary'!$AB33,'F-1 Off-Site WaterC'' Baseline'!$U$10:$U$257)) ->  | AD33: =IF(AB33="","",SUMIF('F-1 Off-Site WaterC'' Baseline'!$AH$10:$AH$257,'Off-site gain site summary'!$AB33,'F-1 Off-Site WaterC'' Baseline'!$R$10:$R$257)) ->  | AE33: =IF(AB33="","",SUMIF('F-1 Off-Site WaterC'' Baseline'!$AH$10:$AH$257,'Off-site gain site summary'!$AB33,'F-1 Off-Site WaterC'' Baseline'!$Z$10:$Z$257)) ->  | AF33: =IF(AB33="","",SUMIF('F-1 Off-Site WaterC'' Baseline'!$AH$10:$AH$257,'Off-site gain site summary'!$AB33,'F-1 Off-Site WaterC'' Baseline'!$BA$10:$BA$257)) ->  | AG33: =IF(AB33="","",SUMIF('F-3 Off-Site WaterC Enhancement'!$AT$12:$AT$257,'Off-site gain site summary'!$AB33,'F-3 Off-Site WaterC Enhancement'!$AP$12:$AP$257)) ->  | AH33: =IF(AB33="","",SUMIF('F-3 Off-Site WaterC Enhancement'!$AT$12:$AT$257,'Off-site gain site summary'!$AB33,'F-3 Off-Site WaterC Enhancement'!$AO$12:$AO$257)) ->  | AI33: =IF(AB33="","",SUMIF('F-2 Off-Site WaterC'' Creation'!$AG$12:$AG$259,'Off-site gain site summary'!$AB33,'F-2 Off-Site WaterC'' Creation'!$AC$12:$AC$259)) ->  | AJ33: =IF(AB33="","",SUMIF('F-2 Off-Site WaterC'' Creation'!$AG$12:$AG$259,'Off-site gain site summary'!$AB33,'F-2 Off-Site WaterC'' Creation'!$AB$12:$AB$259)) ->  | AL33: =IF(ISBLANK(AB33),"", IFERROR(_xlfn.XLOOKUP(AB33,'F-2 Off-Site WaterC'' Creation'!$AG$12:$AG$258,'F-2 Off-Site WaterC'' Creation'!$AA$12:$AA$258), IFERROR(_xlfn.XLOOKUP(AB33,'F-1 Off-Site WaterC'' Baseline'!$AH$10:$AH$257,'F-1 Off-Site WaterC'' Baseline'!$T$10:$T$257)," "))) -> 
A34: ='D-1 Off-Site Habitat Baseline'!AF38 -> 0 | C34: =IF(B34="","",SUMIF('D-1 Off-Site Habitat Baseline'!AF38:AF285,B34,'D-1 Off-Site Habitat Baseline'!T38:T285)) ->  | D34: =IF(B34="","",SUMIF('D-1 Off-Site Habitat Baseline'!$AF$11:$AF$258,B34,'D-1 Off-Site Habitat Baseline'!$Q$11:$Q$258)) ->  | E34: =IF(B34="","", SUMIF('D-1 Off-Site Habitat Baseline'!$AF$11:$AF$258,'Off-site gain site summary'!$B34,'D-1 Off-Site Habitat Baseline'!$X$11:$X$258)) ->  | F34: =IF(B34="","", SUMIF('D-1 Off-Site Habitat Baseline'!$AF$11:$AF$258,'Off-site gain site summary'!$B34,'D-1 Off-Site Habitat Baseline'!$AY$11:$AY$258)) ->  | G34: =IF(B34="","",SUMIF('D-3 Off-Site Habitat Enhancment'!$AU$12:$AU$258,'Off-site gain site summary'!B34,'D-3 Off-Site Habitat Enhancment'!$AQ$12:$AQ$258)) ->  | H34: =IF(B34="","",SUMIF('D-3 Off-Site Habitat Enhancment'!$AU$12:$AU$258,'Off-site gain site summary'!B34,'D-3 Off-Site Habitat Enhancment'!$AP$12:$AP$258)) ->  | I34: =IF(B34="","",SUMIF('D-2 Off-Site Habitat Creation'!$AF$11:$AF$256,'Off-site gain site summary'!B34,'D-2 Off-Site Habitat Creation'!$AB$11:$AB$256)) ->  | J34: =IF(B34="","",SUMIF('D-2 Off-Site Habitat Creation'!$AF$11:$AF$256,'Off-site gain site summary'!B34,'D-2 Off-Site Habitat Creation'!$AA$11:$AA$256)) ->  | L34: =IF(ISBLANK(B34),"",IFERROR(_xlfn.XLOOKUP(B34,'D-2 Off-Site Habitat Creation'!$AF$11:$AF$256,'D-2 Off-Site Habitat Creation'!$Z$11:$Z$256),IFERROR(_xlfn.XLOOKUP(B34,'D-1 Off-Site Habitat Baseline'!AF$11:AF$258,'D-1 Off-Site Habitat Baseline'!S$11:S$258)," "))) ->  | N34: ='E-1 Off-Site Hedge Baseline'!AB37 -> 0 | P34: =IF(O34="","",SUMIF('E-1 Off-Site Hedge Baseline'!AB$10:AB$257,'Off-site gain site summary'!O34,'E-1 Off-Site Hedge Baseline'!Q$10:Q$257)) ->  | Q34: =IF(O34="","",SUMIF('E-1 Off-Site Hedge Baseline'!AB$10:AB$257,O34,'E-1 Off-Site Hedge Baseline'!N$10:N$257)) ->  | R34: =IF(O34="","",SUMIF('E-1 Off-Site Hedge Baseline'!$AB$10:$AB$257,'Off-site gain site summary'!$O34,'E-1 Off-Site Hedge Baseline'!$U$10:$U$257)) ->  | S34: =IF(O34="","",SUMIF('E-1 Off-Site Hedge Baseline'!$AB$10:$AB$257,'Off-site gain site summary'!$O34,'E-1 Off-Site Hedge Baseline'!$AY$10:$AY$257)) ->  | T34: =IF(O34="","",SUMIF('E-3 Off-Site Hedge Enhancement'!$AO$12:$AO$257,'Off-site gain site summary'!$O34,'E-3 Off-Site Hedge Enhancement'!$AK$12:$AK$257)) ->  | U34: =IF(O34="","",SUMIF('E-3 Off-Site Hedge Enhancement'!$AO$12:$AO$257,'Off-site gain site summary'!$O34,'E-3 Off-Site Hedge Enhancement'!$AJ$12:$AJ$257)) ->  | V34: =IF(O34="","",SUMIF('E-2 Off-Site Hedge Creation'!$AD$12:$AD$259,'Off-site gain site summary'!$O34,'E-2 Off-Site Hedge Creation'!$Z$12:$Z$259)) ->  | W34: =IF(O34="","",SUMIF('E-2 Off-Site Hedge Creation'!$AD$12:$AD$259,'Off-site gain site summary'!$O34,'E-2 Off-Site Hedge Creation'!$Y$12:$Y$259)) ->  | Y34: =IF(ISBLANK(O34),"", IFERROR(_xlfn.XLOOKUP(O34,'E-2 Off-Site Hedge Creation'!$AD$12:$AD$259,'E-2 Off-Site Hedge Creation'!$N$12:$N$259), IFERROR(_xlfn.XLOOKUP(O34,'E-1 Off-Site Hedge Baseline'!$AB$10:$AB$257,'E-1 Off-Site Hedge Baseline'!$P$10:$P$257), " "))) ->  | AA34: ='F-1 Off-Site WaterC'' Baseline'!AH37 -> 0 | AC34: =IF(AB34="","",SUMIF('F-1 Off-Site WaterC'' Baseline'!$AH$10:$AH$257,'Off-site gain site summary'!$AB34,'F-1 Off-Site WaterC'' Baseline'!$U$10:$U$257)) ->  | AD34: =IF(AB34="","",SUMIF('F-1 Off-Site WaterC'' Baseline'!$AH$10:$AH$257,'Off-site gain site summary'!$AB34,'F-1 Off-Site WaterC'' Baseline'!$R$10:$R$257)) ->  | AE34: =IF(AB34="","",SUMIF('F-1 Off-Site WaterC'' Baseline'!$AH$10:$AH$257,'Off-site gain site summary'!$AB34,'F-1 Off-Site WaterC'' Baseline'!$Z$10:$Z$257)) ->  | AF34: =IF(AB34="","",SUMIF('F-1 Off-Site WaterC'' Baseline'!$AH$10:$AH$257,'Off-site gain site summary'!$AB34,'F-1 Off-Site WaterC'' Baseline'!$BA$10:$BA$257)) ->  | AG34: =IF(AB34="","",SUMIF('F-3 Off-Site WaterC Enhancement'!$AT$12:$AT$257,'Off-site gain site summary'!$AB34,'F-3 Off-Site WaterC Enhancement'!$AP$12:$AP$257)) ->  | AH34: =IF(AB34="","",SUMIF('F-3 Off-Site WaterC Enhancement'!$AT$12:$AT$257,'Off-site gain site summary'!$AB34,'F-3 Off-Site WaterC Enhancement'!$AO$12:$AO$257)) ->  | AI34: =IF(AB34="","",SUMIF('F-2 Off-Site WaterC'' Creation'!$AG$12:$AG$259,'Off-site gain site summary'!$AB34,'F-2 Off-Site WaterC'' Creation'!$AC$12:$AC$259)) ->  | AJ34: =IF(AB34="","",SUMIF('F-2 Off-Site WaterC'' Creation'!$AG$12:$AG$259,'Off-site gain site summary'!$AB34,'F-2 Off-Site WaterC'' Creation'!$AB$12:$AB$259)) ->  | AL34: =IF(ISBLANK(AB34),"", IFERROR(_xlfn.XLOOKUP(AB34,'F-2 Off-Site WaterC'' Creation'!$AG$12:$AG$258,'F-2 Off-Site WaterC'' Creation'!$AA$12:$AA$258), IFERROR(_xlfn.XLOOKUP(AB34,'F-1 Off-Site WaterC'' Baseline'!$AH$10:$AH$257,'F-1 Off-Site WaterC'' Baseline'!$T$10:$T$257)," "))) -> 
A35: ='D-1 Off-Site Habitat Baseline'!AF39 -> 0 | C35: =IF(B35="","",SUMIF('D-1 Off-Site Habitat Baseline'!AF39:AF286,B35,'D-1 Off-Site Habitat Baseline'!T39:T286)) ->  | D35: =IF(B35="","",SUMIF('D-1 Off-Site Habitat Baseline'!$AF$11:$AF$258,B35,'D-1 Off-Site Habitat Baseline'!$Q$11:$Q$258)) ->  | E35: =IF(B35="","", SUMIF('D-1 Off-Site Habitat Baseline'!$AF$11:$AF$258,'Off-site gain site summary'!$B35,'D-1 Off-Site Habitat Baseline'!$X$11:$X$258)) ->  | F35: =IF(B35="","", SUMIF('D-1 Off-Site Habitat Baseline'!$AF$11:$AF$258,'Off-site gain site summary'!$B35,'D-1 Off-Site Habitat Baseline'!$AY$11:$AY$258)) ->  | G35: =IF(B35="","",SUMIF('D-3 Off-Site Habitat Enhancment'!$AU$12:$AU$258,'Off-site gain site summary'!B35,'D-3 Off-Site Habitat Enhancment'!$AQ$12:$AQ$258)) ->  | H35: =IF(B35="","",SUMIF('D-3 Off-Site Habitat Enhancment'!$AU$12:$AU$258,'Off-site gain site summary'!B35,'D-3 Off-Site Habitat Enhancment'!$AP$12:$AP$258)) ->  | I35: =IF(B35="","",SUMIF('D-2 Off-Site Habitat Creation'!$AF$11:$AF$256,'Off-site gain site summary'!B35,'D-2 Off-Site Habitat Creation'!$AB$11:$AB$256)) ->  | J35: =IF(B35="","",SUMIF('D-2 Off-Site Habitat Creation'!$AF$11:$AF$256,'Off-site gain site summary'!B35,'D-2 Off-Site Habitat Creation'!$AA$11:$AA$256)) ->  | L35: =IF(ISBLANK(B35),"",IFERROR(_xlfn.XLOOKUP(B35,'D-2 Off-Site Habitat Creation'!$AF$11:$AF$256,'D-2 Off-Site Habitat Creation'!$Z$11:$Z$256),IFERROR(_xlfn.XLOOKUP(B35,'D-1 Off-Site Habitat Baseline'!AF$11:AF$258,'D-1 Off-Site Habitat Baseline'!S$11:S$258)," "))) ->  | N35: ='E-1 Off-Site Hedge Baseline'!AB38 -> 0 | P35: =IF(O35="","",SUMIF('E-1 Off-Site Hedge Baseline'!AB$10:AB$257,'Off-site gain site summary'!O35,'E-1 Off-Site Hedge Baseline'!Q$10:Q$257)) ->  | Q35: =IF(O35="","",SUMIF('E-1 Off-Site Hedge Baseline'!AB$10:AB$257,O35,'E-1 Off-Site Hedge Baseline'!N$10:N$257)) ->  | R35: =IF(O35="","",SUMIF('E-1 Off-Site Hedge Baseline'!$AB$10:$AB$257,'Off-site gain site summary'!$O35,'E-1 Off-Site Hedge Baseline'!$U$10:$U$257)) ->  | S35: =IF(O35="","",SUMIF('E-1 Off-Site Hedge Baseline'!$AB$10:$AB$257,'Off-site gain site summary'!$O35,'E-1 Off-Site Hedge Baseline'!$AY$10:$AY$257)) ->  | T35: =IF(O35="","",SUMIF('E-3 Off-Site Hedge Enhancement'!$AO$12:$AO$257,'Off-site gain site summary'!$O35,'E-3 Off-Site Hedge Enhancement'!$AK$12:$AK$257)) ->  | U35: =IF(O35="","",SUMIF('E-3 Off-Site Hedge Enhancement'!$AO$12:$AO$257,'Off-site gain site summary'!$O35,'E-3 Off-Site Hedge Enhancement'!$AJ$12:$AJ$257)) ->  | V35: =IF(O35="","",SUMIF('E-2 Off-Site Hedge Creation'!$AD$12:$AD$259,'Off-site gain site summary'!$O35,'E-2 Off-Site Hedge Creation'!$Z$12:$Z$259)) ->  | W35: =IF(O35="","",SUMIF('E-2 Off-Site Hedge Creation'!$AD$12:$AD$259,'Off-site gain site summary'!$O35,'E-2 Off-Site Hedge Creation'!$Y$12:$Y$259)) ->  | Y35: =IF(ISBLANK(O35),"", IFERROR(_xlfn.XLOOKUP(O35,'E-2 Off-Site Hedge Creation'!$AD$12:$AD$259,'E-2 Off-Site Hedge Creation'!$N$12:$N$259), IFERROR(_xlfn.XLOOKUP(O35,'E-1 Off-Site Hedge Baseline'!$AB$10:$AB$257,'E-1 Off-Site Hedge Baseline'!$P$10:$P$257), " "))) ->  | AA35: ='F-1 Off-Site WaterC'' Baseline'!AH38 -> 0 | AC35: =IF(AB35="","",SUMIF('F-1 Off-Site WaterC'' Baseline'!$AH$10:$AH$257,'Off-site gain site summary'!$AB35,'F-1 Off-Site WaterC'' Baseline'!$U$10:$U$257)) ->  | AD35: =IF(AB35="","",SUMIF('F-1 Off-Site WaterC'' Baseline'!$AH$10:$AH$257,'Off-site gain site summary'!$AB35,'F-1 Off-Site WaterC'' Baseline'!$R$10:$R$257)) ->  | AE35: =IF(AB35="","",SUMIF('F-1 Off-Site WaterC'' Baseline'!$AH$10:$AH$257,'Off-site gain site summary'!$AB35,'F-1 Off-Site WaterC'' Baseline'!$Z$10:$Z$257)) ->  | AF35: =IF(AB35="","",SUMIF('F-1 Off-Site WaterC'' Baseline'!$AH$10:$AH$257,'Off-site gain site summary'!$AB35,'F-1 Off-Site WaterC'' Baseline'!$BA$10:$BA$257)) ->  | AG35: =IF(AB35="","",SUMIF('F-3 Off-Site WaterC Enhancement'!$AT$12:$AT$257,'Off-site gain site summary'!$AB35,'F-3 Off-Site WaterC Enhancement'!$AP$12:$AP$257)) ->  | AH35: =IF(AB35="","",SUMIF('F-3 Off-Site WaterC Enhancement'!$AT$12:$AT$257,'Off-site gain site summary'!$AB35,'F-3 Off-Site WaterC Enhancement'!$AO$12:$AO$257)) ->  | AI35: =IF(AB35="","",SUMIF('F-2 Off-Site WaterC'' Creation'!$AG$12:$AG$259,'Off-site gain site summary'!$AB35,'F-2 Off-Site WaterC'' Creation'!$AC$12:$AC$259)) ->  | AJ35: =IF(AB35="","",SUMIF('F-2 Off-Site WaterC'' Creation'!$AG$12:$AG$259,'Off-site gain site summary'!$AB35,'F-2 Off-Site WaterC'' Creation'!$AB$12:$AB$259)) ->  | AL35: =IF(ISBLANK(AB35),"", IFERROR(_xlfn.XLOOKUP(AB35,'F-2 Off-Site WaterC'' Creation'!$AG$12:$AG$258,'F-2 Off-Site WaterC'' Creation'!$AA$12:$AA$258), IFERROR(_xlfn.XLOOKUP(AB35,'F-1 Off-Site WaterC'' Baseline'!$AH$10:$AH$257,'F-1 Off-Site WaterC'' Baseline'!$T$10:$T$257)," "))) -> 
A36: ='D-1 Off-Site Habitat Baseline'!AF40 -> 0 | C36: =IF(B36="","",SUMIF('D-1 Off-Site Habitat Baseline'!AF40:AF287,B36,'D-1 Off-Site Habitat Baseline'!T40:T287)) ->  | D36: =IF(B36="","",SUMIF('D-1 Off-Site Habitat Baseline'!$AF$11:$AF$258,B36,'D-1 Off-Site Habitat Baseline'!$Q$11:$Q$258)) ->  | E36: =IF(B36="","", SUMIF('D-1 Off-Site Habitat Baseline'!$AF$11:$AF$258,'Off-site gain site summary'!$B36,'D-1 Off-Site Habitat Baseline'!$X$11:$X$258)) ->  | F36: =IF(B36="","", SUMIF('D-1 Off-Site Habitat Baseline'!$AF$11:$AF$258,'Off-site gain site summary'!$B36,'D-1 Off-Site Habitat Baseline'!$AY$11:$AY$258)) ->  | G36: =IF(B36="","",SUMIF('D-3 Off-Site Habitat Enhancment'!$AU$12:$AU$258,'Off-site gain site summary'!B36,'D-3 Off-Site Habitat Enhancment'!$AQ$12:$AQ$258)) ->  | H36: =IF(B36="","",SUMIF('D-3 Off-Site Habitat Enhancment'!$AU$12:$AU$258,'Off-site gain site summary'!B36,'D-3 Off-Site Habitat Enhancment'!$AP$12:$AP$258)) ->  | I36: =IF(B36="","",SUMIF('D-2 Off-Site Habitat Creation'!$AF$11:$AF$256,'Off-site gain site summary'!B36,'D-2 Off-Site Habitat Creation'!$AB$11:$AB$256)) ->  | J36: =IF(B36="","",SUMIF('D-2 Off-Site Habitat Creation'!$AF$11:$AF$256,'Off-site gain site summary'!B36,'D-2 Off-Site Habitat Creation'!$AA$11:$AA$256)) ->  | L36: =IF(ISBLANK(B36),"",IFERROR(_xlfn.XLOOKUP(B36,'D-2 Off-Site Habitat Creation'!$AF$11:$AF$256,'D-2 Off-Site Habitat Creation'!$Z$11:$Z$256),IFERROR(_xlfn.XLOOKUP(B36,'D-1 Off-Site Habitat Baseline'!AF$11:AF$258,'D-1 Off-Site Habitat Baseline'!S$11:S$258)," "))) ->  | N36: ='E-1 Off-Site Hedge Baseline'!AB39 -> 0 | P36: =IF(O36="","",SUMIF('E-1 Off-Site Hedge Baseline'!AB$10:AB$257,'Off-site gain site summary'!O36,'E-1 Off-Site Hedge Baseline'!Q$10:Q$257)) ->  | Q36: =IF(O36="","",SUMIF('E-1 Off-Site Hedge Baseline'!AB$10:AB$257,O36,'E-1 Off-Site Hedge Baseline'!N$10:N$257)) ->  | R36: =IF(O36="","",SUMIF('E-1 Off-Site Hedge Baseline'!$AB$10:$AB$257,'Off-site gain site summary'!$O36,'E-1 Off-Site Hedge Baseline'!$U$10:$U$257)) ->  | S36: =IF(O36="","",SUMIF('E-1 Off-Site Hedge Baseline'!$AB$10:$AB$257,'Off-site gain site summary'!$O36,'E-1 Off-Site Hedge Baseline'!$AY$10:$AY$257)) ->  | T36: =IF(O36="","",SUMIF('E-3 Off-Site Hedge Enhancement'!$AO$12:$AO$257,'Off-site gain site summary'!$O36,'E-3 Off-Site Hedge Enhancement'!$AK$12:$AK$257)) ->  | U36: =IF(O36="","",SUMIF('E-3 Off-Site Hedge Enhancement'!$AO$12:$AO$257,'Off-site gain site summary'!$O36,'E-3 Off-Site Hedge Enhancement'!$AJ$12:$AJ$257)) ->  | V36: =IF(O36="","",SUMIF('E-2 Off-Site Hedge Creation'!$AD$12:$AD$259,'Off-site gain site summary'!$O36,'E-2 Off-Site Hedge Creation'!$Z$12:$Z$259)) ->  | W36: =IF(O36="","",SUMIF('E-2 Off-Site Hedge Creation'!$AD$12:$AD$259,'Off-site gain site summary'!$O36,'E-2 Off-Site Hedge Creation'!$Y$12:$Y$259)) ->  | Y36: =IF(ISBLANK(O36),"", IFERROR(_xlfn.XLOOKUP(O36,'E-2 Off-Site Hedge Creation'!$AD$12:$AD$259,'E-2 Off-Site Hedge Creation'!$N$12:$N$259), IFERROR(_xlfn.XLOOKUP(O36,'E-1 Off-Site Hedge Baseline'!$AB$10:$AB$257,'E-1 Off-Site Hedge Baseline'!$P$10:$P$257), " "))) ->  | AA36: ='F-1 Off-Site WaterC'' Baseline'!AH39 -> 0 | AC36: =IF(AB36="","",SUMIF('F-1 Off-Site WaterC'' Baseline'!$AH$10:$AH$257,'Off-site gain site summary'!$AB36,'F-1 Off-Site WaterC'' Baseline'!$U$10:$U$257)) ->  | AD36: =IF(AB36="","",SUMIF('F-1 Off-Site WaterC'' Baseline'!$AH$10:$AH$257,'Off-site gain site summary'!$AB36,'F-1 Off-Site WaterC'' Baseline'!$R$10:$R$257)) ->  | AE36: =IF(AB36="","",SUMIF('F-1 Off-Site WaterC'' Baseline'!$AH$10:$AH$257,'Off-site gain site summary'!$AB36,'F-1 Off-Site WaterC'' Baseline'!$Z$10:$Z$257)) ->  | AF36: =IF(AB36="","",SUMIF('F-1 Off-Site WaterC'' Baseline'!$AH$10:$AH$257,'Off-site gain site summary'!$AB36,'F-1 Off-Site WaterC'' Baseline'!$BA$10:$BA$257)) ->  | AG36: =IF(AB36="","",SUMIF('F-3 Off-Site WaterC Enhancement'!$AT$12:$AT$257,'Off-site gain site summary'!$AB36,'F-3 Off-Site WaterC Enhancement'!$AP$12:$AP$257)) ->  | AH36: =IF(AB36="","",SUMIF('F-3 Off-Site WaterC Enhancement'!$AT$12:$AT$257,'Off-site gain site summary'!$AB36,'F-3 Off-Site WaterC Enhancement'!$AO$12:$AO$257)) ->  | AI36: =IF(AB36="","",SUMIF('F-2 Off-Site WaterC'' Creation'!$AG$12:$AG$259,'Off-site gain site summary'!$AB36,'F-2 Off-Site WaterC'' Creation'!$AC$12:$AC$259)) ->  | AJ36: =IF(AB36="","",SUMIF('F-2 Off-Site WaterC'' Creation'!$AG$12:$AG$259,'Off-site gain site summary'!$AB36,'F-2 Off-Site WaterC'' Creation'!$AB$12:$AB$259)) ->  | AL36: =IF(ISBLANK(AB36),"", IFERROR(_xlfn.XLOOKUP(AB36,'F-2 Off-Site WaterC'' Creation'!$AG$12:$AG$258,'F-2 Off-Site WaterC'' Creation'!$AA$12:$AA$258), IFERROR(_xlfn.XLOOKUP(AB36,'F-1 Off-Site WaterC'' Baseline'!$AH$10:$AH$257,'F-1 Off-Site WaterC'' Baseline'!$T$10:$T$257)," "))) -> 
A37: ='D-1 Off-Site Habitat Baseline'!AF41 -> 0 | C37: =IF(B37="","",SUMIF('D-1 Off-Site Habitat Baseline'!AF41:AF288,B37,'D-1 Off-Site Habitat Baseline'!T41:T288)) ->  | D37: =IF(B37="","",SUMIF('D-1 Off-Site Habitat Baseline'!$AF$11:$AF$258,B37,'D-1 Off-Site Habitat Baseline'!$Q$11:$Q$258)) ->  | E37: =IF(B37="","", SUMIF('D-1 Off-Site Habitat Baseline'!$AF$11:$AF$258,'Off-site gain site summary'!$B37,'D-1 Off-Site Habitat Baseline'!$X$11:$X$258)) ->  | F37: =IF(B37="","", SUMIF('D-1 Off-Site Habitat Baseline'!$AF$11:$AF$258,'Off-site gain site summary'!$B37,'D-1 Off-Site Habitat Baseline'!$AY$11:$AY$258)) ->  | G37: =IF(B37="","",SUMIF('D-3 Off-Site Habitat Enhancment'!$AU$12:$AU$258,'Off-site gain site summary'!B37,'D-3 Off-Site Habitat Enhancment'!$AQ$12:$AQ$258)) ->  | H37: =IF(B37="","",SUMIF('D-3 Off-Site Habitat Enhancment'!$AU$12:$AU$258,'Off-site gain site summary'!B37,'D-3 Off-Site Habitat Enhancment'!$AP$12:$AP$258)) ->  | I37: =IF(B37="","",SUMIF('D-2 Off-Site Habitat Creation'!$AF$11:$AF$256,'Off-site gain site summary'!B37,'D-2 Off-Site Habitat Creation'!$AB$11:$AB$256)) ->  | J37: =IF(B37="","",SUMIF('D-2 Off-Site Habitat Creation'!$AF$11:$AF$256,'Off-site gain site summary'!B37,'D-2 Off-Site Habitat Creation'!$AA$11:$AA$256)) ->  | L37: =IF(ISBLANK(B37),"",IFERROR(_xlfn.XLOOKUP(B37,'D-2 Off-Site Habitat Creation'!$AF$11:$AF$256,'D-2 Off-Site Habitat Creation'!$Z$11:$Z$256),IFERROR(_xlfn.XLOOKUP(B37,'D-1 Off-Site Habitat Baseline'!AF$11:AF$258,'D-1 Off-Site Habitat Baseline'!S$11:S$258)," "))) ->  | N37: ='E-1 Off-Site Hedge Baseline'!AB40 -> 0 | P37: =IF(O37="","",SUMIF('E-1 Off-Site Hedge Baseline'!AB$10:AB$257,'Off-site gain site summary'!O37,'E-1 Off-Site Hedge Baseline'!Q$10:Q$257)) ->  | Q37: =IF(O37="","",SUMIF('E-1 Off-Site Hedge Baseline'!AB$10:AB$257,O37,'E-1 Off-Site Hedge Baseline'!N$10:N$257)) ->  | R37: =IF(O37="","",SUMIF('E-1 Off-Site Hedge Baseline'!$AB$10:$AB$257,'Off-site gain site summary'!$O37,'E-1 Off-Site Hedge Baseline'!$U$10:$U$257)) ->  | S37: =IF(O37="","",SUMIF('E-1 Off-Site Hedge Baseline'!$AB$10:$AB$257,'Off-site gain site summary'!$O37,'E-1 Off-Site Hedge Baseline'!$AY$10:$AY$257)) ->  | T37: =IF(O37="","",SUMIF('E-3 Off-Site Hedge Enhancement'!$AO$12:$AO$257,'Off-site gain site summary'!$O37,'E-3 Off-Site Hedge Enhancement'!$AK$12:$AK$257)) ->  | U37: =IF(O37="","",SUMIF('E-3 Off-Site Hedge Enhancement'!$AO$12:$AO$257,'Off-site gain site summary'!$O37,'E-3 Off-Site Hedge Enhancement'!$AJ$12:$AJ$257)) ->  | V37: =IF(O37="","",SUMIF('E-2 Off-Site Hedge Creation'!$AD$12:$AD$259,'Off-site gain site summary'!$O37,'E-2 Off-Site Hedge Creation'!$Z$12:$Z$259)) ->  | W37: =IF(O37="","",SUMIF('E-2 Off-Site Hedge Creation'!$AD$12:$AD$259,'Off-site gain site summary'!$O37,'E-2 Off-Site Hedge Creation'!$Y$12:$Y$259)) ->  | Y37: =IF(ISBLANK(O37),"", IFERROR(_xlfn.XLOOKUP(O37,'E-2 Off-Site Hedge Creation'!$AD$12:$AD$259,'E-2 Off-Site Hedge Creation'!$N$12:$N$259), IFERROR(_xlfn.XLOOKUP(O37,'E-1 Off-Site Hedge Baseline'!$AB$10:$AB$257,'E-1 Off-Site Hedge Baseline'!$P$10:$P$257), " "))) ->  | AA37: ='F-1 Off-Site WaterC'' Baseline'!AH40 -> 0 | AC37: =IF(AB37="","",SUMIF('F-1 Off-Site WaterC'' Baseline'!$AH$10:$AH$257,'Off-site gain site summary'!$AB37,'F-1 Off-Site WaterC'' Baseline'!$U$10:$U$257)) ->  | AD37: =IF(AB37="","",SUMIF('F-1 Off-Site WaterC'' Baseline'!$AH$10:$AH$257,'Off-site gain site summary'!$AB37,'F-1 Off-Site WaterC'' Baseline'!$R$10:$R$257)) ->  | AE37: =IF(AB37="","",SUMIF('F-1 Off-Site WaterC'' Baseline'!$AH$10:$AH$257,'Off-site gain site summary'!$AB37,'F-1 Off-Site WaterC'' Baseline'!$Z$10:$Z$257)) ->  | AF37: =IF(AB37="","",SUMIF('F-1 Off-Site WaterC'' Baseline'!$AH$10:$AH$257,'Off-site gain site summary'!$AB37,'F-1 Off-Site WaterC'' Baseline'!$BA$10:$BA$257)) ->  | AG37: =IF(AB37="","",SUMIF('F-3 Off-Site WaterC Enhancement'!$AT$12:$AT$257,'Off-site gain site summary'!$AB37,'F-3 Off-Site WaterC Enhancement'!$AP$12:$AP$257)) ->  | AH37: =IF(AB37="","",SUMIF('F-3 Off-Site WaterC Enhancement'!$AT$12:$AT$257,'Off-site gain site summary'!$AB37,'F-3 Off-Site WaterC Enhancement'!$AO$12:$AO$257)) ->  | AI37: =IF(AB37="","",SUMIF('F-2 Off-Site WaterC'' Creation'!$AG$12:$AG$259,'Off-site gain site summary'!$AB37,'F-2 Off-Site WaterC'' Creation'!$AC$12:$AC$259)) ->  | AJ37: =IF(AB37="","",SUMIF('F-2 Off-Site WaterC'' Creation'!$AG$12:$AG$259,'Off-site gain site summary'!$AB37,'F-2 Off-Site WaterC'' Creation'!$AB$12:$AB$259)) ->  | AL37: =IF(ISBLANK(AB37),"", IFERROR(_xlfn.XLOOKUP(AB37,'F-2 Off-Site WaterC'' Creation'!$AG$12:$AG$258,'F-2 Off-Site WaterC'' Creation'!$AA$12:$AA$258), IFERROR(_xlfn.XLOOKUP(AB37,'F-1 Off-Site WaterC'' Baseline'!$AH$10:$AH$257,'F-1 Off-Site WaterC'' Baseline'!$T$10:$T$257)," "))) -> 
A38: ='D-1 Off-Site Habitat Baseline'!AF42 -> 0 | C38: =IF(B38="","",SUMIF('D-1 Off-Site Habitat Baseline'!AF42:AF289,B38,'D-1 Off-Site Habitat Baseline'!T42:T289)) ->  | D38: =IF(B38="","",SUMIF('D-1 Off-Site Habitat Baseline'!$AF$11:$AF$258,B38,'D-1 Off-Site Habitat Baseline'!$Q$11:$Q$258)) ->  | E38: =IF(B38="","", SUMIF('D-1 Off-Site Habitat Baseline'!$AF$11:$AF$258,'Off-site gain site summary'!$B38,'D-1 Off-Site Habitat Baseline'!$X$11:$X$258)) ->  | F38: =IF(B38="","", SUMIF('D-1 Off-Site Habitat Baseline'!$AF$11:$AF$258,'Off-site gain site summary'!$B38,'D-1 Off-Site Habitat Baseline'!$AY$11:$AY$258)) ->  | G38: =IF(B38="","",SUMIF('D-3 Off-Site Habitat Enhancment'!$AU$12:$AU$258,'Off-site gain site summary'!B38,'D-3 Off-Site Habitat Enhancment'!$AQ$12:$AQ$258)) ->  | H38: =IF(B38="","",SUMIF('D-3 Off-Site Habitat Enhancment'!$AU$12:$AU$258,'Off-site gain site summary'!B38,'D-3 Off-Site Habitat Enhancment'!$AP$12:$AP$258)) ->  | I38: =IF(B38="","",SUMIF('D-2 Off-Site Habitat Creation'!$AF$11:$AF$256,'Off-site gain site summary'!B38,'D-2 Off-Site Habitat Creation'!$AB$11:$AB$256)) ->  | J38: =IF(B38="","",SUMIF('D-2 Off-Site Habitat Creation'!$AF$11:$AF$256,'Off-site gain site summary'!B38,'D-2 Off-Site Habitat Creation'!$AA$11:$AA$256)) ->  | L38: =IF(ISBLANK(B38),"",IFERROR(_xlfn.XLOOKUP(B38,'D-2 Off-Site Habitat Creation'!$AF$11:$AF$256,'D-2 Off-Site Habitat Creation'!$Z$11:$Z$256),IFERROR(_xlfn.XLOOKUP(B38,'D-1 Off-Site Habitat Baseline'!AF$11:AF$258,'D-1 Off-Site Habitat Baseline'!S$11:S$258)," "))) ->  | N38: ='E-1 Off-Site Hedge Baseline'!AB41 -> 0 | P38: =IF(O38="","",SUMIF('E-1 Off-Site Hedge Baseline'!AB$10:AB$257,'Off-site gain site summary'!O38,'E-1 Off-Site Hedge Baseline'!Q$10:Q$257)) ->  | Q38: =IF(O38="","",SUMIF('E-1 Off-Site Hedge Baseline'!AB$10:AB$257,O38,'E-1 Off-Site Hedge Baseline'!N$10:N$257)) ->  | R38: =IF(O38="","",SUMIF('E-1 Off-Site Hedge Baseline'!$AB$10:$AB$257,'Off-site gain site summary'!$O38,'E-1 Off-Site Hedge Baseline'!$U$10:$U$257)) ->  | S38: =IF(O38="","",SUMIF('E-1 Off-Site Hedge Baseline'!$AB$10:$AB$257,'Off-site gain site summary'!$O38,'E-1 Off-Site Hedge Baseline'!$AY$10:$AY$257)) ->  | T38: =IF(O38="","",SUMIF('E-3 Off-Site Hedge Enhancement'!$AO$12:$AO$257,'Off-site gain site summary'!$O38,'E-3 Off-Site Hedge Enhancement'!$AK$12:$AK$257)) ->  | U38: =IF(O38="","",SUMIF('E-3 Off-Site Hedge Enhancement'!$AO$12:$AO$257,'Off-site gain site summary'!$O38,'E-3 Off-Site Hedge Enhancement'!$AJ$12:$AJ$257)) ->  | V38: =IF(O38="","",SUMIF('E-2 Off-Site Hedge Creation'!$AD$12:$AD$259,'Off-site gain site summary'!$O38,'E-2 Off-Site Hedge Creation'!$Z$12:$Z$259)) ->  | W38: =IF(O38="","",SUMIF('E-2 Off-Site Hedge Creation'!$AD$12:$AD$259,'Off-site gain site summary'!$O38,'E-2 Off-Site Hedge Creation'!$Y$12:$Y$259)) ->  | Y38: =IF(ISBLANK(O38),"", IFERROR(_xlfn.XLOOKUP(O38,'E-2 Off-Site Hedge Creation'!$AD$12:$AD$259,'E-2 Off-Site Hedge Creation'!$N$12:$N$259), IFERROR(_xlfn.XLOOKUP(O38,'E-1 Off-Site Hedge Baseline'!$AB$10:$AB$257,'E-1 Off-Site Hedge Baseline'!$P$10:$P$257), " "))) ->  | AA38: ='F-1 Off-Site WaterC'' Baseline'!AH41 -> 0 | AC38: =IF(AB38="","",SUMIF('F-1 Off-Site WaterC'' Baseline'!$AH$10:$AH$257,'Off-site gain site summary'!$AB38,'F-1 Off-Site WaterC'' Baseline'!$U$10:$U$257)) ->  | AD38: =IF(AB38="","",SUMIF('F-1 Off-Site WaterC'' Baseline'!$AH$10:$AH$257,'Off-site gain site summary'!$AB38,'F-1 Off-Site WaterC'' Baseline'!$R$10:$R$257)) ->  | AE38: =IF(AB38="","",SUMIF('F-1 Off-Site WaterC'' Baseline'!$AH$10:$AH$257,'Off-site gain site summary'!$AB38,'F-1 Off-Site WaterC'' Baseline'!$Z$10:$Z$257)) ->  | AF38: =IF(AB38="","",SUMIF('F-1 Off-Site WaterC'' Baseline'!$AH$10:$AH$257,'Off-site gain site summary'!$AB38,'F-1 Off-Site WaterC'' Baseline'!$BA$10:$BA$257)) ->  | AG38: =IF(AB38="","",SUMIF('F-3 Off-Site WaterC Enhancement'!$AT$12:$AT$257,'Off-site gain site summary'!$AB38,'F-3 Off-Site WaterC Enhancement'!$AP$12:$AP$257)) ->  | AH38: =IF(AB38="","",SUMIF('F-3 Off-Site WaterC Enhancement'!$AT$12:$AT$257,'Off-site gain site summary'!$AB38,'F-3 Off-Site WaterC Enhancement'!$AO$12:$AO$257)) ->  | AI38: =IF(AB38="","",SUMIF('F-2 Off-Site WaterC'' Creation'!$AG$12:$AG$259,'Off-site gain site summary'!$AB38,'F-2 Off-Site WaterC'' Creation'!$AC$12:$AC$259)) ->  | AJ38: =IF(AB38="","",SUMIF('F-2 Off-Site WaterC'' Creation'!$AG$12:$AG$259,'Off-site gain site summary'!$AB38,'F-2 Off-Site WaterC'' Creation'!$AB$12:$AB$259)) ->  | AL38: =IF(ISBLANK(AB38),"", IFERROR(_xlfn.XLOOKUP(AB38,'F-2 Off-Site WaterC'' Creation'!$AG$12:$AG$258,'F-2 Off-Site WaterC'' Creation'!$AA$12:$AA$258), IFERROR(_xlfn.XLOOKUP(AB38,'F-1 Off-Site WaterC'' Baseline'!$AH$10:$AH$257,'F-1 Off-Site WaterC'' Baseline'!$T$10:$T$257)," "))) -> 
A39: ='D-1 Off-Site Habitat Baseline'!AF43 -> 0 | C39: =IF(B39="","",SUMIF('D-1 Off-Site Habitat Baseline'!AF43:AF290,B39,'D-1 Off-Site Habitat Baseline'!T43:T290)) ->  | D39: =IF(B39="","",SUMIF('D-1 Off-Site Habitat Baseline'!$AF$11:$AF$258,B39,'D-1 Off-Site Habitat Baseline'!$Q$11:$Q$258)) ->  | E39: =IF(B39="","", SUMIF('D-1 Off-Site Habitat Baseline'!$AF$11:$AF$258,'Off-site gain site summary'!$B39,'D-1 Off-Site Habitat Baseline'!$X$11:$X$258)) ->  | F39: =IF(B39="","", SUMIF('D-1 Off-Site Habitat Baseline'!$AF$11:$AF$258,'Off-site gain site summary'!$B39,'D-1 Off-Site Habitat Baseline'!$AY$11:$AY$258)) ->  | G39: =IF(B39="","",SUMIF('D-3 Off-Site Habitat Enhancment'!$AU$12:$AU$258,'Off-site gain site summary'!B39,'D-3 Off-Site Habitat Enhancment'!$AQ$12:$AQ$258)) ->  | H39: =IF(B39="","",SUMIF('D-3 Off-Site Habitat Enhancment'!$AU$12:$AU$258,'Off-site gain site summary'!B39,'D-3 Off-Site Habitat Enhancment'!$AP$12:$AP$258)) ->  | I39: =IF(B39="","",SUMIF('D-2 Off-Site Habitat Creation'!$AF$11:$AF$256,'Off-site gain site summary'!B39,'D-2 Off-Site Habitat Creation'!$AB$11:$AB$256)) ->  | J39: =IF(B39="","",SUMIF('D-2 Off-Site Habitat Creation'!$AF$11:$AF$256,'Off-site gain site summary'!B39,'D-2 Off-Site Habitat Creation'!$AA$11:$AA$256)) ->  | L39: =IF(ISBLANK(B39),"",IFERROR(_xlfn.XLOOKUP(B39,'D-2 Off-Site Habitat Creation'!$AF$11:$AF$256,'D-2 Off-Site Habitat Creation'!$Z$11:$Z$256),IFERROR(_xlfn.XLOOKUP(B39,'D-1 Off-Site Habitat Baseline'!AF$11:AF$258,'D-1 Off-Site Habitat Baseline'!S$11:S$258)," "))) ->  | N39: ='E-1 Off-Site Hedge Baseline'!AB42 -> 0 | P39: =IF(O39="","",SUMIF('E-1 Off-Site Hedge Baseline'!AB$10:AB$257,'Off-site gain site summary'!O39,'E-1 Off-Site Hedge Baseline'!Q$10:Q$257)) ->  | Q39: =IF(O39="","",SUMIF('E-1 Off-Site Hedge Baseline'!AB$10:AB$257,O39,'E-1 Off-Site Hedge Baseline'!N$10:N$257)) ->  | R39: =IF(O39="","",SUMIF('E-1 Off-Site Hedge Baseline'!$AB$10:$AB$257,'Off-site gain site summary'!$O39,'E-1 Off-Site Hedge Baseline'!$U$10:$U$257)) ->  | S39: =IF(O39="","",SUMIF('E-1 Off-Site Hedge Baseline'!$AB$10:$AB$257,'Off-site gain site summary'!$O39,'E-1 Off-Site Hedge Baseline'!$AY$10:$AY$257)) ->  | T39: =IF(O39="","",SUMIF('E-3 Off-Site Hedge Enhancement'!$AO$12:$AO$257,'Off-site gain site summary'!$O39,'E-3 Off-Site Hedge Enhancement'!$AK$12:$AK$257)) ->  | U39: =IF(O39="","",SUMIF('E-3 Off-Site Hedge Enhancement'!$AO$12:$AO$257,'Off-site gain site summary'!$O39,'E-3 Off-Site Hedge Enhancement'!$AJ$12:$AJ$257)) ->  | V39: =IF(O39="","",SUMIF('E-2 Off-Site Hedge Creation'!$AD$12:$AD$259,'Off-site gain site summary'!$O39,'E-2 Off-Site Hedge Creation'!$Z$12:$Z$259)) ->  | W39: =IF(O39="","",SUMIF('E-2 Off-Site Hedge Creation'!$AD$12:$AD$259,'Off-site gain site summary'!$O39,'E-2 Off-Site Hedge Creation'!$Y$12:$Y$259)) ->  | Y39: =IF(ISBLANK(O39),"", IFERROR(_xlfn.XLOOKUP(O39,'E-2 Off-Site Hedge Creation'!$AD$12:$AD$259,'E-2 Off-Site Hedge Creation'!$N$12:$N$259), IFERROR(_xlfn.XLOOKUP(O39,'E-1 Off-Site Hedge Baseline'!$AB$10:$AB$257,'E-1 Off-Site Hedge Baseline'!$P$10:$P$257), " "))) ->  | AA39: ='F-1 Off-Site WaterC'' Baseline'!AH42 -> 0 | AC39: =IF(AB39="","",SUMIF('F-1 Off-Site WaterC'' Baseline'!$AH$10:$AH$257,'Off-site gain site summary'!$AB39,'F-1 Off-Site WaterC'' Baseline'!$U$10:$U$257)) ->  | AD39: =IF(AB39="","",SUMIF('F-1 Off-Site WaterC'' Baseline'!$AH$10:$AH$257,'Off-site gain site summary'!$AB39,'F-1 Off-Site WaterC'' Baseline'!$R$10:$R$257)) ->  | AE39: =IF(AB39="","",SUMIF('F-1 Off-Site WaterC'' Baseline'!$AH$10:$AH$257,'Off-site gain site summary'!$AB39,'F-1 Off-Site WaterC'' Baseline'!$Z$10:$Z$257)) ->  | AF39: =IF(AB39="","",SUMIF('F-1 Off-Site WaterC'' Baseline'!$AH$10:$AH$257,'Off-site gain site summary'!$AB39,'F-1 Off-Site WaterC'' Baseline'!$BA$10:$BA$257)) ->  | AG39: =IF(AB39="","",SUMIF('F-3 Off-Site WaterC Enhancement'!$AT$12:$AT$257,'Off-site gain site summary'!$AB39,'F-3 Off-Site WaterC Enhancement'!$AP$12:$AP$257)) ->  | AH39: =IF(AB39="","",SUMIF('F-3 Off-Site WaterC Enhancement'!$AT$12:$AT$257,'Off-site gain site summary'!$AB39,'F-3 Off-Site WaterC Enhancement'!$AO$12:$AO$257)) ->  | AI39: =IF(AB39="","",SUMIF('F-2 Off-Site WaterC'' Creation'!$AG$12:$AG$259,'Off-site gain site summary'!$AB39,'F-2 Off-Site WaterC'' Creation'!$AC$12:$AC$259)) ->  | AJ39: =IF(AB39="","",SUMIF('F-2 Off-Site WaterC'' Creation'!$AG$12:$AG$259,'Off-site gain site summary'!$AB39,'F-2 Off-Site WaterC'' Creation'!$AB$12:$AB$259)) ->  | AL39: =IF(ISBLANK(AB39),"", IFERROR(_xlfn.XLOOKUP(AB39,'F-2 Off-Site WaterC'' Creation'!$AG$12:$AG$258,'F-2 Off-Site WaterC'' Creation'!$AA$12:$AA$258), IFERROR(_xlfn.XLOOKUP(AB39,'F-1 Off-Site WaterC'' Baseline'!$AH$10:$AH$257,'F-1 Off-Site WaterC'' Baseline'!$T$10:$T$257)," "))) -> 
A40: ='D-1 Off-Site Habitat Baseline'!AF44 -> 0 | C40: =IF(B40="","",SUMIF('D-1 Off-Site Habitat Baseline'!AF44:AF291,B40,'D-1 Off-Site Habitat Baseline'!T44:T291)) ->  | D40: =IF(B40="","",SUMIF('D-1 Off-Site Habitat Baseline'!$AF$11:$AF$258,B40,'D-1 Off-Site Habitat Baseline'!$Q$11:$Q$258)) ->  | E40: =IF(B40="","", SUMIF('D-1 Off-Site Habitat Baseline'!$AF$11:$AF$258,'Off-site gain site summary'!$B40,'D-1 Off-Site Habitat Baseline'!$X$11:$X$258)) ->  | F40: =IF(B40="","", SUMIF('D-1 Off-Site Habitat Baseline'!$AF$11:$AF$258,'Off-site gain site summary'!$B40,'D-1 Off-Site Habitat Baseline'!$AY$11:$AY$258)) ->  | G40: =IF(B40="","",SUMIF('D-3 Off-Site Habitat Enhancment'!$AU$12:$AU$258,'Off-site gain site summary'!B40,'D-3 Off-Site Habitat Enhancment'!$AQ$12:$AQ$258)) ->  | H40: =IF(B40="","",SUMIF('D-3 Off-Site Habitat Enhancment'!$AU$12:$AU$258,'Off-site gain site summary'!B40,'D-3 Off-Site Habitat Enhancment'!$AP$12:$AP$258)) ->  | I40: =IF(B40="","",SUMIF('D-2 Off-Site Habitat Creation'!$AF$11:$AF$256,'Off-site gain site summary'!B40,'D-2 Off-Site Habitat Creation'!$AB$11:$AB$256)) ->  | J40: =IF(B40="","",SUMIF('D-2 Off-Site Habitat Creation'!$AF$11:$AF$256,'Off-site gain site summary'!B40,'D-2 Off-Site Habitat Creation'!$AA$11:$AA$256)) ->  | L40: =IF(ISBLANK(B40),"",IFERROR(_xlfn.XLOOKUP(B40,'D-2 Off-Site Habitat Creation'!$AF$11:$AF$256,'D-2 Off-Site Habitat Creation'!$Z$11:$Z$256),IFERROR(_xlfn.XLOOKUP(B40,'D-1 Off-Site Habitat Baseline'!AF$11:AF$258,'D-1 Off-Site Habitat Baseline'!S$11:S$258)," "))) ->  | N40: ='E-1 Off-Site Hedge Baseline'!AB43 -> 0 | P40: =IF(O40="","",SUMIF('E-1 Off-Site Hedge Baseline'!AB$10:AB$257,'Off-site gain site summary'!O40,'E-1 Off-Site Hedge Baseline'!Q$10:Q$257)) ->  | Q40: =IF(O40="","",SUMIF('E-1 Off-Site Hedge Baseline'!AB$10:AB$257,O40,'E-1 Off-Site Hedge Baseline'!N$10:N$257)) ->  | R40: =IF(O40="","",SUMIF('E-1 Off-Site Hedge Baseline'!$AB$10:$AB$257,'Off-site gain site summary'!$O40,'E-1 Off-Site Hedge Baseline'!$U$10:$U$257)) ->  | S40: =IF(O40="","",SUMIF('E-1 Off-Site Hedge Baseline'!$AB$10:$AB$257,'Off-site gain site summary'!$O40,'E-1 Off-Site Hedge Baseline'!$AY$10:$AY$257)) ->  | T40: =IF(O40="","",SUMIF('E-3 Off-Site Hedge Enhancement'!$AO$12:$AO$257,'Off-site gain site summary'!$O40,'E-3 Off-Site Hedge Enhancement'!$AK$12:$AK$257)) ->  | U40: =IF(O40="","",SUMIF('E-3 Off-Site Hedge Enhancement'!$AO$12:$AO$257,'Off-site gain site summary'!$O40,'E-3 Off-Site Hedge Enhancement'!$AJ$12:$AJ$257)) ->  | V40: =IF(O40="","",SUMIF('E-2 Off-Site Hedge Creation'!$AD$12:$AD$259,'Off-site gain site summary'!$O40,'E-2 Off-Site Hedge Creation'!$Z$12:$Z$259)) ->  | W40: =IF(O40="","",SUMIF('E-2 Off-Site Hedge Creation'!$AD$12:$AD$259,'Off-site gain site summary'!$O40,'E-2 Off-Site Hedge Creation'!$Y$12:$Y$259)) ->  | Y40: =IF(ISBLANK(O40),"", IFERROR(_xlfn.XLOOKUP(O40,'E-2 Off-Site Hedge Creation'!$AD$12:$AD$259,'E-2 Off-Site Hedge Creation'!$N$12:$N$259), IFERROR(_xlfn.XLOOKUP(O40,'E-1 Off-Site Hedge Baseline'!$AB$10:$AB$257,'E-1 Off-Site Hedge Baseline'!$P$10:$P$257), " "))) ->  | AA40: ='F-1 Off-Site WaterC'' Baseline'!AH43 -> 0 | AC40: =IF(AB40="","",SUMIF('F-1 Off-Site WaterC'' Baseline'!$AH$10:$AH$257,'Off-site gain site summary'!$AB40,'F-1 Off-Site WaterC'' Baseline'!$U$10:$U$257)) ->  | AD40: =IF(AB40="","",SUMIF('F-1 Off-Site WaterC'' Baseline'!$AH$10:$AH$257,'Off-site gain site summary'!$AB40,'F-1 Off-Site WaterC'' Baseline'!$R$10:$R$257)) ->  | AE40: =IF(AB40="","",SUMIF('F-1 Off-Site WaterC'' Baseline'!$AH$10:$AH$257,'Off-site gain site summary'!$AB40,'F-1 Off-Site WaterC'' Baseline'!$Z$10:$Z$257)) ->  | AF40: =IF(AB40="","",SUMIF('F-1 Off-Site WaterC'' Baseline'!$AH$10:$AH$257,'Off-site gain site summary'!$AB40,'F-1 Off-Site WaterC'' Baseline'!$BA$10:$BA$257)) ->  | AG40: =IF(AB40="","",SUMIF('F-3 Off-Site WaterC Enhancement'!$AT$12:$AT$257,'Off-site gain site summary'!$AB40,'F-3 Off-Site WaterC Enhancement'!$AP$12:$AP$257)) ->  | AH40: =IF(AB40="","",SUMIF('F-3 Off-Site WaterC Enhancement'!$AT$12:$AT$257,'Off-site gain site summary'!$AB40,'F-3 Off-Site WaterC Enhancement'!$AO$12:$AO$257)) ->  | AI40: =IF(AB40="","",SUMIF('F-2 Off-Site WaterC'' Creation'!$AG$12:$AG$259,'Off-site gain site summary'!$AB40,'F-2 Off-Site WaterC'' Creation'!$AC$12:$AC$259)) ->  | AJ40: =IF(AB40="","",SUMIF('F-2 Off-Site WaterC'' Creation'!$AG$12:$AG$259,'Off-site gain site summary'!$AB40,'F-2 Off-Site WaterC'' Creation'!$AB$12:$AB$259)) ->  | AL40: =IF(ISBLANK(AB40),"", IFERROR(_xlfn.XLOOKUP(AB40,'F-2 Off-Site WaterC'' Creation'!$AG$12:$AG$258,'F-2 Off-Site WaterC'' Creation'!$AA$12:$AA$258), IFERROR(_xlfn.XLOOKUP(AB40,'F-1 Off-Site WaterC'' Baseline'!$AH$10:$AH$257,'F-1 Off-Site WaterC'' Baseline'!$T$10:$T$257)," "))) -> 
A41: ='D-1 Off-Site Habitat Baseline'!AF45 -> 0 | C41: =IF(B41="","",SUMIF('D-1 Off-Site Habitat Baseline'!AF45:AF292,B41,'D-1 Off-Site Habitat Baseline'!T45:T292)) ->  | D41: =IF(B41="","",SUMIF('D-1 Off-Site Habitat Baseline'!$AF$11:$AF$258,B41,'D-1 Off-Site Habitat Baseline'!$Q$11:$Q$258)) ->  | E41: =IF(B41="","", SUMIF('D-1 Off-Site Habitat Baseline'!$AF$11:$AF$258,'Off-site gain site summary'!$B41,'D-1 Off-Site Habitat Baseline'!$X$11:$X$258)) ->  | F41: =IF(B41="","", SUMIF('D-1 Off-Site Habitat Baseline'!$AF$11:$AF$258,'Off-site gain site summary'!$B41,'D-1 Off-Site Habitat Baseline'!$AY$11:$AY$258)) ->  | G41: =IF(B41="","",SUMIF('D-3 Off-Site Habitat Enhancment'!$AU$12:$AU$258,'Off-site gain site summary'!B41,'D-3 Off-Site Habitat Enhancment'!$AQ$12:$AQ$258)) ->  | H41: =IF(B41="","",SUMIF('D-3 Off-Site Habitat Enhancment'!$AU$12:$AU$258,'Off-site gain site summary'!B41,'D-3 Off-Site Habitat Enhancment'!$AP$12:$AP$258)) ->  | I41: =IF(B41="","",SUMIF('D-2 Off-Site Habitat Creation'!$AF$11:$AF$256,'Off-site gain site summary'!B41,'D-2 Off-Site Habitat Creation'!$AB$11:$AB$256)) ->  | J41: =IF(B41="","",SUMIF('D-2 Off-Site Habitat Creation'!$AF$11:$AF$256,'Off-site gain site summary'!B41,'D-2 Off-Site Habitat Creation'!$AA$11:$AA$256)) ->  | L41: =IF(ISBLANK(B41),"",IFERROR(_xlfn.XLOOKUP(B41,'D-2 Off-Site Habitat Creation'!$AF$11:$AF$256,'D-2 Off-Site Habitat Creation'!$Z$11:$Z$256),IFERROR(_xlfn.XLOOKUP(B41,'D-1 Off-Site Habitat Baseline'!AF$11:AF$258,'D-1 Off-Site Habitat Baseline'!S$11:S$258)," "))) ->  | N41: ='E-1 Off-Site Hedge Baseline'!AB44 -> 0 | P41: =IF(O41="","",SUMIF('E-1 Off-Site Hedge Baseline'!AB$10:AB$257,'Off-site gain site summary'!O41,'E-1 Off-Site Hedge Baseline'!Q$10:Q$257)) ->  | Q41: =IF(O41="","",SUMIF('E-1 Off-Site Hedge Baseline'!AB$10:AB$257,O41,'E-1 Off-Site Hedge Baseline'!N$10:N$257)) ->  | R41: =IF(O41="","",SUMIF('E-1 Off-Site Hedge Baseline'!$AB$10:$AB$257,'Off-site gain site summary'!$O41,'E-1 Off-Site Hedge Baseline'!$U$10:$U$257)) ->  | S41: =IF(O41="","",SUMIF('E-1 Off-Site Hedge Baseline'!$AB$10:$AB$257,'Off-site gain site summary'!$O41,'E-1 Off-Site Hedge Baseline'!$AY$10:$AY$257)) ->  | T41: =IF(O41="","",SUMIF('E-3 Off-Site Hedge Enhancement'!$AO$12:$AO$257,'Off-site gain site summary'!$O41,'E-3 Off-Site Hedge Enhancement'!$AK$12:$AK$257)) ->  | U41: =IF(O41="","",SUMIF('E-3 Off-Site Hedge Enhancement'!$AO$12:$AO$257,'Off-site gain site summary'!$O41,'E-3 Off-Site Hedge Enhancement'!$AJ$12:$AJ$257)) ->  | V41: =IF(O41="","",SUMIF('E-2 Off-Site Hedge Creation'!$AD$12:$AD$259,'Off-site gain site summary'!$O41,'E-2 Off-Site Hedge Creation'!$Z$12:$Z$259)) ->  | W41: =IF(O41="","",SUMIF('E-2 Off-Site Hedge Creation'!$AD$12:$AD$259,'Off-site gain site summary'!$O41,'E-2 Off-Site Hedge Creation'!$Y$12:$Y$259)) ->  | Y41: =IF(ISBLANK(O41),"", IFERROR(_xlfn.XLOOKUP(O41,'E-2 Off-Site Hedge Creation'!$AD$12:$AD$259,'E-2 Off-Site Hedge Creation'!$N$12:$N$259), IFERROR(_xlfn.XLOOKUP(O41,'E-1 Off-Site Hedge Baseline'!$AB$10:$AB$257,'E-1 Off-Site Hedge Baseline'!$P$10:$P$257), " "))) ->  | AA41: ='F-1 Off-Site WaterC'' Baseline'!AH44 -> 0 | AC41: =IF(AB41="","",SUMIF('F-1 Off-Site WaterC'' Baseline'!$AH$10:$AH$257,'Off-site gain site summary'!$AB41,'F-1 Off-Site WaterC'' Baseline'!$U$10:$U$257)) ->  | AD41: =IF(AB41="","",SUMIF('F-1 Off-Site WaterC'' Baseline'!$AH$10:$AH$257,'Off-site gain site summary'!$AB41,'F-1 Off-Site WaterC'' Baseline'!$R$10:$R$257)) ->  | AE41: =IF(AB41="","",SUMIF('F-1 Off-Site WaterC'' Baseline'!$AH$10:$AH$257,'Off-site gain site summary'!$AB41,'F-1 Off-Site WaterC'' Baseline'!$Z$10:$Z$257)) ->  | AF41: =IF(AB41="","",SUMIF('F-1 Off-Site WaterC'' Baseline'!$AH$10:$AH$257,'Off-site gain site summary'!$AB41,'F-1 Off-Site WaterC'' Baseline'!$BA$10:$BA$257)) ->  | AG41: =IF(AB41="","",SUMIF('F-3 Off-Site WaterC Enhancement'!$AT$12:$AT$257,'Off-site gain site summary'!$AB41,'F-3 Off-Site WaterC Enhancement'!$AP$12:$AP$257)) ->  | AH41: =IF(AB41="","",SUMIF('F-3 Off-Site WaterC Enhancement'!$AT$12:$AT$257,'Off-site gain site summary'!$AB41,'F-3 Off-Site WaterC Enhancement'!$AO$12:$AO$257)) ->  | AI41: =IF(AB41="","",SUMIF('F-2 Off-Site WaterC'' Creation'!$AG$12:$AG$259,'Off-site gain site summary'!$AB41,'F-2 Off-Site WaterC'' Creation'!$AC$12:$AC$259)) ->  | AJ41: =IF(AB41="","",SUMIF('F-2 Off-Site WaterC'' Creation'!$AG$12:$AG$259,'Off-site gain site summary'!$AB41,'F-2 Off-Site WaterC'' Creation'!$AB$12:$AB$259)) ->  | AL41: =IF(ISBLANK(AB41),"", IFERROR(_xlfn.XLOOKUP(AB41,'F-2 Off-Site WaterC'' Creation'!$AG$12:$AG$258,'F-2 Off-Site WaterC'' Creation'!$AA$12:$AA$258), IFERROR(_xlfn.XLOOKUP(AB41,'F-1 Off-Site WaterC'' Baseline'!$AH$10:$AH$257,'F-1 Off-Site WaterC'' Baseline'!$T$10:$T$257)," "))) -> 
A42: ='D-1 Off-Site Habitat Baseline'!AF46 -> 0 | C42: =IF(B42="","",SUMIF('D-1 Off-Site Habitat Baseline'!AF46:AF293,B42,'D-1 Off-Site Habitat Baseline'!T46:T293)) ->  | D42: =IF(B42="","",SUMIF('D-1 Off-Site Habitat Baseline'!$AF$11:$AF$258,B42,'D-1 Off-Site Habitat Baseline'!$Q$11:$Q$258)) ->  | E42: =IF(B42="","", SUMIF('D-1 Off-Site Habitat Baseline'!$AF$11:$AF$258,'Off-site gain site summary'!$B42,'D-1 Off-Site Habitat Baseline'!$X$11:$X$258)) ->  | F42: =IF(B42="","", SUMIF('D-1 Off-Site Habitat Baseline'!$AF$11:$AF$258,'Off-site gain site summary'!$B42,'D-1 Off-Site Habitat Baseline'!$AY$11:$AY$258)) ->  | G42: =IF(B42="","",SUMIF('D-3 Off-Site Habitat Enhancment'!$AU$12:$AU$258,'Off-site gain site summary'!B42,'D-3 Off-Site Habitat Enhancment'!$AQ$12:$AQ$258)) ->  | H42: =IF(B42="","",SUMIF('D-3 Off-Site Habitat Enhancment'!$AU$12:$AU$258,'Off-site gain site summary'!B42,'D-3 Off-Site Habitat Enhancment'!$AP$12:$AP$258)) ->  | I42: =IF(B42="","",SUMIF('D-2 Off-Site Habitat Creation'!$AF$11:$AF$256,'Off-site gain site summary'!B42,'D-2 Off-Site Habitat Creation'!$AB$11:$AB$256)) ->  | J42: =IF(B42="","",SUMIF('D-2 Off-Site Habitat Creation'!$AF$11:$AF$256,'Off-site gain site summary'!B42,'D-2 Off-Site Habitat Creation'!$AA$11:$AA$256)) ->  | L42: =IF(ISBLANK(B42),"",IFERROR(_xlfn.XLOOKUP(B42,'D-2 Off-Site Habitat Creation'!$AF$11:$AF$256,'D-2 Off-Site Habitat Creation'!$Z$11:$Z$256),IFERROR(_xlfn.XLOOKUP(B42,'D-1 Off-Site Habitat Baseline'!AF$11:AF$258,'D-1 Off-Site Habitat Baseline'!S$11:S$258)," "))) ->  | N42: ='E-1 Off-Site Hedge Baseline'!AB45 -> 0 | P42: =IF(O42="","",SUMIF('E-1 Off-Site Hedge Baseline'!AB$10:AB$257,'Off-site gain site summary'!O42,'E-1 Off-Site Hedge Baseline'!Q$10:Q$257)) ->  | Q42: =IF(O42="","",SUMIF('E-1 Off-Site Hedge Baseline'!AB$10:AB$257,O42,'E-1 Off-Site Hedge Baseline'!N$10:N$257)) ->  | R42: =IF(O42="","",SUMIF('E-1 Off-Site Hedge Baseline'!$AB$10:$AB$257,'Off-site gain site summary'!$O42,'E-1 Off-Site Hedge Baseline'!$U$10:$U$257)) ->  | S42: =IF(O42="","",SUMIF('E-1 Off-Site Hedge Baseline'!$AB$10:$AB$257,'Off-site gain site summary'!$O42,'E-1 Off-Site Hedge Baseline'!$AY$10:$AY$257)) ->  | T42: =IF(O42="","",SUMIF('E-3 Off-Site Hedge Enhancement'!$AO$12:$AO$257,'Off-site gain site summary'!$O42,'E-3 Off-Site Hedge Enhancement'!$AK$12:$AK$257)) ->  | U42: =IF(O42="","",SUMIF('E-3 Off-Site Hedge Enhancement'!$AO$12:$AO$257,'Off-site gain site summary'!$O42,'E-3 Off-Site Hedge Enhancement'!$AJ$12:$AJ$257)) ->  | V42: =IF(O42="","",SUMIF('E-2 Off-Site Hedge Creation'!$AD$12:$AD$259,'Off-site gain site summary'!$O42,'E-2 Off-Site Hedge Creation'!$Z$12:$Z$259)) ->  | W42: =IF(O42="","",SUMIF('E-2 Off-Site Hedge Creation'!$AD$12:$AD$259,'Off-site gain site summary'!$O42,'E-2 Off-Site Hedge Creation'!$Y$12:$Y$259)) ->  | Y42: =IF(ISBLANK(O42),"", IFERROR(_xlfn.XLOOKUP(O42,'E-2 Off-Site Hedge Creation'!$AD$12:$AD$259,'E-2 Off-Site Hedge Creation'!$N$12:$N$259), IFERROR(_xlfn.XLOOKUP(O42,'E-1 Off-Site Hedge Baseline'!$AB$10:$AB$257,'E-1 Off-Site Hedge Baseline'!$P$10:$P$257), " "))) ->  | AA42: ='F-1 Off-Site WaterC'' Baseline'!AH45 -> 0 | AC42: =IF(AB42="","",SUMIF('F-1 Off-Site WaterC'' Baseline'!$AH$10:$AH$257,'Off-site gain site summary'!$AB42,'F-1 Off-Site WaterC'' Baseline'!$U$10:$U$257)) ->  | AD42: =IF(AB42="","",SUMIF('F-1 Off-Site WaterC'' Baseline'!$AH$10:$AH$257,'Off-site gain site summary'!$AB42,'F-1 Off-Site WaterC'' Baseline'!$R$10:$R$257)) ->  | AE42: =IF(AB42="","",SUMIF('F-1 Off-Site WaterC'' Baseline'!$AH$10:$AH$257,'Off-site gain site summary'!$AB42,'F-1 Off-Site WaterC'' Baseline'!$Z$10:$Z$257)) ->  | AF42: =IF(AB42="","",SUMIF('F-1 Off-Site WaterC'' Baseline'!$AH$10:$AH$257,'Off-site gain site summary'!$AB42,'F-1 Off-Site WaterC'' Baseline'!$BA$10:$BA$257)) ->  | AG42: =IF(AB42="","",SUMIF('F-3 Off-Site WaterC Enhancement'!$AT$12:$AT$257,'Off-site gain site summary'!$AB42,'F-3 Off-Site WaterC Enhancement'!$AP$12:$AP$257)) ->  | AH42: =IF(AB42="","",SUMIF('F-3 Off-Site WaterC Enhancement'!$AT$12:$AT$257,'Off-site gain site summary'!$AB42,'F-3 Off-Site WaterC Enhancement'!$AO$12:$AO$257)) ->  | AI42: =IF(AB42="","",SUMIF('F-2 Off-Site WaterC'' Creation'!$AG$12:$AG$259,'Off-site gain site summary'!$AB42,'F-2 Off-Site WaterC'' Creation'!$AC$12:$AC$259)) ->  | AJ42: =IF(AB42="","",SUMIF('F-2 Off-Site WaterC'' Creation'!$AG$12:$AG$259,'Off-site gain site summary'!$AB42,'F-2 Off-Site WaterC'' Creation'!$AB$12:$AB$259)) ->  | AL42: =IF(ISBLANK(AB42),"", IFERROR(_xlfn.XLOOKUP(AB42,'F-2 Off-Site WaterC'' Creation'!$AG$12:$AG$258,'F-2 Off-Site WaterC'' Creation'!$AA$12:$AA$258), IFERROR(_xlfn.XLOOKUP(AB42,'F-1 Off-Site WaterC'' Baseline'!$AH$10:$AH$257,'F-1 Off-Site WaterC'' Baseline'!$T$10:$T$257)," "))) -> 
A43: ='D-1 Off-Site Habitat Baseline'!AF47 -> 0 | C43: =IF(B43="","",SUMIF('D-1 Off-Site Habitat Baseline'!AF47:AF294,B43,'D-1 Off-Site Habitat Baseline'!T47:T294)) ->  | D43: =IF(B43="","",SUMIF('D-1 Off-Site Habitat Baseline'!$AF$11:$AF$258,B43,'D-1 Off-Site Habitat Baseline'!$Q$11:$Q$258)) ->  | E43: =IF(B43="","", SUMIF('D-1 Off-Site Habitat Baseline'!$AF$11:$AF$258,'Off-site gain site summary'!$B43,'D-1 Off-Site Habitat Baseline'!$X$11:$X$258)) ->  | F43: =IF(B43="","", SUMIF('D-1 Off-Site Habitat Baseline'!$AF$11:$AF$258,'Off-site gain site summary'!$B43,'D-1 Off-Site Habitat Baseline'!$AY$11:$AY$258)) ->  | G43: =IF(B43="","",SUMIF('D-3 Off-Site Habitat Enhancment'!$AU$12:$AU$258,'Off-site gain site summary'!B43,'D-3 Off-Site Habitat Enhancment'!$AQ$12:$AQ$258)) ->  | H43: =IF(B43="","",SUMIF('D-3 Off-Site Habitat Enhancment'!$AU$12:$AU$258,'Off-site gain site summary'!B43,'D-3 Off-Site Habitat Enhancment'!$AP$12:$AP$258)) ->  | I43: =IF(B43="","",SUMIF('D-2 Off-Site Habitat Creation'!$AF$11:$AF$256,'Off-site gain site summary'!B43,'D-2 Off-Site Habitat Creation'!$AB$11:$AB$256)) ->  | J43: =IF(B43="","",SUMIF('D-2 Off-Site Habitat Creation'!$AF$11:$AF$256,'Off-site gain site summary'!B43,'D-2 Off-Site Habitat Creation'!$AA$11:$AA$256)) ->  | L43: =IF(ISBLANK(B43),"",IFERROR(_xlfn.XLOOKUP(B43,'D-2 Off-Site Habitat Creation'!$AF$11:$AF$256,'D-2 Off-Site Habitat Creation'!$Z$11:$Z$256),IFERROR(_xlfn.XLOOKUP(B43,'D-1 Off-Site Habitat Baseline'!AF$11:AF$258,'D-1 Off-Site Habitat Baseline'!S$11:S$258)," "))) ->  | N43: ='E-1 Off-Site Hedge Baseline'!AB46 -> 0 | P43: =IF(O43="","",SUMIF('E-1 Off-Site Hedge Baseline'!AB$10:AB$257,'Off-site gain site summary'!O43,'E-1 Off-Site Hedge Baseline'!Q$10:Q$257)) ->  | Q43: =IF(O43="","",SUMIF('E-1 Off-Site Hedge Baseline'!AB$10:AB$257,O43,'E-1 Off-Site Hedge Baseline'!N$10:N$257)) ->  | R43: =IF(O43="","",SUMIF('E-1 Off-Site Hedge Baseline'!$AB$10:$AB$257,'Off-site gain site summary'!$O43,'E-1 Off-Site Hedge Baseline'!$U$10:$U$257)) ->  | S43: =IF(O43="","",SUMIF('E-1 Off-Site Hedge Baseline'!$AB$10:$AB$257,'Off-site gain site summary'!$O43,'E-1 Off-Site Hedge Baseline'!$AY$10:$AY$257)) ->  | T43: =IF(O43="","",SUMIF('E-3 Off-Site Hedge Enhancement'!$AO$12:$AO$257,'Off-site gain site summary'!$O43,'E-3 Off-Site Hedge Enhancement'!$AK$12:$AK$257)) ->  | U43: =IF(O43="","",SUMIF('E-3 Off-Site Hedge Enhancement'!$AO$12:$AO$257,'Off-site gain site summary'!$O43,'E-3 Off-Site Hedge Enhancement'!$AJ$12:$AJ$257)) ->  | V43: =IF(O43="","",SUMIF('E-2 Off-Site Hedge Creation'!$AD$12:$AD$259,'Off-site gain site summary'!$O43,'E-2 Off-Site Hedge Creation'!$Z$12:$Z$259)) ->  | W43: =IF(O43="","",SUMIF('E-2 Off-Site Hedge Creation'!$AD$12:$AD$259,'Off-site gain site summary'!$O43,'E-2 Off-Site Hedge Creation'!$Y$12:$Y$259)) ->  | Y43: =IF(ISBLANK(O43),"", IFERROR(_xlfn.XLOOKUP(O43,'E-2 Off-Site Hedge Creation'!$AD$12:$AD$259,'E-2 Off-Site Hedge Creation'!$N$12:$N$259), IFERROR(_xlfn.XLOOKUP(O43,'E-1 Off-Site Hedge Baseline'!$AB$10:$AB$257,'E-1 Off-Site Hedge Baseline'!$P$10:$P$257), " "))) ->  | AA43: ='F-1 Off-Site WaterC'' Baseline'!AH46 -> 0 | AC43: =IF(AB43="","",SUMIF('F-1 Off-Site WaterC'' Baseline'!$AH$10:$AH$257,'Off-site gain site summary'!$AB43,'F-1 Off-Site WaterC'' Baseline'!$U$10:$U$257)) ->  | AD43: =IF(AB43="","",SUMIF('F-1 Off-Site WaterC'' Baseline'!$AH$10:$AH$257,'Off-site gain site summary'!$AB43,'F-1 Off-Site WaterC'' Baseline'!$R$10:$R$257)) ->  | AE43: =IF(AB43="","",SUMIF('F-1 Off-Site WaterC'' Baseline'!$AH$10:$AH$257,'Off-site gain site summary'!$AB43,'F-1 Off-Site WaterC'' Baseline'!$Z$10:$Z$257)) ->  | AF43: =IF(AB43="","",SUMIF('F-1 Off-Site WaterC'' Baseline'!$AH$10:$AH$257,'Off-site gain site summary'!$AB43,'F-1 Off-Site WaterC'' Baseline'!$BA$10:$BA$257)) ->  | AG43: =IF(AB43="","",SUMIF('F-3 Off-Site WaterC Enhancement'!$AT$12:$AT$257,'Off-site gain site summary'!$AB43,'F-3 Off-Site WaterC Enhancement'!$AP$12:$AP$257)) ->  | AH43: =IF(AB43="","",SUMIF('F-3 Off-Site WaterC Enhancement'!$AT$12:$AT$257,'Off-site gain site summary'!$AB43,'F-3 Off-Site WaterC Enhancement'!$AO$12:$AO$257)) ->  | AI43: =IF(AB43="","",SUMIF('F-2 Off-Site WaterC'' Creation'!$AG$12:$AG$259,'Off-site gain site summary'!$AB43,'F-2 Off-Site WaterC'' Creation'!$AC$12:$AC$259)) ->  | AJ43: =IF(AB43="","",SUMIF('F-2 Off-Site WaterC'' Creation'!$AG$12:$AG$259,'Off-site gain site summary'!$AB43,'F-2 Off-Site WaterC'' Creation'!$AB$12:$AB$259)) ->  | AL43: =IF(ISBLANK(AB43),"", IFERROR(_xlfn.XLOOKUP(AB43,'F-2 Off-Site WaterC'' Creation'!$AG$12:$AG$258,'F-2 Off-Site WaterC'' Creation'!$AA$12:$AA$258), IFERROR(_xlfn.XLOOKUP(AB43,'F-1 Off-Site WaterC'' Baseline'!$AH$10:$AH$257,'F-1 Off-Site WaterC'' Baseline'!$T$10:$T$257)," "))) -> 
